Workbook

Sheet Startseite
E2: exactfinance 2021
G3: Letzter Import Kontenplan: | H3: 2021-01-25T08:40:21
G4: Letzter Import Journal: | H4: 2021-01-25T08:40:43
C8: Daten importieren
C10: Hier wird der Kontoplan und das Journal importiert
C13: Dashboard anzeigen
C15: Hier können Sie sich die Übersicht (Umsatz, Bruttogewinn, Gewinn) anzeigen lassen und anschliessend auf die Details gelangen.
C18: Budgetplanung erstellen
C20: Hier erfassen Sie Ihre Budgetzahlen pro Konto auf Monatsbasis.
A26: © exact construct GmbH

Sheet Kontenplan (hidden)
B8: Kontonummer | C8: Kontoname | D8: Kontoart | E8: Kontengruppe | F8: MWST | G8: isHide | H8: Typ | I8: + / - | J8: Bericht | K8: Klasse
B9: 1000 | C9: Kasse | D9: Aktivkonto | E9: 100 - Flüssige Mittel | G9: =IFERROR(INDEX(tblSections[isDelete],MATCH(tblKontenplan[[#This Row],[Kontengruppe]],tblSections[Section],0)),"x") -> x | I9: =RIGHT(tblKontenplan[[#This Row],[Typ]],1) -> 
B10: 1001 | C10: Bank easySYS Kasse CHF (easySYS Kasse) | D10: Aktivkonto | E10: 100 - Flüssige Mittel | G10: =IFERROR(INDEX(tblSections[isDelete],MATCH(tblKontenplan[[#This Row],[Kontengruppe]],tblSections[Section],0)),"x") -> x | I10: =RIGHT(tblKontenplan[[#This Row],[Typ]],1) -> 
B11: 1002 | C11: Kassenkonto Kreditkartenkonto CHF | D11: Aktivkonto | E11: 100 - Flüssige Mittel | G11: =IFERROR(INDEX(tblSections[isDelete],MATCH(tblKontenplan[[#This Row],[Kontengruppe]],tblSections[Section],0)),"x") -> x | I11: =RIGHT(tblKontenplan[[#This Row],[Typ]],1) -> 
B12: 1010 | C12: PostFinance CHF (PostFinance AG) | D12: Aktivkonto | E12: 100 - Flüssige Mittel | G12: =IFERROR(INDEX(tblSections[isDelete],MATCH(tblKontenplan[[#This Row],[Kontengruppe]],tblSections[Section],0)),"x") -> x | I12: =RIGHT(tblKontenplan[[#This Row],[Typ]],1) -> 
B13: 1020 | C13: Sparkonto Post | D13: Aktivkonto | E13: 100 - Flüssige Mittel | G13: =IFERROR(INDEX(tblSections[isDelete],MATCH(tblKontenplan[[#This Row],[Kontengruppe]],tblSections[Section],0)),"x") -> x | I13: =RIGHT(tblKontenplan[[#This Row],[Typ]],1) -> 
B14: 1023 | C14: Bank Paypal CHF (Bank of America N.A.) | D14: Aktivkonto | E14: 100 - Flüssige Mittel | G14: =IFERROR(INDEX(tblSections[isDelete],MATCH(tblKontenplan[[#This Row],[Kontengruppe]],tblSections[Section],0)),"x") -> x | I14: =RIGHT(tblKontenplan[[#This Row],[Typ]],1) -> 
B15: 1025 | C15: Konto Transferwise | D15: Aktivkonto | E15: 100 - Flüssige Mittel | G15: =IFERROR(INDEX(tblSections[isDelete],MATCH(tblKontenplan[[#This Row],[Kontengruppe]],tblSections[Section],0)),"x") -> x | I15: =RIGHT(tblKontenplan[[#This Row],[Typ]],1) -> 
B16: 1090 | C16: Transferkonto_Kinderzulagen | D16: Aktivkonto | E16: 1 - Aktiven | G16: =IFERROR(INDEX(tblSections[isDelete],MATCH(tblKontenplan[[#This Row],[Kontengruppe]],tblSections[Section],0)),"x") -> x | I16: =RIGHT(tblKontenplan[[#This Row],[Typ]],1) -> 
B17: 1091 | C17: Lohndurchlaufkonto | D17: Aktivkonto | E17: 10 - Umlaufvermögen | G17: =IFERROR(INDEX(tblSections[isDelete],MATCH(tblKontenplan[[#This Row],[Kontengruppe]],tblSections[Section],0)),"x") -> x | I17: =RIGHT(tblKontenplan[[#This Row],[Typ]],1) -> 
B18: 1100 | C18: Forderungen aus Lieferungen und Leistungen (Debitoren) | D18: Aktivkonto | E18: 10 - Umlaufvermögen | G18: =IFERROR(INDEX(tblSections[isDelete],MATCH(tblKontenplan[[#This Row],[Kontengruppe]],tblSections[Section],0)),"x") -> x | I18: =RIGHT(tblKontenplan[[#This Row],[Typ]],1) -> 
B19: 1109 | C19: Delkredere | D19: Aktivkonto | E19: 10 - Umlaufvermögen | G19: =IFERROR(INDEX(tblSections[isDelete],MATCH(tblKontenplan[[#This Row],[Kontengruppe]],tblSections[Section],0)),"x") -> x | I19: =RIGHT(tblKontenplan[[#This Row],[Typ]],1) -> 
B20: 1170 | C20: Vorsteuer MWST Material, Waren, Dienstleistungen, Energie | D20: Aktivkonto | E20: 10 - Umlaufvermögen | G20: =IFERROR(INDEX(tblSections[isDelete],MATCH(tblKontenplan[[#This Row],[Kontengruppe]],tblSections[Section],0)),"x") -> x | I20: =RIGHT(tblKontenplan[[#This Row],[Typ]],1) -> 
B21: 1171 | C21: Vorsteuer MWST Investitionen, übriger Betriebsaufwand | D21: Aktivkonto | E21: 10 - Umlaufvermögen | G21: =IFERROR(INDEX(tblSections[isDelete],MATCH(tblKontenplan[[#This Row],[Kontengruppe]],tblSections[Section],0)),"x") -> x | I21: =RIGHT(tblKontenplan[[#This Row],[Typ]],1) -> 
B22: 1173 | C22: Vorsteuerkürzung | D22: Aktivkonto | E22: 10 - Umlaufvermögen | G22: =IFERROR(INDEX(tblSections[isDelete],MATCH(tblKontenplan[[#This Row],[Kontengruppe]],tblSections[Section],0)),"x") -> x | I22: =RIGHT(tblKontenplan[[#This Row],[Typ]],1) -> 
B23: 1174 | C23: Vorsteuerkorrektur | D23: Aktivkonto | E23: 10 - Umlaufvermögen | G23: =IFERROR(INDEX(tblSections[isDelete],MATCH(tblKontenplan[[#This Row],[Kontengruppe]],tblSections[Section],0)),"x") -> x | I23: =RIGHT(tblKontenplan[[#This Row],[Typ]],1) -> 
B24: 1183 | C24: KK Unfallversicherung | D24: Aktivkonto | E24: 10 - Umlaufvermögen | G24: =IFERROR(INDEX(tblSections[isDelete],MATCH(tblKontenplan[[#This Row],[Kontengruppe]],tblSections[Section],0)),"x") -> x | I24: =RIGHT(tblKontenplan[[#This Row],[Typ]],1) -> 
B25: 1184 | C25: KK Krankentaggeld | D25: Aktivkonto | E25: 10 - Umlaufvermögen | G25: =IFERROR(INDEX(tblSections[isDelete],MATCH(tblKontenplan[[#This Row],[Kontengruppe]],tblSections[Section],0)),"x") -> x | I25: =RIGHT(tblKontenplan[[#This Row],[Typ]],1) -> 
B26: 1188 | C26: KK Quellensteuer | D26: Aktivkonto | E26: 10 - Umlaufvermögen | G26: =IFERROR(INDEX(tblSections[isDelete],MATCH(tblKontenplan[[#This Row],[Kontengruppe]],tblSections[Section],0)),"x") -> x | I26: =RIGHT(tblKontenplan[[#This Row],[Typ]],1) -> 
B27: 1280 | C27: Vorräte und angefangene Arbeiten | D27: Aktivkonto | E27: 10 - Umlaufvermögen | G27: =IFERROR(INDEX(tblSections[isDelete],MATCH(tblKontenplan[[#This Row],[Kontengruppe]],tblSections[Section],0)),"x") -> x | I27: =RIGHT(tblKontenplan[[#This Row],[Typ]],1) -> 
B28: 1300 | C28: Transitorische Aktiven | D28: Aktivkonto | E28: 10 - Umlaufvermögen | G28: =IFERROR(INDEX(tblSections[isDelete],MATCH(tblKontenplan[[#This Row],[Kontengruppe]],tblSections[Section],0)),"x") -> x | I28: =RIGHT(tblKontenplan[[#This Row],[Typ]],1) -> 
B29: 1302 | C29: Transit. Mehrwertsteuer (Vorsteuer) | D29: Aktivkonto | E29: 10 - Umlaufvermögen | G29: =IFERROR(INDEX(tblSections[isDelete],MATCH(tblKontenplan[[#This Row],[Kontengruppe]],tblSections[Section],0)),"x") -> x | I29: =RIGHT(tblKontenplan[[#This Row],[Typ]],1) -> 
B30: 1400 | C30: Darlehen exco IT Services Employees kurzfristig | D30: Aktivkonto | E30: 10 - Umlaufvermögen | G30: =IFERROR(INDEX(tblSections[isDelete],MATCH(tblKontenplan[[#This Row],[Kontengruppe]],tblSections[Section],0)),"x") -> x | I30: =RIGHT(tblKontenplan[[#This Row],[Typ]],1) -> 
B31: 1510 | C31: Mobiliar und Einrichtungen | D31: Aktivkonto | E31: 14 - Anlagevermögen | G31: =IFERROR(INDEX(tblSections[isDelete],MATCH(tblKontenplan[[#This Row],[Kontengruppe]],tblSections[Section],0)),"x") -> x | I31: =RIGHT(tblKontenplan[[#This Row],[Typ]],1) -> 
B32: 1520 | C32: Büromaschinen, Informatik, Kommunikationstechnologie | D32: Aktivkonto | E32: 14 - Anlagevermögen | G32: =IFERROR(INDEX(tblSections[isDelete],MATCH(tblKontenplan[[#This Row],[Kontengruppe]],tblSections[Section],0)),"x") -> x | I32: =RIGHT(tblKontenplan[[#This Row],[Typ]],1) -> 
B33: 1530 | C33: Fahrzeuge | D33: Aktivkonto | E33: 14 - Anlagevermögen | G33: =IFERROR(INDEX(tblSections[isDelete],MATCH(tblKontenplan[[#This Row],[Kontengruppe]],tblSections[Section],0)),"x") -> x | I33: =RIGHT(tblKontenplan[[#This Row],[Typ]],1) -> 
B34: 1800 | C34: Gründungsaufwand | D34: Aktivkonto | E34: 18 - Aktivierter Aufwand | G34: =IFERROR(INDEX(tblSections[isDelete],MATCH(tblKontenplan[[#This Row],[Kontengruppe]],tblSections[Section],0)),"x") -> x | I34: =RIGHT(tblKontenplan[[#This Row],[Typ]],1) -> 
B35: 2000 | C35: Verbindlichkeiten aus Lieferungen und Leistungen (Kreditoren) | D35: Passivkonto | E35: 20 - Kurzfristiges Fremdkapital | G35: =IFERROR(INDEX(tblSections[isDelete],MATCH(tblKontenplan[[#This Row],[Kontengruppe]],tblSections[Section],0)),"x") -> x | I35: =RIGHT(tblKontenplan[[#This Row],[Typ]],1) -> 
B36: 2030 | C36: Erhaltene Anzahlungen von Dritten | D36: Passivkonto | E36: 2 - Passiven | G36: =IFERROR(INDEX(tblSections[isDelete],MATCH(tblKontenplan[[#This Row],[Kontengruppe]],tblSections[Section],0)),"x") -> x | I36: =RIGHT(tblKontenplan[[#This Row],[Typ]],1) -> 
B37: 2100 | C37: Bankverbindlichkeiten | D37: Passivkonto | E37: 20 - Kurzfristiges Fremdkapital | G37: =IFERROR(INDEX(tblSections[isDelete],MATCH(tblKontenplan[[#This Row],[Kontengruppe]],tblSections[Section],0)),"x") -> x | I37: =RIGHT(tblKontenplan[[#This Row],[Typ]],1) -> 
B38: 2160 | C38: CC | D38: Passivkonto | E38: 20 - Kurzfristiges Fremdkapital | G38: =IFERROR(INDEX(tblSections[isDelete],MATCH(tblKontenplan[[#This Row],[Kontengruppe]],tblSections[Section],0)),"x") -> x | I38: =RIGHT(tblKontenplan[[#This Row],[Typ]],1) -> 
B39: 2161 | C39: CC | D39: Passivkonto | E39: 20 - Kurzfristiges Fremdkapital | G39: =IFERROR(INDEX(tblSections[isDelete],MATCH(tblKontenplan[[#This Row],[Kontengruppe]],tblSections[Section],0)),"x") -> x | I39: =RIGHT(tblKontenplan[[#This Row],[Typ]],1) -> 
B40: 2162 | C40: CC | D40: Passivkonto | E40: 20 - Kurzfristiges Fremdkapital | G40: =IFERROR(INDEX(tblSections[isDelete],MATCH(tblKontenplan[[#This Row],[Kontengruppe]],tblSections[Section],0)),"x") -> x | I40: =RIGHT(tblKontenplan[[#This Row],[Typ]],1) -> 
B41: 2200 | C41: Geschuldete MWST (Umsatzsteuer) | D41: Passivkonto | E41: 20 - Kurzfristiges Fremdkapital | G41: =IFERROR(INDEX(tblSections[isDelete],MATCH(tblKontenplan[[#This Row],[Kontengruppe]],tblSections[Section],0)),"x") -> x | I41: =RIGHT(tblKontenplan[[#This Row],[Typ]],1) -> 
B42: 2201 | C42: Abrechnungskonto MWST | D42: Passivkonto | E42: 20 - Kurzfristiges Fremdkapital | G42: =IFERROR(INDEX(tblSections[isDelete],MATCH(tblKontenplan[[#This Row],[Kontengruppe]],tblSections[Section],0)),"x") -> x | I42: =RIGHT(tblKontenplan[[#This Row],[Typ]],1) -> 
B43: 2203 | C43: Bezugsteuer | D43: Passivkonto | E43: 20 - Kurzfristiges Fremdkapital | G43: =IFERROR(INDEX(tblSections[isDelete],MATCH(tblKontenplan[[#This Row],[Kontengruppe]],tblSections[Section],0)),"x") -> x | I43: =RIGHT(tblKontenplan[[#This Row],[Typ]],1) -> 
B44: 2210 | C44: Sonstige kurzfristige Verbindlichkeiten | D44: Passivkonto | E44: 20 - Kurzfristiges Fremdkapital | G44: =IFERROR(INDEX(tblSections[isDelete],MATCH(tblKontenplan[[#This Row],[Kontengruppe]],tblSections[Section],0)),"x") -> x | I44: =RIGHT(tblKontenplan[[#This Row],[Typ]],1) -> 
B45: 2270 | C45: KK Vorsorgeeinrichtung | D45: Passivkonto | E45: 20 - Kurzfristiges Fremdkapital | G45: =IFERROR(INDEX(tblSections[isDelete],MATCH(tblKontenplan[[#This Row],[Kontengruppe]],tblSections[Section],0)),"x") -> x | I45: =RIGHT(tblKontenplan[[#This Row],[Typ]],1) -> 
B46: 2271 | C46: KK Sozialversicherung | D46: Passivkonto | E46: 20 - Kurzfristiges Fremdkapital | G46: =IFERROR(INDEX(tblSections[isDelete],MATCH(tblKontenplan[[#This Row],[Kontengruppe]],tblSections[Section],0)),"x") -> x | I46: =RIGHT(tblKontenplan[[#This Row],[Typ]],1) -> 
B47: 2272 | C47: KK FAK / VK | D47: Passivkonto | E47: 20 - Kurzfristiges Fremdkapital | G47: =IFERROR(INDEX(tblSections[isDelete],MATCH(tblKontenplan[[#This Row],[Kontengruppe]],tblSections[Section],0)),"x") -> x | I47: =RIGHT(tblKontenplan[[#This Row],[Typ]],1) -> 
B48: 2273 | C48: KK Unfallversicherung | D48: Passivkonto | E48: 20 - Kurzfristiges Fremdkapital | G48: =IFERROR(INDEX(tblSections[isDelete],MATCH(tblKontenplan[[#This Row],[Kontengruppe]],tblSections[Section],0)),"x") -> x | I48: =RIGHT(tblKontenplan[[#This Row],[Typ]],1) -> 
B49: 2274 | C49: KK Krankentaggeld | D49: Passivkonto | E49: 20 - Kurzfristiges Fremdkapital | G49: =IFERROR(INDEX(tblSections[isDelete],MATCH(tblKontenplan[[#This Row],[Kontengruppe]],tblSections[Section],0)),"x") -> x | I49: =RIGHT(tblKontenplan[[#This Row],[Typ]],1) -> 
B50: 2279 | C50: KK Quellensteuer | D50: Passivkonto | E50: 20 - Kurzfristiges Fremdkapital | G50: =IFERROR(INDEX(tblSections[isDelete],MATCH(tblKontenplan[[#This Row],[Kontengruppe]],tblSections[Section],0)),"x") -> x | I50: =RIGHT(tblKontenplan[[#This Row],[Typ]],1) -> 
B51: 2300 | C51: Transitorische Passiven | D51: Passivkonto | E51: 20 - Kurzfristiges Fremdkapital | G51: =IFERROR(INDEX(tblSections[isDelete],MATCH(tblKontenplan[[#This Row],[Kontengruppe]],tblSections[Section],0)),"x") -> x | I51: =RIGHT(tblKontenplan[[#This Row],[Typ]],1) -> 
B52: 2302 | C52: Transit. Mehrwertsteuer (Umsatzsteuer) | D52: Passivkonto | E52: 20 - Kurzfristiges Fremdkapital | G52: =IFERROR(INDEX(tblSections[isDelete],MATCH(tblKontenplan[[#This Row],[Kontengruppe]],tblSections[Section],0)),"x") -> x | I52: =RIGHT(tblKontenplan[[#This Row],[Typ]],1) -> 
B53: 2310 | C53: Leistungsverpflichtungen | D53: Passivkonto | E53: 20 - Kurzfristiges Fremdkapital | G53: =IFERROR(INDEX(tblSections[isDelete],MATCH(tblKontenplan[[#This Row],[Kontengruppe]],tblSections[Section],0)),"x") -> x | I53: =RIGHT(tblKontenplan[[#This Row],[Typ]],1) -> 
B54: 2400 | C54: Bankverbindlichkeiten | D54: Passivkonto | E54: 24 - Langfristiges Fremdkapital | G54: =IFERROR(INDEX(tblSections[isDelete],MATCH(tblKontenplan[[#This Row],[Kontengruppe]],tblSections[Section],0)),"x") -> x | I54: =RIGHT(tblKontenplan[[#This Row],[Typ]],1) -> 
B55: 2500 | C55: Übrige langfristige Verbindlichkeiten (unverzinslich) | D55: Passivkonto | E55: 24 - Langfristiges Fremdkapital | G55: =IFERROR(INDEX(tblSections[isDelete],MATCH(tblKontenplan[[#This Row],[Kontengruppe]],tblSections[Section],0)),"x") -> x | I55: =RIGHT(tblKontenplan[[#This Row],[Typ]],1) -> 
B56: 2600 | C56: Rückstellungen | D56: Passivkonto | E56: 24 - Langfristiges Fremdkapital | G56: =IFERROR(INDEX(tblSections[isDelete],MATCH(tblKontenplan[[#This Row],[Kontengruppe]],tblSections[Section],0)),"x") -> x | I56: =RIGHT(tblKontenplan[[#This Row],[Typ]],1) -> 
B57: 2800 | C57: Stammkapital | D57: Passivkonto | E57: 28 - Eigenkapital | G57: =IFERROR(INDEX(tblSections[isDelete],MATCH(tblKontenplan[[#This Row],[Kontengruppe]],tblSections[Section],0)),"x") -> x | I57: =RIGHT(tblKontenplan[[#This Row],[Typ]],1) -> 
B58: 2900 | C58: Allg. Reserven | D58: Passivkonto | E58: 28 - Eigenkapital | G58: =IFERROR(INDEX(tblSections[isDelete],MATCH(tblKontenplan[[#This Row],[Kontengruppe]],tblSections[Section],0)),"x") -> x | I58: =RIGHT(tblKontenplan[[#This Row],[Typ]],1) -> 
B59: 2915 | C59: freie Reserven | D59: Passivkonto | E59: 28 - Eigenkapital | G59: =IFERROR(INDEX(tblSections[isDelete],MATCH(tblKontenplan[[#This Row],[Kontengruppe]],tblSections[Section],0)),"x") -> x | I59: =RIGHT(tblKontenplan[[#This Row],[Typ]],1) -> 
B60: 2990 | C60: Bilanzgewinn/-verlust | D60: Passivkonto | E60: 28 - Eigenkapital | G60: =IFERROR(INDEX(tblSections[isDelete],MATCH(tblKontenplan[[#This Row],[Kontengruppe]],tblSections[Section],0)),"x") -> x | I60: =RIGHT(tblKontenplan[[#This Row],[Typ]],1) -> 
B61: 2991 | C61: Jahreserfolg | D61: Passivkonto | E61: 28 - Eigenkapital | G61: =IFERROR(INDEX(tblSections[isDelete],MATCH(tblKontenplan[[#This Row],[Kontengruppe]],tblSections[Section],0)),"x") -> x | I61: =RIGHT(tblKontenplan[[#This Row],[Typ]],1) -> 
B62: 3000 | C62: Dienstleistungserlöse | D62: Ertragskonto | E62: 3 - Betrieblicher Ertrag aus Lieferungen und Leistungen | G62: =IFERROR(INDEX(tblSections[isDelete],MATCH(tblKontenplan[[#This Row],[Kontengruppe]],tblSections[Section],0)),"x") ->  | I62: =RIGHT(tblKontenplan[[#This Row],[Typ]],1) -> 
B63: 3100 | C63: Ertrag aus Supportverträgen | D63: Ertragskonto | E63: 3 - Betrieblicher Ertrag aus Lieferungen und Leistungen | G63: =IFERROR(INDEX(tblSections[isDelete],MATCH(tblKontenplan[[#This Row],[Kontengruppe]],tblSections[Section],0)),"x") ->  | I63: =RIGHT(tblKontenplan[[#This Row],[Typ]],1) -> 
B64: 3200 | C64: Ertrag aus Verkauf von Standardtools (Homepage) | D64: Ertragskonto | E64: 3 - Betrieblicher Ertrag aus Lieferungen und Leistungen | G64: =IFERROR(INDEX(tblSections[isDelete],MATCH(tblKontenplan[[#This Row],[Kontengruppe]],tblSections[Section],0)),"x") ->  | I64: =RIGHT(tblKontenplan[[#This Row],[Typ]],1) -> 
B65: 3250 | C65: Ertrag aus Schulungen | D65: Ertragskonto | E65: 3 - Betrieblicher Ertrag aus Lieferungen und Leistungen | G65: =IFERROR(INDEX(tblSections[isDelete],MATCH(tblKontenplan[[#This Row],[Kontengruppe]],tblSections[Section],0)),"x") ->  | I65: =RIGHT(tblKontenplan[[#This Row],[Typ]],1) -> 
B66: 3300 | C66: Erlöse aus Export | D66: Ertragskonto | E66: 3 - Betrieblicher Ertrag aus Lieferungen und Leistungen | G66: =IFERROR(INDEX(tblSections[isDelete],MATCH(tblKontenplan[[#This Row],[Kontengruppe]],tblSections[Section],0)),"x") ->  | I66: =RIGHT(tblKontenplan[[#This Row],[Typ]],1) -> 
B67: 3600 | C67: Übrige Erlöse aus Lieferungen und Leistungen | D67: Ertragskonto | E67: 3 - Betrieblicher Ertrag aus Lieferungen und Leistungen | G67: =IFERROR(INDEX(tblSections[isDelete],MATCH(tblKontenplan[[#This Row],[Kontengruppe]],tblSections[Section],0)),"x") ->  | I67: =RIGHT(tblKontenplan[[#This Row],[Typ]],1) -> 
B68: 3700 | C68: Bestandesänderungen DL | D68: Ertragskonto | E68: 3 - Betrieblicher Ertrag aus Lieferungen und Leistungen | G68: =IFERROR(INDEX(tblSections[isDelete],MATCH(tblKontenplan[[#This Row],[Kontengruppe]],tblSections[Section],0)),"x") ->  | I68: =RIGHT(tblKontenplan[[#This Row],[Typ]],1) -> 
B69: 3800 | C69: Erlösminderungen | D69: Ertragskonto | E69: 3 - Betrieblicher Ertrag aus Lieferungen und Leistungen | G69: =IFERROR(INDEX(tblSections[isDelete],MATCH(tblKontenplan[[#This Row],[Kontengruppe]],tblSections[Section],0)),"x") ->  | I69: =RIGHT(tblKontenplan[[#This Row],[Typ]],1) -> 
B70: 3805 | C70: Verluste Forderungen (Debitoren), Veränderung Delkredere | D70: Ertragskonto | E70: 3 - Betrieblicher Ertrag aus Lieferungen und Leistungen | G70: =IFERROR(INDEX(tblSections[isDelete],MATCH(tblKontenplan[[#This Row],[Kontengruppe]],tblSections[Section],0)),"x") ->  | I70: =RIGHT(tblKontenplan[[#This Row],[Typ]],1) -> 
B71: 3809 | C71: MWST Saldosteuersatz | D71: Ertragskonto | E71: 3 - Betrieblicher Ertrag aus Lieferungen und Leistungen | G71: =IFERROR(INDEX(tblSections[isDelete],MATCH(tblKontenplan[[#This Row],[Kontengruppe]],tblSections[Section],0)),"x") ->  | I71: =RIGHT(tblKontenplan[[#This Row],[Typ]],1) -> 
B72: 3900 | C72: Bestandesänderung Rückstellung Garantieleistungen | D72: Ertragskonto | E72: 3 - Betrieblicher Ertrag aus Lieferungen und Leistungen | G72: =IFERROR(INDEX(tblSections[isDelete],MATCH(tblKontenplan[[#This Row],[Kontengruppe]],tblSections[Section],0)),"x") ->  | I72: =RIGHT(tblKontenplan[[#This Row],[Typ]],1) -> 
B73: 3901 | C73: Bestandesänderung fertige Erzeugnisse | D73: Ertragskonto | E73: 3 - Betrieblicher Ertrag aus Lieferungen und Leistungen | G73: =IFERROR(INDEX(tblSections[isDelete],MATCH(tblKontenplan[[#This Row],[Kontengruppe]],tblSections[Section],0)),"x") ->  | I73: =RIGHT(tblKontenplan[[#This Row],[Typ]],1) -> 
B74: 3940 | C74: Bestandesänderung nicht fakturierte Dienstleistungen | D74: Ertragskonto | E74: 3 - Betrieblicher Ertrag aus Lieferungen und Leistungen | G74: =IFERROR(INDEX(tblSections[isDelete],MATCH(tblKontenplan[[#This Row],[Kontengruppe]],tblSections[Section],0)),"x") ->  | I74: =RIGHT(tblKontenplan[[#This Row],[Typ]],1) -> 
B75: 3950 | C75: Bestandesänderung Rückstellungen Garantieleistungen | D75: Ertragskonto | E75: 3 - Betrieblicher Ertrag aus Lieferungen und Leistungen | G75: =IFERROR(INDEX(tblSections[isDelete],MATCH(tblKontenplan[[#This Row],[Kontengruppe]],tblSections[Section],0)),"x") ->  | I75: =RIGHT(tblKontenplan[[#This Row],[Typ]],1) -> 
B76: 3960 | C76: Bestandesänderung Leistungsverpflichtungen | D76: Ertragskonto | E76: 3 - Betrieblicher Ertrag aus Lieferungen und Leistungen | G76: =IFERROR(INDEX(tblSections[isDelete],MATCH(tblKontenplan[[#This Row],[Kontengruppe]],tblSections[Section],0)),"x") ->  | I76: =RIGHT(tblKontenplan[[#This Row],[Typ]],1) -> 
B77: 4000 | C77: Aufwand für Material, Handelswaren, Dienstleistungen und Energie | D77: Aufwandskonto | E77: 4 - Aufwand für Material, Handelswaren, Dienstleistungen und Energie | G77: =IFERROR(INDEX(tblSections[isDelete],MATCH(tblKontenplan[[#This Row],[Kontengruppe]],tblSections[Section],0)),"x") ->  | I77: =RIGHT(tblKontenplan[[#This Row],[Typ]],1) -> 
B78: 4400 | C78: Aufwand für bezogene Dienstleistungen | D78: Aufwandskonto | E78: 4 - Aufwand für Material, Handelswaren, Dienstleistungen und Energie | G78: =IFERROR(INDEX(tblSections[isDelete],MATCH(tblKontenplan[[#This Row],[Kontengruppe]],tblSections[Section],0)),"x") ->  | I78: =RIGHT(tblKontenplan[[#This Row],[Typ]],1) -> 
B79: 4410 | C79: Aufwände für Spezialmaterial | D79: Aufwandskonto | E79: 4 - Aufwand für Material, Handelswaren, Dienstleistungen und Energie | G79: =IFERROR(INDEX(tblSections[isDelete],MATCH(tblKontenplan[[#This Row],[Kontengruppe]],tblSections[Section],0)),"x") ->  | I79: =RIGHT(tblKontenplan[[#This Row],[Typ]],1) -> 
B80: 4500 | C80: Energieaufwand zur Leistungserstellung | D80: Aufwandskonto | E80: 4 - Aufwand für Material, Handelswaren, Dienstleistungen und Energie | G80: =IFERROR(INDEX(tblSections[isDelete],MATCH(tblKontenplan[[#This Row],[Kontengruppe]],tblSections[Section],0)),"x") ->  | I80: =RIGHT(tblKontenplan[[#This Row],[Typ]],1) -> 
B81: 4900 | C81: Aufwandminderungen | D81: Aufwandskonto | E81: 4 - Aufwand für Material, Handelswaren, Dienstleistungen und Energie | G81: =IFERROR(INDEX(tblSections[isDelete],MATCH(tblKontenplan[[#This Row],[Kontengruppe]],tblSections[Section],0)),"x") ->  | I81: =RIGHT(tblKontenplan[[#This Row],[Typ]],1) -> 
B82: 5000 | C82: Lohnaufwand | D82: Aufwandskonto | E82: 5 - Personalaufwand | G82: =IFERROR(INDEX(tblSections[isDelete],MATCH(tblKontenplan[[#This Row],[Kontengruppe]],tblSections[Section],0)),"x") ->  | I82: =RIGHT(tblKontenplan[[#This Row],[Typ]],1) -> 
B83: 5001 | C83: Zulagen | D83: Aufwandskonto | E83: 5 - Personalaufwand | G83: =IFERROR(INDEX(tblSections[isDelete],MATCH(tblKontenplan[[#This Row],[Kontengruppe]],tblSections[Section],0)),"x") ->  | I83: =RIGHT(tblKontenplan[[#This Row],[Typ]],1) -> 
B84: 5002 | C84: Erfolgsbeteiligungen | D84: Aufwandskonto | E84: 5 - Personalaufwand | G84: =IFERROR(INDEX(tblSections[isDelete],MATCH(tblKontenplan[[#This Row],[Kontengruppe]],tblSections[Section],0)),"x") ->  | I84: =RIGHT(tblKontenplan[[#This Row],[Typ]],1) -> 
B85: 5003 | C85: Provisionen | D85: Aufwandskonto | E85: 5 - Personalaufwand | G85: =IFERROR(INDEX(tblSections[isDelete],MATCH(tblKontenplan[[#This Row],[Kontengruppe]],tblSections[Section],0)),"x") ->  | I85: =RIGHT(tblKontenplan[[#This Row],[Typ]],1) -> 
B86: 5005 | C86: Leistungen von Sozialversicherungen | D86: Aufwandskonto | E86: 5 - Personalaufwand | G86: =IFERROR(INDEX(tblSections[isDelete],MATCH(tblKontenplan[[#This Row],[Kontengruppe]],tblSections[Section],0)),"x") ->  | I86: =RIGHT(tblKontenplan[[#This Row],[Typ]],1) -> 
B87: 5700 | C87: Sozialversicherungsaufwand (AHV, IV, EO, ALV) | D87: Aufwandskonto | E87: 5 - Personalaufwand | G87: =IFERROR(INDEX(tblSections[isDelete],MATCH(tblKontenplan[[#This Row],[Kontengruppe]],tblSections[Section],0)),"x") ->  | I87: =RIGHT(tblKontenplan[[#This Row],[Typ]],1) -> 
B88: 5710 | C88: FAK-Beitrag | D88: Aufwandskonto | E88: 5 - Personalaufwand | G88: =IFERROR(INDEX(tblSections[isDelete],MATCH(tblKontenplan[[#This Row],[Kontengruppe]],tblSections[Section],0)),"x") ->  | I88: =RIGHT(tblKontenplan[[#This Row],[Typ]],1) -> 
B89: 5711 | C89: VK-Beitrag | D89: Aufwandskonto | E89: 5 - Personalaufwand | G89: =IFERROR(INDEX(tblSections[isDelete],MATCH(tblKontenplan[[#This Row],[Kontengruppe]],tblSections[Section],0)),"x") ->  | I89: =RIGHT(tblKontenplan[[#This Row],[Typ]],1) -> 
B90: 5720 | C90: Pensionskassenaufwand | D90: Aufwandskonto | E90: 5 - Personalaufwand | G90: =IFERROR(INDEX(tblSections[isDelete],MATCH(tblKontenplan[[#This Row],[Kontengruppe]],tblSections[Section],0)),"x") ->  | I90: =RIGHT(tblKontenplan[[#This Row],[Typ]],1) -> 
B91: 5730 | C91: Unfallversicherung | D91: Aufwandskonto | E91: 5 - Personalaufwand | G91: =IFERROR(INDEX(tblSections[isDelete],MATCH(tblKontenplan[[#This Row],[Kontengruppe]],tblSections[Section],0)),"x") ->  | I91: =RIGHT(tblKontenplan[[#This Row],[Typ]],1) -> 
B92: 5740 | C92: Krankentaggeld | D92: Aufwandskonto | E92: 5 - Personalaufwand | G92: =IFERROR(INDEX(tblSections[isDelete],MATCH(tblKontenplan[[#This Row],[Kontengruppe]],tblSections[Section],0)),"x") ->  | I92: =RIGHT(tblKontenplan[[#This Row],[Typ]],1) -> 
B93: 5790 | C93: Quellensteuer | D93: Aufwandskonto | E93: 5 - Personalaufwand | G93: =IFERROR(INDEX(tblSections[isDelete],MATCH(tblKontenplan[[#This Row],[Kontengruppe]],tblSections[Section],0)),"x") ->  | I93: =RIGHT(tblKontenplan[[#This Row],[Typ]],1) -> 
B94: 5800 | C94: Übriger Personalaufwand | D94: Aufwandskonto | E94: 5 - Personalaufwand | G94: =IFERROR(INDEX(tblSections[isDelete],MATCH(tblKontenplan[[#This Row],[Kontengruppe]],tblSections[Section],0)),"x") ->  | I94: =RIGHT(tblKontenplan[[#This Row],[Typ]],1) -> 
B95: 5801 | C95: EO Auszahlung (Mutterschaft) | D95: Aufwandskonto | E95: 5 - Personalaufwand | G95: =IFERROR(INDEX(tblSections[isDelete],MATCH(tblKontenplan[[#This Row],[Kontengruppe]],tblSections[Section],0)),"x") ->  | I95: =RIGHT(tblKontenplan[[#This Row],[Typ]],1) -> 
B96: 5802 | C96: Auszahlung Taggelder | D96: Aufwandskonto | E96: 5 - Personalaufwand | G96: =IFERROR(INDEX(tblSections[isDelete],MATCH(tblKontenplan[[#This Row],[Kontengruppe]],tblSections[Section],0)),"x") ->  | I96: =RIGHT(tblKontenplan[[#This Row],[Typ]],1) -> 
B97: 5810 | C97: Berufliche Weiterbildung | D97: Aufwandskonto | E97: 5 - Personalaufwand | G97: =IFERROR(INDEX(tblSections[isDelete],MATCH(tblKontenplan[[#This Row],[Kontengruppe]],tblSections[Section],0)),"x") ->  | I97: =RIGHT(tblKontenplan[[#This Row],[Typ]],1) -> 
B98: 5820 | C98: Personal- und Pauschalspesen | D98: Aufwandskonto | E98: 5 - Personalaufwand | G98: =IFERROR(INDEX(tblSections[isDelete],MATCH(tblKontenplan[[#This Row],[Kontengruppe]],tblSections[Section],0)),"x") ->  | I98: =RIGHT(tblKontenplan[[#This Row],[Typ]],1) -> 
B99: 5821 | C99: Verpflegungsspesen | D99: Aufwandskonto | E99: 5 - Personalaufwand | G99: =IFERROR(INDEX(tblSections[isDelete],MATCH(tblKontenplan[[#This Row],[Kontengruppe]],tblSections[Section],0)),"x") ->  | I99: =RIGHT(tblKontenplan[[#This Row],[Typ]],1) -> 
B100: 5832 | C100: Personal- und Pauschalspesen | D100: Aufwandskonto | E100: 5 - Personalaufwand | G100: =IFERROR(INDEX(tblSections[isDelete],MATCH(tblKontenplan[[#This Row],[Kontengruppe]],tblSections[Section],0)),"x") ->  | I100: =RIGHT(tblKontenplan[[#This Row],[Typ]],1) -> 
B101: 5890 | C101: Aufrechnung Privatanteile | D101: Aufwandskonto | E101: 5 - Personalaufwand | G101: =IFERROR(INDEX(tblSections[isDelete],MATCH(tblKontenplan[[#This Row],[Kontengruppe]],tblSections[Section],0)),"x") ->  | I101: =RIGHT(tblKontenplan[[#This Row],[Typ]],1) -> 
B102: 5891 | C102: Abzug Privatanteile | D102: Aufwandskonto | E102: 5 - Personalaufwand | G102: =IFERROR(INDEX(tblSections[isDelete],MATCH(tblKontenplan[[#This Row],[Kontengruppe]],tblSections[Section],0)),"x") ->  | I102: =RIGHT(tblKontenplan[[#This Row],[Typ]],1) -> 
B103: 5900 | C103: Leistungen Dritter | D103: Aufwandskonto | E103: 5 - Personalaufwand | G103: =IFERROR(INDEX(tblSections[isDelete],MATCH(tblKontenplan[[#This Row],[Kontengruppe]],tblSections[Section],0)),"x") ->  | I103: =RIGHT(tblKontenplan[[#This Row],[Typ]],1) -> 
B104: 6000 | C104: Raumaufwand | D104: Aufwandskonto | E104: 6 - Übriger betrieblicher Aufwand, Abschreibungen und Wertberichtigungen sowie Finanzergebnis | G104: =IFERROR(INDEX(tblSections[isDelete],MATCH(tblKontenplan[[#This Row],[Kontengruppe]],tblSections[Section],0)),"x") ->  | I104: =RIGHT(tblKontenplan[[#This Row],[Typ]],1) -> 
B105: 6005 | C105: Nebenkosten | D105: Aufwandskonto | E105: 6 - Übriger betrieblicher Aufwand, Abschreibungen und Wertberichtigungen sowie Finanzergebnis | G105: =IFERROR(INDEX(tblSections[isDelete],MATCH(tblKontenplan[[#This Row],[Kontengruppe]],tblSections[Section],0)),"x") ->  | I105: =RIGHT(tblKontenplan[[#This Row],[Typ]],1) -> 
B106: 6100 | C106: URE Mobiliar | D106: Aufwandskonto | E106: 6 - Übriger betrieblicher Aufwand, Abschreibungen und Wertberichtigungen sowie Finanzergebnis | G106: =IFERROR(INDEX(tblSections[isDelete],MATCH(tblKontenplan[[#This Row],[Kontengruppe]],tblSections[Section],0)),"x") ->  | I106: =RIGHT(tblKontenplan[[#This Row],[Typ]],1) -> 
B107: 6105 | C107: Leasingaufwand mobile Sachanlagen | D107: Aufwandskonto | E107: 6 - Übriger betrieblicher Aufwand, Abschreibungen und Wertberichtigungen sowie Finanzergebnis | G107: =IFERROR(INDEX(tblSections[isDelete],MATCH(tblKontenplan[[#This Row],[Kontengruppe]],tblSections[Section],0)),"x") ->  | I107: =RIGHT(tblKontenplan[[#This Row],[Typ]],1) -> 
B108: 6220 | C108: Fahrzeugaufwand | D108: Aufwandskonto | E108: 6 - Übriger betrieblicher Aufwand, Abschreibungen und Wertberichtigungen sowie Finanzergebnis | G108: =IFERROR(INDEX(tblSections[isDelete],MATCH(tblKontenplan[[#This Row],[Kontengruppe]],tblSections[Section],0)),"x") ->  | I108: =RIGHT(tblKontenplan[[#This Row],[Typ]],1) -> 
B109: 6221 | C109: Fahrzeugaufwand2 | D109: Aufwandskonto | E109: 6 - Übriger betrieblicher Aufwand, Abschreibungen und Wertberichtigungen sowie Finanzergebnis | G109: =IFERROR(INDEX(tblSections[isDelete],MATCH(tblKontenplan[[#This Row],[Kontengruppe]],tblSections[Section],0)),"x") ->  | I109: =RIGHT(tblKontenplan[[#This Row],[Typ]],1) -> 
B110: 6260 | C110: Fahrzeugleasing und -mieten | D110: Aufwandskonto | E110: 6 - Übriger betrieblicher Aufwand, Abschreibungen und Wertberichtigungen sowie Finanzergebnis | G110: =IFERROR(INDEX(tblSections[isDelete],MATCH(tblKontenplan[[#This Row],[Kontengruppe]],tblSections[Section],0)),"x") ->  | I110: =RIGHT(tblKontenplan[[#This Row],[Typ]],1) -> 
B111: 6270 | C111: Privatanteil Fahrzeugaufwand | D111: Aufwandskonto | E111: 6 - Übriger betrieblicher Aufwand, Abschreibungen und Wertberichtigungen sowie Finanzergebnis | G111: =IFERROR(INDEX(tblSections[isDelete],MATCH(tblKontenplan[[#This Row],[Kontengruppe]],tblSections[Section],0)),"x") ->  | I111: =RIGHT(tblKontenplan[[#This Row],[Typ]],1) -> 
B112: 6300 | C112: Sachversicherungen, Abgaben, Gebühren, Bewilligungen | D112: Aufwandskonto | E112: 6 - Übriger betrieblicher Aufwand, Abschreibungen und Wertberichtigungen sowie Finanzergebnis | G112: =IFERROR(INDEX(tblSections[isDelete],MATCH(tblKontenplan[[#This Row],[Kontengruppe]],tblSections[Section],0)),"x") ->  | I112: =RIGHT(tblKontenplan[[#This Row],[Typ]],1) -> 
B113: 6400 | C113: Energie- und Entsorgungsaufwand | D113: Aufwandskonto | E113: 6 - Übriger betrieblicher Aufwand, Abschreibungen und Wertberichtigungen sowie Finanzergebnis | G113: =IFERROR(INDEX(tblSections[isDelete],MATCH(tblKontenplan[[#This Row],[Kontengruppe]],tblSections[Section],0)),"x") ->  | I113: =RIGHT(tblKontenplan[[#This Row],[Typ]],1) -> 
B114: 6500 | C114: Verwaltungsaufwand | D114: Aufwandskonto | E114: 6 - Übriger betrieblicher Aufwand, Abschreibungen und Wertberichtigungen sowie Finanzergebnis | G114: =IFERROR(INDEX(tblSections[isDelete],MATCH(tblKontenplan[[#This Row],[Kontengruppe]],tblSections[Section],0)),"x") ->  | I114: =RIGHT(tblKontenplan[[#This Row],[Typ]],1) -> 
B115: 6505 | C115: Versicherungsaufwand | D115: Aufwandskonto | E115: 6 - Übriger betrieblicher Aufwand, Abschreibungen und Wertberichtigungen sowie Finanzergebnis | G115: =IFERROR(INDEX(tblSections[isDelete],MATCH(tblKontenplan[[#This Row],[Kontengruppe]],tblSections[Section],0)),"x") ->  | I115: =RIGHT(tblKontenplan[[#This Row],[Typ]],1) -> 
B116: 6510 | C116: Telefon, Internet | D116: Aufwandskonto | E116: 6 - Übriger betrieblicher Aufwand, Abschreibungen und Wertberichtigungen sowie Finanzergebnis | G116: =IFERROR(INDEX(tblSections[isDelete],MATCH(tblKontenplan[[#This Row],[Kontengruppe]],tblSections[Section],0)),"x") ->  | I116: =RIGHT(tblKontenplan[[#This Row],[Typ]],1) -> 
B117: 6511 | C117: Privatanteil Telefonaufwand | D117: Ertragskonto | E117: 6 - Übriger betrieblicher Aufwand, Abschreibungen und Wertberichtigungen sowie Finanzergebnis | G117: =IFERROR(INDEX(tblSections[isDelete],MATCH(tblKontenplan[[#This Row],[Kontengruppe]],tblSections[Section],0)),"x") ->  | I117: =RIGHT(tblKontenplan[[#This Row],[Typ]],1) -> 
B118: 6530 | C118: Buchführung, Beratung | D118: Aufwandskonto | E118: 6 - Übriger betrieblicher Aufwand, Abschreibungen und Wertberichtigungen sowie Finanzergebnis | G118: =IFERROR(INDEX(tblSections[isDelete],MATCH(tblKontenplan[[#This Row],[Kontengruppe]],tblSections[Section],0)),"x") ->  | I118: =RIGHT(tblKontenplan[[#This Row],[Typ]],1) -> 
B119: 6560 | C119: Informatikaufwand inkl. Leasing | D119: Aufwandskonto | E119: 6 - Übriger betrieblicher Aufwand, Abschreibungen und Wertberichtigungen sowie Finanzergebnis | G119: =IFERROR(INDEX(tblSections[isDelete],MATCH(tblKontenplan[[#This Row],[Kontengruppe]],tblSections[Section],0)),"x") ->  | I119: =RIGHT(tblKontenplan[[#This Row],[Typ]],1) -> 
B120: 6570 | C120: Weiterbildung | D120: Aufwandskonto | E120: 6 - Übriger betrieblicher Aufwand, Abschreibungen und Wertberichtigungen sowie Finanzergebnis | G120: =IFERROR(INDEX(tblSections[isDelete],MATCH(tblKontenplan[[#This Row],[Kontengruppe]],tblSections[Section],0)),"x") ->  | I120: =RIGHT(tblKontenplan[[#This Row],[Typ]],1) -> 
B121: 6600 | C121: Werbeaufwand | D121: Aufwandskonto | E121: 6 - Übriger betrieblicher Aufwand, Abschreibungen und Wertberichtigungen sowie Finanzergebnis | G121: =IFERROR(INDEX(tblSections[isDelete],MATCH(tblKontenplan[[#This Row],[Kontengruppe]],tblSections[Section],0)),"x") ->  | I121: =RIGHT(tblKontenplan[[#This Row],[Typ]],1) -> 
B122: 6640 | C122: Kunden- und Reisespesen | D122: Aufwandskonto | E122: 6 - Übriger betrieblicher Aufwand, Abschreibungen und Wertberichtigungen sowie Finanzergebnis | G122: =IFERROR(INDEX(tblSections[isDelete],MATCH(tblKontenplan[[#This Row],[Kontengruppe]],tblSections[Section],0)),"x") ->  | I122: =RIGHT(tblKontenplan[[#This Row],[Typ]],1) -> 
B123: 6642 | C123: Kundengeschenke | D123: Aufwandskonto | E123: 6 - Übriger betrieblicher Aufwand, Abschreibungen und Wertberichtigungen sowie Finanzergebnis | G123: =IFERROR(INDEX(tblSections[isDelete],MATCH(tblKontenplan[[#This Row],[Kontengruppe]],tblSections[Section],0)),"x") ->  | I123: =RIGHT(tblKontenplan[[#This Row],[Typ]],1) -> 
B124: 6700 | C124: Sonstiger betrieblicher Aufwand | D124: Aufwandskonto | E124: 6 - Übriger betrieblicher Aufwand, Abschreibungen und Wertberichtigungen sowie Finanzergebnis | G124: =IFERROR(INDEX(tblSections[isDelete],MATCH(tblKontenplan[[#This Row],[Kontengruppe]],tblSections[Section],0)),"x") ->  | I124: =RIGHT(tblKontenplan[[#This Row],[Typ]],1) -> 
B125: 6840 | C125: Finanzaufwand | D125: Aufwandskonto | E125: 6 - Übriger betrieblicher Aufwand, Abschreibungen und Wertberichtigungen sowie Finanzergebnis | G125: =IFERROR(INDEX(tblSections[isDelete],MATCH(tblKontenplan[[#This Row],[Kontengruppe]],tblSections[Section],0)),"x") ->  | I125: =RIGHT(tblKontenplan[[#This Row],[Typ]],1) -> 
B126: 6845 | C126: Kursschwankungen | D126: Aufwandskonto | E126: 6 - Übriger betrieblicher Aufwand, Abschreibungen und Wertberichtigungen sowie Finanzergebnis | G126: =IFERROR(INDEX(tblSections[isDelete],MATCH(tblKontenplan[[#This Row],[Kontengruppe]],tblSections[Section],0)),"x") ->  | I126: =RIGHT(tblKontenplan[[#This Row],[Typ]],1) -> 
B127: 6850 | C127: Finanzertrag | D127: Ertragskonto | E127: 6 - Übriger betrieblicher Aufwand, Abschreibungen und Wertberichtigungen sowie Finanzergebnis | G127: =IFERROR(INDEX(tblSections[isDelete],MATCH(tblKontenplan[[#This Row],[Kontengruppe]],tblSections[Section],0)),"x") ->  | I127: =RIGHT(tblKontenplan[[#This Row],[Typ]],1) -> 
B128: 6899 | C128: Vor-/Nachteil Saldosteuersatz | D128: Aufwandskonto | E128: 689 - Vorteil/Nachteil Saldosteuersatz | G128: =IFERROR(INDEX(tblSections[isDelete],MATCH(tblKontenplan[[#This Row],[Kontengruppe]],tblSections[Section],0)),"x") ->  | I128: =RIGHT(tblKontenplan[[#This Row],[Typ]],1) -> 
B129: 6900 | C129: Abschreibungen und Wertberichtigungen auf Positionen des Anlagevermögens | D129: Aufwandskonto | E129: 6 - Übriger betrieblicher Aufwand, Abschreibungen und Wertberichtigungen sowie Finanzergebnis | G129: =IFERROR(INDEX(tblSections[isDelete],MATCH(tblKontenplan[[#This Row],[Kontengruppe]],tblSections[Section],0)),"x") ->  | I129: =RIGHT(tblKontenplan[[#This Row],[Typ]],1) -> 
B130: 6910 | C130: Abschreibungen Mobiliar | D130: Ertragskonto | E130: 6 - Übriger betrieblicher Aufwand, Abschreibungen und Wertberichtigungen sowie Finanzergebnis | G130: =IFERROR(INDEX(tblSections[isDelete],MATCH(tblKontenplan[[#This Row],[Kontengruppe]],tblSections[Section],0)),"x") ->  | I130: =RIGHT(tblKontenplan[[#This Row],[Typ]],1) -> 
B131: 6920 | C131: Abschreibungen Informatik / EDV | D131: Ertragskonto | E131: 6 - Übriger betrieblicher Aufwand, Abschreibungen und Wertberichtigungen sowie Finanzergebnis | G131: =IFERROR(INDEX(tblSections[isDelete],MATCH(tblKontenplan[[#This Row],[Kontengruppe]],tblSections[Section],0)),"x") ->  | I131: =RIGHT(tblKontenplan[[#This Row],[Typ]],1) -> 
B132: 6940 | C132: Abschreibungen Fahrzeuge | D132: Ertragskonto | E132: 6 - Übriger betrieblicher Aufwand, Abschreibungen und Wertberichtigungen sowie Finanzergebnis | G132: =IFERROR(INDEX(tblSections[isDelete],MATCH(tblKontenplan[[#This Row],[Kontengruppe]],tblSections[Section],0)),"x") ->  | I132: =RIGHT(tblKontenplan[[#This Row],[Typ]],1) -> 
B133: 6945 | C133: Rundungsdifferenz Debitoren/Kreditoren | D133: Aufwandskonto | E133: 6 - Übriger betrieblicher Aufwand, Abschreibungen und Wertberichtigungen sowie Finanzergebnis | G133: =IFERROR(INDEX(tblSections[isDelete],MATCH(tblKontenplan[[#This Row],[Kontengruppe]],tblSections[Section],0)),"x") ->  | I133: =RIGHT(tblKontenplan[[#This Row],[Typ]],1) -> 
B134: 8000 | C134: Betriebsfremder Aufwand | D134: Aufwandskonto | E134: 8 - Betriebsfremder, ausserordentlicher, einmaliger oder perioden- fremder Aufwand und Ertrag | G134: =IFERROR(INDEX(tblSections[isDelete],MATCH(tblKontenplan[[#This Row],[Kontengruppe]],tblSections[Section],0)),"x") ->  | I134: =RIGHT(tblKontenplan[[#This Row],[Typ]],1) -> 
B135: 8100 | C135: Betriebsfremder Ertrag | D135: Ertragskonto | E135: 8 - Betriebsfremder, ausserordentlicher, einmaliger oder perioden- fremder Aufwand und Ertrag | G135: =IFERROR(INDEX(tblSections[isDelete],MATCH(tblKontenplan[[#This Row],[Kontengruppe]],tblSections[Section],0)),"x") ->  | I135: =RIGHT(tblKontenplan[[#This Row],[Typ]],1) -> 
B136: 8500 | C136: Ausserordentlicher, einmaliger oder periodenfremder Aufwand | D136: Aufwandskonto | E136: 8 - Betriebsfremder, ausserordentlicher, einmaliger oder perioden- fremder Aufwand und Ertrag | G136: =IFERROR(INDEX(tblSections[isDelete],MATCH(tblKontenplan[[#This Row],[Kontengruppe]],tblSections[Section],0)),"x") ->  | I136: =RIGHT(tblKontenplan[[#This Row],[Typ]],1) -> 
B137: 8510 | C137: Ausserordentlicher, einmaliger oder periodenfremder Ertrag | D137: Ertragskonto | E137: 8 - Betriebsfremder, ausserordentlicher, einmaliger oder perioden- fremder Aufwand und Ertrag | G137: =IFERROR(INDEX(tblSections[isDelete],MATCH(tblKontenplan[[#This Row],[Kontengruppe]],tblSections[Section],0)),"x") ->  | I137: =RIGHT(tblKontenplan[[#This Row],[Typ]],1) -> 
B138: 8900 | C138: Staats- und Gemeindesteuern | D138: Aufwandskonto | E138: 6 - Übriger betrieblicher Aufwand, Abschreibungen und Wertberichtigungen sowie Finanzergebnis | G138: =IFERROR(INDEX(tblSections[isDelete],MATCH(tblKontenplan[[#This Row],[Kontengruppe]],tblSections[Section],0)),"x") ->  | I138: =RIGHT(tblKontenplan[[#This Row],[Typ]],1) -> 
B139: 8901 | C139: Direkte Bundessteuer | D139: Aufwandskonto | E139: 6 - Übriger betrieblicher Aufwand, Abschreibungen und Wertberichtigungen sowie Finanzergebnis | G139: =IFERROR(INDEX(tblSections[isDelete],MATCH(tblKontenplan[[#This Row],[Kontengruppe]],tblSections[Section],0)),"x") ->  | I139: =RIGHT(tblKontenplan[[#This Row],[Typ]],1) -> 
B140: 9000 | C140: Erfolgsrechnung | D140: Abschluss | E140: 9 - Abschluss | G140: =IFERROR(INDEX(tblSections[isDelete],MATCH(tblKontenplan[[#This Row],[Kontengruppe]],tblSections[Section],0)),"x") -> x | I140: =RIGHT(tblKontenplan[[#This Row],[Typ]],1) -> 
B141: 9100 | C141: Eröffnungsbilanz | D141: Abschluss | E141: 9 - Abschluss | G141: =IFERROR(INDEX(tblSections[isDelete],MATCH(tblKontenplan[[#This Row],[Kontengruppe]],tblSections[Section],0)),"x") -> x | I141: =RIGHT(tblKontenplan[[#This Row],[Typ]],1) -> 
B142: 9101 | C142: Schlussbilanz | D142: Abschluss | E142: 9 - Abschluss | G142: =IFERROR(INDEX(tblSections[isDelete],MATCH(tblKontenplan[[#This Row],[Kontengruppe]],tblSections[Section],0)),"x") -> x | I142: =RIGHT(tblKontenplan[[#This Row],[Typ]],1) -> 
B143: 9200 | C143: Jahresgewinn oder Jahresverlust | D143: Abschluss | E143: 9 - Abschluss | G143: =IFERROR(INDEX(tblSections[isDelete],MATCH(tblKontenplan[[#This Row],[Kontengruppe]],tblSections[Section],0)),"x") -> x | I143: =RIGHT(tblKontenplan[[#This Row],[Typ]],1) -> 
B144: 9900 | C144: Korrekturen | D144: Abschluss | E144: 9 - Abschluss | G144: =IFERROR(INDEX(tblSections[isDelete],MATCH(tblKontenplan[[#This Row],[Kontengruppe]],tblSections[Section],0)),"x") -> x | I144: =RIGHT(tblKontenplan[[#This Row],[Typ]],1) -> 

Sheet Dashboard
B6: Anzeigeart auswählen | D6: Aktueller Monat
B7: Nicht kumuliert | D7: Dezember
B11: Umsatzentwicklung
C13: =DATE(jahr,1,1) -> 2020-01-01 | D13: =EOMONTH(C13,0)+1 -> 2020-02-01 | E13: =EOMONTH(D13,0)+1 -> 2020-03-01 | F13: 2020-04-01 | G13: 2020-05-01 | H13: 2020-06-01 | I13: 2020-07-01 | J13: 2020-08-01 | K13: 2020-09-01 | L13: 2020-10-01 | M13: 2020-11-01 | N13: 2020-12-01 | P13: ="YTD " & IF(INDEX(tblMonate[Nr],MATCH(monat,tblMonate[Monate],0))<> 1, Einstellungen!$AQ$8 &" bis " & monat,Einstellungen!$AQ$8) -> YTD Januar bis Dezember | Q13: Total
B14: =B15-1 -> 2014 | C14: =IFERROR( SUMIFS(INDEX(INDIRECT(dshbrdrng_umsatzentwicklung2),0,MATCH(DATE($B14,MONTH(C$13),1),Erfolgsrechnung_Detail!$O$8:$DF$8,0)), INDIRECT(dshbrdrng_umsatzentwicklung),"<>Total",INDIRECT(dshbrdrng_umsatzentwicklung),"<>Subtotal"), "") -> 2672.494177 | D14: =IFERROR( IF(INDEX(tblUmsatzFltr[Nr],MATCH(filter_umsatz,tblUmsatzFltr[Umsatz Filter],0)) = 1, SUMIFS(INDEX(INDIRECT(dshbrdrng_umsatzentwicklung2),0,MATCH(DATE($B14,MONTH(D$13),1),Erfolgsrechnung_Detail!$O$8:$DF$8,0)), INDIRECT(dshbrdrng_umsatzentwicklung),"<>Total",INDIRECT(dshbrdrng_umsatzentwicklung),"<>Subtotal"), SUMIFS(INDEX(INDIRECT(dshbrdrng_umsatzentwicklung2),0,MATCH(DATE($B14,MONTH(D$13),1),Erfolgsrechnung_Detail!$O$8:$DF$8,0)), INDIRECT(dshbrdrng_umsatzentwicklung),"<>Total",INDIRECT(dshbrdrng_umsatzentwicklung),"<>Subtotal")+C14),"") -> 3711.913662 | E14: =IFERROR( IF(INDEX(tblUmsatzFltr[Nr],MATCH(filter_umsatz,tblUmsatzFltr[Umsatz Filter],0)) = 1, SUMIFS(INDEX(INDIRECT(dshbrdrng_umsatzentwicklung2),0,MATCH(DATE($B14,MONTH(E$13),1),Erfolgsrechnung_Detail!$O$8:$DF$8,0)), INDIRECT(dshbrdrng_umsatzentwicklung),"<>Total",INDIRECT(dshbrdrng_umsatzentwicklung),"<>Subtotal"), SUMIFS(INDEX(INDIRECT(dshbrdrng_umsatzentwicklung2),0,MATCH(DATE($B14,MONTH(E$13),1),Erfolgsrechnung_Detail!$O$8:$DF$8,0)), INDIRECT(dshbrdrng_umsatzentwicklung),"<>Total",INDIRECT(dshbrdrng_umsatzentwicklung),"<>Subtotal")+D14),"") -> 1027.803517 | F14: =IFERROR( IF(INDEX(tblUmsatzFltr[Nr],MATCH(filter_umsatz,tblUmsatzFltr[Umsatz Filter],0)) = 1, SUMIFS(INDEX(INDIRECT(dshbrdrng_umsatzentwicklung2),0,MATCH(DATE($B14,MONTH(F$13),1),Erfolgsrechnung_Detail!$O$8:$DF$8,0)), INDIRECT(dshbrdrng_umsatzentwicklung),"<>Total",INDIRECT(dshbrdrng_umsatzentwicklung),"<>Subtotal"), SUMIFS(INDEX(INDIRECT(dshbrdrng_umsatzentwicklung2),0,MATCH(DATE($B14,MONTH(F$13),1),Erfolgsrechnung_Detail!$O$8:$DF$8,0)), INDIRECT(dshbrdrng_umsatzentwicklung),"<>Total",INDIRECT(dshbrdrng_umsatzentwicklung),"<>Subtotal")+E14),"") -> 3324.058597 | G14: =IFERROR( IF(INDEX(tblUmsatzFltr[Nr],MATCH(filter_umsatz,tblUmsatzFltr[Umsatz Filter],0)) = 1, SUMIFS(INDEX(INDIRECT(dshbrdrng_umsatzentwicklung2),0,MATCH(DATE($B14,MONTH(G$13),1),Erfolgsrechnung_Detail!$O$8:$DF$8,0)), INDIRECT(dshbrdrng_umsatzentwicklung),"<>Total",INDIRECT(dshbrdrng_umsatzentwicklung),"<>Subtotal"), SUMIFS(INDEX(INDIRECT(dshbrdrng_umsatzentwicklung2),0,MATCH(DATE($B14,MONTH(G$13),1),Erfolgsrechnung_Detail!$O$8:$DF$8,0)), INDIRECT(dshbrdrng_umsatzentwicklung),"<>Total",INDIRECT(dshbrdrng_umsatzentwicklung),"<>Subtotal")+F14),"") -> 8829.266712 | H14: =IFERROR( IF(INDEX(tblUmsatzFltr[Nr],MATCH(filter_umsatz,tblUmsatzFltr[Umsatz Filter],0)) = 1, SUMIFS(INDEX(INDIRECT(dshbrdrng_umsatzentwicklung2),0,MATCH(DATE($B14,MONTH(H$13),1),Erfolgsrechnung_Detail!$O$8:$DF$8,0)), INDIRECT(dshbrdrng_umsatzentwicklung),"<>Total",INDIRECT(dshbrdrng_umsatzentwicklung),"<>Subtotal"), SUMIFS(INDEX(INDIRECT(dshbrdrng_umsatzentwicklung2),0,MATCH(DATE($B14,MONTH(H$13),1),Erfolgsrechnung_Detail!$O$8:$DF$8,0)), INDIRECT(dshbrdrng_umsatzentwicklung),"<>Total",INDIRECT(dshbrdrng_umsatzentwicklung),"<>Subtotal")+G14),"") -> 3086.431003 | I14: =IFERROR( IF(INDEX(tblUmsatzFltr[Nr],MATCH(filter_umsatz,tblUmsatzFltr[Umsatz Filter],0)) = 1, SUMIFS(INDEX(INDIRECT(dshbrdrng_umsatzentwicklung2),0,MATCH(DATE($B14,MONTH(I$13),1),Erfolgsrechnung_Detail!$O$8:$DF$8,0)), INDIRECT(dshbrdrng_umsatzentwicklung),"<>Total",INDIRECT(dshbrdrng_umsatzentwicklung),"<>Subtotal"), SUMIFS(INDEX(INDIRECT(dshbrdrng_umsatzentwicklung2),0,MATCH(DATE($B14,MONTH(I$13),1),Erfolgsrechnung_Detail!$O$8:$DF$8,0)), INDIRECT(dshbrdrng_umsatzentwicklung),"<>Total",INDIRECT(dshbrdrng_umsatzentwicklung),"<>Subtotal")+H14),"") -> 0 | J14: =IFERROR( IF(INDEX(tblUmsatzFltr[Nr],MATCH(filter_umsatz,tblUmsatzFltr[Umsatz Filter],0)) = 1, SUMIFS(INDEX(INDIRECT(dshbrdrng_umsatzentwicklung2),0,MATCH(DATE($B14,MONTH(J$13),1),Erfolgsrechnung_Detail!$O$8:$DF$8,0)), INDIRECT(dshbrdrng_umsatzentwicklung),"<>Total",INDIRECT(dshbrdrng_umsatzentwicklung),"<>Subtotal"), SUMIFS(INDEX(INDIRECT(dshbrdrng_umsatzentwicklung2),0,MATCH(DATE($B14,MONTH(J$13),1),Erfolgsrechnung_Detail!$O$8:$DF$8,0)), INDIRECT(dshbrdrng_umsatzentwicklung),"<>Total",INDIRECT(dshbrdrng_umsatzentwicklung),"<>Subtotal")+I14),"") -> 5233.3049 | K14: =IFERROR( IF(INDEX(tblUmsatzFltr[Nr],MATCH(filter_umsatz,tblUmsatzFltr[Umsatz Filter],0)) = 1, SUMIFS(INDEX(INDIRECT(dshbrdrng_umsatzentwicklung2),0,MATCH(DATE($B14,MONTH(K$13),1),Erfolgsrechnung_Detail!$O$8:$DF$8,0)), INDIRECT(dshbrdrng_umsatzentwicklung),"<>Total",INDIRECT(dshbrdrng_umsatzentwicklung),"<>Subtotal"), SUMIFS(INDEX(INDIRECT(dshbrdrng_umsatzentwicklung2),0,MATCH(DATE($B14,MONTH(K$13),1),Erfolgsrechnung_Detail!$O$8:$DF$8,0)), INDIRECT(dshbrdrng_umsatzentwicklung),"<>Total",INDIRECT(dshbrdrng_umsatzentwicklung),"<>Subtotal")+J14),"") -> 4706.151858 | L14: =IFERROR( IF(INDEX(tblUmsatzFltr[Nr],MATCH(filter_umsatz,tblUmsatzFltr[Umsatz Filter],0)) = 1, SUMIFS(INDEX(INDIRECT(dshbrdrng_umsatzentwicklung2),0,MATCH(DATE($B14,MONTH(L$13),1),Erfolgsrechnung_Detail!$O$8:$DF$8,0)), INDIRECT(dshbrdrng_umsatzentwicklung),"<>Total",INDIRECT(dshbrdrng_umsatzentwicklung),"<>Subtotal"), SUMIFS(INDEX(INDIRECT(dshbrdrng_umsatzentwicklung2),0,MATCH(DATE($B14,MONTH(L$13),1),Erfolgsrechnung_Detail!$O$8:$DF$8,0)), INDIRECT(dshbrdrng_umsatzentwicklung),"<>Total",INDIRECT(dshbrdrng_umsatzentwicklung),"<>Subtotal")+K14),"") -> 8401.396765 | M14: =IFERROR( IF(INDEX(tblUmsatzFltr[Nr],MATCH(filter_umsatz,tblUmsatzFltr[Umsatz Filter],0)) = 1, SUMIFS(INDEX(INDIRECT(dshbrdrng_umsatzentwicklung2),0,MATCH(DATE($B14,MONTH(M$13),1),Erfolgsrechnung_Detail!$O$8:$DF$8,0)), INDIRECT(dshbrdrng_umsatzentwicklung),"<>Total",INDIRECT(dshbrdrng_umsatzentwicklung),"<>Subtotal"), SUMIFS(INDEX(INDIRECT(dshbrdrng_umsatzentwicklung2),0,MATCH(DATE($B14,MONTH(M$13),1),Erfolgsrechnung_Detail!$O$8:$DF$8,0)), INDIRECT(dshbrdrng_umsatzentwicklung),"<>Total",INDIRECT(dshbrdrng_umsatzentwicklung),"<>Subtotal")+L14),"") -> 4964.256004 | N14: =IFERROR( IF(INDEX(tblUmsatzFltr[Nr],MATCH(filter_umsatz,tblUmsatzFltr[Umsatz Filter],0)) = 1, SUMIFS(INDEX(INDIRECT(dshbrdrng_umsatzentwicklung2),0,MATCH(DATE($B14,MONTH(N$13),1),Erfolgsrechnung_Detail!$O$8:$DF$8,0)), INDIRECT(dshbrdrng_umsatzentwicklung),"<>Total",INDIRECT(dshbrdrng_umsatzentwicklung),"<>Subtotal"), SUMIFS(INDEX(INDIRECT(dshbrdrng_umsatzentwicklung2),0,MATCH(DATE($B14,MONTH(N$13),1),Erfolgsrechnung_Detail!$O$8:$DF$8,0)), INDIRECT(dshbrdrng_umsatzentwicklung),"<>Total",INDIRECT(dshbrdrng_umsatzentwicklung),"<>Subtotal")+M14),"") -> 1532.554843 | P14: =IFERROR(IF( INDEX(tblUmsatzFltr[Nr],MATCH(filter_umsatz,tblUmsatzFltr[Umsatz Filter],0))=1, SUM($C14:INDEX($C14:$N14,1,selectedmonat_num)), INDEX($C14:$N14,0,MATCH(monat,tblMonate[Monate],0))),"") -> 47489.63204 | Q14: =IFERROR( IF(INDEX(tblUmsatzFltr[Nr],MATCH(filter_umsatz,tblUmsatzFltr[Umsatz Filter],0))=1, SUM(C14:$N14),N14),"") -> 47489.63204
B15: 2015 | C15: =IFERROR( SUMIFS(INDEX(INDIRECT(dshbrdrng_umsatzentwicklung2),0,MATCH(DATE($B15,MONTH(C$13),1),Erfolgsrechnung_Detail!$O$8:$DF$8,0)), INDIRECT(dshbrdrng_umsatzentwicklung),"<>Total",INDIRECT(dshbrdrng_umsatzentwicklung),"<>Subtotal"), "") -> 5675.054052 | D15: =IFERROR( IF(INDEX(tblUmsatzFltr[Nr],MATCH(filter_umsatz,tblUmsatzFltr[Umsatz Filter],0)) = 1, SUMIFS(INDEX(INDIRECT(dshbrdrng_umsatzentwicklung2),0,MATCH(DATE($B15,MONTH(D$13),1),Erfolgsrechnung_Detail!$O$8:$DF$8,0)), INDIRECT(dshbrdrng_umsatzentwicklung),"<>Total",INDIRECT(dshbrdrng_umsatzentwicklung),"<>Subtotal"), SUMIFS(INDEX(INDIRECT(dshbrdrng_umsatzentwicklung2),0,MATCH(DATE($B15,MONTH(D$13),1),Erfolgsrechnung_Detail!$O$8:$DF$8,0)), INDIRECT(dshbrdrng_umsatzentwicklung),"<>Total",INDIRECT(dshbrdrng_umsatzentwicklung),"<>Subtotal")+C15),"") -> 8611.434387 | E15: =IFERROR( IF(INDEX(tblUmsatzFltr[Nr],MATCH(filter_umsatz,tblUmsatzFltr[Umsatz Filter],0)) = 1, SUMIFS(INDEX(INDIRECT(dshbrdrng_umsatzentwicklung2),0,MATCH(DATE($B15,MONTH(E$13),1),Erfolgsrechnung_Detail!$O$8:$DF$8,0)), INDIRECT(dshbrdrng_umsatzentwicklung),"<>Total",INDIRECT(dshbrdrng_umsatzentwicklung),"<>Subtotal"), SUMIFS(INDEX(INDIRECT(dshbrdrng_umsatzentwicklung2),0,MATCH(DATE($B15,MONTH(E$13),1),Erfolgsrechnung_Detail!$O$8:$DF$8,0)), INDIRECT(dshbrdrng_umsatzentwicklung),"<>Total",INDIRECT(dshbrdrng_umsatzentwicklung),"<>Subtotal")+D15),"") -> 1063.129535 | F15: =IFERROR( IF(INDEX(tblUmsatzFltr[Nr],MATCH(filter_umsatz,tblUmsatzFltr[Umsatz Filter],0)) = 1, SUMIFS(INDEX(INDIRECT(dshbrdrng_umsatzentwicklung2),0,MATCH(DATE($B15,MONTH(F$13),1),Erfolgsrechnung_Detail!$O$8:$DF$8,0)), INDIRECT(dshbrdrng_umsatzentwicklung),"<>Total",INDIRECT(dshbrdrng_umsatzentwicklung),"<>Subtotal"), SUMIFS(INDEX(INDIRECT(dshbrdrng_umsatzentwicklung2),0,MATCH(DATE($B15,MONTH(F$13),1),Erfolgsrechnung_Detail!$O$8:$DF$8,0)), INDIRECT(dshbrdrng_umsatzentwicklung),"<>Total",INDIRECT(dshbrdrng_umsatzentwicklung),"<>Subtotal")+E15),"") -> 2836.551343 | G15: =IFERROR( IF(INDEX(tblUmsatzFltr[Nr],MATCH(filter_umsatz,tblUmsatzFltr[Umsatz Filter],0)) = 1, SUMIFS(INDEX(INDIRECT(dshbrdrng_umsatzentwicklung2),0,MATCH(DATE($B15,MONTH(G$13),1),Erfolgsrechnung_Detail!$O$8:$DF$8,0)), INDIRECT(dshbrdrng_umsatzentwicklung),"<>Total",INDIRECT(dshbrdrng_umsatzentwicklung),"<>Subtotal"), SUMIFS(INDEX(INDIRECT(dshbrdrng_umsatzentwicklung2),0,MATCH(DATE($B15,MONTH(G$13),1),Erfolgsrechnung_Detail!$O$8:$DF$8,0)), INDIRECT(dshbrdrng_umsatzentwicklung),"<>Total",INDIRECT(dshbrdrng_umsatzentwicklung),"<>Subtotal")+F15),"") -> 5312.324344 | H15: =IFERROR( IF(INDEX(tblUmsatzFltr[Nr],MATCH(filter_umsatz,tblUmsatzFltr[Umsatz Filter],0)) = 1, SUMIFS(INDEX(INDIRECT(dshbrdrng_umsatzentwicklung2),0,MATCH(DATE($B15,MONTH(H$13),1),Erfolgsrechnung_Detail!$O$8:$DF$8,0)), INDIRECT(dshbrdrng_umsatzentwicklung),"<>Total",INDIRECT(dshbrdrng_umsatzentwicklung),"<>Subtotal"), SUMIFS(INDEX(INDIRECT(dshbrdrng_umsatzentwicklung2),0,MATCH(DATE($B15,MONTH(H$13),1),Erfolgsrechnung_Detail!$O$8:$DF$8,0)), INDIRECT(dshbrdrng_umsatzentwicklung),"<>Total",INDIRECT(dshbrdrng_umsatzentwicklung),"<>Subtotal")+G15),"") -> 4967.4699 | I15: =IFERROR( IF(INDEX(tblUmsatzFltr[Nr],MATCH(filter_umsatz,tblUmsatzFltr[Umsatz Filter],0)) = 1, SUMIFS(INDEX(INDIRECT(dshbrdrng_umsatzentwicklung2),0,MATCH(DATE($B15,MONTH(I$13),1),Erfolgsrechnung_Detail!$O$8:$DF$8,0)), INDIRECT(dshbrdrng_umsatzentwicklung),"<>Total",INDIRECT(dshbrdrng_umsatzentwicklung),"<>Subtotal"), SUMIFS(INDEX(INDIRECT(dshbrdrng_umsatzentwicklung2),0,MATCH(DATE($B15,MONTH(I$13),1),Erfolgsrechnung_Detail!$O$8:$DF$8,0)), INDIRECT(dshbrdrng_umsatzentwicklung),"<>Total",INDIRECT(dshbrdrng_umsatzentwicklung),"<>Subtotal")+H15),"") -> 3040.666865 | J15: =IFERROR( IF(INDEX(tblUmsatzFltr[Nr],MATCH(filter_umsatz,tblUmsatzFltr[Umsatz Filter],0)) = 1, SUMIFS(INDEX(INDIRECT(dshbrdrng_umsatzentwicklung2),0,MATCH(DATE($B15,MONTH(J$13),1),Erfolgsrechnung_Detail!$O$8:$DF$8,0)), INDIRECT(dshbrdrng_umsatzentwicklung),"<>Total",INDIRECT(dshbrdrng_umsatzentwicklung),"<>Subtotal"), SUMIFS(INDEX(INDIRECT(dshbrdrng_umsatzentwicklung2),0,MATCH(DATE($B15,MONTH(J$13),1),Erfolgsrechnung_Detail!$O$8:$DF$8,0)), INDIRECT(dshbrdrng_umsatzentwicklung),"<>Total",INDIRECT(dshbrdrng_umsatzentwicklung),"<>Subtotal")+I15),"") -> 9721.333219 | K15: =IFERROR( IF(INDEX(tblUmsatzFltr[Nr],MATCH(filter_umsatz,tblUmsatzFltr[Umsatz Filter],0)) = 1, SUMIFS(INDEX(INDIRECT(dshbrdrng_umsatzentwicklung2),0,MATCH(DATE($B15,MONTH(K$13),1),Erfolgsrechnung_Detail!$O$8:$DF$8,0)), INDIRECT(dshbrdrng_umsatzentwicklung),"<>Total",INDIRECT(dshbrdrng_umsatzentwicklung),"<>Subtotal"), SUMIFS(INDEX(INDIRECT(dshbrdrng_umsatzentwicklung2),0,MATCH(DATE($B15,MONTH(K$13),1),Erfolgsrechnung_Detail!$O$8:$DF$8,0)), INDIRECT(dshbrdrng_umsatzentwicklung),"<>Total",INDIRECT(dshbrdrng_umsatzentwicklung),"<>Subtotal")+J15),"") -> 5121.434339 | L15: =IFERROR( IF(INDEX(tblUmsatzFltr[Nr],MATCH(filter_umsatz,tblUmsatzFltr[Umsatz Filter],0)) = 1, SUMIFS(INDEX(INDIRECT(dshbrdrng_umsatzentwicklung2),0,MATCH(DATE($B15,MONTH(L$13),1),Erfolgsrechnung_Detail!$O$8:$DF$8,0)), INDIRECT(dshbrdrng_umsatzentwicklung),"<>Total",INDIRECT(dshbrdrng_umsatzentwicklung),"<>Subtotal"), SUMIFS(INDEX(INDIRECT(dshbrdrng_umsatzentwicklung2),0,MATCH(DATE($B15,MONTH(L$13),1),Erfolgsrechnung_Detail!$O$8:$DF$8,0)), INDIRECT(dshbrdrng_umsatzentwicklung),"<>Total",INDIRECT(dshbrdrng_umsatzentwicklung),"<>Subtotal")+K15),"") -> 7228.126373 | M15: =IFERROR( IF(INDEX(tblUmsatzFltr[Nr],MATCH(filter_umsatz,tblUmsatzFltr[Umsatz Filter],0)) = 1, SUMIFS(INDEX(INDIRECT(dshbrdrng_umsatzentwicklung2),0,MATCH(DATE($B15,MONTH(M$13),1),Erfolgsrechnung_Detail!$O$8:$DF$8,0)), INDIRECT(dshbrdrng_umsatzentwicklung),"<>Total",INDIRECT(dshbrdrng_umsatzentwicklung),"<>Subtotal"), SUMIFS(INDEX(INDIRECT(dshbrdrng_umsatzentwicklung2),0,MATCH(DATE($B15,MONTH(M$13),1),Erfolgsrechnung_Detail!$O$8:$DF$8,0)), INDIRECT(dshbrdrng_umsatzentwicklung),"<>Total",INDIRECT(dshbrdrng_umsatzentwicklung),"<>Subtotal")+L15),"") -> 8401.281658 | N15: =IFERROR( IF(INDEX(tblUmsatzFltr[Nr],MATCH(filter_umsatz,tblUmsatzFltr[Umsatz Filter],0)) = 1, SUMIFS(INDEX(INDIRECT(dshbrdrng_umsatzentwicklung2),0,MATCH(DATE($B15,MONTH(N$13),1),Erfolgsrechnung_Detail!$O$8:$DF$8,0)), INDIRECT(dshbrdrng_umsatzentwicklung),"<>Total",INDIRECT(dshbrdrng_umsatzentwicklung),"<>Subtotal"), SUMIFS(INDEX(INDIRECT(dshbrdrng_umsatzentwicklung2),0,MATCH(DATE($B15,MONTH(N$13),1),Erfolgsrechnung_Detail!$O$8:$DF$8,0)), INDIRECT(dshbrdrng_umsatzentwicklung),"<>Total",INDIRECT(dshbrdrng_umsatzentwicklung),"<>Subtotal")+M15),"") -> 13707.34287 | P15: =IFERROR(IF( INDEX(tblUmsatzFltr[Nr],MATCH(filter_umsatz,tblUmsatzFltr[Umsatz Filter],0))=1, SUM($C15:INDEX($C15:$N15,1,selectedmonat_num)), INDEX($C15:$N15,0,MATCH(monat,tblMonate[Monate],0))),"") -> 75686.14889 | Q15: =IFERROR( IF(INDEX(tblUmsatzFltr[Nr],MATCH(filter_umsatz,tblUmsatzFltr[Umsatz Filter],0))=1, SUM(C15:$N15),N15),"") -> 75686.14889
B16: 2016 | C16: =IFERROR( SUMIFS(INDEX(INDIRECT(dshbrdrng_umsatzentwicklung2),0,MATCH(DATE($B16,MONTH(C$13),1),Erfolgsrechnung_Detail!$O$8:$DF$8,0)), INDIRECT(dshbrdrng_umsatzentwicklung),"<>Total",INDIRECT(dshbrdrng_umsatzentwicklung),"<>Subtotal"), "") -> 2903.894187 | D16: =IFERROR( IF(INDEX(tblUmsatzFltr[Nr],MATCH(filter_umsatz,tblUmsatzFltr[Umsatz Filter],0)) = 1, SUMIFS(INDEX(INDIRECT(dshbrdrng_umsatzentwicklung2),0,MATCH(DATE($B16,MONTH(D$13),1),Erfolgsrechnung_Detail!$O$8:$DF$8,0)), INDIRECT(dshbrdrng_umsatzentwicklung),"<>Total",INDIRECT(dshbrdrng_umsatzentwicklung),"<>Subtotal"), SUMIFS(INDEX(INDIRECT(dshbrdrng_umsatzentwicklung2),0,MATCH(DATE($B16,MONTH(D$13),1),Erfolgsrechnung_Detail!$O$8:$DF$8,0)), INDIRECT(dshbrdrng_umsatzentwicklung),"<>Total",INDIRECT(dshbrdrng_umsatzentwicklung),"<>Subtotal")+C16),"") -> 15417.91714 | E16: =IFERROR( IF(INDEX(tblUmsatzFltr[Nr],MATCH(filter_umsatz,tblUmsatzFltr[Umsatz Filter],0)) = 1, SUMIFS(INDEX(INDIRECT(dshbrdrng_umsatzentwicklung2),0,MATCH(DATE($B16,MONTH(E$13),1),Erfolgsrechnung_Detail!$O$8:$DF$8,0)), INDIRECT(dshbrdrng_umsatzentwicklung),"<>Total",INDIRECT(dshbrdrng_umsatzentwicklung),"<>Subtotal"), SUMIFS(INDEX(INDIRECT(dshbrdrng_umsatzentwicklung2),0,MATCH(DATE($B16,MONTH(E$13),1),Erfolgsrechnung_Detail!$O$8:$DF$8,0)), INDIRECT(dshbrdrng_umsatzentwicklung),"<>Total",INDIRECT(dshbrdrng_umsatzentwicklung),"<>Subtotal")+D16),"") -> 6288.146575 | F16: =IFERROR( IF(INDEX(tblUmsatzFltr[Nr],MATCH(filter_umsatz,tblUmsatzFltr[Umsatz Filter],0)) = 1, SUMIFS(INDEX(INDIRECT(dshbrdrng_umsatzentwicklung2),0,MATCH(DATE($B16,MONTH(F$13),1),Erfolgsrechnung_Detail!$O$8:$DF$8,0)), INDIRECT(dshbrdrng_umsatzentwicklung),"<>Total",INDIRECT(dshbrdrng_umsatzentwicklung),"<>Subtotal"), SUMIFS(INDEX(INDIRECT(dshbrdrng_umsatzentwicklung2),0,MATCH(DATE($B16,MONTH(F$13),1),Erfolgsrechnung_Detail!$O$8:$DF$8,0)), INDIRECT(dshbrdrng_umsatzentwicklung),"<>Total",INDIRECT(dshbrdrng_umsatzentwicklung),"<>Subtotal")+E16),"") -> 9330.611777 | G16: =IFERROR( IF(INDEX(tblUmsatzFltr[Nr],MATCH(filter_umsatz,tblUmsatzFltr[Umsatz Filter],0)) = 1, SUMIFS(INDEX(INDIRECT(dshbrdrng_umsatzentwicklung2),0,MATCH(DATE($B16,MONTH(G$13),1),Erfolgsrechnung_Detail!$O$8:$DF$8,0)), INDIRECT(dshbrdrng_umsatzentwicklung),"<>Total",INDIRECT(dshbrdrng_umsatzentwicklung),"<>Subtotal"), SUMIFS(INDEX(INDIRECT(dshbrdrng_umsatzentwicklung2),0,MATCH(DATE($B16,MONTH(G$13),1),Erfolgsrechnung_Detail!$O$8:$DF$8,0)), INDIRECT(dshbrdrng_umsatzentwicklung),"<>Total",INDIRECT(dshbrdrng_umsatzentwicklung),"<>Subtotal")+F16),"") -> 11674.7431 | H16: =IFERROR( IF(INDEX(tblUmsatzFltr[Nr],MATCH(filter_umsatz,tblUmsatzFltr[Umsatz Filter],0)) = 1, SUMIFS(INDEX(INDIRECT(dshbrdrng_umsatzentwicklung2),0,MATCH(DATE($B16,MONTH(H$13),1),Erfolgsrechnung_Detail!$O$8:$DF$8,0)), INDIRECT(dshbrdrng_umsatzentwicklung),"<>Total",INDIRECT(dshbrdrng_umsatzentwicklung),"<>Subtotal"), SUMIFS(INDEX(INDIRECT(dshbrdrng_umsatzentwicklung2),0,MATCH(DATE($B16,MONTH(H$13),1),Erfolgsrechnung_Detail!$O$8:$DF$8,0)), INDIRECT(dshbrdrng_umsatzentwicklung),"<>Total",INDIRECT(dshbrdrng_umsatzentwicklung),"<>Subtotal")+G16),"") -> 15250.69539 | I16: =IFERROR( IF(INDEX(tblUmsatzFltr[Nr],MATCH(filter_umsatz,tblUmsatzFltr[Umsatz Filter],0)) = 1, SUMIFS(INDEX(INDIRECT(dshbrdrng_umsatzentwicklung2),0,MATCH(DATE($B16,MONTH(I$13),1),Erfolgsrechnung_Detail!$O$8:$DF$8,0)), INDIRECT(dshbrdrng_umsatzentwicklung),"<>Total",INDIRECT(dshbrdrng_umsatzentwicklung),"<>Subtotal"), SUMIFS(INDEX(INDIRECT(dshbrdrng_umsatzentwicklung2),0,MATCH(DATE($B16,MONTH(I$13),1),Erfolgsrechnung_Detail!$O$8:$DF$8,0)), INDIRECT(dshbrdrng_umsatzentwicklung),"<>Total",INDIRECT(dshbrdrng_umsatzentwicklung),"<>Subtotal")+H16),"") -> 8290.239264 | J16: =IFERROR( IF(INDEX(tblUmsatzFltr[Nr],MATCH(filter_umsatz,tblUmsatzFltr[Umsatz Filter],0)) = 1, SUMIFS(INDEX(INDIRECT(dshbrdrng_umsatzentwicklung2),0,MATCH(DATE($B16,MONTH(J$13),1),Erfolgsrechnung_Detail!$O$8:$DF$8,0)), INDIRECT(dshbrdrng_umsatzentwicklung),"<>Total",INDIRECT(dshbrdrng_umsatzentwicklung),"<>Subtotal"), SUMIFS(INDEX(INDIRECT(dshbrdrng_umsatzentwicklung2),0,MATCH(DATE($B16,MONTH(J$13),1),Erfolgsrechnung_Detail!$O$8:$DF$8,0)), INDIRECT(dshbrdrng_umsatzentwicklung),"<>Total",INDIRECT(dshbrdrng_umsatzentwicklung),"<>Subtotal")+I16),"") -> 9170.924461 | K16: =IFERROR( IF(INDEX(tblUmsatzFltr[Nr],MATCH(filter_umsatz,tblUmsatzFltr[Umsatz Filter],0)) = 1, SUMIFS(INDEX(INDIRECT(dshbrdrng_umsatzentwicklung2),0,MATCH(DATE($B16,MONTH(K$13),1),Erfolgsrechnung_Detail!$O$8:$DF$8,0)), INDIRECT(dshbrdrng_umsatzentwicklung),"<>Total",INDIRECT(dshbrdrng_umsatzentwicklung),"<>Subtotal"), SUMIFS(INDEX(INDIRECT(dshbrdrng_umsatzentwicklung2),0,MATCH(DATE($B16,MONTH(K$13),1),Erfolgsrechnung_Detail!$O$8:$DF$8,0)), INDIRECT(dshbrdrng_umsatzentwicklung),"<>Total",INDIRECT(dshbrdrng_umsatzentwicklung),"<>Subtotal")+J16),"") -> 13362.7725 | L16: =IFERROR( IF(INDEX(tblUmsatzFltr[Nr],MATCH(filter_umsatz,tblUmsatzFltr[Umsatz Filter],0)) = 1, SUMIFS(INDEX(INDIRECT(dshbrdrng_umsatzentwicklung2),0,MATCH(DATE($B16,MONTH(L$13),1),Erfolgsrechnung_Detail!$O$8:$DF$8,0)), INDIRECT(dshbrdrng_umsatzentwicklung),"<>Total",INDIRECT(dshbrdrng_umsatzentwicklung),"<>Subtotal"), SUMIFS(INDEX(INDIRECT(dshbrdrng_umsatzentwicklung2),0,MATCH(DATE($B16,MONTH(L$13),1),Erfolgsrechnung_Detail!$O$8:$DF$8,0)), INDIRECT(dshbrdrng_umsatzentwicklung),"<>Total",INDIRECT(dshbrdrng_umsatzentwicklung),"<>Subtotal")+K16),"") -> 8762.791211 | M16: =IFERROR( IF(INDEX(tblUmsatzFltr[Nr],MATCH(filter_umsatz,tblUmsatzFltr[Umsatz Filter],0)) = 1, SUMIFS(INDEX(INDIRECT(dshbrdrng_umsatzentwicklung2),0,MATCH(DATE($B16,MONTH(M$13),1),Erfolgsrechnung_Detail!$O$8:$DF$8,0)), INDIRECT(dshbrdrng_umsatzentwicklung),"<>Total",INDIRECT(dshbrdrng_umsatzentwicklung),"<>Subtotal"), SUMIFS(INDEX(INDIRECT(dshbrdrng_umsatzentwicklung2),0,MATCH(DATE($B16,MONTH(M$13),1),Erfolgsrechnung_Detail!$O$8:$DF$8,0)), INDIRECT(dshbrdrng_umsatzentwicklung),"<>Total",INDIRECT(dshbrdrng_umsatzentwicklung),"<>Subtotal")+L16),"") -> 12649.65248 | N16: =IFERROR( IF(INDEX(tblUmsatzFltr[Nr],MATCH(filter_umsatz,tblUmsatzFltr[Umsatz Filter],0)) = 1, SUMIFS(INDEX(INDIRECT(dshbrdrng_umsatzentwicklung2),0,MATCH(DATE($B16,MONTH(N$13),1),Erfolgsrechnung_Detail!$O$8:$DF$8,0)), INDIRECT(dshbrdrng_umsatzentwicklung),"<>Total",INDIRECT(dshbrdrng_umsatzentwicklung),"<>Subtotal"), SUMIFS(INDEX(INDIRECT(dshbrdrng_umsatzentwicklung2),0,MATCH(DATE($B16,MONTH(N$13),1),Erfolgsrechnung_Detail!$O$8:$DF$8,0)), INDIRECT(dshbrdrng_umsatzentwicklung),"<>Total",INDIRECT(dshbrdrng_umsatzentwicklung),"<>Subtotal")+M16),"") -> 15390.02694 | P16: =IFERROR(IF( INDEX(tblUmsatzFltr[Nr],MATCH(filter_umsatz,tblUmsatzFltr[Umsatz Filter],0))=1, SUM($C16:INDEX($C16:$N16,1,selectedmonat_num)), INDEX($C16:$N16,0,MATCH(monat,tblMonate[Monate],0))),"") -> 128492.415 | Q16: =IFERROR( IF(INDEX(tblUmsatzFltr[Nr],MATCH(filter_umsatz,tblUmsatzFltr[Umsatz Filter],0))=1, SUM(C16:$N16),N16),"") -> 128492.415
B17: 2017 | C17: =IFERROR( SUMIFS(INDEX(INDIRECT(dshbrdrng_umsatzentwicklung2),0,MATCH(DATE($B17,MONTH(C$13),1),Erfolgsrechnung_Detail!$O$8:$DF$8,0)), INDIRECT(dshbrdrng_umsatzentwicklung),"<>Total",INDIRECT(dshbrdrng_umsatzentwicklung),"<>Subtotal"), "") -> 19869.91002 | D17: =IFERROR( IF(INDEX(tblUmsatzFltr[Nr],MATCH(filter_umsatz,tblUmsatzFltr[Umsatz Filter],0)) = 1, SUMIFS(INDEX(INDIRECT(dshbrdrng_umsatzentwicklung2),0,MATCH(DATE($B17,MONTH(D$13),1),Erfolgsrechnung_Detail!$O$8:$DF$8,0)), INDIRECT(dshbrdrng_umsatzentwicklung),"<>Total",INDIRECT(dshbrdrng_umsatzentwicklung),"<>Subtotal"), SUMIFS(INDEX(INDIRECT(dshbrdrng_umsatzentwicklung2),0,MATCH(DATE($B17,MONTH(D$13),1),Erfolgsrechnung_Detail!$O$8:$DF$8,0)), INDIRECT(dshbrdrng_umsatzentwicklung),"<>Total",INDIRECT(dshbrdrng_umsatzentwicklung),"<>Subtotal")+C17),"") -> 17468.03147 | E17: =IFERROR( IF(INDEX(tblUmsatzFltr[Nr],MATCH(filter_umsatz,tblUmsatzFltr[Umsatz Filter],0)) = 1, SUMIFS(INDEX(INDIRECT(dshbrdrng_umsatzentwicklung2),0,MATCH(DATE($B17,MONTH(E$13),1),Erfolgsrechnung_Detail!$O$8:$DF$8,0)), INDIRECT(dshbrdrng_umsatzentwicklung),"<>Total",INDIRECT(dshbrdrng_umsatzentwicklung),"<>Subtotal"), SUMIFS(INDEX(INDIRECT(dshbrdrng_umsatzentwicklung2),0,MATCH(DATE($B17,MONTH(E$13),1),Erfolgsrechnung_Detail!$O$8:$DF$8,0)), INDIRECT(dshbrdrng_umsatzentwicklung),"<>Total",INDIRECT(dshbrdrng_umsatzentwicklung),"<>Subtotal")+D17),"") -> 14805.81371 | F17: =IFERROR( IF(INDEX(tblUmsatzFltr[Nr],MATCH(filter_umsatz,tblUmsatzFltr[Umsatz Filter],0)) = 1, SUMIFS(INDEX(INDIRECT(dshbrdrng_umsatzentwicklung2),0,MATCH(DATE($B17,MONTH(F$13),1),Erfolgsrechnung_Detail!$O$8:$DF$8,0)), INDIRECT(dshbrdrng_umsatzentwicklung),"<>Total",INDIRECT(dshbrdrng_umsatzentwicklung),"<>Subtotal"), SUMIFS(INDEX(INDIRECT(dshbrdrng_umsatzentwicklung2),0,MATCH(DATE($B17,MONTH(F$13),1),Erfolgsrechnung_Detail!$O$8:$DF$8,0)), INDIRECT(dshbrdrng_umsatzentwicklung),"<>Total",INDIRECT(dshbrdrng_umsatzentwicklung),"<>Subtotal")+E17),"") -> 23559.78979 | G17: =IFERROR( IF(INDEX(tblUmsatzFltr[Nr],MATCH(filter_umsatz,tblUmsatzFltr[Umsatz Filter],0)) = 1, SUMIFS(INDEX(INDIRECT(dshbrdrng_umsatzentwicklung2),0,MATCH(DATE($B17,MONTH(G$13),1),Erfolgsrechnung_Detail!$O$8:$DF$8,0)), INDIRECT(dshbrdrng_umsatzentwicklung),"<>Total",INDIRECT(dshbrdrng_umsatzentwicklung),"<>Subtotal"), SUMIFS(INDEX(INDIRECT(dshbrdrng_umsatzentwicklung2),0,MATCH(DATE($B17,MONTH(G$13),1),Erfolgsrechnung_Detail!$O$8:$DF$8,0)), INDIRECT(dshbrdrng_umsatzentwicklung),"<>Total",INDIRECT(dshbrdrng_umsatzentwicklung),"<>Subtotal")+F17),"") -> 22840.68202 | H17: =IFERROR( IF(INDEX(tblUmsatzFltr[Nr],MATCH(filter_umsatz,tblUmsatzFltr[Umsatz Filter],0)) = 1, SUMIFS(INDEX(INDIRECT(dshbrdrng_umsatzentwicklung2),0,MATCH(DATE($B17,MONTH(H$13),1),Erfolgsrechnung_Detail!$O$8:$DF$8,0)), INDIRECT(dshbrdrng_umsatzentwicklung),"<>Total",INDIRECT(dshbrdrng_umsatzentwicklung),"<>Subtotal"), SUMIFS(INDEX(INDIRECT(dshbrdrng_umsatzentwicklung2),0,MATCH(DATE($B17,MONTH(H$13),1),Erfolgsrechnung_Detail!$O$8:$DF$8,0)), INDIRECT(dshbrdrng_umsatzentwicklung),"<>Total",INDIRECT(dshbrdrng_umsatzentwicklung),"<>Subtotal")+G17),"") -> 15819.0033 | I17: =IFERROR( IF(INDEX(tblUmsatzFltr[Nr],MATCH(filter_umsatz,tblUmsatzFltr[Umsatz Filter],0)) = 1, SUMIFS(INDEX(INDIRECT(dshbrdrng_umsatzentwicklung2),0,MATCH(DATE($B17,MONTH(I$13),1),Erfolgsrechnung_Detail!$O$8:$DF$8,0)), INDIRECT(dshbrdrng_umsatzentwicklung),"<>Total",INDIRECT(dshbrdrng_umsatzentwicklung),"<>Subtotal"), SUMIFS(INDEX(INDIRECT(dshbrdrng_umsatzentwicklung2),0,MATCH(DATE($B17,MONTH(I$13),1),Erfolgsrechnung_Detail!$O$8:$DF$8,0)), INDIRECT(dshbrdrng_umsatzentwicklung),"<>Total",INDIRECT(dshbrdrng_umsatzentwicklung),"<>Subtotal")+H17),"") -> 25499.89152 | J17: =IFERROR( IF(INDEX(tblUmsatzFltr[Nr],MATCH(filter_umsatz,tblUmsatzFltr[Umsatz Filter],0)) = 1, SUMIFS(INDEX(INDIRECT(dshbrdrng_umsatzentwicklung2),0,MATCH(DATE($B17,MONTH(J$13),1),Erfolgsrechnung_Detail!$O$8:$DF$8,0)), INDIRECT(dshbrdrng_umsatzentwicklung),"<>Total",INDIRECT(dshbrdrng_umsatzentwicklung),"<>Subtotal"), SUMIFS(INDEX(INDIRECT(dshbrdrng_umsatzentwicklung2),0,MATCH(DATE($B17,MONTH(J$13),1),Erfolgsrechnung_Detail!$O$8:$DF$8,0)), INDIRECT(dshbrdrng_umsatzentwicklung),"<>Total",INDIRECT(dshbrdrng_umsatzentwicklung),"<>Subtotal")+I17),"") -> 27267.56226 | K17: =IFERROR( IF(INDEX(tblUmsatzFltr[Nr],MATCH(filter_umsatz,tblUmsatzFltr[Umsatz Filter],0)) = 1, SUMIFS(INDEX(INDIRECT(dshbrdrng_umsatzentwicklung2),0,MATCH(DATE($B17,MONTH(K$13),1),Erfolgsrechnung_Detail!$O$8:$DF$8,0)), INDIRECT(dshbrdrng_umsatzentwicklung),"<>Total",INDIRECT(dshbrdrng_umsatzentwicklung),"<>Subtotal"), SUMIFS(INDEX(INDIRECT(dshbrdrng_umsatzentwicklung2),0,MATCH(DATE($B17,MONTH(K$13),1),Erfolgsrechnung_Detail!$O$8:$DF$8,0)), INDIRECT(dshbrdrng_umsatzentwicklung),"<>Total",INDIRECT(dshbrdrng_umsatzentwicklung),"<>Subtotal")+J17),"") -> 23241.03592 | L17: =IFERROR( IF(INDEX(tblUmsatzFltr[Nr],MATCH(filter_umsatz,tblUmsatzFltr[Umsatz Filter],0)) = 1, SUMIFS(INDEX(INDIRECT(dshbrdrng_umsatzentwicklung2),0,MATCH(DATE($B17,MONTH(L$13),1),Erfolgsrechnung_Detail!$O$8:$DF$8,0)), INDIRECT(dshbrdrng_umsatzentwicklung),"<>Total",INDIRECT(dshbrdrng_umsatzentwicklung),"<>Subtotal"), SUMIFS(INDEX(INDIRECT(dshbrdrng_umsatzentwicklung2),0,MATCH(DATE($B17,MONTH(L$13),1),Erfolgsrechnung_Detail!$O$8:$DF$8,0)), INDIRECT(dshbrdrng_umsatzentwicklung),"<>Total",INDIRECT(dshbrdrng_umsatzentwicklung),"<>Subtotal")+K17),"") -> 33523.16826 | M17: =IFERROR( IF(INDEX(tblUmsatzFltr[Nr],MATCH(filter_umsatz,tblUmsatzFltr[Umsatz Filter],0)) = 1, SUMIFS(INDEX(INDIRECT(dshbrdrng_umsatzentwicklung2),0,MATCH(DATE($B17,MONTH(M$13),1),Erfolgsrechnung_Detail!$O$8:$DF$8,0)), INDIRECT(dshbrdrng_umsatzentwicklung),"<>Total",INDIRECT(dshbrdrng_umsatzentwicklung),"<>Subtotal"), SUMIFS(INDEX(INDIRECT(dshbrdrng_umsatzentwicklung2),0,MATCH(DATE($B17,MONTH(M$13),1),Erfolgsrechnung_Detail!$O$8:$DF$8,0)), INDIRECT(dshbrdrng_umsatzentwicklung),"<>Total",INDIRECT(dshbrdrng_umsatzentwicklung),"<>Subtotal")+L17),"") -> 16802.56332 | N17: =IFERROR( IF(INDEX(tblUmsatzFltr[Nr],MATCH(filter_umsatz,tblUmsatzFltr[Umsatz Filter],0)) = 1, SUMIFS(INDEX(INDIRECT(dshbrdrng_umsatzentwicklung2),0,MATCH(DATE($B17,MONTH(N$13),1),Erfolgsrechnung_Detail!$O$8:$DF$8,0)), INDIRECT(dshbrdrng_umsatzentwicklung),"<>Total",INDIRECT(dshbrdrng_umsatzentwicklung),"<>Subtotal"), SUMIFS(INDEX(INDIRECT(dshbrdrng_umsatzentwicklung2),0,MATCH(DATE($B17,MONTH(N$13),1),Erfolgsrechnung_Detail!$O$8:$DF$8,0)), INDIRECT(dshbrdrng_umsatzentwicklung),"<>Total",INDIRECT(dshbrdrng_umsatzentwicklung),"<>Subtotal")+M17),"") -> 27414.68574 | P17: =IFERROR(IF( INDEX(tblUmsatzFltr[Nr],MATCH(filter_umsatz,tblUmsatzFltr[Umsatz Filter],0))=1, SUM($C17:INDEX($C17:$N17,1,selectedmonat_num)), INDEX($C17:$N17,0,MATCH(monat,tblMonate[Monate],0))),"") -> 268112.1373 | Q17: =IFERROR( IF(INDEX(tblUmsatzFltr[Nr],MATCH(filter_umsatz,tblUmsatzFltr[Umsatz Filter],0))=1, SUM(C17:$N17),N17),"") -> 268112.1373
B18: 2018 | C18: =IFERROR( SUMIFS(INDEX(INDIRECT(dshbrdrng_umsatzentwicklung2),0,MATCH(DATE($B18,MONTH(C$13),1),Erfolgsrechnung_Detail!$O$8:$DF$8,0)), INDIRECT(dshbrdrng_umsatzentwicklung),"<>Total",INDIRECT(dshbrdrng_umsatzentwicklung),"<>Subtotal"), "") -> 2903.894187 | D18: =IFERROR( IF(INDEX(tblUmsatzFltr[Nr],MATCH(filter_umsatz,tblUmsatzFltr[Umsatz Filter],0)) = 1, SUMIFS(INDEX(INDIRECT(dshbrdrng_umsatzentwicklung2),0,MATCH(DATE($B18,MONTH(D$13),1),Erfolgsrechnung_Detail!$O$8:$DF$8,0)), INDIRECT(dshbrdrng_umsatzentwicklung),"<>Total",INDIRECT(dshbrdrng_umsatzentwicklung),"<>Subtotal"), SUMIFS(INDEX(INDIRECT(dshbrdrng_umsatzentwicklung2),0,MATCH(DATE($B18,MONTH(D$13),1),Erfolgsrechnung_Detail!$O$8:$DF$8,0)), INDIRECT(dshbrdrng_umsatzentwicklung),"<>Total",INDIRECT(dshbrdrng_umsatzentwicklung),"<>Subtotal")+C18),"") -> 15417.91714 | E18: =IFERROR( IF(INDEX(tblUmsatzFltr[Nr],MATCH(filter_umsatz,tblUmsatzFltr[Umsatz Filter],0)) = 1, SUMIFS(INDEX(INDIRECT(dshbrdrng_umsatzentwicklung2),0,MATCH(DATE($B18,MONTH(E$13),1),Erfolgsrechnung_Detail!$O$8:$DF$8,0)), INDIRECT(dshbrdrng_umsatzentwicklung),"<>Total",INDIRECT(dshbrdrng_umsatzentwicklung),"<>Subtotal"), SUMIFS(INDEX(INDIRECT(dshbrdrng_umsatzentwicklung2),0,MATCH(DATE($B18,MONTH(E$13),1),Erfolgsrechnung_Detail!$O$8:$DF$8,0)), INDIRECT(dshbrdrng_umsatzentwicklung),"<>Total",INDIRECT(dshbrdrng_umsatzentwicklung),"<>Subtotal")+D18),"") -> 6288.146575 | F18: =IFERROR( IF(INDEX(tblUmsatzFltr[Nr],MATCH(filter_umsatz,tblUmsatzFltr[Umsatz Filter],0)) = 1, SUMIFS(INDEX(INDIRECT(dshbrdrng_umsatzentwicklung2),0,MATCH(DATE($B18,MONTH(F$13),1),Erfolgsrechnung_Detail!$O$8:$DF$8,0)), INDIRECT(dshbrdrng_umsatzentwicklung),"<>Total",INDIRECT(dshbrdrng_umsatzentwicklung),"<>Subtotal"), SUMIFS(INDEX(INDIRECT(dshbrdrng_umsatzentwicklung2),0,MATCH(DATE($B18,MONTH(F$13),1),Erfolgsrechnung_Detail!$O$8:$DF$8,0)), INDIRECT(dshbrdrng_umsatzentwicklung),"<>Total",INDIRECT(dshbrdrng_umsatzentwicklung),"<>Subtotal")+E18),"") -> 9330.611777 | G18: =IFERROR( IF(INDEX(tblUmsatzFltr[Nr],MATCH(filter_umsatz,tblUmsatzFltr[Umsatz Filter],0)) = 1, SUMIFS(INDEX(INDIRECT(dshbrdrng_umsatzentwicklung2),0,MATCH(DATE($B18,MONTH(G$13),1),Erfolgsrechnung_Detail!$O$8:$DF$8,0)), INDIRECT(dshbrdrng_umsatzentwicklung),"<>Total",INDIRECT(dshbrdrng_umsatzentwicklung),"<>Subtotal"), SUMIFS(INDEX(INDIRECT(dshbrdrng_umsatzentwicklung2),0,MATCH(DATE($B18,MONTH(G$13),1),Erfolgsrechnung_Detail!$O$8:$DF$8,0)), INDIRECT(dshbrdrng_umsatzentwicklung),"<>Total",INDIRECT(dshbrdrng_umsatzentwicklung),"<>Subtotal")+F18),"") -> 11674.7431 | H18: =IFERROR( IF(INDEX(tblUmsatzFltr[Nr],MATCH(filter_umsatz,tblUmsatzFltr[Umsatz Filter],0)) = 1, SUMIFS(INDEX(INDIRECT(dshbrdrng_umsatzentwicklung2),0,MATCH(DATE($B18,MONTH(H$13),1),Erfolgsrechnung_Detail!$O$8:$DF$8,0)), INDIRECT(dshbrdrng_umsatzentwicklung),"<>Total",INDIRECT(dshbrdrng_umsatzentwicklung),"<>Subtotal"), SUMIFS(INDEX(INDIRECT(dshbrdrng_umsatzentwicklung2),0,MATCH(DATE($B18,MONTH(H$13),1),Erfolgsrechnung_Detail!$O$8:$DF$8,0)), INDIRECT(dshbrdrng_umsatzentwicklung),"<>Total",INDIRECT(dshbrdrng_umsatzentwicklung),"<>Subtotal")+G18),"") -> 15250.69539 | I18: =IFERROR( IF(INDEX(tblUmsatzFltr[Nr],MATCH(filter_umsatz,tblUmsatzFltr[Umsatz Filter],0)) = 1, SUMIFS(INDEX(INDIRECT(dshbrdrng_umsatzentwicklung2),0,MATCH(DATE($B18,MONTH(I$13),1),Erfolgsrechnung_Detail!$O$8:$DF$8,0)), INDIRECT(dshbrdrng_umsatzentwicklung),"<>Total",INDIRECT(dshbrdrng_umsatzentwicklung),"<>Subtotal"), SUMIFS(INDEX(INDIRECT(dshbrdrng_umsatzentwicklung2),0,MATCH(DATE($B18,MONTH(I$13),1),Erfolgsrechnung_Detail!$O$8:$DF$8,0)), INDIRECT(dshbrdrng_umsatzentwicklung),"<>Total",INDIRECT(dshbrdrng_umsatzentwicklung),"<>Subtotal")+H18),"") -> 8290.239264 | J18: =IFERROR( IF(INDEX(tblUmsatzFltr[Nr],MATCH(filter_umsatz,tblUmsatzFltr[Umsatz Filter],0)) = 1, SUMIFS(INDEX(INDIRECT(dshbrdrng_umsatzentwicklung2),0,MATCH(DATE($B18,MONTH(J$13),1),Erfolgsrechnung_Detail!$O$8:$DF$8,0)), INDIRECT(dshbrdrng_umsatzentwicklung),"<>Total",INDIRECT(dshbrdrng_umsatzentwicklung),"<>Subtotal"), SUMIFS(INDEX(INDIRECT(dshbrdrng_umsatzentwicklung2),0,MATCH(DATE($B18,MONTH(J$13),1),Erfolgsrechnung_Detail!$O$8:$DF$8,0)), INDIRECT(dshbrdrng_umsatzentwicklung),"<>Total",INDIRECT(dshbrdrng_umsatzentwicklung),"<>Subtotal")+I18),"") -> 9170.924461 | K18: =IFERROR( IF(INDEX(tblUmsatzFltr[Nr],MATCH(filter_umsatz,tblUmsatzFltr[Umsatz Filter],0)) = 1, SUMIFS(INDEX(INDIRECT(dshbrdrng_umsatzentwicklung2),0,MATCH(DATE($B18,MONTH(K$13),1),Erfolgsrechnung_Detail!$O$8:$DF$8,0)), INDIRECT(dshbrdrng_umsatzentwicklung),"<>Total",INDIRECT(dshbrdrng_umsatzentwicklung),"<>Subtotal"), SUMIFS(INDEX(INDIRECT(dshbrdrng_umsatzentwicklung2),0,MATCH(DATE($B18,MONTH(K$13),1),Erfolgsrechnung_Detail!$O$8:$DF$8,0)), INDIRECT(dshbrdrng_umsatzentwicklung),"<>Total",INDIRECT(dshbrdrng_umsatzentwicklung),"<>Subtotal")+J18),"") -> 13362.7725 | L18: =IFERROR( IF(INDEX(tblUmsatzFltr[Nr],MATCH(filter_umsatz,tblUmsatzFltr[Umsatz Filter],0)) = 1, SUMIFS(INDEX(INDIRECT(dshbrdrng_umsatzentwicklung2),0,MATCH(DATE($B18,MONTH(L$13),1),Erfolgsrechnung_Detail!$O$8:$DF$8,0)), INDIRECT(dshbrdrng_umsatzentwicklung),"<>Total",INDIRECT(dshbrdrng_umsatzentwicklung),"<>Subtotal"), SUMIFS(INDEX(INDIRECT(dshbrdrng_umsatzentwicklung2),0,MATCH(DATE($B18,MONTH(L$13),1),Erfolgsrechnung_Detail!$O$8:$DF$8,0)), INDIRECT(dshbrdrng_umsatzentwicklung),"<>Total",INDIRECT(dshbrdrng_umsatzentwicklung),"<>Subtotal")+K18),"") -> 8762.791211 | M18: =IFERROR( IF(INDEX(tblUmsatzFltr[Nr],MATCH(filter_umsatz,tblUmsatzFltr[Umsatz Filter],0)) = 1, SUMIFS(INDEX(INDIRECT(dshbrdrng_umsatzentwicklung2),0,MATCH(DATE($B18,MONTH(M$13),1),Erfolgsrechnung_Detail!$O$8:$DF$8,0)), INDIRECT(dshbrdrng_umsatzentwicklung),"<>Total",INDIRECT(dshbrdrng_umsatzentwicklung),"<>Subtotal"), SUMIFS(INDEX(INDIRECT(dshbrdrng_umsatzentwicklung2),0,MATCH(DATE($B18,MONTH(M$13),1),Erfolgsrechnung_Detail!$O$8:$DF$8,0)), INDIRECT(dshbrdrng_umsatzentwicklung),"<>Total",INDIRECT(dshbrdrng_umsatzentwicklung),"<>Subtotal")+L18),"") -> 12649.65248 | N18: =IFERROR( IF(INDEX(tblUmsatzFltr[Nr],MATCH(filter_umsatz,tblUmsatzFltr[Umsatz Filter],0)) = 1, SUMIFS(INDEX(INDIRECT(dshbrdrng_umsatzentwicklung2),0,MATCH(DATE($B18,MONTH(N$13),1),Erfolgsrechnung_Detail!$O$8:$DF$8,0)), INDIRECT(dshbrdrng_umsatzentwicklung),"<>Total",INDIRECT(dshbrdrng_umsatzentwicklung),"<>Subtotal"), SUMIFS(INDEX(INDIRECT(dshbrdrng_umsatzentwicklung2),0,MATCH(DATE($B18,MONTH(N$13),1),Erfolgsrechnung_Detail!$O$8:$DF$8,0)), INDIRECT(dshbrdrng_umsatzentwicklung),"<>Total",INDIRECT(dshbrdrng_umsatzentwicklung),"<>Subtotal")+M18),"") -> 15390.02694 | P18: =IFERROR(IF( INDEX(tblUmsatzFltr[Nr],MATCH(filter_umsatz,tblUmsatzFltr[Umsatz Filter],0))=1, SUM($C18:INDEX($C18:$N18,1,selectedmonat_num)), INDEX($C18:$N18,0,MATCH(monat,tblMonate[Monate],0))),"") -> 128492.415 | Q18: =IFERROR( IF(INDEX(tblUmsatzFltr[Nr],MATCH(filter_umsatz,tblUmsatzFltr[Umsatz Filter],0))=1, SUM(C18:$N18),N18),"") -> 128492.415
B19: 2019 | C19: =IFERROR( SUMIFS(INDEX(INDIRECT(dshbrdrng_umsatzentwicklung2),0,MATCH(DATE($B19,MONTH(C$13),1),Erfolgsrechnung_Detail!$O$8:$DF$8,0)), INDIRECT(dshbrdrng_umsatzentwicklung),"<>Total",INDIRECT(dshbrdrng_umsatzentwicklung),"<>Subtotal"), "") -> 17039.60384 | D19: =IFERROR( IF(INDEX(tblUmsatzFltr[Nr],MATCH(filter_umsatz,tblUmsatzFltr[Umsatz Filter],0)) = 1, SUMIFS(INDEX(INDIRECT(dshbrdrng_umsatzentwicklung2),0,MATCH(DATE($B19,MONTH(D$13),1),Erfolgsrechnung_Detail!$O$8:$DF$8,0)), INDIRECT(dshbrdrng_umsatzentwicklung),"<>Total",INDIRECT(dshbrdrng_umsatzentwicklung),"<>Subtotal"), SUMIFS(INDEX(INDIRECT(dshbrdrng_umsatzentwicklung2),0,MATCH(DATE($B19,MONTH(D$13),1),Erfolgsrechnung_Detail!$O$8:$DF$8,0)), INDIRECT(dshbrdrng_umsatzentwicklung),"<>Total",INDIRECT(dshbrdrng_umsatzentwicklung),"<>Subtotal")+C19),"") -> 7080.298547 | E19: =IFERROR( IF(INDEX(tblUmsatzFltr[Nr],MATCH(filter_umsatz,tblUmsatzFltr[Umsatz Filter],0)) = 1, SUMIFS(INDEX(INDIRECT(dshbrdrng_umsatzentwicklung2),0,MATCH(DATE($B19,MONTH(E$13),1),Erfolgsrechnung_Detail!$O$8:$DF$8,0)), INDIRECT(dshbrdrng_umsatzentwicklung),"<>Total",INDIRECT(dshbrdrng_umsatzentwicklung),"<>Subtotal"), SUMIFS(INDEX(INDIRECT(dshbrdrng_umsatzentwicklung2),0,MATCH(DATE($B19,MONTH(E$13),1),Erfolgsrechnung_Detail!$O$8:$DF$8,0)), INDIRECT(dshbrdrng_umsatzentwicklung),"<>Total",INDIRECT(dshbrdrng_umsatzentwicklung),"<>Subtotal")+D19),"") -> 25359.10928 | F19: =IFERROR( IF(INDEX(tblUmsatzFltr[Nr],MATCH(filter_umsatz,tblUmsatzFltr[Umsatz Filter],0)) = 1, SUMIFS(INDEX(INDIRECT(dshbrdrng_umsatzentwicklung2),0,MATCH(DATE($B19,MONTH(F$13),1),Erfolgsrechnung_Detail!$O$8:$DF$8,0)), INDIRECT(dshbrdrng_umsatzentwicklung),"<>Total",INDIRECT(dshbrdrng_umsatzentwicklung),"<>Subtotal"), SUMIFS(INDEX(INDIRECT(dshbrdrng_umsatzentwicklung2),0,MATCH(DATE($B19,MONTH(F$13),1),Erfolgsrechnung_Detail!$O$8:$DF$8,0)), INDIRECT(dshbrdrng_umsatzentwicklung),"<>Total",INDIRECT(dshbrdrng_umsatzentwicklung),"<>Subtotal")+E19),"") -> 35838.54611 | G19: =IFERROR( IF(INDEX(tblUmsatzFltr[Nr],MATCH(filter_umsatz,tblUmsatzFltr[Umsatz Filter],0)) = 1, SUMIFS(INDEX(INDIRECT(dshbrdrng_umsatzentwicklung2),0,MATCH(DATE($B19,MONTH(G$13),1),Erfolgsrechnung_Detail!$O$8:$DF$8,0)), INDIRECT(dshbrdrng_umsatzentwicklung),"<>Total",INDIRECT(dshbrdrng_umsatzentwicklung),"<>Subtotal"), SUMIFS(INDEX(INDIRECT(dshbrdrng_umsatzentwicklung2),0,MATCH(DATE($B19,MONTH(G$13),1),Erfolgsrechnung_Detail!$O$8:$DF$8,0)), INDIRECT(dshbrdrng_umsatzentwicklung),"<>Total",INDIRECT(dshbrdrng_umsatzentwicklung),"<>Subtotal")+F19),"") -> 24339.02922 | H19: =IFERROR( IF(INDEX(tblUmsatzFltr[Nr],MATCH(filter_umsatz,tblUmsatzFltr[Umsatz Filter],0)) = 1, SUMIFS(INDEX(INDIRECT(dshbrdrng_umsatzentwicklung2),0,MATCH(DATE($B19,MONTH(H$13),1),Erfolgsrechnung_Detail!$O$8:$DF$8,0)), INDIRECT(dshbrdrng_umsatzentwicklung),"<>Total",INDIRECT(dshbrdrng_umsatzentwicklung),"<>Subtotal"), SUMIFS(INDEX(INDIRECT(dshbrdrng_umsatzentwicklung2),0,MATCH(DATE($B19,MONTH(H$13),1),Erfolgsrechnung_Detail!$O$8:$DF$8,0)), INDIRECT(dshbrdrng_umsatzentwicklung),"<>Total",INDIRECT(dshbrdrng_umsatzentwicklung),"<>Subtotal")+G19),"") -> 11768.127 | I19: =IFERROR( IF(INDEX(tblUmsatzFltr[Nr],MATCH(filter_umsatz,tblUmsatzFltr[Umsatz Filter],0)) = 1, SUMIFS(INDEX(INDIRECT(dshbrdrng_umsatzentwicklung2),0,MATCH(DATE($B19,MONTH(I$13),1),Erfolgsrechnung_Detail!$O$8:$DF$8,0)), INDIRECT(dshbrdrng_umsatzentwicklung),"<>Total",INDIRECT(dshbrdrng_umsatzentwicklung),"<>Subtotal"), SUMIFS(INDEX(INDIRECT(dshbrdrng_umsatzentwicklung2),0,MATCH(DATE($B19,MONTH(I$13),1),Erfolgsrechnung_Detail!$O$8:$DF$8,0)), INDIRECT(dshbrdrng_umsatzentwicklung),"<>Total",INDIRECT(dshbrdrng_umsatzentwicklung),"<>Subtotal")+H19),"") -> 38858.0777 | J19: =IFERROR( IF(INDEX(tblUmsatzFltr[Nr],MATCH(filter_umsatz,tblUmsatzFltr[Umsatz Filter],0)) = 1, SUMIFS(INDEX(INDIRECT(dshbrdrng_umsatzentwicklung2),0,MATCH(DATE($B19,MONTH(J$13),1),Erfolgsrechnung_Detail!$O$8:$DF$8,0)), INDIRECT(dshbrdrng_umsatzentwicklung),"<>Total",INDIRECT(dshbrdrng_umsatzentwicklung),"<>Subtotal"), SUMIFS(INDEX(INDIRECT(dshbrdrng_umsatzentwicklung2),0,MATCH(DATE($B19,MONTH(J$13),1),Erfolgsrechnung_Detail!$O$8:$DF$8,0)), INDIRECT(dshbrdrng_umsatzentwicklung),"<>Total",INDIRECT(dshbrdrng_umsatzentwicklung),"<>Subtotal")+I19),"") -> 15585.88726 | K19: =IFERROR( IF(INDEX(tblUmsatzFltr[Nr],MATCH(filter_umsatz,tblUmsatzFltr[Umsatz Filter],0)) = 1, SUMIFS(INDEX(INDIRECT(dshbrdrng_umsatzentwicklung2),0,MATCH(DATE($B19,MONTH(K$13),1),Erfolgsrechnung_Detail!$O$8:$DF$8,0)), INDIRECT(dshbrdrng_umsatzentwicklung),"<>Total",INDIRECT(dshbrdrng_umsatzentwicklung),"<>Subtotal"), SUMIFS(INDEX(INDIRECT(dshbrdrng_umsatzentwicklung2),0,MATCH(DATE($B19,MONTH(K$13),1),Erfolgsrechnung_Detail!$O$8:$DF$8,0)), INDIRECT(dshbrdrng_umsatzentwicklung),"<>Total",INDIRECT(dshbrdrng_umsatzentwicklung),"<>Subtotal")+J19),"") -> 25996.33449 | L19: =IFERROR( IF(INDEX(tblUmsatzFltr[Nr],MATCH(filter_umsatz,tblUmsatzFltr[Umsatz Filter],0)) = 1, SUMIFS(INDEX(INDIRECT(dshbrdrng_umsatzentwicklung2),0,MATCH(DATE($B19,MONTH(L$13),1),Erfolgsrechnung_Detail!$O$8:$DF$8,0)), INDIRECT(dshbrdrng_umsatzentwicklung),"<>Total",INDIRECT(dshbrdrng_umsatzentwicklung),"<>Subtotal"), SUMIFS(INDEX(INDIRECT(dshbrdrng_umsatzentwicklung2),0,MATCH(DATE($B19,MONTH(L$13),1),Erfolgsrechnung_Detail!$O$8:$DF$8,0)), INDIRECT(dshbrdrng_umsatzentwicklung),"<>Total",INDIRECT(dshbrdrng_umsatzentwicklung),"<>Subtotal")+K19),"") -> 37952.32269 | M19: =IFERROR( IF(INDEX(tblUmsatzFltr[Nr],MATCH(filter_umsatz,tblUmsatzFltr[Umsatz Filter],0)) = 1, SUMIFS(INDEX(INDIRECT(dshbrdrng_umsatzentwicklung2),0,MATCH(DATE($B19,MONTH(M$13),1),Erfolgsrechnung_Detail!$O$8:$DF$8,0)), INDIRECT(dshbrdrng_umsatzentwicklung),"<>Total",INDIRECT(dshbrdrng_umsatzentwicklung),"<>Subtotal"), SUMIFS(INDEX(INDIRECT(dshbrdrng_umsatzentwicklung2),0,MATCH(DATE($B19,MONTH(M$13),1),Erfolgsrechnung_Detail!$O$8:$DF$8,0)), INDIRECT(dshbrdrng_umsatzentwicklung),"<>Total",INDIRECT(dshbrdrng_umsatzentwicklung),"<>Subtotal")+L19),"") -> 38809.92076 | N19: =IFERROR( IF(INDEX(tblUmsatzFltr[Nr],MATCH(filter_umsatz,tblUmsatzFltr[Umsatz Filter],0)) = 1, SUMIFS(INDEX(INDIRECT(dshbrdrng_umsatzentwicklung2),0,MATCH(DATE($B19,MONTH(N$13),1),Erfolgsrechnung_Detail!$O$8:$DF$8,0)), INDIRECT(dshbrdrng_umsatzentwicklung),"<>Total",INDIRECT(dshbrdrng_umsatzentwicklung),"<>Subtotal"), SUMIFS(INDEX(INDIRECT(dshbrdrng_umsatzentwicklung2),0,MATCH(DATE($B19,MONTH(N$13),1),Erfolgsrechnung_Detail!$O$8:$DF$8,0)), INDIRECT(dshbrdrng_umsatzentwicklung),"<>Total",INDIRECT(dshbrdrng_umsatzentwicklung),"<>Subtotal")+M19),"") -> 53053.69296 | P19: =IFERROR(IF( INDEX(tblUmsatzFltr[Nr],MATCH(filter_umsatz,tblUmsatzFltr[Umsatz Filter],0))=1, SUM($C19:INDEX($C19:$N19,1,selectedmonat_num)), INDEX($C19:$N19,0,MATCH(monat,tblMonate[Monate],0))),"") -> 331680.9499 | Q19: =IFERROR( IF(INDEX(tblUmsatzFltr[Nr],MATCH(filter_umsatz,tblUmsatzFltr[Umsatz Filter],0))=1, SUM(C19:$N19),N19),"") -> 331680.9499
B20: =jahr -> 2020 | C20: =IFERROR( SUMIFS(INDEX(INDIRECT(dshbrdrng_umsatzentwicklung2),0,MATCH(DATE($B20,MONTH(C$13),1),Erfolgsrechnung_Detail!$O$8:$DF$8,0)), INDIRECT(dshbrdrng_umsatzentwicklung),"<>Total",INDIRECT(dshbrdrng_umsatzentwicklung),"<>Subtotal"), "") -> 8043.344012 | D20: =IFERROR( IF(INDEX(tblUmsatzFltr[Nr],MATCH(filter_umsatz,tblUmsatzFltr[Umsatz Filter],0)) = 1, SUMIFS(INDEX(INDIRECT(dshbrdrng_umsatzentwicklung2),0,MATCH(DATE($B20,MONTH(D$13),1),Erfolgsrechnung_Detail!$O$8:$DF$8,0)), INDIRECT(dshbrdrng_umsatzentwicklung),"<>Total",INDIRECT(dshbrdrng_umsatzentwicklung),"<>Subtotal"), SUMIFS(INDEX(INDIRECT(dshbrdrng_umsatzentwicklung2),0,MATCH(DATE($B20,MONTH(D$13),1),Erfolgsrechnung_Detail!$O$8:$DF$8,0)), INDIRECT(dshbrdrng_umsatzentwicklung),"<>Total",INDIRECT(dshbrdrng_umsatzentwicklung),"<>Subtotal")+C20),"") -> 6987.212587 | E20: =IFERROR( IF(INDEX(tblUmsatzFltr[Nr],MATCH(filter_umsatz,tblUmsatzFltr[Umsatz Filter],0)) = 1, SUMIFS(INDEX(INDIRECT(dshbrdrng_umsatzentwicklung2),0,MATCH(DATE($B20,MONTH(E$13),1),Erfolgsrechnung_Detail!$O$8:$DF$8,0)), INDIRECT(dshbrdrng_umsatzentwicklung),"<>Total",INDIRECT(dshbrdrng_umsatzentwicklung),"<>Subtotal"), SUMIFS(INDEX(INDIRECT(dshbrdrng_umsatzentwicklung2),0,MATCH(DATE($B20,MONTH(E$13),1),Erfolgsrechnung_Detail!$O$8:$DF$8,0)), INDIRECT(dshbrdrng_umsatzentwicklung),"<>Total",INDIRECT(dshbrdrng_umsatzentwicklung),"<>Subtotal")+D20),"") -> 5922.325485 | F20: =IFERROR( IF(INDEX(tblUmsatzFltr[Nr],MATCH(filter_umsatz,tblUmsatzFltr[Umsatz Filter],0)) = 1, SUMIFS(INDEX(INDIRECT(dshbrdrng_umsatzentwicklung2),0,MATCH(DATE($B20,MONTH(F$13),1),Erfolgsrechnung_Detail!$O$8:$DF$8,0)), INDIRECT(dshbrdrng_umsatzentwicklung),"<>Total",INDIRECT(dshbrdrng_umsatzentwicklung),"<>Subtotal"), SUMIFS(INDEX(INDIRECT(dshbrdrng_umsatzentwicklung2),0,MATCH(DATE($B20,MONTH(F$13),1),Erfolgsrechnung_Detail!$O$8:$DF$8,0)), INDIRECT(dshbrdrng_umsatzentwicklung),"<>Total",INDIRECT(dshbrdrng_umsatzentwicklung),"<>Subtotal")+E20),"") -> 9384.812775 | G20: =IFERROR( IF(INDEX(tblUmsatzFltr[Nr],MATCH(filter_umsatz,tblUmsatzFltr[Umsatz Filter],0)) = 1, SUMIFS(INDEX(INDIRECT(dshbrdrng_umsatzentwicklung2),0,MATCH(DATE($B20,MONTH(G$13),1),Erfolgsrechnung_Detail!$O$8:$DF$8,0)), INDIRECT(dshbrdrng_umsatzentwicklung),"<>Total",INDIRECT(dshbrdrng_umsatzentwicklung),"<>Subtotal"), SUMIFS(INDEX(INDIRECT(dshbrdrng_umsatzentwicklung2),0,MATCH(DATE($B20,MONTH(G$13),1),Erfolgsrechnung_Detail!$O$8:$DF$8,0)), INDIRECT(dshbrdrng_umsatzentwicklung),"<>Total",INDIRECT(dshbrdrng_umsatzentwicklung),"<>Subtotal")+F20),"") -> 9192.09528 | H20: =IFERROR( IF(INDEX(tblUmsatzFltr[Nr],MATCH(filter_umsatz,tblUmsatzFltr[Umsatz Filter],0)) = 1, SUMIFS(INDEX(INDIRECT(dshbrdrng_umsatzentwicklung2),0,MATCH(DATE($B20,MONTH(H$13),1),Erfolgsrechnung_Detail!$O$8:$DF$8,0)), INDIRECT(dshbrdrng_umsatzentwicklung),"<>Total",INDIRECT(dshbrdrng_umsatzentwicklung),"<>Subtotal"), SUMIFS(INDEX(INDIRECT(dshbrdrng_umsatzentwicklung2),0,MATCH(DATE($B20,MONTH(H$13),1),Erfolgsrechnung_Detail!$O$8:$DF$8,0)), INDIRECT(dshbrdrng_umsatzentwicklung),"<>Total",INDIRECT(dshbrdrng_umsatzentwicklung),"<>Subtotal")+G20),"") -> 6327.601321 | I20: =IFERROR( IF(INDEX(tblUmsatzFltr[Nr],MATCH(filter_umsatz,tblUmsatzFltr[Umsatz Filter],0)) = 1, SUMIFS(INDEX(INDIRECT(dshbrdrng_umsatzentwicklung2),0,MATCH(DATE($B20,MONTH(I$13),1),Erfolgsrechnung_Detail!$O$8:$DF$8,0)), INDIRECT(dshbrdrng_umsatzentwicklung),"<>Total",INDIRECT(dshbrdrng_umsatzentwicklung),"<>Subtotal"), SUMIFS(INDEX(INDIRECT(dshbrdrng_umsatzentwicklung2),0,MATCH(DATE($B20,MONTH(I$13),1),Erfolgsrechnung_Detail!$O$8:$DF$8,0)), INDIRECT(dshbrdrng_umsatzentwicklung),"<>Total",INDIRECT(dshbrdrng_umsatzentwicklung),"<>Subtotal")+H20),"") -> 10187.37933 | J20: =IFERROR( IF(INDEX(tblUmsatzFltr[Nr],MATCH(filter_umsatz,tblUmsatzFltr[Umsatz Filter],0)) = 1, SUMIFS(INDEX(INDIRECT(dshbrdrng_umsatzentwicklung2),0,MATCH(DATE($B20,MONTH(J$13),1),Erfolgsrechnung_Detail!$O$8:$DF$8,0)), INDIRECT(dshbrdrng_umsatzentwicklung),"<>Total",INDIRECT(dshbrdrng_umsatzentwicklung),"<>Subtotal"), SUMIFS(INDEX(INDIRECT(dshbrdrng_umsatzentwicklung2),0,MATCH(DATE($B20,MONTH(J$13),1),Erfolgsrechnung_Detail!$O$8:$DF$8,0)), INDIRECT(dshbrdrng_umsatzentwicklung),"<>Total",INDIRECT(dshbrdrng_umsatzentwicklung),"<>Subtotal")+I20),"") -> 10946.58508 | K20: =IFERROR( IF(INDEX(tblUmsatzFltr[Nr],MATCH(filter_umsatz,tblUmsatzFltr[Umsatz Filter],0)) = 1, SUMIFS(INDEX(INDIRECT(dshbrdrng_umsatzentwicklung2),0,MATCH(DATE($B20,MONTH(K$13),1),Erfolgsrechnung_Detail!$O$8:$DF$8,0)), INDIRECT(dshbrdrng_umsatzentwicklung),"<>Total",INDIRECT(dshbrdrng_umsatzentwicklung),"<>Subtotal"), SUMIFS(INDEX(INDIRECT(dshbrdrng_umsatzentwicklung2),0,MATCH(DATE($B20,MONTH(K$13),1),Erfolgsrechnung_Detail!$O$8:$DF$8,0)), INDIRECT(dshbrdrng_umsatzentwicklung),"<>Total",INDIRECT(dshbrdrng_umsatzentwicklung),"<>Subtotal")+J20),"") -> 9296.41437 | L20: =IFERROR( IF(INDEX(tblUmsatzFltr[Nr],MATCH(filter_umsatz,tblUmsatzFltr[Umsatz Filter],0)) = 1, SUMIFS(INDEX(INDIRECT(dshbrdrng_umsatzentwicklung2),0,MATCH(DATE($B20,MONTH(L$13),1),Erfolgsrechnung_Detail!$O$8:$DF$8,0)), INDIRECT(dshbrdrng_umsatzentwicklung),"<>Total",INDIRECT(dshbrdrng_umsatzentwicklung),"<>Subtotal"), SUMIFS(INDEX(INDIRECT(dshbrdrng_umsatzentwicklung2),0,MATCH(DATE($B20,MONTH(L$13),1),Erfolgsrechnung_Detail!$O$8:$DF$8,0)), INDIRECT(dshbrdrng_umsatzentwicklung),"<>Total",INDIRECT(dshbrdrng_umsatzentwicklung),"<>Subtotal")+K20),"") -> 13648.04705 | M20: =IFERROR( IF(INDEX(tblUmsatzFltr[Nr],MATCH(filter_umsatz,tblUmsatzFltr[Umsatz Filter],0)) = 1, SUMIFS(INDEX(INDIRECT(dshbrdrng_umsatzentwicklung2),0,MATCH(DATE($B20,MONTH(M$13),1),Erfolgsrechnung_Detail!$O$8:$DF$8,0)), INDIRECT(dshbrdrng_umsatzentwicklung),"<>Total",INDIRECT(dshbrdrng_umsatzentwicklung),"<>Subtotal"), SUMIFS(INDEX(INDIRECT(dshbrdrng_umsatzentwicklung2),0,MATCH(DATE($B20,MONTH(M$13),1),Erfolgsrechnung_Detail!$O$8:$DF$8,0)), INDIRECT(dshbrdrng_umsatzentwicklung),"<>Total",INDIRECT(dshbrdrng_umsatzentwicklung),"<>Subtotal")+L20),"") -> 19404.96038 | N20: =IFERROR( IF(INDEX(tblUmsatzFltr[Nr],MATCH(filter_umsatz,tblUmsatzFltr[Umsatz Filter],0)) = 1, SUMIFS(INDEX(INDIRECT(dshbrdrng_umsatzentwicklung2),0,MATCH(DATE($B20,MONTH(N$13),1),Erfolgsrechnung_Detail!$O$8:$DF$8,0)), INDIRECT(dshbrdrng_umsatzentwicklung),"<>Total",INDIRECT(dshbrdrng_umsatzentwicklung),"<>Subtotal"), SUMIFS(INDEX(INDIRECT(dshbrdrng_umsatzentwicklung2),0,MATCH(DATE($B20,MONTH(N$13),1),Erfolgsrechnung_Detail!$O$8:$DF$8,0)), INDIRECT(dshbrdrng_umsatzentwicklung),"<>Total",INDIRECT(dshbrdrng_umsatzentwicklung),"<>Subtotal")+M20),"") -> 26556.36861 | P20: =IFERROR(IF( INDEX(tblUmsatzFltr[Nr],MATCH(filter_umsatz,tblUmsatzFltr[Umsatz Filter],0))=1, SUM($C20:INDEX($C20:$N20,1,selectedmonat_num)), INDEX($C20:$N20,0,MATCH(monat,tblMonate[Monate],0))),"") -> 135897.1463 | Q20: =IFERROR( IF(INDEX(tblUmsatzFltr[Nr],MATCH(filter_umsatz,tblUmsatzFltr[Umsatz Filter],0))=1, SUM(C20:$N20),N20),"") -> 135897.1463
B21: YTD Wachstum | C21: =IFERROR(C20/C19-1,0) -> -0.5279617949 | D21: -0.01314718008 | E21: -0.7664616127 | F21: -0.7381363422 | G21: -0.6223310635 | H21: -0.4623102453 | I21: -0.7378311039 | J21: -0.2976604479 | K21: -0.6423951856 | L21: -0.6403896762 | M21: -0.5 | N21: -0.4994435425 | P21: =IFERROR(P20/P19-1,0) -> -0.5902775051 | Q21: =IFERROR(Q20/Q19-1,0) -> -0.5902775051
B23: Budget | C23: =IFERROR(SUMIFS(INDIRECT(budgetrng_umsatzentwicklung),INDIRECT(budgetrng),"<>",INDIRECT(budgetrng),"<>Total",INDIRECT(budgetrng),"<>Subtotal"),"") -> 0 | D23: =IFERROR(SUMIFS(OFFSET(INDIRECT(budgetrng_umsatzentwicklung),0,1),INDIRECT(budgetrng),"<>",INDIRECT(budgetrng),"<>Total",INDIRECT(budgetrng),"<>Subtotal"),"") -> 0 | E23: =IFERROR(SUMIFS(OFFSET(INDIRECT(budgetrng_umsatzentwicklung),0,2),INDIRECT(budgetrng),"<>",INDIRECT(budgetrng),"<>Total",INDIRECT(budgetrng),"<>Subtotal"),"") -> 0 | F23: =IFERROR(SUMIFS(OFFSET(INDIRECT(budgetrng_umsatzentwicklung),0,3),INDIRECT(budgetrng),"<>",INDIRECT(budgetrng),"<>Total",INDIRECT(budgetrng),"<>Subtotal"),"") -> 0 | G23: =IFERROR(SUMIFS(OFFSET(INDIRECT(budgetrng_umsatzentwicklung),0,4),INDIRECT(budgetrng),"<>",INDIRECT(budgetrng),"<>Total",INDIRECT(budgetrng),"<>Subtotal"),"") -> 0 | H23: =IFERROR(SUMIFS(OFFSET(INDIRECT(budgetrng_umsatzentwicklung),0,5),INDIRECT(budgetrng),"<>",INDIRECT(budgetrng),"<>Total",INDIRECT(budgetrng),"<>Subtotal"),"") -> 0 | I23: =IFERROR(SUMIFS(OFFSET(INDIRECT(budgetrng_umsatzentwicklung),0,6),INDIRECT(budgetrng),"<>",INDIRECT(budgetrng),"<>Total",INDIRECT(budgetrng),"<>Subtotal"),"") -> 0 | J23: =IFERROR(SUMIFS(OFFSET(INDIRECT(budgetrng_umsatzentwicklung),0,7),INDIRECT(budgetrng),"<>",INDIRECT(budgetrng),"<>Total",INDIRECT(budgetrng),"<>Subtotal"),"") -> 0 | K23: =IFERROR(SUMIFS(OFFSET(INDIRECT(budgetrng_umsatzentwicklung),0,8),INDIRECT(budgetrng),"<>",INDIRECT(budgetrng),"<>Total",INDIRECT(budgetrng),"<>Subtotal"),"") -> 0 | L23: =IFERROR(SUMIFS(OFFSET(INDIRECT(budgetrng_umsatzentwicklung),0,9),INDIRECT(budgetrng),"<>",INDIRECT(budgetrng),"<>Total",INDIRECT(budgetrng),"<>Subtotal"),"") -> 0 | M23: =IFERROR(SUMIFS(OFFSET(INDIRECT(budgetrng_umsatzentwicklung),0,10),INDIRECT(budgetrng),"<>",INDIRECT(budgetrng),"<>Total",INDIRECT(budgetrng),"<>Subtotal"),"") -> 0 | N23: =IFERROR(SUMIFS(OFFSET(INDIRECT(budgetrng_umsatzentwicklung),0,11),INDIRECT(budgetrng),"<>",INDIRECT(budgetrng),"<>Total",INDIRECT(budgetrng),"<>Subtotal"),"") -> 0 | P23: =SUM($C23:INDEX($C23:$N23,1,selectedmonat_num)) -> 0 | Q23: =SUM(rngBudget) -> 0
B24: ∆ Budget in % | C24: =IFERROR(C20/C23-1,0) -> 0 | D24: =IFERROR(D20/D23-1,0) -> 0 | E24: 0 | F24: 0 | G24: 0 | H24: 0 | I24: 0 | J24: 0 | K24: 0 | L24: 0 | M24: 0 | N24: 0 | P24: =IFERROR(P20/P23-1,0) -> 0 | Q24: =IFERROR(Q20/Q23-1,0) -> 0
B26: Aktuelles Jahr vs. Vorjahr | P26: =IF(INDEX(tblMonate[Nr],MATCH(monat,tblMonate[Monate],0))<> 1, CONCATENATE("YTD ",Einstellungen!$AQ$8," - ",monat," Umsatz Zielerreichung"), CONCATENATE("YTD ",Einstellungen!$AQ$8," Umsatz Zielerreichungt")) -> YTD Januar - Dezember Umsatz Zielerreichung
C28: =C23 -> 0 | D28: =IF(INDEX(tblUmsatzFltr[Nr],MATCH($B$7,tblUmsatzFltr[Umsatz Filter],0)) = 1,D$23,D$23+C$28) -> 0 | E28: =IF(INDEX(tblUmsatzFltr[Nr],MATCH($B$7,tblUmsatzFltr[Umsatz Filter],0)) = 1,E$23,E$23+D$28) -> 0 | F28: =IF(INDEX(tblUmsatzFltr[Nr],MATCH($B$7,tblUmsatzFltr[Umsatz Filter],0)) = 1,F$23,F$23+E$28) -> 0 | G28: =IF(INDEX(tblUmsatzFltr[Nr],MATCH($B$7,tblUmsatzFltr[Umsatz Filter],0)) = 1,G$23,G$23+F$28) -> 0 | H28: =IF(INDEX(tblUmsatzFltr[Nr],MATCH($B$7,tblUmsatzFltr[Umsatz Filter],0)) = 1,H$23,H$23+G$28) -> 0 | I28: =IF(INDEX(tblUmsatzFltr[Nr],MATCH($B$7,tblUmsatzFltr[Umsatz Filter],0)) = 1,I$23,I$23+H$28) -> 0 | J28: =IF(INDEX(tblUmsatzFltr[Nr],MATCH($B$7,tblUmsatzFltr[Umsatz Filter],0)) = 1,J$23,J$23+I$28) -> 0 | K28: =IF(INDEX(tblUmsatzFltr[Nr],MATCH($B$7,tblUmsatzFltr[Umsatz Filter],0)) = 1,K$23,K$23+J$28) -> 0 | L28: =IF(INDEX(tblUmsatzFltr[Nr],MATCH($B$7,tblUmsatzFltr[Umsatz Filter],0)) = 1,L$23,L$23+K$28) -> 0 | M28: =IF(INDEX(tblUmsatzFltr[Nr],MATCH($B$7,tblUmsatzFltr[Umsatz Filter],0)) = 1,M$23,M$23+L$28) -> 0 | N28: =IF(INDEX(tblUmsatzFltr[Nr],MATCH($B$7,tblUmsatzFltr[Umsatz Filter],0)) = 1,N$23,N$23+M$28) -> 0
B47: Bruttogewinn /-Verlust
C49: =DATE(jahr,1,1) -> 2020-01-01 | D49: =EOMONTH(C49,0)+1 -> 2020-02-01 | E49: 2020-03-01 | F49: 2020-04-01 | G49: 2020-05-01 | H49: 2020-06-01 | I49: 2020-07-01 | J49: 2020-08-01 | K49: 2020-09-01 | L49: 2020-10-01 | M49: 2020-11-01 | N49: 2020-12-01 | P49: =P13 -> YTD Januar bis Dezember | Q49: Total
B50: =B51-1 -> 2014 | C50: =IFERROR(C14+ SUMIFS(INDEX(INDIRECT(dshbrdrng_bruttogewinn2),0,MATCH(DATE($B50,MONTH(C$49),1),Erfolgsrechnung_Detail!$O$8:$DF$8,0)), INDIRECT(dshbrdrng_bruttogewinn),"<>Total",INDIRECT(dshbrdrng_bruttogewinn),"<>Subtotal"), "") -> 2604.415417 | D50: =IFERROR(SUMIFS(INDEX(INDIRECT(dshbrdrng_umsatzentwicklung2),0,MATCH(DATE($B14,MONTH(D$13),1),Erfolgsrechnung_Detail!$O$8:$DF$8,0)), INDIRECT(dshbrdrng_umsatzentwicklung),"<>Total",INDIRECT(dshbrdrng_umsatzentwicklung),"<>Subtotal") + IF(INDEX(tblUmsatzFltr[Nr],MATCH(filter_umsatz,tblUmsatzFltr[Umsatz Filter],0)) = 1, SUMIFS(INDEX(INDIRECT(dshbrdrng_bruttogewinn2),0,MATCH(DATE($B50,MONTH(D$49),1),Erfolgsrechnung_Detail!$O$8:$DF$8,0)), INDIRECT(dshbrdrng_bruttogewinn),"<>Total",INDIRECT(dshbrdrng_bruttogewinn),"<>Subtotal"), SUMIFS(INDEX(INDIRECT(dshbrdrng_bruttogewinn2),0,MATCH(DATE($B50,MONTH(D$49),1),Erfolgsrechnung_Detail!$O$8:$DF$8,0)), INDIRECT(dshbrdrng_bruttogewinn),"<>Total",INDIRECT(dshbrdrng_bruttogewinn),"<>Subtotal")+C50),"") -> 3401.854175 | E50: =IFERROR(SUMIFS(INDEX(INDIRECT(dshbrdrng_umsatzentwicklung2),0,MATCH(DATE($B14,MONTH(E$13),1),Erfolgsrechnung_Detail!$O$8:$DF$8,0)), INDIRECT(dshbrdrng_umsatzentwicklung),"<>Total",INDIRECT(dshbrdrng_umsatzentwicklung),"<>Subtotal") + IF(INDEX(tblUmsatzFltr[Nr],MATCH(filter_umsatz,tblUmsatzFltr[Umsatz Filter],0)) = 1, SUMIFS(INDEX(INDIRECT(dshbrdrng_bruttogewinn2),0,MATCH(DATE($B50,MONTH(E$49),1),Erfolgsrechnung_Detail!$O$8:$DF$8,0)), INDIRECT(dshbrdrng_bruttogewinn),"<>Total",INDIRECT(dshbrdrng_bruttogewinn),"<>Subtotal"), SUMIFS(INDEX(INDIRECT(dshbrdrng_bruttogewinn2),0,MATCH(DATE($B50,MONTH(E$49),1),Erfolgsrechnung_Detail!$O$8:$DF$8,0)), INDIRECT(dshbrdrng_bruttogewinn),"<>Total",INDIRECT(dshbrdrng_bruttogewinn),"<>Subtotal")+D50),"") -> 708.9426126 | F50: =IFERROR(SUMIFS(INDEX(INDIRECT(dshbrdrng_umsatzentwicklung2),0,MATCH(DATE($B14,MONTH(F$13),1),Erfolgsrechnung_Detail!$O$8:$DF$8,0)), INDIRECT(dshbrdrng_umsatzentwicklung),"<>Total",INDIRECT(dshbrdrng_umsatzentwicklung),"<>Subtotal") + IF(INDEX(tblUmsatzFltr[Nr],MATCH(filter_umsatz,tblUmsatzFltr[Umsatz Filter],0)) = 1, SUMIFS(INDEX(INDIRECT(dshbrdrng_bruttogewinn2),0,MATCH(DATE($B50,MONTH(F$49),1),Erfolgsrechnung_Detail!$O$8:$DF$8,0)), INDIRECT(dshbrdrng_bruttogewinn),"<>Total",INDIRECT(dshbrdrng_bruttogewinn),"<>Subtotal"), SUMIFS(INDEX(INDIRECT(dshbrdrng_bruttogewinn2),0,MATCH(DATE($B50,MONTH(F$49),1),Erfolgsrechnung_Detail!$O$8:$DF$8,0)), INDIRECT(dshbrdrng_bruttogewinn),"<>Total",INDIRECT(dshbrdrng_bruttogewinn),"<>Subtotal")+E50),"") -> 3102.756637 | G50: =IFERROR(SUMIFS(INDEX(INDIRECT(dshbrdrng_umsatzentwicklung2),0,MATCH(DATE($B14,MONTH(G$13),1),Erfolgsrechnung_Detail!$O$8:$DF$8,0)), INDIRECT(dshbrdrng_umsatzentwicklung),"<>Total",INDIRECT(dshbrdrng_umsatzentwicklung),"<>Subtotal") + IF(INDEX(tblUmsatzFltr[Nr],MATCH(filter_umsatz,tblUmsatzFltr[Umsatz Filter],0)) = 1, SUMIFS(INDEX(INDIRECT(dshbrdrng_bruttogewinn2),0,MATCH(DATE($B50,MONTH(G$49),1),Erfolgsrechnung_Detail!$O$8:$DF$8,0)), INDIRECT(dshbrdrng_bruttogewinn),"<>Total",INDIRECT(dshbrdrng_bruttogewinn),"<>Subtotal"), SUMIFS(INDEX(INDIRECT(dshbrdrng_bruttogewinn2),0,MATCH(DATE($B50,MONTH(G$49),1),Erfolgsrechnung_Detail!$O$8:$DF$8,0)), INDIRECT(dshbrdrng_bruttogewinn),"<>Total",INDIRECT(dshbrdrng_bruttogewinn),"<>Subtotal")+F50),"") -> 8590.266318 | H50: =IFERROR(SUMIFS(INDEX(INDIRECT(dshbrdrng_umsatzentwicklung2),0,MATCH(DATE($B14,MONTH(H$13),1),Erfolgsrechnung_Detail!$O$8:$DF$8,0)), INDIRECT(dshbrdrng_umsatzentwicklung),"<>Total",INDIRECT(dshbrdrng_umsatzentwicklung),"<>Subtotal") + IF(INDEX(tblUmsatzFltr[Nr],MATCH(filter_umsatz,tblUmsatzFltr[Umsatz Filter],0)) = 1, SUMIFS(INDEX(INDIRECT(dshbrdrng_bruttogewinn2),0,MATCH(DATE($B50,MONTH(H$49),1),Erfolgsrechnung_Detail!$O$8:$DF$8,0)), INDIRECT(dshbrdrng_bruttogewinn),"<>Total",INDIRECT(dshbrdrng_bruttogewinn),"<>Subtotal"), SUMIFS(INDEX(INDIRECT(dshbrdrng_bruttogewinn2),0,MATCH(DATE($B50,MONTH(H$49),1),Erfolgsrechnung_Detail!$O$8:$DF$8,0)), INDIRECT(dshbrdrng_bruttogewinn),"<>Total",INDIRECT(dshbrdrng_bruttogewinn),"<>Subtotal")+G50),"") -> 2531.33503 | I50: =IFERROR(SUMIFS(INDEX(INDIRECT(dshbrdrng_umsatzentwicklung2),0,MATCH(DATE($B14,MONTH(I$13),1),Erfolgsrechnung_Detail!$O$8:$DF$8,0)), INDIRECT(dshbrdrng_umsatzentwicklung),"<>Total",INDIRECT(dshbrdrng_umsatzentwicklung),"<>Subtotal") + IF(INDEX(tblUmsatzFltr[Nr],MATCH(filter_umsatz,tblUmsatzFltr[Umsatz Filter],0)) = 1, SUMIFS(INDEX(INDIRECT(dshbrdrng_bruttogewinn2),0,MATCH(DATE($B50,MONTH(I$49),1),Erfolgsrechnung_Detail!$O$8:$DF$8,0)), INDIRECT(dshbrdrng_bruttogewinn),"<>Total",INDIRECT(dshbrdrng_bruttogewinn),"<>Subtotal"), SUMIFS(INDEX(INDIRECT(dshbrdrng_bruttogewinn2),0,MATCH(DATE($B50,MONTH(I$49),1),Erfolgsrechnung_Detail!$O$8:$DF$8,0)), INDIRECT(dshbrdrng_bruttogewinn),"<>Total",INDIRECT(dshbrdrng_bruttogewinn),"<>Subtotal")+H50),"") -> -412.1399707 | J50: =IFERROR(SUMIFS(INDEX(INDIRECT(dshbrdrng_umsatzentwicklung2),0,MATCH(DATE($B14,MONTH(J$13),1),Erfolgsrechnung_Detail!$O$8:$DF$8,0)), INDIRECT(dshbrdrng_umsatzentwicklung),"<>Total",INDIRECT(dshbrdrng_umsatzentwicklung),"<>Subtotal") + IF(INDEX(tblUmsatzFltr[Nr],MATCH(filter_umsatz,tblUmsatzFltr[Umsatz Filter],0)) = 1, SUMIFS(INDEX(INDIRECT(dshbrdrng_bruttogewinn2),0,MATCH(DATE($B50,MONTH(J$49),1),Erfolgsrechnung_Detail!$O$8:$DF$8,0)), INDIRECT(dshbrdrng_bruttogewinn),"<>Total",INDIRECT(dshbrdrng_bruttogewinn),"<>Subtotal"), SUMIFS(INDEX(INDIRECT(dshbrdrng_bruttogewinn2),0,MATCH(DATE($B50,MONTH(J$49),1),Erfolgsrechnung_Detail!$O$8:$DF$8,0)), INDIRECT(dshbrdrng_bruttogewinn),"<>Total",INDIRECT(dshbrdrng_bruttogewinn),"<>Subtotal")+I50),"") -> 5096.902638 | K50: =IFERROR(SUMIFS(INDEX(INDIRECT(dshbrdrng_umsatzentwicklung2),0,MATCH(DATE($B14,MONTH(K$13),1),Erfolgsrechnung_Detail!$O$8:$DF$8,0)), INDIRECT(dshbrdrng_umsatzentwicklung),"<>Total",INDIRECT(dshbrdrng_umsatzentwicklung),"<>Subtotal") + IF(INDEX(tblUmsatzFltr[Nr],MATCH(filter_umsatz,tblUmsatzFltr[Umsatz Filter],0)) = 1, SUMIFS(INDEX(INDIRECT(dshbrdrng_bruttogewinn2),0,MATCH(DATE($B50,MONTH(K$49),1),Erfolgsrechnung_Detail!$O$8:$DF$8,0)), INDIRECT(dshbrdrng_bruttogewinn),"<>Total",INDIRECT(dshbrdrng_bruttogewinn),"<>Subtotal"), SUMIFS(INDEX(INDIRECT(dshbrdrng_bruttogewinn2),0,MATCH(DATE($B50,MONTH(K$49),1),Erfolgsrechnung_Detail!$O$8:$DF$8,0)), INDIRECT(dshbrdrng_bruttogewinn),"<>Total",INDIRECT(dshbrdrng_bruttogewinn),"<>Subtotal")+J50),"") -> 4397.192706 | L50: =IFERROR(SUMIFS(INDEX(INDIRECT(dshbrdrng_umsatzentwicklung2),0,MATCH(DATE($B14,MONTH(L$13),1),Erfolgsrechnung_Detail!$O$8:$DF$8,0)), INDIRECT(dshbrdrng_umsatzentwicklung),"<>Total",INDIRECT(dshbrdrng_umsatzentwicklung),"<>Subtotal") + IF(INDEX(tblUmsatzFltr[Nr],MATCH(filter_umsatz,tblUmsatzFltr[Umsatz Filter],0)) = 1, SUMIFS(INDEX(INDIRECT(dshbrdrng_bruttogewinn2),0,MATCH(DATE($B50,MONTH(L$49),1),Erfolgsrechnung_Detail!$O$8:$DF$8,0)), INDIRECT(dshbrdrng_bruttogewinn),"<>Total",INDIRECT(dshbrdrng_bruttogewinn),"<>Subtotal"), SUMIFS(INDEX(INDIRECT(dshbrdrng_bruttogewinn2),0,MATCH(DATE($B50,MONTH(L$49),1),Erfolgsrechnung_Detail!$O$8:$DF$8,0)), INDIRECT(dshbrdrng_bruttogewinn),"<>Total",INDIRECT(dshbrdrng_bruttogewinn),"<>Subtotal")+K50),"") -> 8357.9476 | M50: =IFERROR(SUMIFS(INDEX(INDIRECT(dshbrdrng_umsatzentwicklung2),0,MATCH(DATE($B14,MONTH(M$13),1),Erfolgsrechnung_Detail!$O$8:$DF$8,0)), INDIRECT(dshbrdrng_umsatzentwicklung),"<>Total",INDIRECT(dshbrdrng_umsatzentwicklung),"<>Subtotal") + IF(INDEX(tblUmsatzFltr[Nr],MATCH(filter_umsatz,tblUmsatzFltr[Umsatz Filter],0)) = 1, SUMIFS(INDEX(INDIRECT(dshbrdrng_bruttogewinn2),0,MATCH(DATE($B50,MONTH(M$49),1),Erfolgsrechnung_Detail!$O$8:$DF$8,0)), INDIRECT(dshbrdrng_bruttogewinn),"<>Total",INDIRECT(dshbrdrng_bruttogewinn),"<>Subtotal"), SUMIFS(INDEX(INDIRECT(dshbrdrng_bruttogewinn2),0,MATCH(DATE($B50,MONTH(M$49),1),Erfolgsrechnung_Detail!$O$8:$DF$8,0)), INDIRECT(dshbrdrng_bruttogewinn),"<>Total",INDIRECT(dshbrdrng_bruttogewinn),"<>Subtotal")+L50),"") -> 4871.30791 | N50: =IFERROR(SUMIFS(INDEX(INDIRECT(dshbrdrng_umsatzentwicklung2),0,MATCH(DATE($B14,MONTH(N$13),1),Erfolgsrechnung_Detail!$O$8:$DF$8,0)), INDIRECT(dshbrdrng_umsatzentwicklung),"<>Total",INDIRECT(dshbrdrng_umsatzentwicklung),"<>Subtotal") + IF(INDEX(tblUmsatzFltr[Nr],MATCH(filter_umsatz,tblUmsatzFltr[Umsatz Filter],0)) = 1, SUMIFS(INDEX(INDIRECT(dshbrdrng_bruttogewinn2),0,MATCH(DATE($B50,MONTH(N$49),1),Erfolgsrechnung_Detail!$O$8:$DF$8,0)), INDIRECT(dshbrdrng_bruttogewinn),"<>Total",INDIRECT(dshbrdrng_bruttogewinn),"<>Subtotal"), SUMIFS(INDEX(INDIRECT(dshbrdrng_bruttogewinn2),0,MATCH(DATE($B50,MONTH(N$49),1),Erfolgsrechnung_Detail!$O$8:$DF$8,0)), INDIRECT(dshbrdrng_bruttogewinn),"<>Total",INDIRECT(dshbrdrng_bruttogewinn),"<>Subtotal")+M50),"") -> 1324.604743 | P50: =IFERROR(IF( INDEX(tblUmsatzFltr[Nr],MATCH(filter_umsatz,tblUmsatzFltr[Umsatz Filter],0))=1, SUM($C50:INDEX($C50:$N50,1,selectedmonat_num)), INDEX($C50:$N50,0,MATCH(monat,tblMonate[Monate],0))),"") -> 44575.38582 | Q50: =IFERROR( IF(INDEX(tblUmsatzFltr[Nr],MATCH(filter_umsatz,tblUmsatzFltr[Umsatz Filter],0))=1, SUM(C50:$N50),N50),"") -> 44575.38582
B51: 2015 | C51: =IFERROR(C15+ SUMIFS(INDEX(INDIRECT(dshbrdrng_bruttogewinn2),0,MATCH(DATE($B51,MONTH(C$49),1),Erfolgsrechnung_Detail!$O$8:$DF$8,0)), INDIRECT(dshbrdrng_bruttogewinn),"<>Total",INDIRECT(dshbrdrng_bruttogewinn),"<>Subtotal"), "") -> 5631.801301 | D51: =IFERROR(SUMIFS(INDEX(INDIRECT(dshbrdrng_umsatzentwicklung2),0,MATCH(DATE($B15,MONTH(D$13),1),Erfolgsrechnung_Detail!$O$8:$DF$8,0)), INDIRECT(dshbrdrng_umsatzentwicklung),"<>Total",INDIRECT(dshbrdrng_umsatzentwicklung),"<>Subtotal") + IF(INDEX(tblUmsatzFltr[Nr],MATCH(filter_umsatz,tblUmsatzFltr[Umsatz Filter],0)) = 1, SUMIFS(INDEX(INDIRECT(dshbrdrng_bruttogewinn2),0,MATCH(DATE($B51,MONTH(D$49),1),Erfolgsrechnung_Detail!$O$8:$DF$8,0)), INDIRECT(dshbrdrng_bruttogewinn),"<>Total",INDIRECT(dshbrdrng_bruttogewinn),"<>Subtotal"), SUMIFS(INDEX(INDIRECT(dshbrdrng_bruttogewinn2),0,MATCH(DATE($B51,MONTH(D$49),1),Erfolgsrechnung_Detail!$O$8:$DF$8,0)), INDIRECT(dshbrdrng_bruttogewinn),"<>Total",INDIRECT(dshbrdrng_bruttogewinn),"<>Subtotal")+C51),"") -> 8495.938384 | E51: =IFERROR(SUMIFS(INDEX(INDIRECT(dshbrdrng_umsatzentwicklung2),0,MATCH(DATE($B15,MONTH(E$13),1),Erfolgsrechnung_Detail!$O$8:$DF$8,0)), INDIRECT(dshbrdrng_umsatzentwicklung),"<>Total",INDIRECT(dshbrdrng_umsatzentwicklung),"<>Subtotal") + IF(INDEX(tblUmsatzFltr[Nr],MATCH(filter_umsatz,tblUmsatzFltr[Umsatz Filter],0)) = 1, SUMIFS(INDEX(INDIRECT(dshbrdrng_bruttogewinn2),0,MATCH(DATE($B51,MONTH(E$49),1),Erfolgsrechnung_Detail!$O$8:$DF$8,0)), INDIRECT(dshbrdrng_bruttogewinn),"<>Total",INDIRECT(dshbrdrng_bruttogewinn),"<>Subtotal"), SUMIFS(INDEX(INDIRECT(dshbrdrng_bruttogewinn2),0,MATCH(DATE($B51,MONTH(E$49),1),Erfolgsrechnung_Detail!$O$8:$DF$8,0)), INDIRECT(dshbrdrng_bruttogewinn),"<>Total",INDIRECT(dshbrdrng_bruttogewinn),"<>Subtotal")+D51),"") -> 985.1636702 | F51: =IFERROR(SUMIFS(INDEX(INDIRECT(dshbrdrng_umsatzentwicklung2),0,MATCH(DATE($B15,MONTH(F$13),1),Erfolgsrechnung_Detail!$O$8:$DF$8,0)), INDIRECT(dshbrdrng_umsatzentwicklung),"<>Total",INDIRECT(dshbrdrng_umsatzentwicklung),"<>Subtotal") + IF(INDEX(tblUmsatzFltr[Nr],MATCH(filter_umsatz,tblUmsatzFltr[Umsatz Filter],0)) = 1, SUMIFS(INDEX(INDIRECT(dshbrdrng_bruttogewinn2),0,MATCH(DATE($B51,MONTH(F$49),1),Erfolgsrechnung_Detail!$O$8:$DF$8,0)), INDIRECT(dshbrdrng_bruttogewinn),"<>Total",INDIRECT(dshbrdrng_bruttogewinn),"<>Subtotal"), SUMIFS(INDEX(INDIRECT(dshbrdrng_bruttogewinn2),0,MATCH(DATE($B51,MONTH(F$49),1),Erfolgsrechnung_Detail!$O$8:$DF$8,0)), INDIRECT(dshbrdrng_bruttogewinn),"<>Total",INDIRECT(dshbrdrng_bruttogewinn),"<>Subtotal")+E51),"") -> 2690.0693 | G51: =IFERROR(SUMIFS(INDEX(INDIRECT(dshbrdrng_umsatzentwicklung2),0,MATCH(DATE($B15,MONTH(G$13),1),Erfolgsrechnung_Detail!$O$8:$DF$8,0)), INDIRECT(dshbrdrng_umsatzentwicklung),"<>Total",INDIRECT(dshbrdrng_umsatzentwicklung),"<>Subtotal") + IF(INDEX(tblUmsatzFltr[Nr],MATCH(filter_umsatz,tblUmsatzFltr[Umsatz Filter],0)) = 1, SUMIFS(INDEX(INDIRECT(dshbrdrng_bruttogewinn2),0,MATCH(DATE($B51,MONTH(G$49),1),Erfolgsrechnung_Detail!$O$8:$DF$8,0)), INDIRECT(dshbrdrng_bruttogewinn),"<>Total",INDIRECT(dshbrdrng_bruttogewinn),"<>Subtotal"), SUMIFS(INDEX(INDIRECT(dshbrdrng_bruttogewinn2),0,MATCH(DATE($B51,MONTH(G$49),1),Erfolgsrechnung_Detail!$O$8:$DF$8,0)), INDIRECT(dshbrdrng_bruttogewinn),"<>Total",INDIRECT(dshbrdrng_bruttogewinn),"<>Subtotal")+F51),"") -> 5219.078405 | H51: =IFERROR(SUMIFS(INDEX(INDIRECT(dshbrdrng_umsatzentwicklung2),0,MATCH(DATE($B15,MONTH(H$13),1),Erfolgsrechnung_Detail!$O$8:$DF$8,0)), INDIRECT(dshbrdrng_umsatzentwicklung),"<>Total",INDIRECT(dshbrdrng_umsatzentwicklung),"<>Subtotal") + IF(INDEX(tblUmsatzFltr[Nr],MATCH(filter_umsatz,tblUmsatzFltr[Umsatz Filter],0)) = 1, SUMIFS(INDEX(INDIRECT(dshbrdrng_bruttogewinn2),0,MATCH(DATE($B51,MONTH(H$49),1),Erfolgsrechnung_Detail!$O$8:$DF$8,0)), INDIRECT(dshbrdrng_bruttogewinn),"<>Total",INDIRECT(dshbrdrng_bruttogewinn),"<>Subtotal"), SUMIFS(INDEX(INDIRECT(dshbrdrng_bruttogewinn2),0,MATCH(DATE($B51,MONTH(H$49),1),Erfolgsrechnung_Detail!$O$8:$DF$8,0)), INDIRECT(dshbrdrng_bruttogewinn),"<>Total",INDIRECT(dshbrdrng_bruttogewinn),"<>Subtotal")+G51),"") -> 4675.023459 | I51: =IFERROR(SUMIFS(INDEX(INDIRECT(dshbrdrng_umsatzentwicklung2),0,MATCH(DATE($B15,MONTH(I$13),1),Erfolgsrechnung_Detail!$O$8:$DF$8,0)), INDIRECT(dshbrdrng_umsatzentwicklung),"<>Total",INDIRECT(dshbrdrng_umsatzentwicklung),"<>Subtotal") + IF(INDEX(tblUmsatzFltr[Nr],MATCH(filter_umsatz,tblUmsatzFltr[Umsatz Filter],0)) = 1, SUMIFS(INDEX(INDIRECT(dshbrdrng_bruttogewinn2),0,MATCH(DATE($B51,MONTH(I$49),1),Erfolgsrechnung_Detail!$O$8:$DF$8,0)), INDIRECT(dshbrdrng_bruttogewinn),"<>Total",INDIRECT(dshbrdrng_bruttogewinn),"<>Subtotal"), SUMIFS(INDEX(INDIRECT(dshbrdrng_bruttogewinn2),0,MATCH(DATE($B51,MONTH(I$49),1),Erfolgsrechnung_Detail!$O$8:$DF$8,0)), INDIRECT(dshbrdrng_bruttogewinn),"<>Total",INDIRECT(dshbrdrng_bruttogewinn),"<>Subtotal")+H51),"") -> 2764.194459 | J51: =IFERROR(SUMIFS(INDEX(INDIRECT(dshbrdrng_umsatzentwicklung2),0,MATCH(DATE($B15,MONTH(J$13),1),Erfolgsrechnung_Detail!$O$8:$DF$8,0)), INDIRECT(dshbrdrng_umsatzentwicklung),"<>Total",INDIRECT(dshbrdrng_umsatzentwicklung),"<>Subtotal") + IF(INDEX(tblUmsatzFltr[Nr],MATCH(filter_umsatz,tblUmsatzFltr[Umsatz Filter],0)) = 1, SUMIFS(INDEX(INDIRECT(dshbrdrng_bruttogewinn2),0,MATCH(DATE($B51,MONTH(J$49),1),Erfolgsrechnung_Detail!$O$8:$DF$8,0)), INDIRECT(dshbrdrng_bruttogewinn),"<>Total",INDIRECT(dshbrdrng_bruttogewinn),"<>Subtotal"), SUMIFS(INDEX(INDIRECT(dshbrdrng_bruttogewinn2),0,MATCH(DATE($B51,MONTH(J$49),1),Erfolgsrechnung_Detail!$O$8:$DF$8,0)), INDIRECT(dshbrdrng_bruttogewinn),"<>Total",INDIRECT(dshbrdrng_bruttogewinn),"<>Subtotal")+I51),"") -> 9488.406068 | K51: =IFERROR(SUMIFS(INDEX(INDIRECT(dshbrdrng_umsatzentwicklung2),0,MATCH(DATE($B15,MONTH(K$13),1),Erfolgsrechnung_Detail!$O$8:$DF$8,0)), INDIRECT(dshbrdrng_umsatzentwicklung),"<>Total",INDIRECT(dshbrdrng_umsatzentwicklung),"<>Subtotal") + IF(INDEX(tblUmsatzFltr[Nr],MATCH(filter_umsatz,tblUmsatzFltr[Umsatz Filter],0)) = 1, SUMIFS(INDEX(INDIRECT(dshbrdrng_bruttogewinn2),0,MATCH(DATE($B51,MONTH(K$49),1),Erfolgsrechnung_Detail!$O$8:$DF$8,0)), INDIRECT(dshbrdrng_bruttogewinn),"<>Total",INDIRECT(dshbrdrng_bruttogewinn),"<>Subtotal"), SUMIFS(INDEX(INDIRECT(dshbrdrng_bruttogewinn2),0,MATCH(DATE($B51,MONTH(K$49),1),Erfolgsrechnung_Detail!$O$8:$DF$8,0)), INDIRECT(dshbrdrng_bruttogewinn),"<>Total",INDIRECT(dshbrdrng_bruttogewinn),"<>Subtotal")+J51),"") -> 4976.03098 | L51: =IFERROR(SUMIFS(INDEX(INDIRECT(dshbrdrng_umsatzentwicklung2),0,MATCH(DATE($B15,MONTH(L$13),1),Erfolgsrechnung_Detail!$O$8:$DF$8,0)), INDIRECT(dshbrdrng_umsatzentwicklung),"<>Total",INDIRECT(dshbrdrng_umsatzentwicklung),"<>Subtotal") + IF(INDEX(tblUmsatzFltr[Nr],MATCH(filter_umsatz,tblUmsatzFltr[Umsatz Filter],0)) = 1, SUMIFS(INDEX(INDIRECT(dshbrdrng_bruttogewinn2),0,MATCH(DATE($B51,MONTH(L$49),1),Erfolgsrechnung_Detail!$O$8:$DF$8,0)), INDIRECT(dshbrdrng_bruttogewinn),"<>Total",INDIRECT(dshbrdrng_bruttogewinn),"<>Subtotal"), SUMIFS(INDEX(INDIRECT(dshbrdrng_bruttogewinn2),0,MATCH(DATE($B51,MONTH(L$49),1),Erfolgsrechnung_Detail!$O$8:$DF$8,0)), INDIRECT(dshbrdrng_bruttogewinn),"<>Total",INDIRECT(dshbrdrng_bruttogewinn),"<>Subtotal")+K51),"") -> 7119.056223 | M51: =IFERROR(SUMIFS(INDEX(INDIRECT(dshbrdrng_umsatzentwicklung2),0,MATCH(DATE($B15,MONTH(M$13),1),Erfolgsrechnung_Detail!$O$8:$DF$8,0)), INDIRECT(dshbrdrng_umsatzentwicklung),"<>Total",INDIRECT(dshbrdrng_umsatzentwicklung),"<>Subtotal") + IF(INDEX(tblUmsatzFltr[Nr],MATCH(filter_umsatz,tblUmsatzFltr[Umsatz Filter],0)) = 1, SUMIFS(INDEX(INDIRECT(dshbrdrng_bruttogewinn2),0,MATCH(DATE($B51,MONTH(M$49),1),Erfolgsrechnung_Detail!$O$8:$DF$8,0)), INDIRECT(dshbrdrng_bruttogewinn),"<>Total",INDIRECT(dshbrdrng_bruttogewinn),"<>Subtotal"), SUMIFS(INDEX(INDIRECT(dshbrdrng_bruttogewinn2),0,MATCH(DATE($B51,MONTH(M$49),1),Erfolgsrechnung_Detail!$O$8:$DF$8,0)), INDIRECT(dshbrdrng_bruttogewinn),"<>Total",INDIRECT(dshbrdrng_bruttogewinn),"<>Subtotal")+L51),"") -> 8132.682614 | N51: =IFERROR(SUMIFS(INDEX(INDIRECT(dshbrdrng_umsatzentwicklung2),0,MATCH(DATE($B15,MONTH(N$13),1),Erfolgsrechnung_Detail!$O$8:$DF$8,0)), INDIRECT(dshbrdrng_umsatzentwicklung),"<>Total",INDIRECT(dshbrdrng_umsatzentwicklung),"<>Subtotal") + IF(INDEX(tblUmsatzFltr[Nr],MATCH(filter_umsatz,tblUmsatzFltr[Umsatz Filter],0)) = 1, SUMIFS(INDEX(INDIRECT(dshbrdrng_bruttogewinn2),0,MATCH(DATE($B51,MONTH(N$49),1),Erfolgsrechnung_Detail!$O$8:$DF$8,0)), INDIRECT(dshbrdrng_bruttogewinn),"<>Total",INDIRECT(dshbrdrng_bruttogewinn),"<>Subtotal"), SUMIFS(INDEX(INDIRECT(dshbrdrng_bruttogewinn2),0,MATCH(DATE($B51,MONTH(N$49),1),Erfolgsrechnung_Detail!$O$8:$DF$8,0)), INDIRECT(dshbrdrng_bruttogewinn),"<>Total",INDIRECT(dshbrdrng_bruttogewinn),"<>Subtotal")+M51),"") -> 13509.22535 | P51: =IFERROR(IF( INDEX(tblUmsatzFltr[Nr],MATCH(filter_umsatz,tblUmsatzFltr[Umsatz Filter],0))=1, SUM($C51:INDEX($C51:$N51,1,selectedmonat_num)), INDEX($C51:$N51,0,MATCH(monat,tblMonate[Monate],0))),"") -> 73686.67022 | Q51: =IFERROR( IF(INDEX(tblUmsatzFltr[Nr],MATCH(filter_umsatz,tblUmsatzFltr[Umsatz Filter],0))=1, SUM(C51:$N51),N51),"") -> 73686.67022
B52: 2016 | C52: =IFERROR(C16+ SUMIFS(INDEX(INDIRECT(dshbrdrng_bruttogewinn2),0,MATCH(DATE($B52,MONTH(C$49),1),Erfolgsrechnung_Detail!$O$8:$DF$8,0)), INDIRECT(dshbrdrng_bruttogewinn),"<>Total",INDIRECT(dshbrdrng_bruttogewinn),"<>Subtotal"), "") -> 2738.848093 | D52: =IFERROR(SUMIFS(INDEX(INDIRECT(dshbrdrng_umsatzentwicklung2),0,MATCH(DATE($B16,MONTH(D$13),1),Erfolgsrechnung_Detail!$O$8:$DF$8,0)), INDIRECT(dshbrdrng_umsatzentwicklung),"<>Total",INDIRECT(dshbrdrng_umsatzentwicklung),"<>Subtotal") + IF(INDEX(tblUmsatzFltr[Nr],MATCH(filter_umsatz,tblUmsatzFltr[Umsatz Filter],0)) = 1, SUMIFS(INDEX(INDIRECT(dshbrdrng_bruttogewinn2),0,MATCH(DATE($B52,MONTH(D$49),1),Erfolgsrechnung_Detail!$O$8:$DF$8,0)), INDIRECT(dshbrdrng_bruttogewinn),"<>Total",INDIRECT(dshbrdrng_bruttogewinn),"<>Subtotal"), SUMIFS(INDEX(INDIRECT(dshbrdrng_bruttogewinn2),0,MATCH(DATE($B52,MONTH(D$49),1),Erfolgsrechnung_Detail!$O$8:$DF$8,0)), INDIRECT(dshbrdrng_bruttogewinn),"<>Total",INDIRECT(dshbrdrng_bruttogewinn),"<>Subtotal")+C52),"") -> 15281.90417 | E52: =IFERROR(SUMIFS(INDEX(INDIRECT(dshbrdrng_umsatzentwicklung2),0,MATCH(DATE($B16,MONTH(E$13),1),Erfolgsrechnung_Detail!$O$8:$DF$8,0)), INDIRECT(dshbrdrng_umsatzentwicklung),"<>Total",INDIRECT(dshbrdrng_umsatzentwicklung),"<>Subtotal") + IF(INDEX(tblUmsatzFltr[Nr],MATCH(filter_umsatz,tblUmsatzFltr[Umsatz Filter],0)) = 1, SUMIFS(INDEX(INDIRECT(dshbrdrng_bruttogewinn2),0,MATCH(DATE($B52,MONTH(E$49),1),Erfolgsrechnung_Detail!$O$8:$DF$8,0)), INDIRECT(dshbrdrng_bruttogewinn),"<>Total",INDIRECT(dshbrdrng_bruttogewinn),"<>Subtotal"), SUMIFS(INDEX(INDIRECT(dshbrdrng_bruttogewinn2),0,MATCH(DATE($B52,MONTH(E$49),1),Erfolgsrechnung_Detail!$O$8:$DF$8,0)), INDIRECT(dshbrdrng_bruttogewinn),"<>Total",INDIRECT(dshbrdrng_bruttogewinn),"<>Subtotal")+D52),"") -> 6156.163064 | F52: =IFERROR(SUMIFS(INDEX(INDIRECT(dshbrdrng_umsatzentwicklung2),0,MATCH(DATE($B16,MONTH(F$13),1),Erfolgsrechnung_Detail!$O$8:$DF$8,0)), INDIRECT(dshbrdrng_umsatzentwicklung),"<>Total",INDIRECT(dshbrdrng_umsatzentwicklung),"<>Subtotal") + IF(INDEX(tblUmsatzFltr[Nr],MATCH(filter_umsatz,tblUmsatzFltr[Umsatz Filter],0)) = 1, SUMIFS(INDEX(INDIRECT(dshbrdrng_bruttogewinn2),0,MATCH(DATE($B52,MONTH(F$49),1),Erfolgsrechnung_Detail!$O$8:$DF$8,0)), INDIRECT(dshbrdrng_bruttogewinn),"<>Total",INDIRECT(dshbrdrng_bruttogewinn),"<>Subtotal"), SUMIFS(INDEX(INDIRECT(dshbrdrng_bruttogewinn2),0,MATCH(DATE($B52,MONTH(F$49),1),Erfolgsrechnung_Detail!$O$8:$DF$8,0)), INDIRECT(dshbrdrng_bruttogewinn),"<>Total",INDIRECT(dshbrdrng_bruttogewinn),"<>Subtotal")+E52),"") -> 9280.277322 | G52: =IFERROR(SUMIFS(INDEX(INDIRECT(dshbrdrng_umsatzentwicklung2),0,MATCH(DATE($B16,MONTH(G$13),1),Erfolgsrechnung_Detail!$O$8:$DF$8,0)), INDIRECT(dshbrdrng_umsatzentwicklung),"<>Total",INDIRECT(dshbrdrng_umsatzentwicklung),"<>Subtotal") + IF(INDEX(tblUmsatzFltr[Nr],MATCH(filter_umsatz,tblUmsatzFltr[Umsatz Filter],0)) = 1, SUMIFS(INDEX(INDIRECT(dshbrdrng_bruttogewinn2),0,MATCH(DATE($B52,MONTH(G$49),1),Erfolgsrechnung_Detail!$O$8:$DF$8,0)), INDIRECT(dshbrdrng_bruttogewinn),"<>Total",INDIRECT(dshbrdrng_bruttogewinn),"<>Subtotal"), SUMIFS(INDEX(INDIRECT(dshbrdrng_bruttogewinn2),0,MATCH(DATE($B52,MONTH(G$49),1),Erfolgsrechnung_Detail!$O$8:$DF$8,0)), INDIRECT(dshbrdrng_bruttogewinn),"<>Total",INDIRECT(dshbrdrng_bruttogewinn),"<>Subtotal")+F52),"") -> 11596.80675 | H52: =IFERROR(SUMIFS(INDEX(INDIRECT(dshbrdrng_umsatzentwicklung2),0,MATCH(DATE($B16,MONTH(H$13),1),Erfolgsrechnung_Detail!$O$8:$DF$8,0)), INDIRECT(dshbrdrng_umsatzentwicklung),"<>Total",INDIRECT(dshbrdrng_umsatzentwicklung),"<>Subtotal") + IF(INDEX(tblUmsatzFltr[Nr],MATCH(filter_umsatz,tblUmsatzFltr[Umsatz Filter],0)) = 1, SUMIFS(INDEX(INDIRECT(dshbrdrng_bruttogewinn2),0,MATCH(DATE($B52,MONTH(H$49),1),Erfolgsrechnung_Detail!$O$8:$DF$8,0)), INDIRECT(dshbrdrng_bruttogewinn),"<>Total",INDIRECT(dshbrdrng_bruttogewinn),"<>Subtotal"), SUMIFS(INDEX(INDIRECT(dshbrdrng_bruttogewinn2),0,MATCH(DATE($B52,MONTH(H$49),1),Erfolgsrechnung_Detail!$O$8:$DF$8,0)), INDIRECT(dshbrdrng_bruttogewinn),"<>Total",INDIRECT(dshbrdrng_bruttogewinn),"<>Subtotal")+G52),"") -> 15123.59266 | I52: =IFERROR(SUMIFS(INDEX(INDIRECT(dshbrdrng_umsatzentwicklung2),0,MATCH(DATE($B16,MONTH(I$13),1),Erfolgsrechnung_Detail!$O$8:$DF$8,0)), INDIRECT(dshbrdrng_umsatzentwicklung),"<>Total",INDIRECT(dshbrdrng_umsatzentwicklung),"<>Subtotal") + IF(INDEX(tblUmsatzFltr[Nr],MATCH(filter_umsatz,tblUmsatzFltr[Umsatz Filter],0)) = 1, SUMIFS(INDEX(INDIRECT(dshbrdrng_bruttogewinn2),0,MATCH(DATE($B52,MONTH(I$49),1),Erfolgsrechnung_Detail!$O$8:$DF$8,0)), INDIRECT(dshbrdrng_bruttogewinn),"<>Total",INDIRECT(dshbrdrng_bruttogewinn),"<>Subtotal"), SUMIFS(INDEX(INDIRECT(dshbrdrng_bruttogewinn2),0,MATCH(DATE($B52,MONTH(I$49),1),Erfolgsrechnung_Detail!$O$8:$DF$8,0)), INDIRECT(dshbrdrng_bruttogewinn),"<>Total",INDIRECT(dshbrdrng_bruttogewinn),"<>Subtotal")+H52),"") -> 8104.521398 | J52: =IFERROR(SUMIFS(INDEX(INDIRECT(dshbrdrng_umsatzentwicklung2),0,MATCH(DATE($B16,MONTH(J$13),1),Erfolgsrechnung_Detail!$O$8:$DF$8,0)), INDIRECT(dshbrdrng_umsatzentwicklung),"<>Total",INDIRECT(dshbrdrng_umsatzentwicklung),"<>Subtotal") + IF(INDEX(tblUmsatzFltr[Nr],MATCH(filter_umsatz,tblUmsatzFltr[Umsatz Filter],0)) = 1, SUMIFS(INDEX(INDIRECT(dshbrdrng_bruttogewinn2),0,MATCH(DATE($B52,MONTH(J$49),1),Erfolgsrechnung_Detail!$O$8:$DF$8,0)), INDIRECT(dshbrdrng_bruttogewinn),"<>Total",INDIRECT(dshbrdrng_bruttogewinn),"<>Subtotal"), SUMIFS(INDEX(INDIRECT(dshbrdrng_bruttogewinn2),0,MATCH(DATE($B52,MONTH(J$49),1),Erfolgsrechnung_Detail!$O$8:$DF$8,0)), INDIRECT(dshbrdrng_bruttogewinn),"<>Total",INDIRECT(dshbrdrng_bruttogewinn),"<>Subtotal")+I52),"") -> 9127.184865 | K52: =IFERROR(SUMIFS(INDEX(INDIRECT(dshbrdrng_umsatzentwicklung2),0,MATCH(DATE($B16,MONTH(K$13),1),Erfolgsrechnung_Detail!$O$8:$DF$8,0)), INDIRECT(dshbrdrng_umsatzentwicklung),"<>Total",INDIRECT(dshbrdrng_umsatzentwicklung),"<>Subtotal") + IF(INDEX(tblUmsatzFltr[Nr],MATCH(filter_umsatz,tblUmsatzFltr[Umsatz Filter],0)) = 1, SUMIFS(INDEX(INDIRECT(dshbrdrng_bruttogewinn2),0,MATCH(DATE($B52,MONTH(K$49),1),Erfolgsrechnung_Detail!$O$8:$DF$8,0)), INDIRECT(dshbrdrng_bruttogewinn),"<>Total",INDIRECT(dshbrdrng_bruttogewinn),"<>Subtotal"), SUMIFS(INDEX(INDIRECT(dshbrdrng_bruttogewinn2),0,MATCH(DATE($B52,MONTH(K$49),1),Erfolgsrechnung_Detail!$O$8:$DF$8,0)), INDIRECT(dshbrdrng_bruttogewinn),"<>Total",INDIRECT(dshbrdrng_bruttogewinn),"<>Subtotal")+J52),"") -> 13389.8036 | L52: =IFERROR(SUMIFS(INDEX(INDIRECT(dshbrdrng_umsatzentwicklung2),0,MATCH(DATE($B16,MONTH(L$13),1),Erfolgsrechnung_Detail!$O$8:$DF$8,0)), INDIRECT(dshbrdrng_umsatzentwicklung),"<>Total",INDIRECT(dshbrdrng_umsatzentwicklung),"<>Subtotal") + IF(INDEX(tblUmsatzFltr[Nr],MATCH(filter_umsatz,tblUmsatzFltr[Umsatz Filter],0)) = 1, SUMIFS(INDEX(INDIRECT(dshbrdrng_bruttogewinn2),0,MATCH(DATE($B52,MONTH(L$49),1),Erfolgsrechnung_Detail!$O$8:$DF$8,0)), INDIRECT(dshbrdrng_bruttogewinn),"<>Total",INDIRECT(dshbrdrng_bruttogewinn),"<>Subtotal"), SUMIFS(INDEX(INDIRECT(dshbrdrng_bruttogewinn2),0,MATCH(DATE($B52,MONTH(L$49),1),Erfolgsrechnung_Detail!$O$8:$DF$8,0)), INDIRECT(dshbrdrng_bruttogewinn),"<>Total",INDIRECT(dshbrdrng_bruttogewinn),"<>Subtotal")+K52),"") -> 8628.732667 | M52: =IFERROR(SUMIFS(INDEX(INDIRECT(dshbrdrng_umsatzentwicklung2),0,MATCH(DATE($B16,MONTH(M$13),1),Erfolgsrechnung_Detail!$O$8:$DF$8,0)), INDIRECT(dshbrdrng_umsatzentwicklung),"<>Total",INDIRECT(dshbrdrng_umsatzentwicklung),"<>Subtotal") + IF(INDEX(tblUmsatzFltr[Nr],MATCH(filter_umsatz,tblUmsatzFltr[Umsatz Filter],0)) = 1, SUMIFS(INDEX(INDIRECT(dshbrdrng_bruttogewinn2),0,MATCH(DATE($B52,MONTH(M$49),1),Erfolgsrechnung_Detail!$O$8:$DF$8,0)), INDIRECT(dshbrdrng_bruttogewinn),"<>Total",INDIRECT(dshbrdrng_bruttogewinn),"<>Subtotal"), SUMIFS(INDEX(INDIRECT(dshbrdrng_bruttogewinn2),0,MATCH(DATE($B52,MONTH(M$49),1),Erfolgsrechnung_Detail!$O$8:$DF$8,0)), INDIRECT(dshbrdrng_bruttogewinn),"<>Total",INDIRECT(dshbrdrng_bruttogewinn),"<>Subtotal")+L52),"") -> 12483.03865 | N52: =IFERROR(SUMIFS(INDEX(INDIRECT(dshbrdrng_umsatzentwicklung2),0,MATCH(DATE($B16,MONTH(N$13),1),Erfolgsrechnung_Detail!$O$8:$DF$8,0)), INDIRECT(dshbrdrng_umsatzentwicklung),"<>Total",INDIRECT(dshbrdrng_umsatzentwicklung),"<>Subtotal") + IF(INDEX(tblUmsatzFltr[Nr],MATCH(filter_umsatz,tblUmsatzFltr[Umsatz Filter],0)) = 1, SUMIFS(INDEX(INDIRECT(dshbrdrng_bruttogewinn2),0,MATCH(DATE($B52,MONTH(N$49),1),Erfolgsrechnung_Detail!$O$8:$DF$8,0)), INDIRECT(dshbrdrng_bruttogewinn),"<>Total",INDIRECT(dshbrdrng_bruttogewinn),"<>Subtotal"), SUMIFS(INDEX(INDIRECT(dshbrdrng_bruttogewinn2),0,MATCH(DATE($B52,MONTH(N$49),1),Erfolgsrechnung_Detail!$O$8:$DF$8,0)), INDIRECT(dshbrdrng_bruttogewinn),"<>Total",INDIRECT(dshbrdrng_bruttogewinn),"<>Subtotal")+M52),"") -> 15108.51034 | P52: =IFERROR(IF( INDEX(tblUmsatzFltr[Nr],MATCH(filter_umsatz,tblUmsatzFltr[Umsatz Filter],0))=1, SUM($C52:INDEX($C52:$N52,1,selectedmonat_num)), INDEX($C52:$N52,0,MATCH(monat,tblMonate[Monate],0))),"") -> 127019.3836 | Q52: =IFERROR( IF(INDEX(tblUmsatzFltr[Nr],MATCH(filter_umsatz,tblUmsatzFltr[Umsatz Filter],0))=1, SUM(C52:$N52),N52),"") -> 127019.3836
B53: 2017 | C53: =IFERROR(C17+ SUMIFS(INDEX(INDIRECT(dshbrdrng_bruttogewinn2),0,MATCH(DATE($B53,MONTH(C$49),1),Erfolgsrechnung_Detail!$O$8:$DF$8,0)), INDIRECT(dshbrdrng_bruttogewinn),"<>Total",INDIRECT(dshbrdrng_bruttogewinn),"<>Subtotal"), "") -> 19690.89336 | D53: =IFERROR(SUMIFS(INDEX(INDIRECT(dshbrdrng_umsatzentwicklung2),0,MATCH(DATE($B17,MONTH(D$13),1),Erfolgsrechnung_Detail!$O$8:$DF$8,0)), INDIRECT(dshbrdrng_umsatzentwicklung),"<>Total",INDIRECT(dshbrdrng_umsatzentwicklung),"<>Subtotal") + IF(INDEX(tblUmsatzFltr[Nr],MATCH(filter_umsatz,tblUmsatzFltr[Umsatz Filter],0)) = 1, SUMIFS(INDEX(INDIRECT(dshbrdrng_bruttogewinn2),0,MATCH(DATE($B53,MONTH(D$49),1),Erfolgsrechnung_Detail!$O$8:$DF$8,0)), INDIRECT(dshbrdrng_bruttogewinn),"<>Total",INDIRECT(dshbrdrng_bruttogewinn),"<>Subtotal"), SUMIFS(INDEX(INDIRECT(dshbrdrng_bruttogewinn2),0,MATCH(DATE($B53,MONTH(D$49),1),Erfolgsrechnung_Detail!$O$8:$DF$8,0)), INDIRECT(dshbrdrng_bruttogewinn),"<>Total",INDIRECT(dshbrdrng_bruttogewinn),"<>Subtotal")+C53),"") -> 17057.94174 | E53: =IFERROR(SUMIFS(INDEX(INDIRECT(dshbrdrng_umsatzentwicklung2),0,MATCH(DATE($B17,MONTH(E$13),1),Erfolgsrechnung_Detail!$O$8:$DF$8,0)), INDIRECT(dshbrdrng_umsatzentwicklung),"<>Total",INDIRECT(dshbrdrng_umsatzentwicklung),"<>Subtotal") + IF(INDEX(tblUmsatzFltr[Nr],MATCH(filter_umsatz,tblUmsatzFltr[Umsatz Filter],0)) = 1, SUMIFS(INDEX(INDIRECT(dshbrdrng_bruttogewinn2),0,MATCH(DATE($B53,MONTH(E$49),1),Erfolgsrechnung_Detail!$O$8:$DF$8,0)), INDIRECT(dshbrdrng_bruttogewinn),"<>Total",INDIRECT(dshbrdrng_bruttogewinn),"<>Subtotal"), SUMIFS(INDEX(INDIRECT(dshbrdrng_bruttogewinn2),0,MATCH(DATE($B53,MONTH(E$49),1),Erfolgsrechnung_Detail!$O$8:$DF$8,0)), INDIRECT(dshbrdrng_bruttogewinn),"<>Total",INDIRECT(dshbrdrng_bruttogewinn),"<>Subtotal")+D53),"") -> 14539.23032 | F53: =IFERROR(SUMIFS(INDEX(INDIRECT(dshbrdrng_umsatzentwicklung2),0,MATCH(DATE($B17,MONTH(F$13),1),Erfolgsrechnung_Detail!$O$8:$DF$8,0)), INDIRECT(dshbrdrng_umsatzentwicklung),"<>Total",INDIRECT(dshbrdrng_umsatzentwicklung),"<>Subtotal") + IF(INDEX(tblUmsatzFltr[Nr],MATCH(filter_umsatz,tblUmsatzFltr[Umsatz Filter],0)) = 1, SUMIFS(INDEX(INDIRECT(dshbrdrng_bruttogewinn2),0,MATCH(DATE($B53,MONTH(F$49),1),Erfolgsrechnung_Detail!$O$8:$DF$8,0)), INDIRECT(dshbrdrng_bruttogewinn),"<>Total",INDIRECT(dshbrdrng_bruttogewinn),"<>Subtotal"), SUMIFS(INDEX(INDIRECT(dshbrdrng_bruttogewinn2),0,MATCH(DATE($B53,MONTH(F$49),1),Erfolgsrechnung_Detail!$O$8:$DF$8,0)), INDIRECT(dshbrdrng_bruttogewinn),"<>Total",INDIRECT(dshbrdrng_bruttogewinn),"<>Subtotal")+E53),"") -> 23102.22563 | G53: =IFERROR(SUMIFS(INDEX(INDIRECT(dshbrdrng_umsatzentwicklung2),0,MATCH(DATE($B17,MONTH(G$13),1),Erfolgsrechnung_Detail!$O$8:$DF$8,0)), INDIRECT(dshbrdrng_umsatzentwicklung),"<>Total",INDIRECT(dshbrdrng_umsatzentwicklung),"<>Subtotal") + IF(INDEX(tblUmsatzFltr[Nr],MATCH(filter_umsatz,tblUmsatzFltr[Umsatz Filter],0)) = 1, SUMIFS(INDEX(INDIRECT(dshbrdrng_bruttogewinn2),0,MATCH(DATE($B53,MONTH(G$49),1),Erfolgsrechnung_Detail!$O$8:$DF$8,0)), INDIRECT(dshbrdrng_bruttogewinn),"<>Total",INDIRECT(dshbrdrng_bruttogewinn),"<>Subtotal"), SUMIFS(INDEX(INDIRECT(dshbrdrng_bruttogewinn2),0,MATCH(DATE($B53,MONTH(G$49),1),Erfolgsrechnung_Detail!$O$8:$DF$8,0)), INDIRECT(dshbrdrng_bruttogewinn),"<>Total",INDIRECT(dshbrdrng_bruttogewinn),"<>Subtotal")+F53),"") -> 22490.01036 | H53: =IFERROR(SUMIFS(INDEX(INDIRECT(dshbrdrng_umsatzentwicklung2),0,MATCH(DATE($B17,MONTH(H$13),1),Erfolgsrechnung_Detail!$O$8:$DF$8,0)), INDIRECT(dshbrdrng_umsatzentwicklung),"<>Total",INDIRECT(dshbrdrng_umsatzentwicklung),"<>Subtotal") + IF(INDEX(tblUmsatzFltr[Nr],MATCH(filter_umsatz,tblUmsatzFltr[Umsatz Filter],0)) = 1, SUMIFS(INDEX(INDIRECT(dshbrdrng_bruttogewinn2),0,MATCH(DATE($B53,MONTH(H$49),1),Erfolgsrechnung_Detail!$O$8:$DF$8,0)), INDIRECT(dshbrdrng_bruttogewinn),"<>Total",INDIRECT(dshbrdrng_bruttogewinn),"<>Subtotal"), SUMIFS(INDEX(INDIRECT(dshbrdrng_bruttogewinn2),0,MATCH(DATE($B53,MONTH(H$49),1),Erfolgsrechnung_Detail!$O$8:$DF$8,0)), INDIRECT(dshbrdrng_bruttogewinn),"<>Total",INDIRECT(dshbrdrng_bruttogewinn),"<>Subtotal")+G53),"") -> 15095.19515 | I53: =IFERROR(SUMIFS(INDEX(INDIRECT(dshbrdrng_umsatzentwicklung2),0,MATCH(DATE($B17,MONTH(I$13),1),Erfolgsrechnung_Detail!$O$8:$DF$8,0)), INDIRECT(dshbrdrng_umsatzentwicklung),"<>Total",INDIRECT(dshbrdrng_umsatzentwicklung),"<>Subtotal") + IF(INDEX(tblUmsatzFltr[Nr],MATCH(filter_umsatz,tblUmsatzFltr[Umsatz Filter],0)) = 1, SUMIFS(INDEX(INDIRECT(dshbrdrng_bruttogewinn2),0,MATCH(DATE($B53,MONTH(I$49),1),Erfolgsrechnung_Detail!$O$8:$DF$8,0)), INDIRECT(dshbrdrng_bruttogewinn),"<>Total",INDIRECT(dshbrdrng_bruttogewinn),"<>Subtotal"), SUMIFS(INDEX(INDIRECT(dshbrdrng_bruttogewinn2),0,MATCH(DATE($B53,MONTH(I$49),1),Erfolgsrechnung_Detail!$O$8:$DF$8,0)), INDIRECT(dshbrdrng_bruttogewinn),"<>Total",INDIRECT(dshbrdrng_bruttogewinn),"<>Subtotal")+H53),"") -> 24712.94705 | J53: =IFERROR(SUMIFS(INDEX(INDIRECT(dshbrdrng_umsatzentwicklung2),0,MATCH(DATE($B17,MONTH(J$13),1),Erfolgsrechnung_Detail!$O$8:$DF$8,0)), INDIRECT(dshbrdrng_umsatzentwicklung),"<>Total",INDIRECT(dshbrdrng_umsatzentwicklung),"<>Subtotal") + IF(INDEX(tblUmsatzFltr[Nr],MATCH(filter_umsatz,tblUmsatzFltr[Umsatz Filter],0)) = 1, SUMIFS(INDEX(INDIRECT(dshbrdrng_bruttogewinn2),0,MATCH(DATE($B53,MONTH(J$49),1),Erfolgsrechnung_Detail!$O$8:$DF$8,0)), INDIRECT(dshbrdrng_bruttogewinn),"<>Total",INDIRECT(dshbrdrng_bruttogewinn),"<>Subtotal"), SUMIFS(INDEX(INDIRECT(dshbrdrng_bruttogewinn2),0,MATCH(DATE($B53,MONTH(J$49),1),Erfolgsrechnung_Detail!$O$8:$DF$8,0)), INDIRECT(dshbrdrng_bruttogewinn),"<>Total",INDIRECT(dshbrdrng_bruttogewinn),"<>Subtotal")+I53),"") -> 26677.06195 | K53: =IFERROR(SUMIFS(INDEX(INDIRECT(dshbrdrng_umsatzentwicklung2),0,MATCH(DATE($B17,MONTH(K$13),1),Erfolgsrechnung_Detail!$O$8:$DF$8,0)), INDIRECT(dshbrdrng_umsatzentwicklung),"<>Total",INDIRECT(dshbrdrng_umsatzentwicklung),"<>Subtotal") + IF(INDEX(tblUmsatzFltr[Nr],MATCH(filter_umsatz,tblUmsatzFltr[Umsatz Filter],0)) = 1, SUMIFS(INDEX(INDIRECT(dshbrdrng_bruttogewinn2),0,MATCH(DATE($B53,MONTH(K$49),1),Erfolgsrechnung_Detail!$O$8:$DF$8,0)), INDIRECT(dshbrdrng_bruttogewinn),"<>Total",INDIRECT(dshbrdrng_bruttogewinn),"<>Subtotal"), SUMIFS(INDEX(INDIRECT(dshbrdrng_bruttogewinn2),0,MATCH(DATE($B53,MONTH(K$49),1),Erfolgsrechnung_Detail!$O$8:$DF$8,0)), INDIRECT(dshbrdrng_bruttogewinn),"<>Total",INDIRECT(dshbrdrng_bruttogewinn),"<>Subtotal")+J53),"") -> 22874.18176 | L53: =IFERROR(SUMIFS(INDEX(INDIRECT(dshbrdrng_umsatzentwicklung2),0,MATCH(DATE($B17,MONTH(L$13),1),Erfolgsrechnung_Detail!$O$8:$DF$8,0)), INDIRECT(dshbrdrng_umsatzentwicklung),"<>Total",INDIRECT(dshbrdrng_umsatzentwicklung),"<>Subtotal") + IF(INDEX(tblUmsatzFltr[Nr],MATCH(filter_umsatz,tblUmsatzFltr[Umsatz Filter],0)) = 1, SUMIFS(INDEX(INDIRECT(dshbrdrng_bruttogewinn2),0,MATCH(DATE($B53,MONTH(L$49),1),Erfolgsrechnung_Detail!$O$8:$DF$8,0)), INDIRECT(dshbrdrng_bruttogewinn),"<>Total",INDIRECT(dshbrdrng_bruttogewinn),"<>Subtotal"), SUMIFS(INDEX(INDIRECT(dshbrdrng_bruttogewinn2),0,MATCH(DATE($B53,MONTH(L$49),1),Erfolgsrechnung_Detail!$O$8:$DF$8,0)), INDIRECT(dshbrdrng_bruttogewinn),"<>Total",INDIRECT(dshbrdrng_bruttogewinn),"<>Subtotal")+K53),"") -> 33032.2361 | M53: =IFERROR(SUMIFS(INDEX(INDIRECT(dshbrdrng_umsatzentwicklung2),0,MATCH(DATE($B17,MONTH(M$13),1),Erfolgsrechnung_Detail!$O$8:$DF$8,0)), INDIRECT(dshbrdrng_umsatzentwicklung),"<>Total",INDIRECT(dshbrdrng_umsatzentwicklung),"<>Subtotal") + IF(INDEX(tblUmsatzFltr[Nr],MATCH(filter_umsatz,tblUmsatzFltr[Umsatz Filter],0)) = 1, SUMIFS(INDEX(INDIRECT(dshbrdrng_bruttogewinn2),0,MATCH(DATE($B53,MONTH(M$49),1),Erfolgsrechnung_Detail!$O$8:$DF$8,0)), INDIRECT(dshbrdrng_bruttogewinn),"<>Total",INDIRECT(dshbrdrng_bruttogewinn),"<>Subtotal"), SUMIFS(INDEX(INDIRECT(dshbrdrng_bruttogewinn2),0,MATCH(DATE($B53,MONTH(M$49),1),Erfolgsrechnung_Detail!$O$8:$DF$8,0)), INDIRECT(dshbrdrng_bruttogewinn),"<>Total",INDIRECT(dshbrdrng_bruttogewinn),"<>Subtotal")+L53),"") -> 16265.36523 | N53: =IFERROR(SUMIFS(INDEX(INDIRECT(dshbrdrng_umsatzentwicklung2),0,MATCH(DATE($B17,MONTH(N$13),1),Erfolgsrechnung_Detail!$O$8:$DF$8,0)), INDIRECT(dshbrdrng_umsatzentwicklung),"<>Total",INDIRECT(dshbrdrng_umsatzentwicklung),"<>Subtotal") + IF(INDEX(tblUmsatzFltr[Nr],MATCH(filter_umsatz,tblUmsatzFltr[Umsatz Filter],0)) = 1, SUMIFS(INDEX(INDIRECT(dshbrdrng_bruttogewinn2),0,MATCH(DATE($B53,MONTH(N$49),1),Erfolgsrechnung_Detail!$O$8:$DF$8,0)), INDIRECT(dshbrdrng_bruttogewinn),"<>Total",INDIRECT(dshbrdrng_bruttogewinn),"<>Subtotal"), SUMIFS(INDEX(INDIRECT(dshbrdrng_bruttogewinn2),0,MATCH(DATE($B53,MONTH(N$49),1),Erfolgsrechnung_Detail!$O$8:$DF$8,0)), INDIRECT(dshbrdrng_bruttogewinn),"<>Total",INDIRECT(dshbrdrng_bruttogewinn),"<>Subtotal")+M53),"") -> 27018.45071 | P53: =IFERROR(IF( INDEX(tblUmsatzFltr[Nr],MATCH(filter_umsatz,tblUmsatzFltr[Umsatz Filter],0))=1, SUM($C53:INDEX($C53:$N53,1,selectedmonat_num)), INDEX($C53:$N53,0,MATCH(monat,tblMonate[Monate],0))),"") -> 262555.7393 | Q53: =IFERROR( IF(INDEX(tblUmsatzFltr[Nr],MATCH(filter_umsatz,tblUmsatzFltr[Umsatz Filter],0))=1, SUM(C53:$N53),N53),"") -> 262555.7393
B54: 2018 | C54: =IFERROR(C18+ SUMIFS(INDEX(INDIRECT(dshbrdrng_bruttogewinn2),0,MATCH(DATE($B54,MONTH(C$49),1),Erfolgsrechnung_Detail!$O$8:$DF$8,0)), INDIRECT(dshbrdrng_bruttogewinn),"<>Total",INDIRECT(dshbrdrng_bruttogewinn),"<>Subtotal"), "") -> 2738.848093 | D54: =IFERROR(SUMIFS(INDEX(INDIRECT(dshbrdrng_umsatzentwicklung2),0,MATCH(DATE($B18,MONTH(D$13),1),Erfolgsrechnung_Detail!$O$8:$DF$8,0)), INDIRECT(dshbrdrng_umsatzentwicklung),"<>Total",INDIRECT(dshbrdrng_umsatzentwicklung),"<>Subtotal") + IF(INDEX(tblUmsatzFltr[Nr],MATCH(filter_umsatz,tblUmsatzFltr[Umsatz Filter],0)) = 1, SUMIFS(INDEX(INDIRECT(dshbrdrng_bruttogewinn2),0,MATCH(DATE($B54,MONTH(D$49),1),Erfolgsrechnung_Detail!$O$8:$DF$8,0)), INDIRECT(dshbrdrng_bruttogewinn),"<>Total",INDIRECT(dshbrdrng_bruttogewinn),"<>Subtotal"), SUMIFS(INDEX(INDIRECT(dshbrdrng_bruttogewinn2),0,MATCH(DATE($B54,MONTH(D$49),1),Erfolgsrechnung_Detail!$O$8:$DF$8,0)), INDIRECT(dshbrdrng_bruttogewinn),"<>Total",INDIRECT(dshbrdrng_bruttogewinn),"<>Subtotal")+C54),"") -> 15281.90417 | E54: =IFERROR(SUMIFS(INDEX(INDIRECT(dshbrdrng_umsatzentwicklung2),0,MATCH(DATE($B18,MONTH(E$13),1),Erfolgsrechnung_Detail!$O$8:$DF$8,0)), INDIRECT(dshbrdrng_umsatzentwicklung),"<>Total",INDIRECT(dshbrdrng_umsatzentwicklung),"<>Subtotal") + IF(INDEX(tblUmsatzFltr[Nr],MATCH(filter_umsatz,tblUmsatzFltr[Umsatz Filter],0)) = 1, SUMIFS(INDEX(INDIRECT(dshbrdrng_bruttogewinn2),0,MATCH(DATE($B54,MONTH(E$49),1),Erfolgsrechnung_Detail!$O$8:$DF$8,0)), INDIRECT(dshbrdrng_bruttogewinn),"<>Total",INDIRECT(dshbrdrng_bruttogewinn),"<>Subtotal"), SUMIFS(INDEX(INDIRECT(dshbrdrng_bruttogewinn2),0,MATCH(DATE($B54,MONTH(E$49),1),Erfolgsrechnung_Detail!$O$8:$DF$8,0)), INDIRECT(dshbrdrng_bruttogewinn),"<>Total",INDIRECT(dshbrdrng_bruttogewinn),"<>Subtotal")+D54),"") -> 6156.163064 | F54: =IFERROR(SUMIFS(INDEX(INDIRECT(dshbrdrng_umsatzentwicklung2),0,MATCH(DATE($B18,MONTH(F$13),1),Erfolgsrechnung_Detail!$O$8:$DF$8,0)), INDIRECT(dshbrdrng_umsatzentwicklung),"<>Total",INDIRECT(dshbrdrng_umsatzentwicklung),"<>Subtotal") + IF(INDEX(tblUmsatzFltr[Nr],MATCH(filter_umsatz,tblUmsatzFltr[Umsatz Filter],0)) = 1, SUMIFS(INDEX(INDIRECT(dshbrdrng_bruttogewinn2),0,MATCH(DATE($B54,MONTH(F$49),1),Erfolgsrechnung_Detail!$O$8:$DF$8,0)), INDIRECT(dshbrdrng_bruttogewinn),"<>Total",INDIRECT(dshbrdrng_bruttogewinn),"<>Subtotal"), SUMIFS(INDEX(INDIRECT(dshbrdrng_bruttogewinn2),0,MATCH(DATE($B54,MONTH(F$49),1),Erfolgsrechnung_Detail!$O$8:$DF$8,0)), INDIRECT(dshbrdrng_bruttogewinn),"<>Total",INDIRECT(dshbrdrng_bruttogewinn),"<>Subtotal")+E54),"") -> 9280.277322 | G54: =IFERROR(SUMIFS(INDEX(INDIRECT(dshbrdrng_umsatzentwicklung2),0,MATCH(DATE($B18,MONTH(G$13),1),Erfolgsrechnung_Detail!$O$8:$DF$8,0)), INDIRECT(dshbrdrng_umsatzentwicklung),"<>Total",INDIRECT(dshbrdrng_umsatzentwicklung),"<>Subtotal") + IF(INDEX(tblUmsatzFltr[Nr],MATCH(filter_umsatz,tblUmsatzFltr[Umsatz Filter],0)) = 1, SUMIFS(INDEX(INDIRECT(dshbrdrng_bruttogewinn2),0,MATCH(DATE($B54,MONTH(G$49),1),Erfolgsrechnung_Detail!$O$8:$DF$8,0)), INDIRECT(dshbrdrng_bruttogewinn),"<>Total",INDIRECT(dshbrdrng_bruttogewinn),"<>Subtotal"), SUMIFS(INDEX(INDIRECT(dshbrdrng_bruttogewinn2),0,MATCH(DATE($B54,MONTH(G$49),1),Erfolgsrechnung_Detail!$O$8:$DF$8,0)), INDIRECT(dshbrdrng_bruttogewinn),"<>Total",INDIRECT(dshbrdrng_bruttogewinn),"<>Subtotal")+F54),"") -> 11596.80675 | H54: =IFERROR(SUMIFS(INDEX(INDIRECT(dshbrdrng_umsatzentwicklung2),0,MATCH(DATE($B18,MONTH(H$13),1),Erfolgsrechnung_Detail!$O$8:$DF$8,0)), INDIRECT(dshbrdrng_umsatzentwicklung),"<>Total",INDIRECT(dshbrdrng_umsatzentwicklung),"<>Subtotal") + IF(INDEX(tblUmsatzFltr[Nr],MATCH(filter_umsatz,tblUmsatzFltr[Umsatz Filter],0)) = 1, SUMIFS(INDEX(INDIRECT(dshbrdrng_bruttogewinn2),0,MATCH(DATE($B54,MONTH(H$49),1),Erfolgsrechnung_Detail!$O$8:$DF$8,0)), INDIRECT(dshbrdrng_bruttogewinn),"<>Total",INDIRECT(dshbrdrng_bruttogewinn),"<>Subtotal"), SUMIFS(INDEX(INDIRECT(dshbrdrng_bruttogewinn2),0,MATCH(DATE($B54,MONTH(H$49),1),Erfolgsrechnung_Detail!$O$8:$DF$8,0)), INDIRECT(dshbrdrng_bruttogewinn),"<>Total",INDIRECT(dshbrdrng_bruttogewinn),"<>Subtotal")+G54),"") -> 15123.59266 | I54: =IFERROR(SUMIFS(INDEX(INDIRECT(dshbrdrng_umsatzentwicklung2),0,MATCH(DATE($B18,MONTH(I$13),1),Erfolgsrechnung_Detail!$O$8:$DF$8,0)), INDIRECT(dshbrdrng_umsatzentwicklung),"<>Total",INDIRECT(dshbrdrng_umsatzentwicklung),"<>Subtotal") + IF(INDEX(tblUmsatzFltr[Nr],MATCH(filter_umsatz,tblUmsatzFltr[Umsatz Filter],0)) = 1, SUMIFS(INDEX(INDIRECT(dshbrdrng_bruttogewinn2),0,MATCH(DATE($B54,MONTH(I$49),1),Erfolgsrechnung_Detail!$O$8:$DF$8,0)), INDIRECT(dshbrdrng_bruttogewinn),"<>Total",INDIRECT(dshbrdrng_bruttogewinn),"<>Subtotal"), SUMIFS(INDEX(INDIRECT(dshbrdrng_bruttogewinn2),0,MATCH(DATE($B54,MONTH(I$49),1),Erfolgsrechnung_Detail!$O$8:$DF$8,0)), INDIRECT(dshbrdrng_bruttogewinn),"<>Total",INDIRECT(dshbrdrng_bruttogewinn),"<>Subtotal")+H54),"") -> 8104.521398 | J54: =IFERROR(SUMIFS(INDEX(INDIRECT(dshbrdrng_umsatzentwicklung2),0,MATCH(DATE($B18,MONTH(J$13),1),Erfolgsrechnung_Detail!$O$8:$DF$8,0)), INDIRECT(dshbrdrng_umsatzentwicklung),"<>Total",INDIRECT(dshbrdrng_umsatzentwicklung),"<>Subtotal") + IF(INDEX(tblUmsatzFltr[Nr],MATCH(filter_umsatz,tblUmsatzFltr[Umsatz Filter],0)) = 1, SUMIFS(INDEX(INDIRECT(dshbrdrng_bruttogewinn2),0,MATCH(DATE($B54,MONTH(J$49),1),Erfolgsrechnung_Detail!$O$8:$DF$8,0)), INDIRECT(dshbrdrng_bruttogewinn),"<>Total",INDIRECT(dshbrdrng_bruttogewinn),"<>Subtotal"), SUMIFS(INDEX(INDIRECT(dshbrdrng_bruttogewinn2),0,MATCH(DATE($B54,MONTH(J$49),1),Erfolgsrechnung_Detail!$O$8:$DF$8,0)), INDIRECT(dshbrdrng_bruttogewinn),"<>Total",INDIRECT(dshbrdrng_bruttogewinn),"<>Subtotal")+I54),"") -> 9127.184865 | K54: =IFERROR(SUMIFS(INDEX(INDIRECT(dshbrdrng_umsatzentwicklung2),0,MATCH(DATE($B18,MONTH(K$13),1),Erfolgsrechnung_Detail!$O$8:$DF$8,0)), INDIRECT(dshbrdrng_umsatzentwicklung),"<>Total",INDIRECT(dshbrdrng_umsatzentwicklung),"<>Subtotal") + IF(INDEX(tblUmsatzFltr[Nr],MATCH(filter_umsatz,tblUmsatzFltr[Umsatz Filter],0)) = 1, SUMIFS(INDEX(INDIRECT(dshbrdrng_bruttogewinn2),0,MATCH(DATE($B54,MONTH(K$49),1),Erfolgsrechnung_Detail!$O$8:$DF$8,0)), INDIRECT(dshbrdrng_bruttogewinn),"<>Total",INDIRECT(dshbrdrng_bruttogewinn),"<>Subtotal"), SUMIFS(INDEX(INDIRECT(dshbrdrng_bruttogewinn2),0,MATCH(DATE($B54,MONTH(K$49),1),Erfolgsrechnung_Detail!$O$8:$DF$8,0)), INDIRECT(dshbrdrng_bruttogewinn),"<>Total",INDIRECT(dshbrdrng_bruttogewinn),"<>Subtotal")+J54),"") -> 13389.8036 | L54: =IFERROR(SUMIFS(INDEX(INDIRECT(dshbrdrng_umsatzentwicklung2),0,MATCH(DATE($B18,MONTH(L$13),1),Erfolgsrechnung_Detail!$O$8:$DF$8,0)), INDIRECT(dshbrdrng_umsatzentwicklung),"<>Total",INDIRECT(dshbrdrng_umsatzentwicklung),"<>Subtotal") + IF(INDEX(tblUmsatzFltr[Nr],MATCH(filter_umsatz,tblUmsatzFltr[Umsatz Filter],0)) = 1, SUMIFS(INDEX(INDIRECT(dshbrdrng_bruttogewinn2),0,MATCH(DATE($B54,MONTH(L$49),1),Erfolgsrechnung_Detail!$O$8:$DF$8,0)), INDIRECT(dshbrdrng_bruttogewinn),"<>Total",INDIRECT(dshbrdrng_bruttogewinn),"<>Subtotal"), SUMIFS(INDEX(INDIRECT(dshbrdrng_bruttogewinn2),0,MATCH(DATE($B54,MONTH(L$49),1),Erfolgsrechnung_Detail!$O$8:$DF$8,0)), INDIRECT(dshbrdrng_bruttogewinn),"<>Total",INDIRECT(dshbrdrng_bruttogewinn),"<>Subtotal")+K54),"") -> 8628.732667 | M54: =IFERROR(SUMIFS(INDEX(INDIRECT(dshbrdrng_umsatzentwicklung2),0,MATCH(DATE($B18,MONTH(M$13),1),Erfolgsrechnung_Detail!$O$8:$DF$8,0)), INDIRECT(dshbrdrng_umsatzentwicklung),"<>Total",INDIRECT(dshbrdrng_umsatzentwicklung),"<>Subtotal") + IF(INDEX(tblUmsatzFltr[Nr],MATCH(filter_umsatz,tblUmsatzFltr[Umsatz Filter],0)) = 1, SUMIFS(INDEX(INDIRECT(dshbrdrng_bruttogewinn2),0,MATCH(DATE($B54,MONTH(M$49),1),Erfolgsrechnung_Detail!$O$8:$DF$8,0)), INDIRECT(dshbrdrng_bruttogewinn),"<>Total",INDIRECT(dshbrdrng_bruttogewinn),"<>Subtotal"), SUMIFS(INDEX(INDIRECT(dshbrdrng_bruttogewinn2),0,MATCH(DATE($B54,MONTH(M$49),1),Erfolgsrechnung_Detail!$O$8:$DF$8,0)), INDIRECT(dshbrdrng_bruttogewinn),"<>Total",INDIRECT(dshbrdrng_bruttogewinn),"<>Subtotal")+L54),"") -> 12483.03865 | N54: =IFERROR(SUMIFS(INDEX(INDIRECT(dshbrdrng_umsatzentwicklung2),0,MATCH(DATE($B18,MONTH(N$13),1),Erfolgsrechnung_Detail!$O$8:$DF$8,0)), INDIRECT(dshbrdrng_umsatzentwicklung),"<>Total",INDIRECT(dshbrdrng_umsatzentwicklung),"<>Subtotal") + IF(INDEX(tblUmsatzFltr[Nr],MATCH(filter_umsatz,tblUmsatzFltr[Umsatz Filter],0)) = 1, SUMIFS(INDEX(INDIRECT(dshbrdrng_bruttogewinn2),0,MATCH(DATE($B54,MONTH(N$49),1),Erfolgsrechnung_Detail!$O$8:$DF$8,0)), INDIRECT(dshbrdrng_bruttogewinn),"<>Total",INDIRECT(dshbrdrng_bruttogewinn),"<>Subtotal"), SUMIFS(INDEX(INDIRECT(dshbrdrng_bruttogewinn2),0,MATCH(DATE($B54,MONTH(N$49),1),Erfolgsrechnung_Detail!$O$8:$DF$8,0)), INDIRECT(dshbrdrng_bruttogewinn),"<>Total",INDIRECT(dshbrdrng_bruttogewinn),"<>Subtotal")+M54),"") -> 15108.51034 | P54: =IFERROR(IF( INDEX(tblUmsatzFltr[Nr],MATCH(filter_umsatz,tblUmsatzFltr[Umsatz Filter],0))=1, SUM($C54:INDEX($C54:$N54,1,selectedmonat_num)), INDEX($C54:$N54,0,MATCH(monat,tblMonate[Monate],0))),"") -> 127019.3836 | Q54: =IFERROR( IF(INDEX(tblUmsatzFltr[Nr],MATCH(filter_umsatz,tblUmsatzFltr[Umsatz Filter],0))=1, SUM(C54:$N54),N54),"") -> 127019.3836
B55: 2019 | C55: =IFERROR(C19+ SUMIFS(INDEX(INDIRECT(dshbrdrng_bruttogewinn2),0,MATCH(DATE($B55,MONTH(C$49),1),Erfolgsrechnung_Detail!$O$8:$DF$8,0)), INDIRECT(dshbrdrng_bruttogewinn),"<>Total",INDIRECT(dshbrdrng_bruttogewinn),"<>Subtotal"), "") -> 16947.09268 | D55: =IFERROR(SUMIFS(INDEX(INDIRECT(dshbrdrng_umsatzentwicklung2),0,MATCH(DATE($B19,MONTH(D$13),1),Erfolgsrechnung_Detail!$O$8:$DF$8,0)), INDIRECT(dshbrdrng_umsatzentwicklung),"<>Total",INDIRECT(dshbrdrng_umsatzentwicklung),"<>Subtotal") + IF(INDEX(tblUmsatzFltr[Nr],MATCH(filter_umsatz,tblUmsatzFltr[Umsatz Filter],0)) = 1, SUMIFS(INDEX(INDIRECT(dshbrdrng_bruttogewinn2),0,MATCH(DATE($B55,MONTH(D$49),1),Erfolgsrechnung_Detail!$O$8:$DF$8,0)), INDIRECT(dshbrdrng_bruttogewinn),"<>Total",INDIRECT(dshbrdrng_bruttogewinn),"<>Subtotal"), SUMIFS(INDEX(INDIRECT(dshbrdrng_bruttogewinn2),0,MATCH(DATE($B55,MONTH(D$49),1),Erfolgsrechnung_Detail!$O$8:$DF$8,0)), INDIRECT(dshbrdrng_bruttogewinn),"<>Total",INDIRECT(dshbrdrng_bruttogewinn),"<>Subtotal")+C55),"") -> 6901.200827 | E55: =IFERROR(SUMIFS(INDEX(INDIRECT(dshbrdrng_umsatzentwicklung2),0,MATCH(DATE($B19,MONTH(E$13),1),Erfolgsrechnung_Detail!$O$8:$DF$8,0)), INDIRECT(dshbrdrng_umsatzentwicklung),"<>Total",INDIRECT(dshbrdrng_umsatzentwicklung),"<>Subtotal") + IF(INDEX(tblUmsatzFltr[Nr],MATCH(filter_umsatz,tblUmsatzFltr[Umsatz Filter],0)) = 1, SUMIFS(INDEX(INDIRECT(dshbrdrng_bruttogewinn2),0,MATCH(DATE($B55,MONTH(E$49),1),Erfolgsrechnung_Detail!$O$8:$DF$8,0)), INDIRECT(dshbrdrng_bruttogewinn),"<>Total",INDIRECT(dshbrdrng_bruttogewinn),"<>Subtotal"), SUMIFS(INDEX(INDIRECT(dshbrdrng_bruttogewinn2),0,MATCH(DATE($B55,MONTH(E$49),1),Erfolgsrechnung_Detail!$O$8:$DF$8,0)), INDIRECT(dshbrdrng_bruttogewinn),"<>Total",INDIRECT(dshbrdrng_bruttogewinn),"<>Subtotal")+D55),"") -> 25248.45762 | F55: =IFERROR(SUMIFS(INDEX(INDIRECT(dshbrdrng_umsatzentwicklung2),0,MATCH(DATE($B19,MONTH(F$13),1),Erfolgsrechnung_Detail!$O$8:$DF$8,0)), INDIRECT(dshbrdrng_umsatzentwicklung),"<>Total",INDIRECT(dshbrdrng_umsatzentwicklung),"<>Subtotal") + IF(INDEX(tblUmsatzFltr[Nr],MATCH(filter_umsatz,tblUmsatzFltr[Umsatz Filter],0)) = 1, SUMIFS(INDEX(INDIRECT(dshbrdrng_bruttogewinn2),0,MATCH(DATE($B55,MONTH(F$49),1),Erfolgsrechnung_Detail!$O$8:$DF$8,0)), INDIRECT(dshbrdrng_bruttogewinn),"<>Total",INDIRECT(dshbrdrng_bruttogewinn),"<>Subtotal"), SUMIFS(INDEX(INDIRECT(dshbrdrng_bruttogewinn2),0,MATCH(DATE($B55,MONTH(F$49),1),Erfolgsrechnung_Detail!$O$8:$DF$8,0)), INDIRECT(dshbrdrng_bruttogewinn),"<>Total",INDIRECT(dshbrdrng_bruttogewinn),"<>Subtotal")+E55),"") -> 35673.94604 | G55: =IFERROR(SUMIFS(INDEX(INDIRECT(dshbrdrng_umsatzentwicklung2),0,MATCH(DATE($B19,MONTH(G$13),1),Erfolgsrechnung_Detail!$O$8:$DF$8,0)), INDIRECT(dshbrdrng_umsatzentwicklung),"<>Total",INDIRECT(dshbrdrng_umsatzentwicklung),"<>Subtotal") + IF(INDEX(tblUmsatzFltr[Nr],MATCH(filter_umsatz,tblUmsatzFltr[Umsatz Filter],0)) = 1, SUMIFS(INDEX(INDIRECT(dshbrdrng_bruttogewinn2),0,MATCH(DATE($B55,MONTH(G$49),1),Erfolgsrechnung_Detail!$O$8:$DF$8,0)), INDIRECT(dshbrdrng_bruttogewinn),"<>Total",INDIRECT(dshbrdrng_bruttogewinn),"<>Subtotal"), SUMIFS(INDEX(INDIRECT(dshbrdrng_bruttogewinn2),0,MATCH(DATE($B55,MONTH(G$49),1),Erfolgsrechnung_Detail!$O$8:$DF$8,0)), INDIRECT(dshbrdrng_bruttogewinn),"<>Total",INDIRECT(dshbrdrng_bruttogewinn),"<>Subtotal")+F55),"") -> 24174.84943 | H55: =IFERROR(SUMIFS(INDEX(INDIRECT(dshbrdrng_umsatzentwicklung2),0,MATCH(DATE($B19,MONTH(H$13),1),Erfolgsrechnung_Detail!$O$8:$DF$8,0)), INDIRECT(dshbrdrng_umsatzentwicklung),"<>Total",INDIRECT(dshbrdrng_umsatzentwicklung),"<>Subtotal") + IF(INDEX(tblUmsatzFltr[Nr],MATCH(filter_umsatz,tblUmsatzFltr[Umsatz Filter],0)) = 1, SUMIFS(INDEX(INDIRECT(dshbrdrng_bruttogewinn2),0,MATCH(DATE($B55,MONTH(H$49),1),Erfolgsrechnung_Detail!$O$8:$DF$8,0)), INDIRECT(dshbrdrng_bruttogewinn),"<>Total",INDIRECT(dshbrdrng_bruttogewinn),"<>Subtotal"), SUMIFS(INDEX(INDIRECT(dshbrdrng_bruttogewinn2),0,MATCH(DATE($B55,MONTH(H$49),1),Erfolgsrechnung_Detail!$O$8:$DF$8,0)), INDIRECT(dshbrdrng_bruttogewinn),"<>Total",INDIRECT(dshbrdrng_bruttogewinn),"<>Subtotal")+G55),"") -> 11629.21173 | I55: =IFERROR(SUMIFS(INDEX(INDIRECT(dshbrdrng_umsatzentwicklung2),0,MATCH(DATE($B19,MONTH(I$13),1),Erfolgsrechnung_Detail!$O$8:$DF$8,0)), INDIRECT(dshbrdrng_umsatzentwicklung),"<>Total",INDIRECT(dshbrdrng_umsatzentwicklung),"<>Subtotal") + IF(INDEX(tblUmsatzFltr[Nr],MATCH(filter_umsatz,tblUmsatzFltr[Umsatz Filter],0)) = 1, SUMIFS(INDEX(INDIRECT(dshbrdrng_bruttogewinn2),0,MATCH(DATE($B55,MONTH(I$49),1),Erfolgsrechnung_Detail!$O$8:$DF$8,0)), INDIRECT(dshbrdrng_bruttogewinn),"<>Total",INDIRECT(dshbrdrng_bruttogewinn),"<>Subtotal"), SUMIFS(INDEX(INDIRECT(dshbrdrng_bruttogewinn2),0,MATCH(DATE($B55,MONTH(I$49),1),Erfolgsrechnung_Detail!$O$8:$DF$8,0)), INDIRECT(dshbrdrng_bruttogewinn),"<>Total",INDIRECT(dshbrdrng_bruttogewinn),"<>Subtotal")+H55),"") -> 38624.07805 | J55: =IFERROR(SUMIFS(INDEX(INDIRECT(dshbrdrng_umsatzentwicklung2),0,MATCH(DATE($B19,MONTH(J$13),1),Erfolgsrechnung_Detail!$O$8:$DF$8,0)), INDIRECT(dshbrdrng_umsatzentwicklung),"<>Total",INDIRECT(dshbrdrng_umsatzentwicklung),"<>Subtotal") + IF(INDEX(tblUmsatzFltr[Nr],MATCH(filter_umsatz,tblUmsatzFltr[Umsatz Filter],0)) = 1, SUMIFS(INDEX(INDIRECT(dshbrdrng_bruttogewinn2),0,MATCH(DATE($B55,MONTH(J$49),1),Erfolgsrechnung_Detail!$O$8:$DF$8,0)), INDIRECT(dshbrdrng_bruttogewinn),"<>Total",INDIRECT(dshbrdrng_bruttogewinn),"<>Subtotal"), SUMIFS(INDEX(INDIRECT(dshbrdrng_bruttogewinn2),0,MATCH(DATE($B55,MONTH(J$49),1),Erfolgsrechnung_Detail!$O$8:$DF$8,0)), INDIRECT(dshbrdrng_bruttogewinn),"<>Total",INDIRECT(dshbrdrng_bruttogewinn),"<>Subtotal")+I55),"") -> 15461.24125 | K55: =IFERROR(SUMIFS(INDEX(INDIRECT(dshbrdrng_umsatzentwicklung2),0,MATCH(DATE($B19,MONTH(K$13),1),Erfolgsrechnung_Detail!$O$8:$DF$8,0)), INDIRECT(dshbrdrng_umsatzentwicklung),"<>Total",INDIRECT(dshbrdrng_umsatzentwicklung),"<>Subtotal") + IF(INDEX(tblUmsatzFltr[Nr],MATCH(filter_umsatz,tblUmsatzFltr[Umsatz Filter],0)) = 1, SUMIFS(INDEX(INDIRECT(dshbrdrng_bruttogewinn2),0,MATCH(DATE($B55,MONTH(K$49),1),Erfolgsrechnung_Detail!$O$8:$DF$8,0)), INDIRECT(dshbrdrng_bruttogewinn),"<>Total",INDIRECT(dshbrdrng_bruttogewinn),"<>Subtotal"), SUMIFS(INDEX(INDIRECT(dshbrdrng_bruttogewinn2),0,MATCH(DATE($B55,MONTH(K$49),1),Erfolgsrechnung_Detail!$O$8:$DF$8,0)), INDIRECT(dshbrdrng_bruttogewinn),"<>Total",INDIRECT(dshbrdrng_bruttogewinn),"<>Subtotal")+J55),"") -> 25920.28705 | L55: =IFERROR(SUMIFS(INDEX(INDIRECT(dshbrdrng_umsatzentwicklung2),0,MATCH(DATE($B19,MONTH(L$13),1),Erfolgsrechnung_Detail!$O$8:$DF$8,0)), INDIRECT(dshbrdrng_umsatzentwicklung),"<>Total",INDIRECT(dshbrdrng_umsatzentwicklung),"<>Subtotal") + IF(INDEX(tblUmsatzFltr[Nr],MATCH(filter_umsatz,tblUmsatzFltr[Umsatz Filter],0)) = 1, SUMIFS(INDEX(INDIRECT(dshbrdrng_bruttogewinn2),0,MATCH(DATE($B55,MONTH(L$49),1),Erfolgsrechnung_Detail!$O$8:$DF$8,0)), INDIRECT(dshbrdrng_bruttogewinn),"<>Total",INDIRECT(dshbrdrng_bruttogewinn),"<>Subtotal"), SUMIFS(INDEX(INDIRECT(dshbrdrng_bruttogewinn2),0,MATCH(DATE($B55,MONTH(L$49),1),Erfolgsrechnung_Detail!$O$8:$DF$8,0)), INDIRECT(dshbrdrng_bruttogewinn),"<>Total",INDIRECT(dshbrdrng_bruttogewinn),"<>Subtotal")+K55),"") -> 37679.53083 | M55: =IFERROR(SUMIFS(INDEX(INDIRECT(dshbrdrng_umsatzentwicklung2),0,MATCH(DATE($B19,MONTH(M$13),1),Erfolgsrechnung_Detail!$O$8:$DF$8,0)), INDIRECT(dshbrdrng_umsatzentwicklung),"<>Total",INDIRECT(dshbrdrng_umsatzentwicklung),"<>Subtotal") + IF(INDEX(tblUmsatzFltr[Nr],MATCH(filter_umsatz,tblUmsatzFltr[Umsatz Filter],0)) = 1, SUMIFS(INDEX(INDIRECT(dshbrdrng_bruttogewinn2),0,MATCH(DATE($B55,MONTH(M$49),1),Erfolgsrechnung_Detail!$O$8:$DF$8,0)), INDIRECT(dshbrdrng_bruttogewinn),"<>Total",INDIRECT(dshbrdrng_bruttogewinn),"<>Subtotal"), SUMIFS(INDEX(INDIRECT(dshbrdrng_bruttogewinn2),0,MATCH(DATE($B55,MONTH(M$49),1),Erfolgsrechnung_Detail!$O$8:$DF$8,0)), INDIRECT(dshbrdrng_bruttogewinn),"<>Total",INDIRECT(dshbrdrng_bruttogewinn),"<>Subtotal")+L55),"") -> 38272.72267 | N55: =IFERROR(SUMIFS(INDEX(INDIRECT(dshbrdrng_umsatzentwicklung2),0,MATCH(DATE($B19,MONTH(N$13),1),Erfolgsrechnung_Detail!$O$8:$DF$8,0)), INDIRECT(dshbrdrng_umsatzentwicklung),"<>Total",INDIRECT(dshbrdrng_umsatzentwicklung),"<>Subtotal") + IF(INDEX(tblUmsatzFltr[Nr],MATCH(filter_umsatz,tblUmsatzFltr[Umsatz Filter],0)) = 1, SUMIFS(INDEX(INDIRECT(dshbrdrng_bruttogewinn2),0,MATCH(DATE($B55,MONTH(N$49),1),Erfolgsrechnung_Detail!$O$8:$DF$8,0)), INDIRECT(dshbrdrng_bruttogewinn),"<>Total",INDIRECT(dshbrdrng_bruttogewinn),"<>Subtotal"), SUMIFS(INDEX(INDIRECT(dshbrdrng_bruttogewinn2),0,MATCH(DATE($B55,MONTH(N$49),1),Erfolgsrechnung_Detail!$O$8:$DF$8,0)), INDIRECT(dshbrdrng_bruttogewinn),"<>Total",INDIRECT(dshbrdrng_bruttogewinn),"<>Subtotal")+M55),"") -> 52657.45793 | P55: =IFERROR(IF( INDEX(tblUmsatzFltr[Nr],MATCH(filter_umsatz,tblUmsatzFltr[Umsatz Filter],0))=1, SUM($C55:INDEX($C55:$N55,1,selectedmonat_num)), INDEX($C55:$N55,0,MATCH(monat,tblMonate[Monate],0))),"") -> 329190.0761 | Q55: =IFERROR( IF(INDEX(tblUmsatzFltr[Nr],MATCH(filter_umsatz,tblUmsatzFltr[Umsatz Filter],0))=1, SUM(C55:$N55),N55),"") -> 329190.0761
B56: =jahr -> 2020 | C56: =IFERROR(C20+ SUMIFS(INDEX(INDIRECT(dshbrdrng_bruttogewinn2),0,MATCH(DATE($B56,MONTH(C$49),1),Erfolgsrechnung_Detail!$O$8:$DF$8,0)), INDIRECT(dshbrdrng_bruttogewinn),"<>Total",INDIRECT(dshbrdrng_bruttogewinn),"<>Subtotal"), "") -> 7864.327351 | D56: =IFERROR(SUMIFS(INDEX(INDIRECT(dshbrdrng_umsatzentwicklung2),0,MATCH(DATE($B20,MONTH(D$13),1),Erfolgsrechnung_Detail!$O$8:$DF$8,0)), INDIRECT(dshbrdrng_umsatzentwicklung),"<>Total",INDIRECT(dshbrdrng_umsatzentwicklung),"<>Subtotal") + IF(INDEX(tblUmsatzFltr[Nr],MATCH(filter_umsatz,tblUmsatzFltr[Umsatz Filter],0)) = 1, SUMIFS(INDEX(INDIRECT(dshbrdrng_bruttogewinn2),0,MATCH(DATE($B56,MONTH(D$49),1),Erfolgsrechnung_Detail!$O$8:$DF$8,0)), INDIRECT(dshbrdrng_bruttogewinn),"<>Total",INDIRECT(dshbrdrng_bruttogewinn),"<>Subtotal"), SUMIFS(INDEX(INDIRECT(dshbrdrng_bruttogewinn2),0,MATCH(DATE($B56,MONTH(D$49),1),Erfolgsrechnung_Detail!$O$8:$DF$8,0)), INDIRECT(dshbrdrng_bruttogewinn),"<>Total",INDIRECT(dshbrdrng_bruttogewinn),"<>Subtotal")+C56),"") -> 6577.122861 | E56: =IFERROR(SUMIFS(INDEX(INDIRECT(dshbrdrng_umsatzentwicklung2),0,MATCH(DATE($B20,MONTH(E$13),1),Erfolgsrechnung_Detail!$O$8:$DF$8,0)), INDIRECT(dshbrdrng_umsatzentwicklung),"<>Total",INDIRECT(dshbrdrng_umsatzentwicklung),"<>Subtotal") + IF(INDEX(tblUmsatzFltr[Nr],MATCH(filter_umsatz,tblUmsatzFltr[Umsatz Filter],0)) = 1, SUMIFS(INDEX(INDIRECT(dshbrdrng_bruttogewinn2),0,MATCH(DATE($B56,MONTH(E$49),1),Erfolgsrechnung_Detail!$O$8:$DF$8,0)), INDIRECT(dshbrdrng_bruttogewinn),"<>Total",INDIRECT(dshbrdrng_bruttogewinn),"<>Subtotal"), SUMIFS(INDEX(INDIRECT(dshbrdrng_bruttogewinn2),0,MATCH(DATE($B56,MONTH(E$49),1),Erfolgsrechnung_Detail!$O$8:$DF$8,0)), INDIRECT(dshbrdrng_bruttogewinn),"<>Total",INDIRECT(dshbrdrng_bruttogewinn),"<>Subtotal")+D56),"") -> 5655.742089 | F56: =IFERROR(SUMIFS(INDEX(INDIRECT(dshbrdrng_umsatzentwicklung2),0,MATCH(DATE($B20,MONTH(F$13),1),Erfolgsrechnung_Detail!$O$8:$DF$8,0)), INDIRECT(dshbrdrng_umsatzentwicklung),"<>Total",INDIRECT(dshbrdrng_umsatzentwicklung),"<>Subtotal") + IF(INDEX(tblUmsatzFltr[Nr],MATCH(filter_umsatz,tblUmsatzFltr[Umsatz Filter],0)) = 1, SUMIFS(INDEX(INDIRECT(dshbrdrng_bruttogewinn2),0,MATCH(DATE($B56,MONTH(F$49),1),Erfolgsrechnung_Detail!$O$8:$DF$8,0)), INDIRECT(dshbrdrng_bruttogewinn),"<>Total",INDIRECT(dshbrdrng_bruttogewinn),"<>Subtotal"), SUMIFS(INDEX(INDIRECT(dshbrdrng_bruttogewinn2),0,MATCH(DATE($B56,MONTH(F$49),1),Erfolgsrechnung_Detail!$O$8:$DF$8,0)), INDIRECT(dshbrdrng_bruttogewinn),"<>Total",INDIRECT(dshbrdrng_bruttogewinn),"<>Subtotal")+E56),"") -> 8927.248615 | G56: =IFERROR(SUMIFS(INDEX(INDIRECT(dshbrdrng_umsatzentwicklung2),0,MATCH(DATE($B20,MONTH(G$13),1),Erfolgsrechnung_Detail!$O$8:$DF$8,0)), INDIRECT(dshbrdrng_umsatzentwicklung),"<>Total",INDIRECT(dshbrdrng_umsatzentwicklung),"<>Subtotal") + IF(INDEX(tblUmsatzFltr[Nr],MATCH(filter_umsatz,tblUmsatzFltr[Umsatz Filter],0)) = 1, SUMIFS(INDEX(INDIRECT(dshbrdrng_bruttogewinn2),0,MATCH(DATE($B56,MONTH(G$49),1),Erfolgsrechnung_Detail!$O$8:$DF$8,0)), INDIRECT(dshbrdrng_bruttogewinn),"<>Total",INDIRECT(dshbrdrng_bruttogewinn),"<>Subtotal"), SUMIFS(INDEX(INDIRECT(dshbrdrng_bruttogewinn2),0,MATCH(DATE($B56,MONTH(G$49),1),Erfolgsrechnung_Detail!$O$8:$DF$8,0)), INDIRECT(dshbrdrng_bruttogewinn),"<>Total",INDIRECT(dshbrdrng_bruttogewinn),"<>Subtotal")+F56),"") -> 8841.423615 | H56: =IFERROR(SUMIFS(INDEX(INDIRECT(dshbrdrng_umsatzentwicklung2),0,MATCH(DATE($B20,MONTH(H$13),1),Erfolgsrechnung_Detail!$O$8:$DF$8,0)), INDIRECT(dshbrdrng_umsatzentwicklung),"<>Total",INDIRECT(dshbrdrng_umsatzentwicklung),"<>Subtotal") + IF(INDEX(tblUmsatzFltr[Nr],MATCH(filter_umsatz,tblUmsatzFltr[Umsatz Filter],0)) = 1, SUMIFS(INDEX(INDIRECT(dshbrdrng_bruttogewinn2),0,MATCH(DATE($B56,MONTH(H$49),1),Erfolgsrechnung_Detail!$O$8:$DF$8,0)), INDIRECT(dshbrdrng_bruttogewinn),"<>Total",INDIRECT(dshbrdrng_bruttogewinn),"<>Subtotal"), SUMIFS(INDEX(INDIRECT(dshbrdrng_bruttogewinn2),0,MATCH(DATE($B56,MONTH(H$49),1),Erfolgsrechnung_Detail!$O$8:$DF$8,0)), INDIRECT(dshbrdrng_bruttogewinn),"<>Total",INDIRECT(dshbrdrng_bruttogewinn),"<>Subtotal")+G56),"") -> 5603.793168 | I56: =IFERROR(SUMIFS(INDEX(INDIRECT(dshbrdrng_umsatzentwicklung2),0,MATCH(DATE($B20,MONTH(I$13),1),Erfolgsrechnung_Detail!$O$8:$DF$8,0)), INDIRECT(dshbrdrng_umsatzentwicklung),"<>Total",INDIRECT(dshbrdrng_umsatzentwicklung),"<>Subtotal") + IF(INDEX(tblUmsatzFltr[Nr],MATCH(filter_umsatz,tblUmsatzFltr[Umsatz Filter],0)) = 1, SUMIFS(INDEX(INDIRECT(dshbrdrng_bruttogewinn2),0,MATCH(DATE($B56,MONTH(I$49),1),Erfolgsrechnung_Detail!$O$8:$DF$8,0)), INDIRECT(dshbrdrng_bruttogewinn),"<>Total",INDIRECT(dshbrdrng_bruttogewinn),"<>Subtotal"), SUMIFS(INDEX(INDIRECT(dshbrdrng_bruttogewinn2),0,MATCH(DATE($B56,MONTH(I$49),1),Erfolgsrechnung_Detail!$O$8:$DF$8,0)), INDIRECT(dshbrdrng_bruttogewinn),"<>Total",INDIRECT(dshbrdrng_bruttogewinn),"<>Subtotal")+H56),"") -> 9400.434867 | J56: =IFERROR(SUMIFS(INDEX(INDIRECT(dshbrdrng_umsatzentwicklung2),0,MATCH(DATE($B20,MONTH(J$13),1),Erfolgsrechnung_Detail!$O$8:$DF$8,0)), INDIRECT(dshbrdrng_umsatzentwicklung),"<>Total",INDIRECT(dshbrdrng_umsatzentwicklung),"<>Subtotal") + IF(INDEX(tblUmsatzFltr[Nr],MATCH(filter_umsatz,tblUmsatzFltr[Umsatz Filter],0)) = 1, SUMIFS(INDEX(INDIRECT(dshbrdrng_bruttogewinn2),0,MATCH(DATE($B56,MONTH(J$49),1),Erfolgsrechnung_Detail!$O$8:$DF$8,0)), INDIRECT(dshbrdrng_bruttogewinn),"<>Total",INDIRECT(dshbrdrng_bruttogewinn),"<>Subtotal"), SUMIFS(INDEX(INDIRECT(dshbrdrng_bruttogewinn2),0,MATCH(DATE($B56,MONTH(J$49),1),Erfolgsrechnung_Detail!$O$8:$DF$8,0)), INDIRECT(dshbrdrng_bruttogewinn),"<>Total",INDIRECT(dshbrdrng_bruttogewinn),"<>Subtotal")+I56),"") -> 10356.08477 | K56: =IFERROR(SUMIFS(INDEX(INDIRECT(dshbrdrng_umsatzentwicklung2),0,MATCH(DATE($B20,MONTH(K$13),1),Erfolgsrechnung_Detail!$O$8:$DF$8,0)), INDIRECT(dshbrdrng_umsatzentwicklung),"<>Total",INDIRECT(dshbrdrng_umsatzentwicklung),"<>Subtotal") + IF(INDEX(tblUmsatzFltr[Nr],MATCH(filter_umsatz,tblUmsatzFltr[Umsatz Filter],0)) = 1, SUMIFS(INDEX(INDIRECT(dshbrdrng_bruttogewinn2),0,MATCH(DATE($B56,MONTH(K$49),1),Erfolgsrechnung_Detail!$O$8:$DF$8,0)), INDIRECT(dshbrdrng_bruttogewinn),"<>Total",INDIRECT(dshbrdrng_bruttogewinn),"<>Subtotal"), SUMIFS(INDEX(INDIRECT(dshbrdrng_bruttogewinn2),0,MATCH(DATE($B56,MONTH(K$49),1),Erfolgsrechnung_Detail!$O$8:$DF$8,0)), INDIRECT(dshbrdrng_bruttogewinn),"<>Total",INDIRECT(dshbrdrng_bruttogewinn),"<>Subtotal")+J56),"") -> 8929.560205 | L56: =IFERROR(SUMIFS(INDEX(INDIRECT(dshbrdrng_umsatzentwicklung2),0,MATCH(DATE($B20,MONTH(L$13),1),Erfolgsrechnung_Detail!$O$8:$DF$8,0)), INDIRECT(dshbrdrng_umsatzentwicklung),"<>Total",INDIRECT(dshbrdrng_umsatzentwicklung),"<>Subtotal") + IF(INDEX(tblUmsatzFltr[Nr],MATCH(filter_umsatz,tblUmsatzFltr[Umsatz Filter],0)) = 1, SUMIFS(INDEX(INDIRECT(dshbrdrng_bruttogewinn2),0,MATCH(DATE($B56,MONTH(L$49),1),Erfolgsrechnung_Detail!$O$8:$DF$8,0)), INDIRECT(dshbrdrng_bruttogewinn),"<>Total",INDIRECT(dshbrdrng_bruttogewinn),"<>Subtotal"), SUMIFS(INDEX(INDIRECT(dshbrdrng_bruttogewinn2),0,MATCH(DATE($B56,MONTH(L$49),1),Erfolgsrechnung_Detail!$O$8:$DF$8,0)), INDIRECT(dshbrdrng_bruttogewinn),"<>Total",INDIRECT(dshbrdrng_bruttogewinn),"<>Subtotal")+K56),"") -> 13157.11489 | M56: =IFERROR(SUMIFS(INDEX(INDIRECT(dshbrdrng_umsatzentwicklung2),0,MATCH(DATE($B20,MONTH(M$13),1),Erfolgsrechnung_Detail!$O$8:$DF$8,0)), INDIRECT(dshbrdrng_umsatzentwicklung),"<>Total",INDIRECT(dshbrdrng_umsatzentwicklung),"<>Subtotal") + IF(INDEX(tblUmsatzFltr[Nr],MATCH(filter_umsatz,tblUmsatzFltr[Umsatz Filter],0)) = 1, SUMIFS(INDEX(INDIRECT(dshbrdrng_bruttogewinn2),0,MATCH(DATE($B56,MONTH(M$49),1),Erfolgsrechnung_Detail!$O$8:$DF$8,0)), INDIRECT(dshbrdrng_bruttogewinn),"<>Total",INDIRECT(dshbrdrng_bruttogewinn),"<>Subtotal"), SUMIFS(INDEX(INDIRECT(dshbrdrng_bruttogewinn2),0,MATCH(DATE($B56,MONTH(M$49),1),Erfolgsrechnung_Detail!$O$8:$DF$8,0)), INDIRECT(dshbrdrng_bruttogewinn),"<>Total",INDIRECT(dshbrdrng_bruttogewinn),"<>Subtotal")+L56),"") -> 18867.76229 | N56: =IFERROR(SUMIFS(INDEX(INDIRECT(dshbrdrng_umsatzentwicklung2),0,MATCH(DATE($B20,MONTH(N$13),1),Erfolgsrechnung_Detail!$O$8:$DF$8,0)), INDIRECT(dshbrdrng_umsatzentwicklung),"<>Total",INDIRECT(dshbrdrng_umsatzentwicklung),"<>Subtotal") + IF(INDEX(tblUmsatzFltr[Nr],MATCH(filter_umsatz,tblUmsatzFltr[Umsatz Filter],0)) = 1, SUMIFS(INDEX(INDIRECT(dshbrdrng_bruttogewinn2),0,MATCH(DATE($B56,MONTH(N$49),1),Erfolgsrechnung_Detail!$O$8:$DF$8,0)), INDIRECT(dshbrdrng_bruttogewinn),"<>Total",INDIRECT(dshbrdrng_bruttogewinn),"<>Subtotal"), SUMIFS(INDEX(INDIRECT(dshbrdrng_bruttogewinn2),0,MATCH(DATE($B56,MONTH(N$49),1),Erfolgsrechnung_Detail!$O$8:$DF$8,0)), INDIRECT(dshbrdrng_bruttogewinn),"<>Total",INDIRECT(dshbrdrng_bruttogewinn),"<>Subtotal")+M56),"") -> 26160.13358 | P56: =IFERROR(IF( INDEX(tblUmsatzFltr[Nr],MATCH(filter_umsatz,tblUmsatzFltr[Umsatz Filter],0))=1, SUM($C56:INDEX($C56:$N56,1,selectedmonat_num)), INDEX($C56:$N56,0,MATCH(monat,tblMonate[Monate],0))),"") -> 130340.7483 | Q56: =IFERROR( IF(INDEX(tblUmsatzFltr[Nr],MATCH(filter_umsatz,tblUmsatzFltr[Umsatz Filter],0))=1, SUM(C56:$N56),N56),"") -> 130340.7483
B57: YTD | C57: =IFERROR(C56/C55-1,0) -> -0.5359482892 | D57: -0.04695964864 | E57: -0.7759965311 | F57: -0.7497543836 | G57: -0.6342718229 | H57: -0.5181278579 | I57: -0.7566172362 | J57: -0.3301905974 | K57: -0.6554991776 | L57: -0.6508153206 | M57: -0.5070180281 | N57: -0.5032017381 | P57: =IFERROR(P56/P55-1,0) -> -0.6040562649 | Q57: =IFERROR(Q56/Q55-1,0) -> -0.6040562649
D58: =IFERROR( IF(INDEX(tblUmsatzFltr[Nr],MATCH(filter_umsatz,tblUmsatzFltr[Umsatz Filter],0)) = 1, SUMIF(dshbrdrng_bruttogewinn,"="&Einstellungen!$BA$9, INDEX(dshbrdrng_bruttogewinn2,MATCH(DATE(B58,MONTH(C$49),1),Erfolgsrechnung_Detail!$O$8:$DF$8,0))), SUMIF(dshbrdrng_bruttogewinn,"="&Einstellungen!$BA$9, INDEX(dshbrdrng_bruttogewinn2,MATCH(DATE(B58,MONTH(C$49),1),Erfolgsrechnung_Detail!$O$8:$DF$8,0)))+C58),"") -> 
B59: Budget | C59: =IFERROR(SUMIFS(INDIRECT(budgetrng_umsatzentwicklung),INDIRECT(budgetrng),"<>",INDIRECT(budgetrng),"<>Total",INDIRECT(budgetrng),"<>Subtotal")+ SUMIFS(INDIRECT(budgetrng_bruttogewinn),INDIRECT(budgetrng2),"<>",INDIRECT(budgetrng2),"<>Total",INDIRECT(budgetrng2),"<>Subtotal"),"") -> 0 | D59: =IFERROR(SUMIFS(OFFSET(INDIRECT(budgetrng_umsatzentwicklung),0,1),INDIRECT(budgetrng),"<>",INDIRECT(budgetrng),"<>Total",INDIRECT(budgetrng),"<>Subtotal")+ SUMIFS(OFFSET(INDIRECT(budgetrng_bruttogewinn),0,1),INDIRECT(budgetrng2),"<>",INDIRECT(budgetrng2),"<>Total",INDIRECT(budgetrng2),"<>Subtotal"),"") -> 0 | E59: =IFERROR(SUMIFS(OFFSET(INDIRECT(budgetrng_umsatzentwicklung),0,2),INDIRECT(budgetrng),"<>",INDIRECT(budgetrng),"<>Total",INDIRECT(budgetrng),"<>Subtotal")+ SUMIFS(OFFSET(INDIRECT(budgetrng_bruttogewinn),0,2),INDIRECT(budgetrng2),"<>",INDIRECT(budgetrng2),"<>Total",INDIRECT(budgetrng2),"<>Subtotal"),"") -> 0 | F59: =IFERROR(SUMIFS(OFFSET(INDIRECT(budgetrng_umsatzentwicklung),0,3),INDIRECT(budgetrng),"<>",INDIRECT(budgetrng),"<>Total",INDIRECT(budgetrng),"<>Subtotal")+ SUMIFS(OFFSET(INDIRECT(budgetrng_bruttogewinn),0,3),INDIRECT(budgetrng2),"<>",INDIRECT(budgetrng2),"<>Total",INDIRECT(budgetrng2),"<>Subtotal"),"") -> 0 | G59: =IFERROR(SUMIFS(OFFSET(INDIRECT(budgetrng_umsatzentwicklung),0,4),INDIRECT(budgetrng),"<>",INDIRECT(budgetrng),"<>Total",INDIRECT(budgetrng),"<>Subtotal")+ SUMIFS(OFFSET(INDIRECT(budgetrng_bruttogewinn),0,4),INDIRECT(budgetrng2),"<>",INDIRECT(budgetrng2),"<>Total",INDIRECT(budgetrng2),"<>Subtotal"),"") -> 0 | H59: =IFERROR(SUMIFS(OFFSET(INDIRECT(budgetrng_umsatzentwicklung),0,5),INDIRECT(budgetrng),"<>",INDIRECT(budgetrng),"<>Total",INDIRECT(budgetrng),"<>Subtotal")+ SUMIFS(OFFSET(INDIRECT(budgetrng_bruttogewinn),0,5),INDIRECT(budgetrng2),"<>",INDIRECT(budgetrng2),"<>Total",INDIRECT(budgetrng2),"<>Subtotal"),"") -> 0 | I59: =IFERROR(SUMIFS(OFFSET(INDIRECT(budgetrng_umsatzentwicklung),0,6),INDIRECT(budgetrng),"<>",INDIRECT(budgetrng),"<>Total",INDIRECT(budgetrng),"<>Subtotal")+ SUMIFS(OFFSET(INDIRECT(budgetrng_bruttogewinn),0,6),INDIRECT(budgetrng2),"<>",INDIRECT(budgetrng2),"<>Total",INDIRECT(budgetrng2),"<>Subtotal"),"") -> 0 | J59: =IFERROR(SUMIFS(OFFSET(INDIRECT(budgetrng_umsatzentwicklung),0,7),INDIRECT(budgetrng),"<>",INDIRECT(budgetrng),"<>Total",INDIRECT(budgetrng),"<>Subtotal")+ SUMIFS(OFFSET(INDIRECT(budgetrng_bruttogewinn),0,7),INDIRECT(budgetrng2),"<>",INDIRECT(budgetrng2),"<>Total",INDIRECT(budgetrng2),"<>Subtotal"),"") -> 0 | K59: =IFERROR(SUMIFS(OFFSET(INDIRECT(budgetrng_umsatzentwicklung),0,8),INDIRECT(budgetrng),"<>",INDIRECT(budgetrng),"<>Total",INDIRECT(budgetrng),"<>Subtotal")+ SUMIFS(OFFSET(INDIRECT(budgetrng_bruttogewinn),0,8),INDIRECT(budgetrng2),"<>",INDIRECT(budgetrng2),"<>Total",INDIRECT(budgetrng2),"<>Subtotal"),"") -> 0 | L59: =IFERROR(SUMIFS(OFFSET(INDIRECT(budgetrng_umsatzentwicklung),0,9),INDIRECT(budgetrng),"<>",INDIRECT(budgetrng),"<>Total",INDIRECT(budgetrng),"<>Subtotal")+ SUMIFS(OFFSET(INDIRECT(budgetrng_bruttogewinn),0,9),INDIRECT(budgetrng2),"<>",INDIRECT(budgetrng2),"<>Total",INDIRECT(budgetrng2),"<>Subtotal"),"") -> 0 | M59: =IFERROR(SUMIFS(OFFSET(INDIRECT(budgetrng_umsatzentwicklung),0,10),INDIRECT(budgetrng),"<>",INDIRECT(budgetrng),"<>Total",INDIRECT(budgetrng),"<>Subtotal")+ SUMIFS(OFFSET(INDIRECT(budgetrng_bruttogewinn),0,10),INDIRECT(budgetrng2),"<>",INDIRECT(budgetrng2),"<>Total",INDIRECT(budgetrng2),"<>Subtotal"),"") -> 0 | N59: =IFERROR(SUMIFS(OFFSET(INDIRECT(budgetrng_umsatzentwicklung),0,11),INDIRECT(budgetrng),"<>",INDIRECT(budgetrng),"<>Total",INDIRECT(budgetrng),"<>Subtotal")+ SUMIFS(OFFSET(INDIRECT(budgetrng_bruttogewinn),0,11),INDIRECT(budgetrng2),"<>",INDIRECT(budgetrng2),"<>Total",INDIRECT(budgetrng2),"<>Subtotal"),"") -> 0 | P59: =SUM($C59:INDEX($C59:$N59,1,selectedmonat_num)) -> 0 | Q59: =SUM(rngBudgetCost) -> 0
B60: ∆ Budget in % | C60: =IFERROR(C56/C59-1,0) -> 0 | D60: =IFERROR(D56/D59-1,0) -> 0 | E60: 0 | F60: 0 | G60: 0 | H60: 0 | I60: 0 | J60: 0 | K60: 0 | L60: 0 | M60: 0 | N60: 0 | P60: =IFERROR(P56/P59-1,0) -> 0 | Q60: =IFERROR(Q56/Q59-1,0) -> 0
B62: Aktuelles Jahr vs. Vorjahr | P62: =IF(INDEX(tblMonate[Nr],MATCH(monat,tblMonate[Monate],0))<> 1, CONCATENATE("YTD ",Einstellungen!$AQ$8," - ",monat," ",B47," Zielerreichung"), CONCATENATE("YTD ",Einstellungen!$AQ$8," ",B47," Zielerreichungt")) -> YTD Januar - Dezember Bruttogewinn /-Verlust Zielerreichung
C64: =C59 -> 0 | D64: =IF(INDEX(tblUmsatzFltr[Nr],MATCH($B$7,tblUmsatzFltr[Umsatz Filter],0)) = 1,D$59,D$59+C$64) -> 0 | E64: =IF(INDEX(tblUmsatzFltr[Nr],MATCH($B$7,tblUmsatzFltr[Umsatz Filter],0)) = 1,E$59,E$59+D$64) -> 0 | F64: =IF(INDEX(tblUmsatzFltr[Nr],MATCH($B$7,tblUmsatzFltr[Umsatz Filter],0)) = 1,F$59,F$59+E$64) -> 0 | G64: =IF(INDEX(tblUmsatzFltr[Nr],MATCH($B$7,tblUmsatzFltr[Umsatz Filter],0)) = 1,G$59,G$59+F$64) -> 0 | H64: =IF(INDEX(tblUmsatzFltr[Nr],MATCH($B$7,tblUmsatzFltr[Umsatz Filter],0)) = 1,H$59,H$59+G$64) -> 0 | I64: =IF(INDEX(tblUmsatzFltr[Nr],MATCH($B$7,tblUmsatzFltr[Umsatz Filter],0)) = 1,I$59,I$59+H$64) -> 0 | J64: =IF(INDEX(tblUmsatzFltr[Nr],MATCH($B$7,tblUmsatzFltr[Umsatz Filter],0)) = 1,J$59,J$59+I$64) -> 0 | K64: =IF(INDEX(tblUmsatzFltr[Nr],MATCH($B$7,tblUmsatzFltr[Umsatz Filter],0)) = 1,K$59,K$59+J$64) -> 0 | L64: =IF(INDEX(tblUmsatzFltr[Nr],MATCH($B$7,tblUmsatzFltr[Umsatz Filter],0)) = 1,L$59,L$59+K$64) -> 0 | M64: =IF(INDEX(tblUmsatzFltr[Nr],MATCH($B$7,tblUmsatzFltr[Umsatz Filter],0)) = 1,M$59,M$59+L$64) -> 0 | N64: =IF(INDEX(tblUmsatzFltr[Nr],MATCH($B$7,tblUmsatzFltr[Umsatz Filter],0)) = 1,N$59,N$59+M$64) -> 0
B83: Reingewinn / Reinverlust
C85: =DATE(jahr,1,1) -> 2020-01-01 | D85: =EOMONTH(C85,0)+1 -> 2020-02-01 | E85: 2020-03-01 | F85: 2020-04-01 | G85: 2020-05-01 | H85: 2020-06-01 | I85: 2020-07-01 | J85: 2020-08-01 | K85: 2020-09-01 | L85: 2020-10-01 | M85: 2020-11-01 | N85: 2020-12-01 | P85: =P49 -> YTD Januar bis Dezember | Q85: Total
B86: =Einstellungen!$B$15-6 -> 2014 | C86: =IFERROR(C14+ SUMIFS(INDEX(INDIRECT(dshbrdrng_reingewinn2),0,MATCH(DATE($B86,MONTH(C$85),1),Erfolgsrechnung_Detail!$O$8:$DF$8,0)), INDIRECT(dshbrdrng_reingewinn),"<>Total",INDIRECT(dshbrdrng_reingewinn),"<>Subtotal"), "") -> 2644.426239 | D86: =IFERROR(SUMIFS(INDEX(INDIRECT(dshbrdrng_umsatzentwicklung2),0,MATCH(DATE($B14,MONTH(D$13),1),Erfolgsrechnung_Detail!$O$8:$DF$8,0)), INDIRECT(dshbrdrng_umsatzentwicklung),"<>Total",INDIRECT(dshbrdrng_umsatzentwicklung),"<>Subtotal") + IF(INDEX(tblUmsatzFltr[Nr],MATCH(filter_umsatz,tblUmsatzFltr[Umsatz Filter],0)) = 1, SUMIFS(INDEX(INDIRECT(dshbrdrng_reingewinn2),0,MATCH(DATE($B86,MONTH(D$85),1),Erfolgsrechnung_Detail!$O$8:$DF$8,0)), INDIRECT(dshbrdrng_reingewinn),"<>Total",INDIRECT(dshbrdrng_reingewinn),"<>Subtotal"), SUMIFS(INDEX(INDIRECT(dshbrdrng_reingewinn2),0,MATCH(DATE($B86,MONTH(D$85),1),Erfolgsrechnung_Detail!$O$8:$DF$8,0)), INDIRECT(dshbrdrng_reingewinn),"<>Total",INDIRECT(dshbrdrng_reingewinn),"<>Subtotal")+C86),"") -> 3251.819948 | E86: =IFERROR(SUMIFS(INDEX(INDIRECT(dshbrdrng_umsatzentwicklung2),0,MATCH(DATE($B14,MONTH(E$13),1),Erfolgsrechnung_Detail!$O$8:$DF$8,0)), INDIRECT(dshbrdrng_umsatzentwicklung),"<>Total",INDIRECT(dshbrdrng_umsatzentwicklung),"<>Subtotal") + IF(INDEX(tblUmsatzFltr[Nr],MATCH(filter_umsatz,tblUmsatzFltr[Umsatz Filter],0)) = 1, SUMIFS(INDEX(INDIRECT(dshbrdrng_reingewinn2),0,MATCH(DATE($B86,MONTH(E$85),1),Erfolgsrechnung_Detail!$O$8:$DF$8,0)), INDIRECT(dshbrdrng_reingewinn),"<>Total",INDIRECT(dshbrdrng_reingewinn),"<>Subtotal"), SUMIFS(INDEX(INDIRECT(dshbrdrng_reingewinn2),0,MATCH(DATE($B86,MONTH(E$85),1),Erfolgsrechnung_Detail!$O$8:$DF$8,0)), INDIRECT(dshbrdrng_reingewinn),"<>Total",INDIRECT(dshbrdrng_reingewinn),"<>Subtotal")+D86),"") -> 415.2361345 | F86: =IFERROR(SUMIFS(INDEX(INDIRECT(dshbrdrng_umsatzentwicklung2),0,MATCH(DATE($B14,MONTH(F$13),1),Erfolgsrechnung_Detail!$O$8:$DF$8,0)), INDIRECT(dshbrdrng_umsatzentwicklung),"<>Total",INDIRECT(dshbrdrng_umsatzentwicklung),"<>Subtotal") + IF(INDEX(tblUmsatzFltr[Nr],MATCH(filter_umsatz,tblUmsatzFltr[Umsatz Filter],0)) = 1, SUMIFS(INDEX(INDIRECT(dshbrdrng_reingewinn2),0,MATCH(DATE($B86,MONTH(F$85),1),Erfolgsrechnung_Detail!$O$8:$DF$8,0)), INDIRECT(dshbrdrng_reingewinn),"<>Total",INDIRECT(dshbrdrng_reingewinn),"<>Subtotal"), SUMIFS(INDEX(INDIRECT(dshbrdrng_reingewinn2),0,MATCH(DATE($B86,MONTH(F$85),1),Erfolgsrechnung_Detail!$O$8:$DF$8,0)), INDIRECT(dshbrdrng_reingewinn),"<>Total",INDIRECT(dshbrdrng_reingewinn),"<>Subtotal")+E86),"") -> 2676.336303 | G86: =IFERROR(SUMIFS(INDEX(INDIRECT(dshbrdrng_umsatzentwicklung2),0,MATCH(DATE($B14,MONTH(G$13),1),Erfolgsrechnung_Detail!$O$8:$DF$8,0)), INDIRECT(dshbrdrng_umsatzentwicklung),"<>Total",INDIRECT(dshbrdrng_umsatzentwicklung),"<>Subtotal") + IF(INDEX(tblUmsatzFltr[Nr],MATCH(filter_umsatz,tblUmsatzFltr[Umsatz Filter],0)) = 1, SUMIFS(INDEX(INDIRECT(dshbrdrng_reingewinn2),0,MATCH(DATE($B86,MONTH(G$85),1),Erfolgsrechnung_Detail!$O$8:$DF$8,0)), INDIRECT(dshbrdrng_reingewinn),"<>Total",INDIRECT(dshbrdrng_reingewinn),"<>Subtotal"), SUMIFS(INDEX(INDIRECT(dshbrdrng_reingewinn2),0,MATCH(DATE($B86,MONTH(G$85),1),Erfolgsrechnung_Detail!$O$8:$DF$8,0)), INDIRECT(dshbrdrng_reingewinn),"<>Total",INDIRECT(dshbrdrng_reingewinn),"<>Subtotal")+F86),"") -> 8257.990341 | H86: =IFERROR(SUMIFS(INDEX(INDIRECT(dshbrdrng_umsatzentwicklung2),0,MATCH(DATE($B14,MONTH(H$13),1),Erfolgsrechnung_Detail!$O$8:$DF$8,0)), INDIRECT(dshbrdrng_umsatzentwicklung),"<>Total",INDIRECT(dshbrdrng_umsatzentwicklung),"<>Subtotal") + IF(INDEX(tblUmsatzFltr[Nr],MATCH(filter_umsatz,tblUmsatzFltr[Umsatz Filter],0)) = 1, SUMIFS(INDEX(INDIRECT(dshbrdrng_reingewinn2),0,MATCH(DATE($B86,MONTH(H$85),1),Erfolgsrechnung_Detail!$O$8:$DF$8,0)), INDIRECT(dshbrdrng_reingewinn),"<>Total",INDIRECT(dshbrdrng_reingewinn),"<>Subtotal"), SUMIFS(INDEX(INDIRECT(dshbrdrng_reingewinn2),0,MATCH(DATE($B86,MONTH(H$85),1),Erfolgsrechnung_Detail!$O$8:$DF$8,0)), INDIRECT(dshbrdrng_reingewinn),"<>Total",INDIRECT(dshbrdrng_reingewinn),"<>Subtotal")+G86),"") -> 2118.84531 | I86: =IFERROR(SUMIFS(INDEX(INDIRECT(dshbrdrng_umsatzentwicklung2),0,MATCH(DATE($B14,MONTH(I$13),1),Erfolgsrechnung_Detail!$O$8:$DF$8,0)), INDIRECT(dshbrdrng_umsatzentwicklung),"<>Total",INDIRECT(dshbrdrng_umsatzentwicklung),"<>Subtotal") + IF(INDEX(tblUmsatzFltr[Nr],MATCH(filter_umsatz,tblUmsatzFltr[Umsatz Filter],0)) = 1, SUMIFS(INDEX(INDIRECT(dshbrdrng_reingewinn2),0,MATCH(DATE($B86,MONTH(I$85),1),Erfolgsrechnung_Detail!$O$8:$DF$8,0)), INDIRECT(dshbrdrng_reingewinn),"<>Total",INDIRECT(dshbrdrng_reingewinn),"<>Subtotal"), SUMIFS(INDEX(INDIRECT(dshbrdrng_reingewinn2),0,MATCH(DATE($B86,MONTH(I$85),1),Erfolgsrechnung_Detail!$O$8:$DF$8,0)), INDIRECT(dshbrdrng_reingewinn),"<>Total",INDIRECT(dshbrdrng_reingewinn),"<>Subtotal")+H86),"") -> -727.0487399 | J86: =IFERROR(SUMIFS(INDEX(INDIRECT(dshbrdrng_umsatzentwicklung2),0,MATCH(DATE($B14,MONTH(J$13),1),Erfolgsrechnung_Detail!$O$8:$DF$8,0)), INDIRECT(dshbrdrng_umsatzentwicklung),"<>Total",INDIRECT(dshbrdrng_umsatzentwicklung),"<>Subtotal") + IF(INDEX(tblUmsatzFltr[Nr],MATCH(filter_umsatz,tblUmsatzFltr[Umsatz Filter],0)) = 1, SUMIFS(INDEX(INDIRECT(dshbrdrng_reingewinn2),0,MATCH(DATE($B86,MONTH(J$85),1),Erfolgsrechnung_Detail!$O$8:$DF$8,0)), INDIRECT(dshbrdrng_reingewinn),"<>Total",INDIRECT(dshbrdrng_reingewinn),"<>Subtotal"), SUMIFS(INDEX(INDIRECT(dshbrdrng_reingewinn2),0,MATCH(DATE($B86,MONTH(J$85),1),Erfolgsrechnung_Detail!$O$8:$DF$8,0)), INDIRECT(dshbrdrng_reingewinn),"<>Total",INDIRECT(dshbrdrng_reingewinn),"<>Subtotal")+I86),"") -> 4857.742247 | K86: =IFERROR(SUMIFS(INDEX(INDIRECT(dshbrdrng_umsatzentwicklung2),0,MATCH(DATE($B14,MONTH(K$13),1),Erfolgsrechnung_Detail!$O$8:$DF$8,0)), INDIRECT(dshbrdrng_umsatzentwicklung),"<>Total",INDIRECT(dshbrdrng_umsatzentwicklung),"<>Subtotal") + IF(INDEX(tblUmsatzFltr[Nr],MATCH(filter_umsatz,tblUmsatzFltr[Umsatz Filter],0)) = 1, SUMIFS(INDEX(INDIRECT(dshbrdrng_reingewinn2),0,MATCH(DATE($B86,MONTH(K$85),1),Erfolgsrechnung_Detail!$O$8:$DF$8,0)), INDIRECT(dshbrdrng_reingewinn),"<>Total",INDIRECT(dshbrdrng_reingewinn),"<>Subtotal"), SUMIFS(INDEX(INDIRECT(dshbrdrng_reingewinn2),0,MATCH(DATE($B86,MONTH(K$85),1),Erfolgsrechnung_Detail!$O$8:$DF$8,0)), INDIRECT(dshbrdrng_reingewinn),"<>Total",INDIRECT(dshbrdrng_reingewinn),"<>Subtotal")+J86),"") -> 4084.797943 | L86: =IFERROR(SUMIFS(INDEX(INDIRECT(dshbrdrng_umsatzentwicklung2),0,MATCH(DATE($B14,MONTH(L$13),1),Erfolgsrechnung_Detail!$O$8:$DF$8,0)), INDIRECT(dshbrdrng_umsatzentwicklung),"<>Total",INDIRECT(dshbrdrng_umsatzentwicklung),"<>Subtotal") + IF(INDEX(tblUmsatzFltr[Nr],MATCH(filter_umsatz,tblUmsatzFltr[Umsatz Filter],0)) = 1, SUMIFS(INDEX(INDIRECT(dshbrdrng_reingewinn2),0,MATCH(DATE($B86,MONTH(L$85),1),Erfolgsrechnung_Detail!$O$8:$DF$8,0)), INDIRECT(dshbrdrng_reingewinn),"<>Total",INDIRECT(dshbrdrng_reingewinn),"<>Subtotal"), SUMIFS(INDEX(INDIRECT(dshbrdrng_reingewinn2),0,MATCH(DATE($B86,MONTH(L$85),1),Erfolgsrechnung_Detail!$O$8:$DF$8,0)), INDIRECT(dshbrdrng_reingewinn),"<>Total",INDIRECT(dshbrdrng_reingewinn),"<>Subtotal")+K86),"") -> 7184.802325 | M86: =IFERROR(SUMIFS(INDEX(INDIRECT(dshbrdrng_umsatzentwicklung2),0,MATCH(DATE($B14,MONTH(M$13),1),Erfolgsrechnung_Detail!$O$8:$DF$8,0)), INDIRECT(dshbrdrng_umsatzentwicklung),"<>Total",INDIRECT(dshbrdrng_umsatzentwicklung),"<>Subtotal") + IF(INDEX(tblUmsatzFltr[Nr],MATCH(filter_umsatz,tblUmsatzFltr[Umsatz Filter],0)) = 1, SUMIFS(INDEX(INDIRECT(dshbrdrng_reingewinn2),0,MATCH(DATE($B86,MONTH(M$85),1),Erfolgsrechnung_Detail!$O$8:$DF$8,0)), INDIRECT(dshbrdrng_reingewinn),"<>Total",INDIRECT(dshbrdrng_reingewinn),"<>Subtotal"), SUMIFS(INDEX(INDIRECT(dshbrdrng_reingewinn2),0,MATCH(DATE($B86,MONTH(M$85),1),Erfolgsrechnung_Detail!$O$8:$DF$8,0)), INDIRECT(dshbrdrng_reingewinn),"<>Total",INDIRECT(dshbrdrng_reingewinn),"<>Subtotal")+L86),"") -> 4013.012711 | N86: =IFERROR(SUMIFS(INDEX(INDIRECT(dshbrdrng_umsatzentwicklung2),0,MATCH(DATE($B14,MONTH(N$13),1),Erfolgsrechnung_Detail!$O$8:$DF$8,0)), INDIRECT(dshbrdrng_umsatzentwicklung),"<>Total",INDIRECT(dshbrdrng_umsatzentwicklung),"<>Subtotal") + IF(INDEX(tblUmsatzFltr[Nr],MATCH(filter_umsatz,tblUmsatzFltr[Umsatz Filter],0)) = 1, SUMIFS(INDEX(INDIRECT(dshbrdrng_reingewinn2),0,MATCH(DATE($B86,MONTH(N$85),1),Erfolgsrechnung_Detail!$O$8:$DF$8,0)), INDIRECT(dshbrdrng_reingewinn),"<>Total",INDIRECT(dshbrdrng_reingewinn),"<>Subtotal"), SUMIFS(INDEX(INDIRECT(dshbrdrng_reingewinn2),0,MATCH(DATE($B86,MONTH(N$85),1),Erfolgsrechnung_Detail!$O$8:$DF$8,0)), INDIRECT(dshbrdrng_reingewinn),"<>Total",INDIRECT(dshbrdrng_reingewinn),"<>Subtotal")+M86),"") -> 410.824262 | P86: =IFERROR(IF( INDEX(tblUmsatzFltr[Nr],MATCH(filter_umsatz,tblUmsatzFltr[Umsatz Filter],0))=1, SUM($C86:INDEX($C86:$N86,1,selectedmonat_num)), INDEX($C86:$N86,0,MATCH(monat,tblMonate[Monate],0))),"") -> 39188.78502 | Q86: =IFERROR( IF(INDEX(tblUmsatzFltr[Nr],MATCH($B$7,tblUmsatzFltr[Umsatz Filter],0)) = 1, SUM(Dashboard!$C86:$N86),Dashboard!$N86),"") -> 39188.78502
B87: =Einstellungen!$B$15-5 -> 2015 | C87: =IFERROR(C15+ SUMIFS(INDEX(INDIRECT(dshbrdrng_reingewinn2),0,MATCH(DATE($B87,MONTH(C$85),1),Erfolgsrechnung_Detail!$O$8:$DF$8,0)), INDIRECT(dshbrdrng_reingewinn),"<>Total",INDIRECT(dshbrdrng_reingewinn),"<>Subtotal"), "") -> 5480.191733 | D87: =IFERROR(SUMIFS(INDEX(INDIRECT(dshbrdrng_umsatzentwicklung2),0,MATCH(DATE($B15,MONTH(D$13),1),Erfolgsrechnung_Detail!$O$8:$DF$8,0)), INDIRECT(dshbrdrng_umsatzentwicklung),"<>Total",INDIRECT(dshbrdrng_umsatzentwicklung),"<>Subtotal") + IF(INDEX(tblUmsatzFltr[Nr],MATCH(filter_umsatz,tblUmsatzFltr[Umsatz Filter],0)) = 1, SUMIFS(INDEX(INDIRECT(dshbrdrng_reingewinn2),0,MATCH(DATE($B87,MONTH(D$85),1),Erfolgsrechnung_Detail!$O$8:$DF$8,0)), INDIRECT(dshbrdrng_reingewinn),"<>Total",INDIRECT(dshbrdrng_reingewinn),"<>Subtotal"), SUMIFS(INDEX(INDIRECT(dshbrdrng_reingewinn2),0,MATCH(DATE($B87,MONTH(D$85),1),Erfolgsrechnung_Detail!$O$8:$DF$8,0)), INDIRECT(dshbrdrng_reingewinn),"<>Total",INDIRECT(dshbrdrng_reingewinn),"<>Subtotal")+C87),"") -> 8119.688114 | E87: =IFERROR(SUMIFS(INDEX(INDIRECT(dshbrdrng_umsatzentwicklung2),0,MATCH(DATE($B15,MONTH(E$13),1),Erfolgsrechnung_Detail!$O$8:$DF$8,0)), INDIRECT(dshbrdrng_umsatzentwicklung),"<>Total",INDIRECT(dshbrdrng_umsatzentwicklung),"<>Subtotal") + IF(INDEX(tblUmsatzFltr[Nr],MATCH(filter_umsatz,tblUmsatzFltr[Umsatz Filter],0)) = 1, SUMIFS(INDEX(INDIRECT(dshbrdrng_reingewinn2),0,MATCH(DATE($B87,MONTH(E$85),1),Erfolgsrechnung_Detail!$O$8:$DF$8,0)), INDIRECT(dshbrdrng_reingewinn),"<>Total",INDIRECT(dshbrdrng_reingewinn),"<>Subtotal"), SUMIFS(INDEX(INDIRECT(dshbrdrng_reingewinn2),0,MATCH(DATE($B87,MONTH(E$85),1),Erfolgsrechnung_Detail!$O$8:$DF$8,0)), INDIRECT(dshbrdrng_reingewinn),"<>Total",INDIRECT(dshbrdrng_reingewinn),"<>Subtotal")+D87),"") -> 216.4097314 | F87: =IFERROR(SUMIFS(INDEX(INDIRECT(dshbrdrng_umsatzentwicklung2),0,MATCH(DATE($B15,MONTH(F$13),1),Erfolgsrechnung_Detail!$O$8:$DF$8,0)), INDIRECT(dshbrdrng_umsatzentwicklung),"<>Total",INDIRECT(dshbrdrng_umsatzentwicklung),"<>Subtotal") + IF(INDEX(tblUmsatzFltr[Nr],MATCH(filter_umsatz,tblUmsatzFltr[Umsatz Filter],0)) = 1, SUMIFS(INDEX(INDIRECT(dshbrdrng_reingewinn2),0,MATCH(DATE($B87,MONTH(F$85),1),Erfolgsrechnung_Detail!$O$8:$DF$8,0)), INDIRECT(dshbrdrng_reingewinn),"<>Total",INDIRECT(dshbrdrng_reingewinn),"<>Subtotal"), SUMIFS(INDEX(INDIRECT(dshbrdrng_reingewinn2),0,MATCH(DATE($B87,MONTH(F$85),1),Erfolgsrechnung_Detail!$O$8:$DF$8,0)), INDIRECT(dshbrdrng_reingewinn),"<>Total",INDIRECT(dshbrdrng_reingewinn),"<>Subtotal")+E87),"") -> 2213.881744 | G87: =IFERROR(SUMIFS(INDEX(INDIRECT(dshbrdrng_umsatzentwicklung2),0,MATCH(DATE($B15,MONTH(G$13),1),Erfolgsrechnung_Detail!$O$8:$DF$8,0)), INDIRECT(dshbrdrng_umsatzentwicklung),"<>Total",INDIRECT(dshbrdrng_umsatzentwicklung),"<>Subtotal") + IF(INDEX(tblUmsatzFltr[Nr],MATCH(filter_umsatz,tblUmsatzFltr[Umsatz Filter],0)) = 1, SUMIFS(INDEX(INDIRECT(dshbrdrng_reingewinn2),0,MATCH(DATE($B87,MONTH(G$85),1),Erfolgsrechnung_Detail!$O$8:$DF$8,0)), INDIRECT(dshbrdrng_reingewinn),"<>Total",INDIRECT(dshbrdrng_reingewinn),"<>Subtotal"), SUMIFS(INDEX(INDIRECT(dshbrdrng_reingewinn2),0,MATCH(DATE($B87,MONTH(G$85),1),Erfolgsrechnung_Detail!$O$8:$DF$8,0)), INDIRECT(dshbrdrng_reingewinn),"<>Total",INDIRECT(dshbrdrng_reingewinn),"<>Subtotal")+F87),"") -> 4533.801013 | H87: =IFERROR(SUMIFS(INDEX(INDIRECT(dshbrdrng_umsatzentwicklung2),0,MATCH(DATE($B15,MONTH(H$13),1),Erfolgsrechnung_Detail!$O$8:$DF$8,0)), INDIRECT(dshbrdrng_umsatzentwicklung),"<>Total",INDIRECT(dshbrdrng_umsatzentwicklung),"<>Subtotal") + IF(INDEX(tblUmsatzFltr[Nr],MATCH(filter_umsatz,tblUmsatzFltr[Umsatz Filter],0)) = 1, SUMIFS(INDEX(INDIRECT(dshbrdrng_reingewinn2),0,MATCH(DATE($B87,MONTH(H$85),1),Erfolgsrechnung_Detail!$O$8:$DF$8,0)), INDIRECT(dshbrdrng_reingewinn),"<>Total",INDIRECT(dshbrdrng_reingewinn),"<>Subtotal"), SUMIFS(INDEX(INDIRECT(dshbrdrng_reingewinn2),0,MATCH(DATE($B87,MONTH(H$85),1),Erfolgsrechnung_Detail!$O$8:$DF$8,0)), INDIRECT(dshbrdrng_reingewinn),"<>Total",INDIRECT(dshbrdrng_reingewinn),"<>Subtotal")+G87),"") -> 3901.151382 | I87: =IFERROR(SUMIFS(INDEX(INDIRECT(dshbrdrng_umsatzentwicklung2),0,MATCH(DATE($B15,MONTH(I$13),1),Erfolgsrechnung_Detail!$O$8:$DF$8,0)), INDIRECT(dshbrdrng_umsatzentwicklung),"<>Total",INDIRECT(dshbrdrng_umsatzentwicklung),"<>Subtotal") + IF(INDEX(tblUmsatzFltr[Nr],MATCH(filter_umsatz,tblUmsatzFltr[Umsatz Filter],0)) = 1, SUMIFS(INDEX(INDIRECT(dshbrdrng_reingewinn2),0,MATCH(DATE($B87,MONTH(I$85),1),Erfolgsrechnung_Detail!$O$8:$DF$8,0)), INDIRECT(dshbrdrng_reingewinn),"<>Total",INDIRECT(dshbrdrng_reingewinn),"<>Subtotal"), SUMIFS(INDEX(INDIRECT(dshbrdrng_reingewinn2),0,MATCH(DATE($B87,MONTH(I$85),1),Erfolgsrechnung_Detail!$O$8:$DF$8,0)), INDIRECT(dshbrdrng_reingewinn),"<>Total",INDIRECT(dshbrdrng_reingewinn),"<>Subtotal")+H87),"") -> 1829.646686 | J87: =IFERROR(SUMIFS(INDEX(INDIRECT(dshbrdrng_umsatzentwicklung2),0,MATCH(DATE($B15,MONTH(J$13),1),Erfolgsrechnung_Detail!$O$8:$DF$8,0)), INDIRECT(dshbrdrng_umsatzentwicklung),"<>Total",INDIRECT(dshbrdrng_umsatzentwicklung),"<>Subtotal") + IF(INDEX(tblUmsatzFltr[Nr],MATCH(filter_umsatz,tblUmsatzFltr[Umsatz Filter],0)) = 1, SUMIFS(INDEX(INDIRECT(dshbrdrng_reingewinn2),0,MATCH(DATE($B87,MONTH(J$85),1),Erfolgsrechnung_Detail!$O$8:$DF$8,0)), INDIRECT(dshbrdrng_reingewinn),"<>Total",INDIRECT(dshbrdrng_reingewinn),"<>Subtotal"), SUMIFS(INDEX(INDIRECT(dshbrdrng_reingewinn2),0,MATCH(DATE($B87,MONTH(J$85),1),Erfolgsrechnung_Detail!$O$8:$DF$8,0)), INDIRECT(dshbrdrng_reingewinn),"<>Total",INDIRECT(dshbrdrng_reingewinn),"<>Subtotal")+I87),"") -> 8836.871548 | K87: =IFERROR(SUMIFS(INDEX(INDIRECT(dshbrdrng_umsatzentwicklung2),0,MATCH(DATE($B15,MONTH(K$13),1),Erfolgsrechnung_Detail!$O$8:$DF$8,0)), INDIRECT(dshbrdrng_umsatzentwicklung),"<>Total",INDIRECT(dshbrdrng_umsatzentwicklung),"<>Subtotal") + IF(INDEX(tblUmsatzFltr[Nr],MATCH(filter_umsatz,tblUmsatzFltr[Umsatz Filter],0)) = 1, SUMIFS(INDEX(INDIRECT(dshbrdrng_reingewinn2),0,MATCH(DATE($B87,MONTH(K$85),1),Erfolgsrechnung_Detail!$O$8:$DF$8,0)), INDIRECT(dshbrdrng_reingewinn),"<>Total",INDIRECT(dshbrdrng_reingewinn),"<>Subtotal"), SUMIFS(INDEX(INDIRECT(dshbrdrng_reingewinn2),0,MATCH(DATE($B87,MONTH(K$85),1),Erfolgsrechnung_Detail!$O$8:$DF$8,0)), INDIRECT(dshbrdrng_reingewinn),"<>Total",INDIRECT(dshbrdrng_reingewinn),"<>Subtotal")+J87),"") -> 3993.222021 | L87: =IFERROR(SUMIFS(INDEX(INDIRECT(dshbrdrng_umsatzentwicklung2),0,MATCH(DATE($B15,MONTH(L$13),1),Erfolgsrechnung_Detail!$O$8:$DF$8,0)), INDIRECT(dshbrdrng_umsatzentwicklung),"<>Total",INDIRECT(dshbrdrng_umsatzentwicklung),"<>Subtotal") + IF(INDEX(tblUmsatzFltr[Nr],MATCH(filter_umsatz,tblUmsatzFltr[Umsatz Filter],0)) = 1, SUMIFS(INDEX(INDIRECT(dshbrdrng_reingewinn2),0,MATCH(DATE($B87,MONTH(L$85),1),Erfolgsrechnung_Detail!$O$8:$DF$8,0)), INDIRECT(dshbrdrng_reingewinn),"<>Total",INDIRECT(dshbrdrng_reingewinn),"<>Subtotal"), SUMIFS(INDEX(INDIRECT(dshbrdrng_reingewinn2),0,MATCH(DATE($B87,MONTH(L$85),1),Erfolgsrechnung_Detail!$O$8:$DF$8,0)), INDIRECT(dshbrdrng_reingewinn),"<>Total",INDIRECT(dshbrdrng_reingewinn),"<>Subtotal")+K87),"") -> 5768.842231 | M87: =IFERROR(SUMIFS(INDEX(INDIRECT(dshbrdrng_umsatzentwicklung2),0,MATCH(DATE($B15,MONTH(M$13),1),Erfolgsrechnung_Detail!$O$8:$DF$8,0)), INDIRECT(dshbrdrng_umsatzentwicklung),"<>Total",INDIRECT(dshbrdrng_umsatzentwicklung),"<>Subtotal") + IF(INDEX(tblUmsatzFltr[Nr],MATCH(filter_umsatz,tblUmsatzFltr[Umsatz Filter],0)) = 1, SUMIFS(INDEX(INDIRECT(dshbrdrng_reingewinn2),0,MATCH(DATE($B87,MONTH(M$85),1),Erfolgsrechnung_Detail!$O$8:$DF$8,0)), INDIRECT(dshbrdrng_reingewinn),"<>Total",INDIRECT(dshbrdrng_reingewinn),"<>Subtotal"), SUMIFS(INDEX(INDIRECT(dshbrdrng_reingewinn2),0,MATCH(DATE($B87,MONTH(M$85),1),Erfolgsrechnung_Detail!$O$8:$DF$8,0)), INDIRECT(dshbrdrng_reingewinn),"<>Total",INDIRECT(dshbrdrng_reingewinn),"<>Subtotal")+L87),"") -> 6449.884648 | N87: =IFERROR(SUMIFS(INDEX(INDIRECT(dshbrdrng_umsatzentwicklung2),0,MATCH(DATE($B15,MONTH(N$13),1),Erfolgsrechnung_Detail!$O$8:$DF$8,0)), INDIRECT(dshbrdrng_umsatzentwicklung),"<>Total",INDIRECT(dshbrdrng_umsatzentwicklung),"<>Subtotal") + IF(INDEX(tblUmsatzFltr[Nr],MATCH(filter_umsatz,tblUmsatzFltr[Umsatz Filter],0)) = 1, SUMIFS(INDEX(INDIRECT(dshbrdrng_reingewinn2),0,MATCH(DATE($B87,MONTH(N$85),1),Erfolgsrechnung_Detail!$O$8:$DF$8,0)), INDIRECT(dshbrdrng_reingewinn),"<>Total",INDIRECT(dshbrdrng_reingewinn),"<>Subtotal"), SUMIFS(INDEX(INDIRECT(dshbrdrng_reingewinn2),0,MATCH(DATE($B87,MONTH(N$85),1),Erfolgsrechnung_Detail!$O$8:$DF$8,0)), INDIRECT(dshbrdrng_reingewinn),"<>Total",INDIRECT(dshbrdrng_reingewinn),"<>Subtotal")+M87),"") -> 11857.3063 | P87: =IFERROR(IF( INDEX(tblUmsatzFltr[Nr],MATCH(filter_umsatz,tblUmsatzFltr[Umsatz Filter],0))=1, SUM($C87:INDEX($C87:$N87,1,selectedmonat_num)), INDEX($C87:$N87,0,MATCH(monat,tblMonate[Monate],0))),"") -> 63200.89715 | Q87: =IFERROR( IF(INDEX(tblUmsatzFltr[Nr],MATCH($B$7,tblUmsatzFltr[Umsatz Filter],0)) = 1, SUM(Dashboard!$C87:$N87),Dashboard!$N87),"") -> 63200.89715
B88: =Einstellungen!$B$15-4 -> 2016 | C88: =IFERROR(C16+ SUMIFS(INDEX(INDIRECT(dshbrdrng_reingewinn2),0,MATCH(DATE($B88,MONTH(C$85),1),Erfolgsrechnung_Detail!$O$8:$DF$8,0)), INDIRECT(dshbrdrng_reingewinn),"<>Total",INDIRECT(dshbrdrng_reingewinn),"<>Subtotal"), "") -> 2019.628062 | D88: =IFERROR(SUMIFS(INDEX(INDIRECT(dshbrdrng_umsatzentwicklung2),0,MATCH(DATE($B16,MONTH(D$13),1),Erfolgsrechnung_Detail!$O$8:$DF$8,0)), INDIRECT(dshbrdrng_umsatzentwicklung),"<>Total",INDIRECT(dshbrdrng_umsatzentwicklung),"<>Subtotal") + IF(INDEX(tblUmsatzFltr[Nr],MATCH(filter_umsatz,tblUmsatzFltr[Umsatz Filter],0)) = 1, SUMIFS(INDEX(INDIRECT(dshbrdrng_reingewinn2),0,MATCH(DATE($B88,MONTH(D$85),1),Erfolgsrechnung_Detail!$O$8:$DF$8,0)), INDIRECT(dshbrdrng_reingewinn),"<>Total",INDIRECT(dshbrdrng_reingewinn),"<>Subtotal"), SUMIFS(INDEX(INDIRECT(dshbrdrng_reingewinn2),0,MATCH(DATE($B88,MONTH(D$85),1),Erfolgsrechnung_Detail!$O$8:$DF$8,0)), INDIRECT(dshbrdrng_reingewinn),"<>Total",INDIRECT(dshbrdrng_reingewinn),"<>Subtotal")+C88),"") -> 14136.87603 | E88: =IFERROR(SUMIFS(INDEX(INDIRECT(dshbrdrng_umsatzentwicklung2),0,MATCH(DATE($B16,MONTH(E$13),1),Erfolgsrechnung_Detail!$O$8:$DF$8,0)), INDIRECT(dshbrdrng_umsatzentwicklung),"<>Total",INDIRECT(dshbrdrng_umsatzentwicklung),"<>Subtotal") + IF(INDEX(tblUmsatzFltr[Nr],MATCH(filter_umsatz,tblUmsatzFltr[Umsatz Filter],0)) = 1, SUMIFS(INDEX(INDIRECT(dshbrdrng_reingewinn2),0,MATCH(DATE($B88,MONTH(E$85),1),Erfolgsrechnung_Detail!$O$8:$DF$8,0)), INDIRECT(dshbrdrng_reingewinn),"<>Total",INDIRECT(dshbrdrng_reingewinn),"<>Subtotal"), SUMIFS(INDEX(INDIRECT(dshbrdrng_reingewinn2),0,MATCH(DATE($B88,MONTH(E$85),1),Erfolgsrechnung_Detail!$O$8:$DF$8,0)), INDIRECT(dshbrdrng_reingewinn),"<>Total",INDIRECT(dshbrdrng_reingewinn),"<>Subtotal")+D88),"") -> 5323.199388 | F88: =IFERROR(SUMIFS(INDEX(INDIRECT(dshbrdrng_umsatzentwicklung2),0,MATCH(DATE($B16,MONTH(F$13),1),Erfolgsrechnung_Detail!$O$8:$DF$8,0)), INDIRECT(dshbrdrng_umsatzentwicklung),"<>Total",INDIRECT(dshbrdrng_umsatzentwicklung),"<>Subtotal") + IF(INDEX(tblUmsatzFltr[Nr],MATCH(filter_umsatz,tblUmsatzFltr[Umsatz Filter],0)) = 1, SUMIFS(INDEX(INDIRECT(dshbrdrng_reingewinn2),0,MATCH(DATE($B88,MONTH(F$85),1),Erfolgsrechnung_Detail!$O$8:$DF$8,0)), INDIRECT(dshbrdrng_reingewinn),"<>Total",INDIRECT(dshbrdrng_reingewinn),"<>Subtotal"), SUMIFS(INDEX(INDIRECT(dshbrdrng_reingewinn2),0,MATCH(DATE($B88,MONTH(F$85),1),Erfolgsrechnung_Detail!$O$8:$DF$8,0)), INDIRECT(dshbrdrng_reingewinn),"<>Total",INDIRECT(dshbrdrng_reingewinn),"<>Subtotal")+E88),"") -> 7857.296934 | G88: =IFERROR(SUMIFS(INDEX(INDIRECT(dshbrdrng_umsatzentwicklung2),0,MATCH(DATE($B16,MONTH(G$13),1),Erfolgsrechnung_Detail!$O$8:$DF$8,0)), INDIRECT(dshbrdrng_umsatzentwicklung),"<>Total",INDIRECT(dshbrdrng_umsatzentwicklung),"<>Subtotal") + IF(INDEX(tblUmsatzFltr[Nr],MATCH(filter_umsatz,tblUmsatzFltr[Umsatz Filter],0)) = 1, SUMIFS(INDEX(INDIRECT(dshbrdrng_reingewinn2),0,MATCH(DATE($B88,MONTH(G$85),1),Erfolgsrechnung_Detail!$O$8:$DF$8,0)), INDIRECT(dshbrdrng_reingewinn),"<>Total",INDIRECT(dshbrdrng_reingewinn),"<>Subtotal"), SUMIFS(INDEX(INDIRECT(dshbrdrng_reingewinn2),0,MATCH(DATE($B88,MONTH(G$85),1),Erfolgsrechnung_Detail!$O$8:$DF$8,0)), INDIRECT(dshbrdrng_reingewinn),"<>Total",INDIRECT(dshbrdrng_reingewinn),"<>Subtotal")+F88),"") -> 10613.00492 | H88: =IFERROR(SUMIFS(INDEX(INDIRECT(dshbrdrng_umsatzentwicklung2),0,MATCH(DATE($B16,MONTH(H$13),1),Erfolgsrechnung_Detail!$O$8:$DF$8,0)), INDIRECT(dshbrdrng_umsatzentwicklung),"<>Total",INDIRECT(dshbrdrng_umsatzentwicklung),"<>Subtotal") + IF(INDEX(tblUmsatzFltr[Nr],MATCH(filter_umsatz,tblUmsatzFltr[Umsatz Filter],0)) = 1, SUMIFS(INDEX(INDIRECT(dshbrdrng_reingewinn2),0,MATCH(DATE($B88,MONTH(H$85),1),Erfolgsrechnung_Detail!$O$8:$DF$8,0)), INDIRECT(dshbrdrng_reingewinn),"<>Total",INDIRECT(dshbrdrng_reingewinn),"<>Subtotal"), SUMIFS(INDEX(INDIRECT(dshbrdrng_reingewinn2),0,MATCH(DATE($B88,MONTH(H$85),1),Erfolgsrechnung_Detail!$O$8:$DF$8,0)), INDIRECT(dshbrdrng_reingewinn),"<>Total",INDIRECT(dshbrdrng_reingewinn),"<>Subtotal")+G88),"") -> 14254.16222 | I88: =IFERROR(SUMIFS(INDEX(INDIRECT(dshbrdrng_umsatzentwicklung2),0,MATCH(DATE($B16,MONTH(I$13),1),Erfolgsrechnung_Detail!$O$8:$DF$8,0)), INDIRECT(dshbrdrng_umsatzentwicklung),"<>Total",INDIRECT(dshbrdrng_umsatzentwicklung),"<>Subtotal") + IF(INDEX(tblUmsatzFltr[Nr],MATCH(filter_umsatz,tblUmsatzFltr[Umsatz Filter],0)) = 1, SUMIFS(INDEX(INDIRECT(dshbrdrng_reingewinn2),0,MATCH(DATE($B88,MONTH(I$85),1),Erfolgsrechnung_Detail!$O$8:$DF$8,0)), INDIRECT(dshbrdrng_reingewinn),"<>Total",INDIRECT(dshbrdrng_reingewinn),"<>Subtotal"), SUMIFS(INDEX(INDIRECT(dshbrdrng_reingewinn2),0,MATCH(DATE($B88,MONTH(I$85),1),Erfolgsrechnung_Detail!$O$8:$DF$8,0)), INDIRECT(dshbrdrng_reingewinn),"<>Total",INDIRECT(dshbrdrng_reingewinn),"<>Subtotal")+H88),"") -> 6814.957397 | J88: =IFERROR(SUMIFS(INDEX(INDIRECT(dshbrdrng_umsatzentwicklung2),0,MATCH(DATE($B16,MONTH(J$13),1),Erfolgsrechnung_Detail!$O$8:$DF$8,0)), INDIRECT(dshbrdrng_umsatzentwicklung),"<>Total",INDIRECT(dshbrdrng_umsatzentwicklung),"<>Subtotal") + IF(INDEX(tblUmsatzFltr[Nr],MATCH(filter_umsatz,tblUmsatzFltr[Umsatz Filter],0)) = 1, SUMIFS(INDEX(INDIRECT(dshbrdrng_reingewinn2),0,MATCH(DATE($B88,MONTH(J$85),1),Erfolgsrechnung_Detail!$O$8:$DF$8,0)), INDIRECT(dshbrdrng_reingewinn),"<>Total",INDIRECT(dshbrdrng_reingewinn),"<>Subtotal"), SUMIFS(INDEX(INDIRECT(dshbrdrng_reingewinn2),0,MATCH(DATE($B88,MONTH(J$85),1),Erfolgsrechnung_Detail!$O$8:$DF$8,0)), INDIRECT(dshbrdrng_reingewinn),"<>Total",INDIRECT(dshbrdrng_reingewinn),"<>Subtotal")+I88),"") -> 8210.127252 | K88: =IFERROR(SUMIFS(INDEX(INDIRECT(dshbrdrng_umsatzentwicklung2),0,MATCH(DATE($B16,MONTH(K$13),1),Erfolgsrechnung_Detail!$O$8:$DF$8,0)), INDIRECT(dshbrdrng_umsatzentwicklung),"<>Total",INDIRECT(dshbrdrng_umsatzentwicklung),"<>Subtotal") + IF(INDEX(tblUmsatzFltr[Nr],MATCH(filter_umsatz,tblUmsatzFltr[Umsatz Filter],0)) = 1, SUMIFS(INDEX(INDIRECT(dshbrdrng_reingewinn2),0,MATCH(DATE($B88,MONTH(K$85),1),Erfolgsrechnung_Detail!$O$8:$DF$8,0)), INDIRECT(dshbrdrng_reingewinn),"<>Total",INDIRECT(dshbrdrng_reingewinn),"<>Subtotal"), SUMIFS(INDEX(INDIRECT(dshbrdrng_reingewinn2),0,MATCH(DATE($B88,MONTH(K$85),1),Erfolgsrechnung_Detail!$O$8:$DF$8,0)), INDIRECT(dshbrdrng_reingewinn),"<>Total",INDIRECT(dshbrdrng_reingewinn),"<>Subtotal")+J88),"") -> 12183.41877 | L88: =IFERROR(SUMIFS(INDEX(INDIRECT(dshbrdrng_umsatzentwicklung2),0,MATCH(DATE($B16,MONTH(L$13),1),Erfolgsrechnung_Detail!$O$8:$DF$8,0)), INDIRECT(dshbrdrng_umsatzentwicklung),"<>Total",INDIRECT(dshbrdrng_umsatzentwicklung),"<>Subtotal") + IF(INDEX(tblUmsatzFltr[Nr],MATCH(filter_umsatz,tblUmsatzFltr[Umsatz Filter],0)) = 1, SUMIFS(INDEX(INDIRECT(dshbrdrng_reingewinn2),0,MATCH(DATE($B88,MONTH(L$85),1),Erfolgsrechnung_Detail!$O$8:$DF$8,0)), INDIRECT(dshbrdrng_reingewinn),"<>Total",INDIRECT(dshbrdrng_reingewinn),"<>Subtotal"), SUMIFS(INDEX(INDIRECT(dshbrdrng_reingewinn2),0,MATCH(DATE($B88,MONTH(L$85),1),Erfolgsrechnung_Detail!$O$8:$DF$8,0)), INDIRECT(dshbrdrng_reingewinn),"<>Total",INDIRECT(dshbrdrng_reingewinn),"<>Subtotal")+K88),"") -> 7312.272841 | M88: =IFERROR(SUMIFS(INDEX(INDIRECT(dshbrdrng_umsatzentwicklung2),0,MATCH(DATE($B16,MONTH(M$13),1),Erfolgsrechnung_Detail!$O$8:$DF$8,0)), INDIRECT(dshbrdrng_umsatzentwicklung),"<>Total",INDIRECT(dshbrdrng_umsatzentwicklung),"<>Subtotal") + IF(INDEX(tblUmsatzFltr[Nr],MATCH(filter_umsatz,tblUmsatzFltr[Umsatz Filter],0)) = 1, SUMIFS(INDEX(INDIRECT(dshbrdrng_reingewinn2),0,MATCH(DATE($B88,MONTH(M$85),1),Erfolgsrechnung_Detail!$O$8:$DF$8,0)), INDIRECT(dshbrdrng_reingewinn),"<>Total",INDIRECT(dshbrdrng_reingewinn),"<>Subtotal"), SUMIFS(INDEX(INDIRECT(dshbrdrng_reingewinn2),0,MATCH(DATE($B88,MONTH(M$85),1),Erfolgsrechnung_Detail!$O$8:$DF$8,0)), INDIRECT(dshbrdrng_reingewinn),"<>Total",INDIRECT(dshbrdrng_reingewinn),"<>Subtotal")+L88),"") -> 11051.76437 | N88: =IFERROR(SUMIFS(INDEX(INDIRECT(dshbrdrng_umsatzentwicklung2),0,MATCH(DATE($B16,MONTH(N$13),1),Erfolgsrechnung_Detail!$O$8:$DF$8,0)), INDIRECT(dshbrdrng_umsatzentwicklung),"<>Total",INDIRECT(dshbrdrng_umsatzentwicklung),"<>Subtotal") + IF(INDEX(tblUmsatzFltr[Nr],MATCH(filter_umsatz,tblUmsatzFltr[Umsatz Filter],0)) = 1, SUMIFS(INDEX(INDIRECT(dshbrdrng_reingewinn2),0,MATCH(DATE($B88,MONTH(N$85),1),Erfolgsrechnung_Detail!$O$8:$DF$8,0)), INDIRECT(dshbrdrng_reingewinn),"<>Total",INDIRECT(dshbrdrng_reingewinn),"<>Subtotal"), SUMIFS(INDEX(INDIRECT(dshbrdrng_reingewinn2),0,MATCH(DATE($B88,MONTH(N$85),1),Erfolgsrechnung_Detail!$O$8:$DF$8,0)), INDIRECT(dshbrdrng_reingewinn),"<>Total",INDIRECT(dshbrdrng_reingewinn),"<>Subtotal")+M88),"") -> 12278.74714 | P88: =IFERROR(IF( INDEX(tblUmsatzFltr[Nr],MATCH(filter_umsatz,tblUmsatzFltr[Umsatz Filter],0))=1, SUM($C88:INDEX($C88:$N88,1,selectedmonat_num)), INDEX($C88:$N88,0,MATCH(monat,tblMonate[Monate],0))),"") -> 112055.4553 | Q88: =IFERROR( IF(INDEX(tblUmsatzFltr[Nr],MATCH($B$7,tblUmsatzFltr[Umsatz Filter],0)) = 1, SUM(Dashboard!$C88:$N88),Dashboard!$N88),"") -> 112055.4553
B89: =Einstellungen!$B$15-3 -> 2017 | C89: =IFERROR(C17+ SUMIFS(INDEX(INDIRECT(dshbrdrng_reingewinn2),0,MATCH(DATE($B89,MONTH(C$85),1),Erfolgsrechnung_Detail!$O$8:$DF$8,0)), INDIRECT(dshbrdrng_reingewinn),"<>Total",INDIRECT(dshbrdrng_reingewinn),"<>Subtotal"), "") -> 18716.12061 | D89: =IFERROR(SUMIFS(INDEX(INDIRECT(dshbrdrng_umsatzentwicklung2),0,MATCH(DATE($B17,MONTH(D$13),1),Erfolgsrechnung_Detail!$O$8:$DF$8,0)), INDIRECT(dshbrdrng_umsatzentwicklung),"<>Total",INDIRECT(dshbrdrng_umsatzentwicklung),"<>Subtotal") + IF(INDEX(tblUmsatzFltr[Nr],MATCH(filter_umsatz,tblUmsatzFltr[Umsatz Filter],0)) = 1, SUMIFS(INDEX(INDIRECT(dshbrdrng_reingewinn2),0,MATCH(DATE($B89,MONTH(D$85),1),Erfolgsrechnung_Detail!$O$8:$DF$8,0)), INDIRECT(dshbrdrng_reingewinn),"<>Total",INDIRECT(dshbrdrng_reingewinn),"<>Subtotal"), SUMIFS(INDEX(INDIRECT(dshbrdrng_reingewinn2),0,MATCH(DATE($B89,MONTH(D$85),1),Erfolgsrechnung_Detail!$O$8:$DF$8,0)), INDIRECT(dshbrdrng_reingewinn),"<>Total",INDIRECT(dshbrdrng_reingewinn),"<>Subtotal")+C89),"") -> 15348.4508 | E89: =IFERROR(SUMIFS(INDEX(INDIRECT(dshbrdrng_umsatzentwicklung2),0,MATCH(DATE($B17,MONTH(E$13),1),Erfolgsrechnung_Detail!$O$8:$DF$8,0)), INDIRECT(dshbrdrng_umsatzentwicklung),"<>Total",INDIRECT(dshbrdrng_umsatzentwicklung),"<>Subtotal") + IF(INDEX(tblUmsatzFltr[Nr],MATCH(filter_umsatz,tblUmsatzFltr[Umsatz Filter],0)) = 1, SUMIFS(INDEX(INDIRECT(dshbrdrng_reingewinn2),0,MATCH(DATE($B89,MONTH(E$85),1),Erfolgsrechnung_Detail!$O$8:$DF$8,0)), INDIRECT(dshbrdrng_reingewinn),"<>Total",INDIRECT(dshbrdrng_reingewinn),"<>Subtotal"), SUMIFS(INDEX(INDIRECT(dshbrdrng_reingewinn2),0,MATCH(DATE($B89,MONTH(E$85),1),Erfolgsrechnung_Detail!$O$8:$DF$8,0)), INDIRECT(dshbrdrng_reingewinn),"<>Total",INDIRECT(dshbrdrng_reingewinn),"<>Subtotal")+D89),"") -> 11591.6995 | F89: =IFERROR(SUMIFS(INDEX(INDIRECT(dshbrdrng_umsatzentwicklung2),0,MATCH(DATE($B17,MONTH(F$13),1),Erfolgsrechnung_Detail!$O$8:$DF$8,0)), INDIRECT(dshbrdrng_umsatzentwicklung),"<>Total",INDIRECT(dshbrdrng_umsatzentwicklung),"<>Subtotal") + IF(INDEX(tblUmsatzFltr[Nr],MATCH(filter_umsatz,tblUmsatzFltr[Umsatz Filter],0)) = 1, SUMIFS(INDEX(INDIRECT(dshbrdrng_reingewinn2),0,MATCH(DATE($B89,MONTH(F$85),1),Erfolgsrechnung_Detail!$O$8:$DF$8,0)), INDIRECT(dshbrdrng_reingewinn),"<>Total",INDIRECT(dshbrdrng_reingewinn),"<>Subtotal"), SUMIFS(INDEX(INDIRECT(dshbrdrng_reingewinn2),0,MATCH(DATE($B89,MONTH(F$85),1),Erfolgsrechnung_Detail!$O$8:$DF$8,0)), INDIRECT(dshbrdrng_reingewinn),"<>Total",INDIRECT(dshbrdrng_reingewinn),"<>Subtotal")+E89),"") -> 21026.93845 | G89: =IFERROR(SUMIFS(INDEX(INDIRECT(dshbrdrng_umsatzentwicklung2),0,MATCH(DATE($B17,MONTH(G$13),1),Erfolgsrechnung_Detail!$O$8:$DF$8,0)), INDIRECT(dshbrdrng_umsatzentwicklung),"<>Total",INDIRECT(dshbrdrng_umsatzentwicklung),"<>Subtotal") + IF(INDEX(tblUmsatzFltr[Nr],MATCH(filter_umsatz,tblUmsatzFltr[Umsatz Filter],0)) = 1, SUMIFS(INDEX(INDIRECT(dshbrdrng_reingewinn2),0,MATCH(DATE($B89,MONTH(G$85),1),Erfolgsrechnung_Detail!$O$8:$DF$8,0)), INDIRECT(dshbrdrng_reingewinn),"<>Total",INDIRECT(dshbrdrng_reingewinn),"<>Subtotal"), SUMIFS(INDEX(INDIRECT(dshbrdrng_reingewinn2),0,MATCH(DATE($B89,MONTH(G$85),1),Erfolgsrechnung_Detail!$O$8:$DF$8,0)), INDIRECT(dshbrdrng_reingewinn),"<>Total",INDIRECT(dshbrdrng_reingewinn),"<>Subtotal")+F89),"") -> 19073.28821 | H89: =IFERROR(SUMIFS(INDEX(INDIRECT(dshbrdrng_umsatzentwicklung2),0,MATCH(DATE($B17,MONTH(H$13),1),Erfolgsrechnung_Detail!$O$8:$DF$8,0)), INDIRECT(dshbrdrng_umsatzentwicklung),"<>Total",INDIRECT(dshbrdrng_umsatzentwicklung),"<>Subtotal") + IF(INDEX(tblUmsatzFltr[Nr],MATCH(filter_umsatz,tblUmsatzFltr[Umsatz Filter],0)) = 1, SUMIFS(INDEX(INDIRECT(dshbrdrng_reingewinn2),0,MATCH(DATE($B89,MONTH(H$85),1),Erfolgsrechnung_Detail!$O$8:$DF$8,0)), INDIRECT(dshbrdrng_reingewinn),"<>Total",INDIRECT(dshbrdrng_reingewinn),"<>Subtotal"), SUMIFS(INDEX(INDIRECT(dshbrdrng_reingewinn2),0,MATCH(DATE($B89,MONTH(H$85),1),Erfolgsrechnung_Detail!$O$8:$DF$8,0)), INDIRECT(dshbrdrng_reingewinn),"<>Total",INDIRECT(dshbrdrng_reingewinn),"<>Subtotal")+G89),"") -> 12294.77293 | I89: =IFERROR(SUMIFS(INDEX(INDIRECT(dshbrdrng_umsatzentwicklung2),0,MATCH(DATE($B17,MONTH(I$13),1),Erfolgsrechnung_Detail!$O$8:$DF$8,0)), INDIRECT(dshbrdrng_umsatzentwicklung),"<>Total",INDIRECT(dshbrdrng_umsatzentwicklung),"<>Subtotal") + IF(INDEX(tblUmsatzFltr[Nr],MATCH(filter_umsatz,tblUmsatzFltr[Umsatz Filter],0)) = 1, SUMIFS(INDEX(INDIRECT(dshbrdrng_reingewinn2),0,MATCH(DATE($B89,MONTH(I$85),1),Erfolgsrechnung_Detail!$O$8:$DF$8,0)), INDIRECT(dshbrdrng_reingewinn),"<>Total",INDIRECT(dshbrdrng_reingewinn),"<>Subtotal"), SUMIFS(INDEX(INDIRECT(dshbrdrng_reingewinn2),0,MATCH(DATE($B89,MONTH(I$85),1),Erfolgsrechnung_Detail!$O$8:$DF$8,0)), INDIRECT(dshbrdrng_reingewinn),"<>Total",INDIRECT(dshbrdrng_reingewinn),"<>Subtotal")+H89),"") -> 21763.39076 | J89: =IFERROR(SUMIFS(INDEX(INDIRECT(dshbrdrng_umsatzentwicklung2),0,MATCH(DATE($B17,MONTH(J$13),1),Erfolgsrechnung_Detail!$O$8:$DF$8,0)), INDIRECT(dshbrdrng_umsatzentwicklung),"<>Total",INDIRECT(dshbrdrng_umsatzentwicklung),"<>Subtotal") + IF(INDEX(tblUmsatzFltr[Nr],MATCH(filter_umsatz,tblUmsatzFltr[Umsatz Filter],0)) = 1, SUMIFS(INDEX(INDIRECT(dshbrdrng_reingewinn2),0,MATCH(DATE($B89,MONTH(J$85),1),Erfolgsrechnung_Detail!$O$8:$DF$8,0)), INDIRECT(dshbrdrng_reingewinn),"<>Total",INDIRECT(dshbrdrng_reingewinn),"<>Subtotal"), SUMIFS(INDEX(INDIRECT(dshbrdrng_reingewinn2),0,MATCH(DATE($B89,MONTH(J$85),1),Erfolgsrechnung_Detail!$O$8:$DF$8,0)), INDIRECT(dshbrdrng_reingewinn),"<>Total",INDIRECT(dshbrdrng_reingewinn),"<>Subtotal")+I89),"") -> 24533.74729 | K89: =IFERROR(SUMIFS(INDEX(INDIRECT(dshbrdrng_umsatzentwicklung2),0,MATCH(DATE($B17,MONTH(K$13),1),Erfolgsrechnung_Detail!$O$8:$DF$8,0)), INDIRECT(dshbrdrng_umsatzentwicklung),"<>Total",INDIRECT(dshbrdrng_umsatzentwicklung),"<>Subtotal") + IF(INDEX(tblUmsatzFltr[Nr],MATCH(filter_umsatz,tblUmsatzFltr[Umsatz Filter],0)) = 1, SUMIFS(INDEX(INDIRECT(dshbrdrng_reingewinn2),0,MATCH(DATE($B89,MONTH(K$85),1),Erfolgsrechnung_Detail!$O$8:$DF$8,0)), INDIRECT(dshbrdrng_reingewinn),"<>Total",INDIRECT(dshbrdrng_reingewinn),"<>Subtotal"), SUMIFS(INDEX(INDIRECT(dshbrdrng_reingewinn2),0,MATCH(DATE($B89,MONTH(K$85),1),Erfolgsrechnung_Detail!$O$8:$DF$8,0)), INDIRECT(dshbrdrng_reingewinn),"<>Total",INDIRECT(dshbrdrng_reingewinn),"<>Subtotal")+J89),"") -> 19922.76134 | L89: =IFERROR(SUMIFS(INDEX(INDIRECT(dshbrdrng_umsatzentwicklung2),0,MATCH(DATE($B17,MONTH(L$13),1),Erfolgsrechnung_Detail!$O$8:$DF$8,0)), INDIRECT(dshbrdrng_umsatzentwicklung),"<>Total",INDIRECT(dshbrdrng_umsatzentwicklung),"<>Subtotal") + IF(INDEX(tblUmsatzFltr[Nr],MATCH(filter_umsatz,tblUmsatzFltr[Umsatz Filter],0)) = 1, SUMIFS(INDEX(INDIRECT(dshbrdrng_reingewinn2),0,MATCH(DATE($B89,MONTH(L$85),1),Erfolgsrechnung_Detail!$O$8:$DF$8,0)), INDIRECT(dshbrdrng_reingewinn),"<>Total",INDIRECT(dshbrdrng_reingewinn),"<>Subtotal"), SUMIFS(INDEX(INDIRECT(dshbrdrng_reingewinn2),0,MATCH(DATE($B89,MONTH(L$85),1),Erfolgsrechnung_Detail!$O$8:$DF$8,0)), INDIRECT(dshbrdrng_reingewinn),"<>Total",INDIRECT(dshbrdrng_reingewinn),"<>Subtotal")+K89),"") -> 29573.14839 | M89: =IFERROR(SUMIFS(INDEX(INDIRECT(dshbrdrng_umsatzentwicklung2),0,MATCH(DATE($B17,MONTH(M$13),1),Erfolgsrechnung_Detail!$O$8:$DF$8,0)), INDIRECT(dshbrdrng_umsatzentwicklung),"<>Total",INDIRECT(dshbrdrng_umsatzentwicklung),"<>Subtotal") + IF(INDEX(tblUmsatzFltr[Nr],MATCH(filter_umsatz,tblUmsatzFltr[Umsatz Filter],0)) = 1, SUMIFS(INDEX(INDIRECT(dshbrdrng_reingewinn2),0,MATCH(DATE($B89,MONTH(M$85),1),Erfolgsrechnung_Detail!$O$8:$DF$8,0)), INDIRECT(dshbrdrng_reingewinn),"<>Total",INDIRECT(dshbrdrng_reingewinn),"<>Subtotal"), SUMIFS(INDEX(INDIRECT(dshbrdrng_reingewinn2),0,MATCH(DATE($B89,MONTH(M$85),1),Erfolgsrechnung_Detail!$O$8:$DF$8,0)), INDIRECT(dshbrdrng_reingewinn),"<>Total",INDIRECT(dshbrdrng_reingewinn),"<>Subtotal")+L89),"") -> 12715.81184 | N89: =IFERROR(SUMIFS(INDEX(INDIRECT(dshbrdrng_umsatzentwicklung2),0,MATCH(DATE($B17,MONTH(N$13),1),Erfolgsrechnung_Detail!$O$8:$DF$8,0)), INDIRECT(dshbrdrng_umsatzentwicklung),"<>Total",INDIRECT(dshbrdrng_umsatzentwicklung),"<>Subtotal") + IF(INDEX(tblUmsatzFltr[Nr],MATCH(filter_umsatz,tblUmsatzFltr[Umsatz Filter],0)) = 1, SUMIFS(INDEX(INDIRECT(dshbrdrng_reingewinn2),0,MATCH(DATE($B89,MONTH(N$85),1),Erfolgsrechnung_Detail!$O$8:$DF$8,0)), INDIRECT(dshbrdrng_reingewinn),"<>Total",INDIRECT(dshbrdrng_reingewinn),"<>Subtotal"), SUMIFS(INDEX(INDIRECT(dshbrdrng_reingewinn2),0,MATCH(DATE($B89,MONTH(N$85),1),Erfolgsrechnung_Detail!$O$8:$DF$8,0)), INDIRECT(dshbrdrng_reingewinn),"<>Total",INDIRECT(dshbrdrng_reingewinn),"<>Subtotal")+M89),"") -> 23608.80137 | P89: =IFERROR(IF( INDEX(tblUmsatzFltr[Nr],MATCH(filter_umsatz,tblUmsatzFltr[Umsatz Filter],0))=1, SUM($C89:INDEX($C89:$N89,1,selectedmonat_num)), INDEX($C89:$N89,0,MATCH(monat,tblMonate[Monate],0))),"") -> 230168.9315 | Q89: =IFERROR( IF(INDEX(tblUmsatzFltr[Nr],MATCH($B$7,tblUmsatzFltr[Umsatz Filter],0)) = 1, SUM(Dashboard!$C89:$N89),Dashboard!$N89),"") -> 230168.9315
B90: =Einstellungen!$B$15-2 -> 2018 | C90: =IFERROR(C18+ SUMIFS(INDEX(INDIRECT(dshbrdrng_reingewinn2),0,MATCH(DATE($B90,MONTH(C$85),1),Erfolgsrechnung_Detail!$O$8:$DF$8,0)), INDIRECT(dshbrdrng_reingewinn),"<>Total",INDIRECT(dshbrdrng_reingewinn),"<>Subtotal"), "") -> 2019.628062 | D90: =IFERROR(SUMIFS(INDEX(INDIRECT(dshbrdrng_umsatzentwicklung2),0,MATCH(DATE($B18,MONTH(D$13),1),Erfolgsrechnung_Detail!$O$8:$DF$8,0)), INDIRECT(dshbrdrng_umsatzentwicklung),"<>Total",INDIRECT(dshbrdrng_umsatzentwicklung),"<>Subtotal") + IF(INDEX(tblUmsatzFltr[Nr],MATCH(filter_umsatz,tblUmsatzFltr[Umsatz Filter],0)) = 1, SUMIFS(INDEX(INDIRECT(dshbrdrng_reingewinn2),0,MATCH(DATE($B90,MONTH(D$85),1),Erfolgsrechnung_Detail!$O$8:$DF$8,0)), INDIRECT(dshbrdrng_reingewinn),"<>Total",INDIRECT(dshbrdrng_reingewinn),"<>Subtotal"), SUMIFS(INDEX(INDIRECT(dshbrdrng_reingewinn2),0,MATCH(DATE($B90,MONTH(D$85),1),Erfolgsrechnung_Detail!$O$8:$DF$8,0)), INDIRECT(dshbrdrng_reingewinn),"<>Total",INDIRECT(dshbrdrng_reingewinn),"<>Subtotal")+C90),"") -> 14170.40961 | E90: =IFERROR(SUMIFS(INDEX(INDIRECT(dshbrdrng_umsatzentwicklung2),0,MATCH(DATE($B18,MONTH(E$13),1),Erfolgsrechnung_Detail!$O$8:$DF$8,0)), INDIRECT(dshbrdrng_umsatzentwicklung),"<>Total",INDIRECT(dshbrdrng_umsatzentwicklung),"<>Subtotal") + IF(INDEX(tblUmsatzFltr[Nr],MATCH(filter_umsatz,tblUmsatzFltr[Umsatz Filter],0)) = 1, SUMIFS(INDEX(INDIRECT(dshbrdrng_reingewinn2),0,MATCH(DATE($B90,MONTH(E$85),1),Erfolgsrechnung_Detail!$O$8:$DF$8,0)), INDIRECT(dshbrdrng_reingewinn),"<>Total",INDIRECT(dshbrdrng_reingewinn),"<>Subtotal"), SUMIFS(INDEX(INDIRECT(dshbrdrng_reingewinn2),0,MATCH(DATE($B90,MONTH(E$85),1),Erfolgsrechnung_Detail!$O$8:$DF$8,0)), INDIRECT(dshbrdrng_reingewinn),"<>Total",INDIRECT(dshbrdrng_reingewinn),"<>Subtotal")+D90),"") -> 5289.665808 | F90: =IFERROR(SUMIFS(INDEX(INDIRECT(dshbrdrng_umsatzentwicklung2),0,MATCH(DATE($B18,MONTH(F$13),1),Erfolgsrechnung_Detail!$O$8:$DF$8,0)), INDIRECT(dshbrdrng_umsatzentwicklung),"<>Total",INDIRECT(dshbrdrng_umsatzentwicklung),"<>Subtotal") + IF(INDEX(tblUmsatzFltr[Nr],MATCH(filter_umsatz,tblUmsatzFltr[Umsatz Filter],0)) = 1, SUMIFS(INDEX(INDIRECT(dshbrdrng_reingewinn2),0,MATCH(DATE($B90,MONTH(F$85),1),Erfolgsrechnung_Detail!$O$8:$DF$8,0)), INDIRECT(dshbrdrng_reingewinn),"<>Total",INDIRECT(dshbrdrng_reingewinn),"<>Subtotal"), SUMIFS(INDEX(INDIRECT(dshbrdrng_reingewinn2),0,MATCH(DATE($B90,MONTH(F$85),1),Erfolgsrechnung_Detail!$O$8:$DF$8,0)), INDIRECT(dshbrdrng_reingewinn),"<>Total",INDIRECT(dshbrdrng_reingewinn),"<>Subtotal")+E90),"") -> 7857.296934 | G90: =IFERROR(SUMIFS(INDEX(INDIRECT(dshbrdrng_umsatzentwicklung2),0,MATCH(DATE($B18,MONTH(G$13),1),Erfolgsrechnung_Detail!$O$8:$DF$8,0)), INDIRECT(dshbrdrng_umsatzentwicklung),"<>Total",INDIRECT(dshbrdrng_umsatzentwicklung),"<>Subtotal") + IF(INDEX(tblUmsatzFltr[Nr],MATCH(filter_umsatz,tblUmsatzFltr[Umsatz Filter],0)) = 1, SUMIFS(INDEX(INDIRECT(dshbrdrng_reingewinn2),0,MATCH(DATE($B90,MONTH(G$85),1),Erfolgsrechnung_Detail!$O$8:$DF$8,0)), INDIRECT(dshbrdrng_reingewinn),"<>Total",INDIRECT(dshbrdrng_reingewinn),"<>Subtotal"), SUMIFS(INDEX(INDIRECT(dshbrdrng_reingewinn2),0,MATCH(DATE($B90,MONTH(G$85),1),Erfolgsrechnung_Detail!$O$8:$DF$8,0)), INDIRECT(dshbrdrng_reingewinn),"<>Total",INDIRECT(dshbrdrng_reingewinn),"<>Subtotal")+F90),"") -> 10613.00492 | H90: =IFERROR(SUMIFS(INDEX(INDIRECT(dshbrdrng_umsatzentwicklung2),0,MATCH(DATE($B18,MONTH(H$13),1),Erfolgsrechnung_Detail!$O$8:$DF$8,0)), INDIRECT(dshbrdrng_umsatzentwicklung),"<>Total",INDIRECT(dshbrdrng_umsatzentwicklung),"<>Subtotal") + IF(INDEX(tblUmsatzFltr[Nr],MATCH(filter_umsatz,tblUmsatzFltr[Umsatz Filter],0)) = 1, SUMIFS(INDEX(INDIRECT(dshbrdrng_reingewinn2),0,MATCH(DATE($B90,MONTH(H$85),1),Erfolgsrechnung_Detail!$O$8:$DF$8,0)), INDIRECT(dshbrdrng_reingewinn),"<>Total",INDIRECT(dshbrdrng_reingewinn),"<>Subtotal"), SUMIFS(INDEX(INDIRECT(dshbrdrng_reingewinn2),0,MATCH(DATE($B90,MONTH(H$85),1),Erfolgsrechnung_Detail!$O$8:$DF$8,0)), INDIRECT(dshbrdrng_reingewinn),"<>Total",INDIRECT(dshbrdrng_reingewinn),"<>Subtotal")+G90),"") -> 14254.16222 | I90: =IFERROR(SUMIFS(INDEX(INDIRECT(dshbrdrng_umsatzentwicklung2),0,MATCH(DATE($B18,MONTH(I$13),1),Erfolgsrechnung_Detail!$O$8:$DF$8,0)), INDIRECT(dshbrdrng_umsatzentwicklung),"<>Total",INDIRECT(dshbrdrng_umsatzentwicklung),"<>Subtotal") + IF(INDEX(tblUmsatzFltr[Nr],MATCH(filter_umsatz,tblUmsatzFltr[Umsatz Filter],0)) = 1, SUMIFS(INDEX(INDIRECT(dshbrdrng_reingewinn2),0,MATCH(DATE($B90,MONTH(I$85),1),Erfolgsrechnung_Detail!$O$8:$DF$8,0)), INDIRECT(dshbrdrng_reingewinn),"<>Total",INDIRECT(dshbrdrng_reingewinn),"<>Subtotal"), SUMIFS(INDEX(INDIRECT(dshbrdrng_reingewinn2),0,MATCH(DATE($B90,MONTH(I$85),1),Erfolgsrechnung_Detail!$O$8:$DF$8,0)), INDIRECT(dshbrdrng_reingewinn),"<>Total",INDIRECT(dshbrdrng_reingewinn),"<>Subtotal")+H90),"") -> 6814.957397 | J90: =IFERROR(SUMIFS(INDEX(INDIRECT(dshbrdrng_umsatzentwicklung2),0,MATCH(DATE($B18,MONTH(J$13),1),Erfolgsrechnung_Detail!$O$8:$DF$8,0)), INDIRECT(dshbrdrng_umsatzentwicklung),"<>Total",INDIRECT(dshbrdrng_umsatzentwicklung),"<>Subtotal") + IF(INDEX(tblUmsatzFltr[Nr],MATCH(filter_umsatz,tblUmsatzFltr[Umsatz Filter],0)) = 1, SUMIFS(INDEX(INDIRECT(dshbrdrng_reingewinn2),0,MATCH(DATE($B90,MONTH(J$85),1),Erfolgsrechnung_Detail!$O$8:$DF$8,0)), INDIRECT(dshbrdrng_reingewinn),"<>Total",INDIRECT(dshbrdrng_reingewinn),"<>Subtotal"), SUMIFS(INDEX(INDIRECT(dshbrdrng_reingewinn2),0,MATCH(DATE($B90,MONTH(J$85),1),Erfolgsrechnung_Detail!$O$8:$DF$8,0)), INDIRECT(dshbrdrng_reingewinn),"<>Total",INDIRECT(dshbrdrng_reingewinn),"<>Subtotal")+I90),"") -> 8210.127252 | K90: =IFERROR(SUMIFS(INDEX(INDIRECT(dshbrdrng_umsatzentwicklung2),0,MATCH(DATE($B18,MONTH(K$13),1),Erfolgsrechnung_Detail!$O$8:$DF$8,0)), INDIRECT(dshbrdrng_umsatzentwicklung),"<>Total",INDIRECT(dshbrdrng_umsatzentwicklung),"<>Subtotal") + IF(INDEX(tblUmsatzFltr[Nr],MATCH(filter_umsatz,tblUmsatzFltr[Umsatz Filter],0)) = 1, SUMIFS(INDEX(INDIRECT(dshbrdrng_reingewinn2),0,MATCH(DATE($B90,MONTH(K$85),1),Erfolgsrechnung_Detail!$O$8:$DF$8,0)), INDIRECT(dshbrdrng_reingewinn),"<>Total",INDIRECT(dshbrdrng_reingewinn),"<>Subtotal"), SUMIFS(INDEX(INDIRECT(dshbrdrng_reingewinn2),0,MATCH(DATE($B90,MONTH(K$85),1),Erfolgsrechnung_Detail!$O$8:$DF$8,0)), INDIRECT(dshbrdrng_reingewinn),"<>Total",INDIRECT(dshbrdrng_reingewinn),"<>Subtotal")+J90),"") -> 12183.41877 | L90: =IFERROR(SUMIFS(INDEX(INDIRECT(dshbrdrng_umsatzentwicklung2),0,MATCH(DATE($B18,MONTH(L$13),1),Erfolgsrechnung_Detail!$O$8:$DF$8,0)), INDIRECT(dshbrdrng_umsatzentwicklung),"<>Total",INDIRECT(dshbrdrng_umsatzentwicklung),"<>Subtotal") + IF(INDEX(tblUmsatzFltr[Nr],MATCH(filter_umsatz,tblUmsatzFltr[Umsatz Filter],0)) = 1, SUMIFS(INDEX(INDIRECT(dshbrdrng_reingewinn2),0,MATCH(DATE($B90,MONTH(L$85),1),Erfolgsrechnung_Detail!$O$8:$DF$8,0)), INDIRECT(dshbrdrng_reingewinn),"<>Total",INDIRECT(dshbrdrng_reingewinn),"<>Subtotal"), SUMIFS(INDEX(INDIRECT(dshbrdrng_reingewinn2),0,MATCH(DATE($B90,MONTH(L$85),1),Erfolgsrechnung_Detail!$O$8:$DF$8,0)), INDIRECT(dshbrdrng_reingewinn),"<>Total",INDIRECT(dshbrdrng_reingewinn),"<>Subtotal")+K90),"") -> 7312.272841 | M90: =IFERROR(SUMIFS(INDEX(INDIRECT(dshbrdrng_umsatzentwicklung2),0,MATCH(DATE($B18,MONTH(M$13),1),Erfolgsrechnung_Detail!$O$8:$DF$8,0)), INDIRECT(dshbrdrng_umsatzentwicklung),"<>Total",INDIRECT(dshbrdrng_umsatzentwicklung),"<>Subtotal") + IF(INDEX(tblUmsatzFltr[Nr],MATCH(filter_umsatz,tblUmsatzFltr[Umsatz Filter],0)) = 1, SUMIFS(INDEX(INDIRECT(dshbrdrng_reingewinn2),0,MATCH(DATE($B90,MONTH(M$85),1),Erfolgsrechnung_Detail!$O$8:$DF$8,0)), INDIRECT(dshbrdrng_reingewinn),"<>Total",INDIRECT(dshbrdrng_reingewinn),"<>Subtotal"), SUMIFS(INDEX(INDIRECT(dshbrdrng_reingewinn2),0,MATCH(DATE($B90,MONTH(M$85),1),Erfolgsrechnung_Detail!$O$8:$DF$8,0)), INDIRECT(dshbrdrng_reingewinn),"<>Total",INDIRECT(dshbrdrng_reingewinn),"<>Subtotal")+L90),"") -> 11051.76437 | N90: =IFERROR(SUMIFS(INDEX(INDIRECT(dshbrdrng_umsatzentwicklung2),0,MATCH(DATE($B18,MONTH(N$13),1),Erfolgsrechnung_Detail!$O$8:$DF$8,0)), INDIRECT(dshbrdrng_umsatzentwicklung),"<>Total",INDIRECT(dshbrdrng_umsatzentwicklung),"<>Subtotal") + IF(INDEX(tblUmsatzFltr[Nr],MATCH(filter_umsatz,tblUmsatzFltr[Umsatz Filter],0)) = 1, SUMIFS(INDEX(INDIRECT(dshbrdrng_reingewinn2),0,MATCH(DATE($B90,MONTH(N$85),1),Erfolgsrechnung_Detail!$O$8:$DF$8,0)), INDIRECT(dshbrdrng_reingewinn),"<>Total",INDIRECT(dshbrdrng_reingewinn),"<>Subtotal"), SUMIFS(INDEX(INDIRECT(dshbrdrng_reingewinn2),0,MATCH(DATE($B90,MONTH(N$85),1),Erfolgsrechnung_Detail!$O$8:$DF$8,0)), INDIRECT(dshbrdrng_reingewinn),"<>Total",INDIRECT(dshbrdrng_reingewinn),"<>Subtotal")+M90),"") -> 12278.74714 | P90: =IFERROR(IF( INDEX(tblUmsatzFltr[Nr],MATCH(filter_umsatz,tblUmsatzFltr[Umsatz Filter],0))=1, SUM($C90:INDEX($C90:$N90,1,selectedmonat_num)), INDEX($C90:$N90,0,MATCH(monat,tblMonate[Monate],0))),"") -> 112055.4553 | Q90: =IFERROR( IF(INDEX(tblUmsatzFltr[Nr],MATCH($B$7,tblUmsatzFltr[Umsatz Filter],0)) = 1, SUM(Dashboard!$C90:$N90),Dashboard!$N90),"") -> 112055.4553
B91: =Einstellungen!$B$15-1 -> 2019 | C91: =IFERROR(C19+ SUMIFS(INDEX(INDIRECT(dshbrdrng_reingewinn2),0,MATCH(DATE($B91,MONTH(C$85),1),Erfolgsrechnung_Detail!$O$8:$DF$8,0)), INDIRECT(dshbrdrng_reingewinn),"<>Total",INDIRECT(dshbrdrng_reingewinn),"<>Subtotal"), "") -> 16275.53906 | D91: =IFERROR(SUMIFS(INDEX(INDIRECT(dshbrdrng_umsatzentwicklung2),0,MATCH(DATE($B19,MONTH(D$13),1),Erfolgsrechnung_Detail!$O$8:$DF$8,0)), INDIRECT(dshbrdrng_umsatzentwicklung),"<>Total",INDIRECT(dshbrdrng_umsatzentwicklung),"<>Subtotal") + IF(INDEX(tblUmsatzFltr[Nr],MATCH(filter_umsatz,tblUmsatzFltr[Umsatz Filter],0)) = 1, SUMIFS(INDEX(INDIRECT(dshbrdrng_reingewinn2),0,MATCH(DATE($B91,MONTH(D$85),1),Erfolgsrechnung_Detail!$O$8:$DF$8,0)), INDIRECT(dshbrdrng_reingewinn),"<>Total",INDIRECT(dshbrdrng_reingewinn),"<>Subtotal"), SUMIFS(INDEX(INDIRECT(dshbrdrng_reingewinn2),0,MATCH(DATE($B91,MONTH(D$85),1),Erfolgsrechnung_Detail!$O$8:$DF$8,0)), INDIRECT(dshbrdrng_reingewinn),"<>Total",INDIRECT(dshbrdrng_reingewinn),"<>Subtotal")+C91),"") -> 5944.210431 | E91: =IFERROR(SUMIFS(INDEX(INDIRECT(dshbrdrng_umsatzentwicklung2),0,MATCH(DATE($B19,MONTH(E$13),1),Erfolgsrechnung_Detail!$O$8:$DF$8,0)), INDIRECT(dshbrdrng_umsatzentwicklung),"<>Total",INDIRECT(dshbrdrng_umsatzentwicklung),"<>Subtotal") + IF(INDEX(tblUmsatzFltr[Nr],MATCH(filter_umsatz,tblUmsatzFltr[Umsatz Filter],0)) = 1, SUMIFS(INDEX(INDIRECT(dshbrdrng_reingewinn2),0,MATCH(DATE($B91,MONTH(E$85),1),Erfolgsrechnung_Detail!$O$8:$DF$8,0)), INDIRECT(dshbrdrng_reingewinn),"<>Total",INDIRECT(dshbrdrng_reingewinn),"<>Subtotal"), SUMIFS(INDEX(INDIRECT(dshbrdrng_reingewinn2),0,MATCH(DATE($B91,MONTH(E$85),1),Erfolgsrechnung_Detail!$O$8:$DF$8,0)), INDIRECT(dshbrdrng_reingewinn),"<>Total",INDIRECT(dshbrdrng_reingewinn),"<>Subtotal")+D91),"") -> 23838.43468 | F91: =IFERROR(SUMIFS(INDEX(INDIRECT(dshbrdrng_umsatzentwicklung2),0,MATCH(DATE($B19,MONTH(F$13),1),Erfolgsrechnung_Detail!$O$8:$DF$8,0)), INDIRECT(dshbrdrng_umsatzentwicklung),"<>Total",INDIRECT(dshbrdrng_umsatzentwicklung),"<>Subtotal") + IF(INDEX(tblUmsatzFltr[Nr],MATCH(filter_umsatz,tblUmsatzFltr[Umsatz Filter],0)) = 1, SUMIFS(INDEX(INDIRECT(dshbrdrng_reingewinn2),0,MATCH(DATE($B91,MONTH(F$85),1),Erfolgsrechnung_Detail!$O$8:$DF$8,0)), INDIRECT(dshbrdrng_reingewinn),"<>Total",INDIRECT(dshbrdrng_reingewinn),"<>Subtotal"), SUMIFS(INDEX(INDIRECT(dshbrdrng_reingewinn2),0,MATCH(DATE($B91,MONTH(F$85),1),Erfolgsrechnung_Detail!$O$8:$DF$8,0)), INDIRECT(dshbrdrng_reingewinn),"<>Total",INDIRECT(dshbrdrng_reingewinn),"<>Subtotal")+E91),"") -> 34551.03397 | G91: =IFERROR(SUMIFS(INDEX(INDIRECT(dshbrdrng_umsatzentwicklung2),0,MATCH(DATE($B19,MONTH(G$13),1),Erfolgsrechnung_Detail!$O$8:$DF$8,0)), INDIRECT(dshbrdrng_umsatzentwicklung),"<>Total",INDIRECT(dshbrdrng_umsatzentwicklung),"<>Subtotal") + IF(INDEX(tblUmsatzFltr[Nr],MATCH(filter_umsatz,tblUmsatzFltr[Umsatz Filter],0)) = 1, SUMIFS(INDEX(INDIRECT(dshbrdrng_reingewinn2),0,MATCH(DATE($B91,MONTH(G$85),1),Erfolgsrechnung_Detail!$O$8:$DF$8,0)), INDIRECT(dshbrdrng_reingewinn),"<>Total",INDIRECT(dshbrdrng_reingewinn),"<>Subtotal"), SUMIFS(INDEX(INDIRECT(dshbrdrng_reingewinn2),0,MATCH(DATE($B91,MONTH(G$85),1),Erfolgsrechnung_Detail!$O$8:$DF$8,0)), INDIRECT(dshbrdrng_reingewinn),"<>Total",INDIRECT(dshbrdrng_reingewinn),"<>Subtotal")+F91),"") -> 22128.68207 | H91: =IFERROR(SUMIFS(INDEX(INDIRECT(dshbrdrng_umsatzentwicklung2),0,MATCH(DATE($B19,MONTH(H$13),1),Erfolgsrechnung_Detail!$O$8:$DF$8,0)), INDIRECT(dshbrdrng_umsatzentwicklung),"<>Total",INDIRECT(dshbrdrng_umsatzentwicklung),"<>Subtotal") + IF(INDEX(tblUmsatzFltr[Nr],MATCH(filter_umsatz,tblUmsatzFltr[Umsatz Filter],0)) = 1, SUMIFS(INDEX(INDIRECT(dshbrdrng_reingewinn2),0,MATCH(DATE($B91,MONTH(H$85),1),Erfolgsrechnung_Detail!$O$8:$DF$8,0)), INDIRECT(dshbrdrng_reingewinn),"<>Total",INDIRECT(dshbrdrng_reingewinn),"<>Subtotal"), SUMIFS(INDEX(INDIRECT(dshbrdrng_reingewinn2),0,MATCH(DATE($B91,MONTH(H$85),1),Erfolgsrechnung_Detail!$O$8:$DF$8,0)), INDIRECT(dshbrdrng_reingewinn),"<>Total",INDIRECT(dshbrdrng_reingewinn),"<>Subtotal")+G91),"") -> 10376.53367 | I91: =IFERROR(SUMIFS(INDEX(INDIRECT(dshbrdrng_umsatzentwicklung2),0,MATCH(DATE($B19,MONTH(I$13),1),Erfolgsrechnung_Detail!$O$8:$DF$8,0)), INDIRECT(dshbrdrng_umsatzentwicklung),"<>Total",INDIRECT(dshbrdrng_umsatzentwicklung),"<>Subtotal") + IF(INDEX(tblUmsatzFltr[Nr],MATCH(filter_umsatz,tblUmsatzFltr[Umsatz Filter],0)) = 1, SUMIFS(INDEX(INDIRECT(dshbrdrng_reingewinn2),0,MATCH(DATE($B91,MONTH(I$85),1),Erfolgsrechnung_Detail!$O$8:$DF$8,0)), INDIRECT(dshbrdrng_reingewinn),"<>Total",INDIRECT(dshbrdrng_reingewinn),"<>Subtotal"), SUMIFS(INDEX(INDIRECT(dshbrdrng_reingewinn2),0,MATCH(DATE($B91,MONTH(I$85),1),Erfolgsrechnung_Detail!$O$8:$DF$8,0)), INDIRECT(dshbrdrng_reingewinn),"<>Total",INDIRECT(dshbrdrng_reingewinn),"<>Subtotal")+H91),"") -> 37543.6173 | J91: =IFERROR(SUMIFS(INDEX(INDIRECT(dshbrdrng_umsatzentwicklung2),0,MATCH(DATE($B19,MONTH(J$13),1),Erfolgsrechnung_Detail!$O$8:$DF$8,0)), INDIRECT(dshbrdrng_umsatzentwicklung),"<>Total",INDIRECT(dshbrdrng_umsatzentwicklung),"<>Subtotal") + IF(INDEX(tblUmsatzFltr[Nr],MATCH(filter_umsatz,tblUmsatzFltr[Umsatz Filter],0)) = 1, SUMIFS(INDEX(INDIRECT(dshbrdrng_reingewinn2),0,MATCH(DATE($B91,MONTH(J$85),1),Erfolgsrechnung_Detail!$O$8:$DF$8,0)), INDIRECT(dshbrdrng_reingewinn),"<>Total",INDIRECT(dshbrdrng_reingewinn),"<>Subtotal"), SUMIFS(INDEX(INDIRECT(dshbrdrng_reingewinn2),0,MATCH(DATE($B91,MONTH(J$85),1),Erfolgsrechnung_Detail!$O$8:$DF$8,0)), INDIRECT(dshbrdrng_reingewinn),"<>Total",INDIRECT(dshbrdrng_reingewinn),"<>Subtotal")+I91),"") -> 14620.99564 | K91: =IFERROR(SUMIFS(INDEX(INDIRECT(dshbrdrng_umsatzentwicklung2),0,MATCH(DATE($B19,MONTH(K$13),1),Erfolgsrechnung_Detail!$O$8:$DF$8,0)), INDIRECT(dshbrdrng_umsatzentwicklung),"<>Total",INDIRECT(dshbrdrng_umsatzentwicklung),"<>Subtotal") + IF(INDEX(tblUmsatzFltr[Nr],MATCH(filter_umsatz,tblUmsatzFltr[Umsatz Filter],0)) = 1, SUMIFS(INDEX(INDIRECT(dshbrdrng_reingewinn2),0,MATCH(DATE($B91,MONTH(K$85),1),Erfolgsrechnung_Detail!$O$8:$DF$8,0)), INDIRECT(dshbrdrng_reingewinn),"<>Total",INDIRECT(dshbrdrng_reingewinn),"<>Subtotal"), SUMIFS(INDEX(INDIRECT(dshbrdrng_reingewinn2),0,MATCH(DATE($B91,MONTH(K$85),1),Erfolgsrechnung_Detail!$O$8:$DF$8,0)), INDIRECT(dshbrdrng_reingewinn),"<>Total",INDIRECT(dshbrdrng_reingewinn),"<>Subtotal")+J91),"") -> 24934.48455 | L91: =IFERROR(SUMIFS(INDEX(INDIRECT(dshbrdrng_umsatzentwicklung2),0,MATCH(DATE($B19,MONTH(L$13),1),Erfolgsrechnung_Detail!$O$8:$DF$8,0)), INDIRECT(dshbrdrng_umsatzentwicklung),"<>Total",INDIRECT(dshbrdrng_umsatzentwicklung),"<>Subtotal") + IF(INDEX(tblUmsatzFltr[Nr],MATCH(filter_umsatz,tblUmsatzFltr[Umsatz Filter],0)) = 1, SUMIFS(INDEX(INDIRECT(dshbrdrng_reingewinn2),0,MATCH(DATE($B91,MONTH(L$85),1),Erfolgsrechnung_Detail!$O$8:$DF$8,0)), INDIRECT(dshbrdrng_reingewinn),"<>Total",INDIRECT(dshbrdrng_reingewinn),"<>Subtotal"), SUMIFS(INDEX(INDIRECT(dshbrdrng_reingewinn2),0,MATCH(DATE($B91,MONTH(L$85),1),Erfolgsrechnung_Detail!$O$8:$DF$8,0)), INDIRECT(dshbrdrng_reingewinn),"<>Total",INDIRECT(dshbrdrng_reingewinn),"<>Subtotal")+K91),"") -> 36920.87111 | M91: =IFERROR(SUMIFS(INDEX(INDIRECT(dshbrdrng_umsatzentwicklung2),0,MATCH(DATE($B19,MONTH(M$13),1),Erfolgsrechnung_Detail!$O$8:$DF$8,0)), INDIRECT(dshbrdrng_umsatzentwicklung),"<>Total",INDIRECT(dshbrdrng_umsatzentwicklung),"<>Subtotal") + IF(INDEX(tblUmsatzFltr[Nr],MATCH(filter_umsatz,tblUmsatzFltr[Umsatz Filter],0)) = 1, SUMIFS(INDEX(INDIRECT(dshbrdrng_reingewinn2),0,MATCH(DATE($B91,MONTH(M$85),1),Erfolgsrechnung_Detail!$O$8:$DF$8,0)), INDIRECT(dshbrdrng_reingewinn),"<>Total",INDIRECT(dshbrdrng_reingewinn),"<>Subtotal"), SUMIFS(INDEX(INDIRECT(dshbrdrng_reingewinn2),0,MATCH(DATE($B91,MONTH(M$85),1),Erfolgsrechnung_Detail!$O$8:$DF$8,0)), INDIRECT(dshbrdrng_reingewinn),"<>Total",INDIRECT(dshbrdrng_reingewinn),"<>Subtotal")+L91),"") -> 34539.21182 | N91: =IFERROR(SUMIFS(INDEX(INDIRECT(dshbrdrng_umsatzentwicklung2),0,MATCH(DATE($B19,MONTH(N$13),1),Erfolgsrechnung_Detail!$O$8:$DF$8,0)), INDIRECT(dshbrdrng_umsatzentwicklung),"<>Total",INDIRECT(dshbrdrng_umsatzentwicklung),"<>Subtotal") + IF(INDEX(tblUmsatzFltr[Nr],MATCH(filter_umsatz,tblUmsatzFltr[Umsatz Filter],0)) = 1, SUMIFS(INDEX(INDIRECT(dshbrdrng_reingewinn2),0,MATCH(DATE($B91,MONTH(N$85),1),Erfolgsrechnung_Detail!$O$8:$DF$8,0)), INDIRECT(dshbrdrng_reingewinn),"<>Total",INDIRECT(dshbrdrng_reingewinn),"<>Subtotal"), SUMIFS(INDEX(INDIRECT(dshbrdrng_reingewinn2),0,MATCH(DATE($B91,MONTH(N$85),1),Erfolgsrechnung_Detail!$O$8:$DF$8,0)), INDIRECT(dshbrdrng_reingewinn),"<>Total",INDIRECT(dshbrdrng_reingewinn),"<>Subtotal")+M91),"") -> 49141.99735 | P91: =IFERROR(IF( INDEX(tblUmsatzFltr[Nr],MATCH(filter_umsatz,tblUmsatzFltr[Umsatz Filter],0))=1, SUM($C91:INDEX($C91:$N91,1,selectedmonat_num)), INDEX($C91:$N91,0,MATCH(monat,tblMonate[Monate],0))),"") -> 310815.6116 | Q91: =IFERROR( IF(INDEX(tblUmsatzFltr[Nr],MATCH($B$7,tblUmsatzFltr[Umsatz Filter],0)) = 1, SUM(Dashboard!$C91:$N91),Dashboard!$N91),"") -> 310815.6116
B92: =Einstellungen!$B$15 -> 2020 | C92: =IFERROR(C20+ SUMIFS(INDEX(INDIRECT(dshbrdrng_reingewinn2),0,MATCH(DATE($B92,MONTH(C$85),1),Erfolgsrechnung_Detail!$O$8:$DF$8,0)), INDIRECT(dshbrdrng_reingewinn),"<>Total",INDIRECT(dshbrdrng_reingewinn),"<>Subtotal"), "") -> 6889.5546 | D92: =IFERROR(SUMIFS(INDEX(INDIRECT(dshbrdrng_umsatzentwicklung2),0,MATCH(DATE($B20,MONTH(D$13),1),Erfolgsrechnung_Detail!$O$8:$DF$8,0)), INDIRECT(dshbrdrng_umsatzentwicklung),"<>Total",INDIRECT(dshbrdrng_umsatzentwicklung),"<>Subtotal") + IF(INDEX(tblUmsatzFltr[Nr],MATCH(filter_umsatz,tblUmsatzFltr[Umsatz Filter],0)) = 1, SUMIFS(INDEX(INDIRECT(dshbrdrng_reingewinn2),0,MATCH(DATE($B92,MONTH(D$85),1),Erfolgsrechnung_Detail!$O$8:$DF$8,0)), INDIRECT(dshbrdrng_reingewinn),"<>Total",INDIRECT(dshbrdrng_reingewinn),"<>Subtotal"), SUMIFS(INDEX(INDIRECT(dshbrdrng_reingewinn2),0,MATCH(DATE($B92,MONTH(D$85),1),Erfolgsrechnung_Detail!$O$8:$DF$8,0)), INDIRECT(dshbrdrng_reingewinn),"<>Total",INDIRECT(dshbrdrng_reingewinn),"<>Subtotal")+C92),"") -> 4867.631923 | E92: =IFERROR(SUMIFS(INDEX(INDIRECT(dshbrdrng_umsatzentwicklung2),0,MATCH(DATE($B20,MONTH(E$13),1),Erfolgsrechnung_Detail!$O$8:$DF$8,0)), INDIRECT(dshbrdrng_umsatzentwicklung),"<>Total",INDIRECT(dshbrdrng_umsatzentwicklung),"<>Subtotal") + IF(INDEX(tblUmsatzFltr[Nr],MATCH(filter_umsatz,tblUmsatzFltr[Umsatz Filter],0)) = 1, SUMIFS(INDEX(INDIRECT(dshbrdrng_reingewinn2),0,MATCH(DATE($B92,MONTH(E$85),1),Erfolgsrechnung_Detail!$O$8:$DF$8,0)), INDIRECT(dshbrdrng_reingewinn),"<>Total",INDIRECT(dshbrdrng_reingewinn),"<>Subtotal"), SUMIFS(INDEX(INDIRECT(dshbrdrng_reingewinn2),0,MATCH(DATE($B92,MONTH(E$85),1),Erfolgsrechnung_Detail!$O$8:$DF$8,0)), INDIRECT(dshbrdrng_reingewinn),"<>Total",INDIRECT(dshbrdrng_reingewinn),"<>Subtotal")+D92),"") -> 2708.211278 | F92: =IFERROR(SUMIFS(INDEX(INDIRECT(dshbrdrng_umsatzentwicklung2),0,MATCH(DATE($B20,MONTH(F$13),1),Erfolgsrechnung_Detail!$O$8:$DF$8,0)), INDIRECT(dshbrdrng_umsatzentwicklung),"<>Total",INDIRECT(dshbrdrng_umsatzentwicklung),"<>Subtotal") + IF(INDEX(tblUmsatzFltr[Nr],MATCH(filter_umsatz,tblUmsatzFltr[Umsatz Filter],0)) = 1, SUMIFS(INDEX(INDIRECT(dshbrdrng_reingewinn2),0,MATCH(DATE($B92,MONTH(F$85),1),Erfolgsrechnung_Detail!$O$8:$DF$8,0)), INDIRECT(dshbrdrng_reingewinn),"<>Total",INDIRECT(dshbrdrng_reingewinn),"<>Subtotal"), SUMIFS(INDEX(INDIRECT(dshbrdrng_reingewinn2),0,MATCH(DATE($B92,MONTH(F$85),1),Erfolgsrechnung_Detail!$O$8:$DF$8,0)), INDIRECT(dshbrdrng_reingewinn),"<>Total",INDIRECT(dshbrdrng_reingewinn),"<>Subtotal")+E92),"") -> 6851.96143 | G92: =IFERROR(SUMIFS(INDEX(INDIRECT(dshbrdrng_umsatzentwicklung2),0,MATCH(DATE($B20,MONTH(G$13),1),Erfolgsrechnung_Detail!$O$8:$DF$8,0)), INDIRECT(dshbrdrng_umsatzentwicklung),"<>Total",INDIRECT(dshbrdrng_umsatzentwicklung),"<>Subtotal") + IF(INDEX(tblUmsatzFltr[Nr],MATCH(filter_umsatz,tblUmsatzFltr[Umsatz Filter],0)) = 1, SUMIFS(INDEX(INDIRECT(dshbrdrng_reingewinn2),0,MATCH(DATE($B92,MONTH(G$85),1),Erfolgsrechnung_Detail!$O$8:$DF$8,0)), INDIRECT(dshbrdrng_reingewinn),"<>Total",INDIRECT(dshbrdrng_reingewinn),"<>Subtotal"), SUMIFS(INDEX(INDIRECT(dshbrdrng_reingewinn2),0,MATCH(DATE($B92,MONTH(G$85),1),Erfolgsrechnung_Detail!$O$8:$DF$8,0)), INDIRECT(dshbrdrng_reingewinn),"<>Total",INDIRECT(dshbrdrng_reingewinn),"<>Subtotal")+F92),"") -> 5424.701465 | H92: =IFERROR(SUMIFS(INDEX(INDIRECT(dshbrdrng_umsatzentwicklung2),0,MATCH(DATE($B20,MONTH(H$13),1),Erfolgsrechnung_Detail!$O$8:$DF$8,0)), INDIRECT(dshbrdrng_umsatzentwicklung),"<>Total",INDIRECT(dshbrdrng_umsatzentwicklung),"<>Subtotal") + IF(INDEX(tblUmsatzFltr[Nr],MATCH(filter_umsatz,tblUmsatzFltr[Umsatz Filter],0)) = 1, SUMIFS(INDEX(INDIRECT(dshbrdrng_reingewinn2),0,MATCH(DATE($B92,MONTH(H$85),1),Erfolgsrechnung_Detail!$O$8:$DF$8,0)), INDIRECT(dshbrdrng_reingewinn),"<>Total",INDIRECT(dshbrdrng_reingewinn),"<>Subtotal"), SUMIFS(INDEX(INDIRECT(dshbrdrng_reingewinn2),0,MATCH(DATE($B92,MONTH(H$85),1),Erfolgsrechnung_Detail!$O$8:$DF$8,0)), INDIRECT(dshbrdrng_reingewinn),"<>Total",INDIRECT(dshbrdrng_reingewinn),"<>Subtotal")+G92),"") -> 2803.370948 | I92: =IFERROR(SUMIFS(INDEX(INDIRECT(dshbrdrng_umsatzentwicklung2),0,MATCH(DATE($B20,MONTH(I$13),1),Erfolgsrechnung_Detail!$O$8:$DF$8,0)), INDIRECT(dshbrdrng_umsatzentwicklung),"<>Total",INDIRECT(dshbrdrng_umsatzentwicklung),"<>Subtotal") + IF(INDEX(tblUmsatzFltr[Nr],MATCH(filter_umsatz,tblUmsatzFltr[Umsatz Filter],0)) = 1, SUMIFS(INDEX(INDIRECT(dshbrdrng_reingewinn2),0,MATCH(DATE($B92,MONTH(I$85),1),Erfolgsrechnung_Detail!$O$8:$DF$8,0)), INDIRECT(dshbrdrng_reingewinn),"<>Total",INDIRECT(dshbrdrng_reingewinn),"<>Subtotal"), SUMIFS(INDEX(INDIRECT(dshbrdrng_reingewinn2),0,MATCH(DATE($B92,MONTH(I$85),1),Erfolgsrechnung_Detail!$O$8:$DF$8,0)), INDIRECT(dshbrdrng_reingewinn),"<>Total",INDIRECT(dshbrdrng_reingewinn),"<>Subtotal")+H92),"") -> 6450.878572 | J92: =IFERROR(SUMIFS(INDEX(INDIRECT(dshbrdrng_umsatzentwicklung2),0,MATCH(DATE($B20,MONTH(J$13),1),Erfolgsrechnung_Detail!$O$8:$DF$8,0)), INDIRECT(dshbrdrng_umsatzentwicklung),"<>Total",INDIRECT(dshbrdrng_umsatzentwicklung),"<>Subtotal") + IF(INDEX(tblUmsatzFltr[Nr],MATCH(filter_umsatz,tblUmsatzFltr[Umsatz Filter],0)) = 1, SUMIFS(INDEX(INDIRECT(dshbrdrng_reingewinn2),0,MATCH(DATE($B92,MONTH(J$85),1),Erfolgsrechnung_Detail!$O$8:$DF$8,0)), INDIRECT(dshbrdrng_reingewinn),"<>Total",INDIRECT(dshbrdrng_reingewinn),"<>Subtotal"), SUMIFS(INDEX(INDIRECT(dshbrdrng_reingewinn2),0,MATCH(DATE($B92,MONTH(J$85),1),Erfolgsrechnung_Detail!$O$8:$DF$8,0)), INDIRECT(dshbrdrng_reingewinn),"<>Total",INDIRECT(dshbrdrng_reingewinn),"<>Subtotal")+I92),"") -> 8212.770114 | K92: =IFERROR(SUMIFS(INDEX(INDIRECT(dshbrdrng_umsatzentwicklung2),0,MATCH(DATE($B20,MONTH(K$13),1),Erfolgsrechnung_Detail!$O$8:$DF$8,0)), INDIRECT(dshbrdrng_umsatzentwicklung),"<>Total",INDIRECT(dshbrdrng_umsatzentwicklung),"<>Subtotal") + IF(INDEX(tblUmsatzFltr[Nr],MATCH(filter_umsatz,tblUmsatzFltr[Umsatz Filter],0)) = 1, SUMIFS(INDEX(INDIRECT(dshbrdrng_reingewinn2),0,MATCH(DATE($B92,MONTH(K$85),1),Erfolgsrechnung_Detail!$O$8:$DF$8,0)), INDIRECT(dshbrdrng_reingewinn),"<>Total",INDIRECT(dshbrdrng_reingewinn),"<>Subtotal"), SUMIFS(INDEX(INDIRECT(dshbrdrng_reingewinn2),0,MATCH(DATE($B92,MONTH(K$85),1),Erfolgsrechnung_Detail!$O$8:$DF$8,0)), INDIRECT(dshbrdrng_reingewinn),"<>Total",INDIRECT(dshbrdrng_reingewinn),"<>Subtotal")+J92),"") -> 5978.13979 | L92: =IFERROR(SUMIFS(INDEX(INDIRECT(dshbrdrng_umsatzentwicklung2),0,MATCH(DATE($B20,MONTH(L$13),1),Erfolgsrechnung_Detail!$O$8:$DF$8,0)), INDIRECT(dshbrdrng_umsatzentwicklung),"<>Total",INDIRECT(dshbrdrng_umsatzentwicklung),"<>Subtotal") + IF(INDEX(tblUmsatzFltr[Nr],MATCH(filter_umsatz,tblUmsatzFltr[Umsatz Filter],0)) = 1, SUMIFS(INDEX(INDIRECT(dshbrdrng_reingewinn2),0,MATCH(DATE($B92,MONTH(L$85),1),Erfolgsrechnung_Detail!$O$8:$DF$8,0)), INDIRECT(dshbrdrng_reingewinn),"<>Total",INDIRECT(dshbrdrng_reingewinn),"<>Subtotal"), SUMIFS(INDEX(INDIRECT(dshbrdrng_reingewinn2),0,MATCH(DATE($B92,MONTH(L$85),1),Erfolgsrechnung_Detail!$O$8:$DF$8,0)), INDIRECT(dshbrdrng_reingewinn),"<>Total",INDIRECT(dshbrdrng_reingewinn),"<>Subtotal")+K92),"") -> 9698.027184 | M92: =IFERROR(SUMIFS(INDEX(INDIRECT(dshbrdrng_umsatzentwicklung2),0,MATCH(DATE($B20,MONTH(M$13),1),Erfolgsrechnung_Detail!$O$8:$DF$8,0)), INDIRECT(dshbrdrng_umsatzentwicklung),"<>Total",INDIRECT(dshbrdrng_umsatzentwicklung),"<>Subtotal") + IF(INDEX(tblUmsatzFltr[Nr],MATCH(filter_umsatz,tblUmsatzFltr[Umsatz Filter],0)) = 1, SUMIFS(INDEX(INDIRECT(dshbrdrng_reingewinn2),0,MATCH(DATE($B92,MONTH(M$85),1),Erfolgsrechnung_Detail!$O$8:$DF$8,0)), INDIRECT(dshbrdrng_reingewinn),"<>Total",INDIRECT(dshbrdrng_reingewinn),"<>Subtotal"), SUMIFS(INDEX(INDIRECT(dshbrdrng_reingewinn2),0,MATCH(DATE($B92,MONTH(M$85),1),Erfolgsrechnung_Detail!$O$8:$DF$8,0)), INDIRECT(dshbrdrng_reingewinn),"<>Total",INDIRECT(dshbrdrng_reingewinn),"<>Subtotal")+L92),"") -> 15318.2089 | N92: =IFERROR(SUMIFS(INDEX(INDIRECT(dshbrdrng_umsatzentwicklung2),0,MATCH(DATE($B20,MONTH(N$13),1),Erfolgsrechnung_Detail!$O$8:$DF$8,0)), INDIRECT(dshbrdrng_umsatzentwicklung),"<>Total",INDIRECT(dshbrdrng_umsatzentwicklung),"<>Subtotal") + IF(INDEX(tblUmsatzFltr[Nr],MATCH(filter_umsatz,tblUmsatzFltr[Umsatz Filter],0)) = 1, SUMIFS(INDEX(INDIRECT(dshbrdrng_reingewinn2),0,MATCH(DATE($B92,MONTH(N$85),1),Erfolgsrechnung_Detail!$O$8:$DF$8,0)), INDIRECT(dshbrdrng_reingewinn),"<>Total",INDIRECT(dshbrdrng_reingewinn),"<>Subtotal"), SUMIFS(INDEX(INDIRECT(dshbrdrng_reingewinn2),0,MATCH(DATE($B92,MONTH(N$85),1),Erfolgsrechnung_Detail!$O$8:$DF$8,0)), INDIRECT(dshbrdrng_reingewinn),"<>Total",INDIRECT(dshbrdrng_reingewinn),"<>Subtotal")+M92),"") -> 22750.48424 | P92: =IFERROR(IF( INDEX(tblUmsatzFltr[Nr],MATCH(filter_umsatz,tblUmsatzFltr[Umsatz Filter],0))=1, SUM($C92:INDEX($C92:$N92,1,selectedmonat_num)), INDEX($C92:$N92,0,MATCH(monat,tblMonate[Monate],0))),"") -> 97953.94044 | Q92: =IFERROR( IF(INDEX(tblUmsatzFltr[Nr],MATCH($B$7,tblUmsatzFltr[Umsatz Filter],0)) = 1, SUM(Dashboard!$C92:$N92),Dashboard!$N92),"") -> 97953.94044
B93: YTD | C93: =IFERROR(C92/C91-1,0) -> -0.5766926937 | D93: -0.1811137947 | E93: -0.8863930743 | F93: -0.8016857777 | G93: -0.75485655 | H93: -0.7298355078 | I93: -0.8281764242 | J93: -0.4382892713 | K93: -0.760246105 | L93: -0.7373294049 | M93: -0.556498018 | N93: -0.5370460001 | P93: =IFERROR(P92/P91-1,0) -> -0.6848487117 | Q93: =IFERROR(Q92/Q91-1,0) -> -0.6848487117
B95: Budget | C95: =IFERROR((SUMIFS(INDIRECT(budgetrng_umsatzentwicklung),INDIRECT(budgetrng),"<>",INDIRECT(budgetrng),"<>Total",INDIRECT(budgetrng),"<>Subtotal")+ SUMIFS(INDIRECT(budgetrng_bruttogewinn),INDIRECT(budgetrng2),"<>",INDIRECT(budgetrng2),"<>Total",INDIRECT(budgetrng2),"<>Subtotal"))+ SUMIFS(INDIRECT(budgetrng_reingewinn),INDIRECT(budgetrng3),"<>",INDIRECT(budgetrng3),"<>Total",INDIRECT(budgetrng3),"<>Subtotal"),"") -> 0 | D95: =IFERROR((SUMIFS(OFFSET(INDIRECT(budgetrng_umsatzentwicklung),0,1),INDIRECT(budgetrng),"<>",INDIRECT(budgetrng),"<>Total",INDIRECT(budgetrng),"<>Subtotal")+ SUMIFS(OFFSET(INDIRECT(budgetrng_bruttogewinn),0,1),INDIRECT(budgetrng2),"<>",INDIRECT(budgetrng2),"<>Total",INDIRECT(budgetrng2),"<>Subtotal"))+ SUMIFS(OFFSET(INDIRECT(budgetrng_reingewinn),0,1),INDIRECT(budgetrng3),"<>",INDIRECT(budgetrng3),"<>Total",INDIRECT(budgetrng3),"<>Subtotal"),"") -> 0 | E95: =IFERROR((SUMIFS(OFFSET(INDIRECT(budgetrng_umsatzentwicklung),0,2),INDIRECT(budgetrng),"<>",INDIRECT(budgetrng),"<>Total",INDIRECT(budgetrng),"<>Subtotal")+ SUMIFS(OFFSET(INDIRECT(budgetrng_bruttogewinn),0,2),INDIRECT(budgetrng2),"<>",INDIRECT(budgetrng2),"<>Total",INDIRECT(budgetrng2),"<>Subtotal"))+ SUMIFS(OFFSET(INDIRECT(budgetrng_reingewinn),0,2),INDIRECT(budgetrng3),"<>",INDIRECT(budgetrng3),"<>Total",INDIRECT(budgetrng3),"<>Subtotal"),"") -> 0 | F95: =IFERROR((SUMIFS(OFFSET(INDIRECT(budgetrng_umsatzentwicklung),0,3),INDIRECT(budgetrng),"<>",INDIRECT(budgetrng),"<>Total",INDIRECT(budgetrng),"<>Subtotal")+ SUMIFS(OFFSET(INDIRECT(budgetrng_bruttogewinn),0,3),INDIRECT(budgetrng2),"<>",INDIRECT(budgetrng2),"<>Total",INDIRECT(budgetrng2),"<>Subtotal"))+ SUMIFS(OFFSET(INDIRECT(budgetrng_reingewinn),0,3),INDIRECT(budgetrng3),"<>",INDIRECT(budgetrng3),"<>Total",INDIRECT(budgetrng3),"<>Subtotal"),"") -> 0 | G95: =IFERROR((SUMIFS(OFFSET(INDIRECT(budgetrng_umsatzentwicklung),0,4),INDIRECT(budgetrng),"<>",INDIRECT(budgetrng),"<>Total",INDIRECT(budgetrng),"<>Subtotal")+ SUMIFS(OFFSET(INDIRECT(budgetrng_bruttogewinn),0,4),INDIRECT(budgetrng2),"<>",INDIRECT(budgetrng2),"<>Total",INDIRECT(budgetrng2),"<>Subtotal"))+ SUMIFS(OFFSET(INDIRECT(budgetrng_reingewinn),0,4),INDIRECT(budgetrng3),"<>",INDIRECT(budgetrng3),"<>Total",INDIRECT(budgetrng3),"<>Subtotal"),"") -> 0 | H95: =IFERROR((SUMIFS(OFFSET(INDIRECT(budgetrng_umsatzentwicklung),0,5),INDIRECT(budgetrng),"<>",INDIRECT(budgetrng),"<>Total",INDIRECT(budgetrng),"<>Subtotal")+ SUMIFS(OFFSET(INDIRECT(budgetrng_bruttogewinn),0,5),INDIRECT(budgetrng2),"<>",INDIRECT(budgetrng2),"<>Total",INDIRECT(budgetrng2),"<>Subtotal"))+ SUMIFS(OFFSET(INDIRECT(budgetrng_reingewinn),0,5),INDIRECT(budgetrng3),"<>",INDIRECT(budgetrng3),"<>Total",INDIRECT(budgetrng3),"<>Subtotal"),"") -> 0 | I95: =IFERROR((SUMIFS(OFFSET(INDIRECT(budgetrng_umsatzentwicklung),0,6),INDIRECT(budgetrng),"<>",INDIRECT(budgetrng),"<>Total",INDIRECT(budgetrng),"<>Subtotal")+ SUMIFS(OFFSET(INDIRECT(budgetrng_bruttogewinn),0,6),INDIRECT(budgetrng2),"<>",INDIRECT(budgetrng2),"<>Total",INDIRECT(budgetrng2),"<>Subtotal"))+ SUMIFS(OFFSET(INDIRECT(budgetrng_reingewinn),0,6),INDIRECT(budgetrng3),"<>",INDIRECT(budgetrng3),"<>Total",INDIRECT(budgetrng3),"<>Subtotal"),"") -> 0 | J95: =IFERROR((SUMIFS(OFFSET(INDIRECT(budgetrng_umsatzentwicklung),0,7),INDIRECT(budgetrng),"<>",INDIRECT(budgetrng),"<>Total",INDIRECT(budgetrng),"<>Subtotal")+ SUMIFS(OFFSET(INDIRECT(budgetrng_bruttogewinn),0,7),INDIRECT(budgetrng2),"<>",INDIRECT(budgetrng2),"<>Total",INDIRECT(budgetrng2),"<>Subtotal"))+ SUMIFS(OFFSET(INDIRECT(budgetrng_reingewinn),0,7),INDIRECT(budgetrng3),"<>",INDIRECT(budgetrng3),"<>Total",INDIRECT(budgetrng3),"<>Subtotal"),"") -> 0 | K95: =IFERROR((SUMIFS(OFFSET(INDIRECT(budgetrng_umsatzentwicklung),0,8),INDIRECT(budgetrng),"<>",INDIRECT(budgetrng),"<>Total",INDIRECT(budgetrng),"<>Subtotal")+ SUMIFS(OFFSET(INDIRECT(budgetrng_bruttogewinn),0,8),INDIRECT(budgetrng2),"<>",INDIRECT(budgetrng2),"<>Total",INDIRECT(budgetrng2),"<>Subtotal"))+ SUMIFS(OFFSET(INDIRECT(budgetrng_reingewinn),0,8),INDIRECT(budgetrng3),"<>",INDIRECT(budgetrng3),"<>Total",INDIRECT(budgetrng3),"<>Subtotal"),"") -> 0 | L95: =IFERROR((SUMIFS(OFFSET(INDIRECT(budgetrng_umsatzentwicklung),0,9),INDIRECT(budgetrng),"<>",INDIRECT(budgetrng),"<>Total",INDIRECT(budgetrng),"<>Subtotal")+ SUMIFS(OFFSET(INDIRECT(budgetrng_bruttogewinn),0,9),INDIRECT(budgetrng2),"<>",INDIRECT(budgetrng2),"<>Total",INDIRECT(budgetrng2),"<>Subtotal"))+ SUMIFS(OFFSET(INDIRECT(budgetrng_reingewinn),0,9),INDIRECT(budgetrng3),"<>",INDIRECT(budgetrng3),"<>Total",INDIRECT(budgetrng3),"<>Subtotal"),"") -> 0 | M95: =IFERROR((SUMIFS(OFFSET(INDIRECT(budgetrng_umsatzentwicklung),0,10),INDIRECT(budgetrng),"<>",INDIRECT(budgetrng),"<>Total",INDIRECT(budgetrng),"<>Subtotal")+ SUMIFS(OFFSET(INDIRECT(budgetrng_bruttogewinn),0,10),INDIRECT(budgetrng2),"<>",INDIRECT(budgetrng2),"<>Total",INDIRECT(budgetrng2),"<>Subtotal"))+ SUMIFS(OFFSET(INDIRECT(budgetrng_reingewinn),0,10),INDIRECT(budgetrng3),"<>",INDIRECT(budgetrng3),"<>Total",INDIRECT(budgetrng3),"<>Subtotal"),"") -> 0 | N95: =IFERROR((SUMIFS(OFFSET(INDIRECT(budgetrng_umsatzentwicklung),0,11),INDIRECT(budgetrng),"<>",INDIRECT(budgetrng),"<>Total",INDIRECT(budgetrng),"<>Subtotal")+ SUMIFS(OFFSET(INDIRECT(budgetrng_bruttogewinn),0,11),INDIRECT(budgetrng2),"<>",INDIRECT(budgetrng2),"<>Total",INDIRECT(budgetrng2),"<>Subtotal"))+ SUMIFS(OFFSET(INDIRECT(budgetrng_reingewinn),0,11),INDIRECT(budgetrng3),"<>",INDIRECT(budgetrng3),"<>Total",INDIRECT(budgetrng3),"<>Subtotal"),"") -> 0 | P95: =SUM($C95:INDEX($C95:$N95,1,selectedmonat_num)) -> 0 | Q95: =SUM(rngBudgetSalesCost) -> 0
B96: ∆ Budget in % | C96: =IFERROR(C92/C95-1,0) -> 0 | D96: =IFERROR(D92/D95-1,0) -> 0 | E96: 0 | F96: 0 | G96: 0 | H96: 0 | I96: 0 | J96: 0 | K96: 0 | L96: 0 | M96: 0 | N96: 0 | P96: =IFERROR(P92/P95-1,0) -> 0 | Q96: =IFERROR(Q92/Q95-1,0) -> 0
B98: Aktuelles Jahr vs. Vorjahr | P98: =IF(INDEX(tblMonate[Nr],MATCH(monat,tblMonate[Monate],0))<>1, CONCATENATE("YTD ",Einstellungen!$AQ$8," - ",monat," ",B83," Zielerreichung"), CONCATENATE("YTD ",Einstellungen!$AQ$8," ",B83," Zielerreichungt")) -> YTD Januar - Dezember Reingewinn / Reinverlust Zielerreichung
C100: =C95 -> 0 | D100: =IF(INDEX(tblUmsatzFltr[Nr],MATCH($B$7,tblUmsatzFltr[Umsatz Filter],0)) = 1,D$95,D$95+C$100) -> 0 | E100: =IF(INDEX(tblUmsatzFltr[Nr],MATCH($B$7,tblUmsatzFltr[Umsatz Filter],0)) = 1,E$95,E$95+D$100) -> 0 | F100: =IF(INDEX(tblUmsatzFltr[Nr],MATCH($B$7,tblUmsatzFltr[Umsatz Filter],0)) = 1,F$95,F$95+E$100) -> 0 | G100: =IF(INDEX(tblUmsatzFltr[Nr],MATCH($B$7,tblUmsatzFltr[Umsatz Filter],0)) = 1,G$95,G$95+F$100) -> 0 | H100: =IF(INDEX(tblUmsatzFltr[Nr],MATCH($B$7,tblUmsatzFltr[Umsatz Filter],0)) = 1,H$95,H$95+G$100) -> 0 | I100: =IF(INDEX(tblUmsatzFltr[Nr],MATCH($B$7,tblUmsatzFltr[Umsatz Filter],0)) = 1,I$95,I$95+H$100) -> 0 | J100: =IF(INDEX(tblUmsatzFltr[Nr],MATCH($B$7,tblUmsatzFltr[Umsatz Filter],0)) = 1,J$95,J$95+I$100) -> 0 | K100: =IF(INDEX(tblUmsatzFltr[Nr],MATCH($B$7,tblUmsatzFltr[Umsatz Filter],0)) = 1,K$95,K$95+J$100) -> 0 | L100: =IF(INDEX(tblUmsatzFltr[Nr],MATCH($B$7,tblUmsatzFltr[Umsatz Filter],0)) = 1,L$95,L$95+K$100) -> 0 | M100: =IF(INDEX(tblUmsatzFltr[Nr],MATCH($B$7,tblUmsatzFltr[Umsatz Filter],0)) = 1,M$95,M$95+L$100) -> 0 | N100: =IF(INDEX(tblUmsatzFltr[Nr],MATCH($B$7,tblUmsatzFltr[Umsatz Filter],0)) = 1,N$95,N$95+M$100) -> 0

Sheet Erfolgsrechnung_Detail
B8: Negativ (-1)/Positiv (1) | D8: Bezeichnung | E8: Gegenkonto | F8: Gegenkonto (Beschrieb) | G8: =DATE(startjahr,1,1) -> 2014-01-01 | H8: =DATE(YEAR(G8)+1,MONTH(G8),DAY(G8)) -> 2015-01-01 | I8: =DATE(YEAR(H8)+1,MONTH(H8),DAY(H8)) -> 2016-01-01 | J8: 2017-01-01 | K8: 2018-01-01 | L8: 2019-01-01 | M8: 2020-01-01 | N8: 2021-01-01 | O8: =G8 -> 2014-01-01 | P8: =EOMONTH(O8,0)+1 -> 2014-02-01 | Q8: =EOMONTH(P8,0)+1 -> 2014-03-01 | R8: 2014-04-01 | S8: 2014-05-01 | T8: 2014-06-01 | U8: 2014-07-01 | V8: 2014-08-01 | W8: 2014-09-01 | X8: 2014-10-01 | Y8: 2014-11-01 | Z8: 2014-12-01 | AA8: 2015-01-01 | AB8: 2015-02-01 | AC8: 2015-03-01 | AD8: 2015-04-01 | AE8: 2015-05-01 | AF8: 2015-06-01 | AG8: 2015-07-01 | AH8: 2015-08-01 | AI8: 2015-09-01 | AJ8: 2015-10-01 | AK8: 2015-11-01 | AL8: 2015-12-01 | AM8: 2016-01-01 | AN8: 2016-02-01 | AO8: 2016-03-01 | AP8: 2016-04-01 | AQ8: 2016-05-01 | AR8: 2016-06-01 | AS8: 2016-07-01 | AT8: 2016-08-01 | AU8: 2016-09-01 | AV8: 2016-10-01 | AW8: 2016-11-01 | AX8: 2016-12-01 | AY8: 2017-01-01 | AZ8: 2017-02-01 | BA8: 2017-03-01 | BB8: 2017-04-01 | BC8: 2017-05-01 | BD8: 2017-06-01 | BE8: 2017-07-01 | BF8: 2017-08-01 | BG8: 2017-09-01 | BH8: 2017-10-01 | BI8: 2017-11-01 | BJ8: 2017-12-01 | BK8: 2018-01-01 | BL8: 2018-02-01 | BM8: 2018-03-01 | BN8: 2018-04-01 | BO8: 2018-05-01 | BP8: 2018-06-01 | BQ8: 2018-07-01 | BR8: 2018-08-01 | BS8: 2018-09-01 | BT8: 2018-10-01 | BU8: 2018-11-01 | BV8: 2018-12-01 | BW8: 2019-01-01 | BX8: 2019-02-01 | BY8: 2019-03-01 | BZ8: 2019-04-01 | CA8: 2019-05-01 | CB8: 2019-06-01 | CC8: =EOMONTH(CB8,0)+1 -> 2019-07-01 | CD8: 2019-08-01 | CE8: 2019-09-01 | CF8: 2019-10-01 | CG8: 2019-11-01 | CH8: 2019-12-01 | CI8: 2020-01-01 | CJ8: 2020-02-01 | CK8: 2020-03-01 | CL8: 2020-04-01 | CM8: 2020-05-01 | CN8: 2020-06-01 | CO8: 2020-07-01 | CP8: 2020-08-01 | CQ8: 2020-09-01 | CR8: 2020-10-01 | CS8: 2020-11-01 | CT8: 2020-12-01 | CU8: 2021-01-01 | CV8: 2021-02-01 | CW8: 2021-03-01 | CX8: 2021-04-01 | CY8: 2021-05-01 | CZ8: 2021-06-01 | DA8: 2021-07-01 | DB8: 2021-08-01 | DC8: 2021-09-01 | DD8: 2021-10-01 | DE8: 2021-11-01 | DF8: 2021-12-01
C9: 3 - Betrieblicher Ertrag aus Lieferungen und Leistungen
B10: Ertragskonto | C10: 3000 | D10: Dienstleistungserlöse | G10: =IF(ISNUMBER($C10), SUMIFS(Datenblatt!$Q:$Q, Datenblatt!$E:$E,$C10, Datenblatt!$R:$R,">="&G$8,Datenblatt!$R:$R,"<="&EOMONTH(G$8,11)) - SUMIFS(Datenblatt!$P:$P, Datenblatt!$E:$E,$C10, Datenblatt!$R:$R,">="&G$8,Datenblatt!$R:$R,"<="&EOMONTH(G$8,11)), "") -> 47549.4226 | H10: =IF(ISNUMBER($C10), SUMIFS(Datenblatt!$Q:$Q, Datenblatt!$E:$E,$C10, Datenblatt!$R:$R,">="&H$8,Datenblatt!$R:$R,"<="&EOMONTH(H$8,11)) - SUMIFS(Datenblatt!$P:$P, Datenblatt!$E:$E,$C10, Datenblatt!$R:$R,">="&H$8,Datenblatt!$R:$R,"<="&EOMONTH(H$8,11)), "") -> 75424.17653 | I10: =IF(ISNUMBER($C10), SUMIFS(Datenblatt!$Q:$Q, Datenblatt!$E:$E,$C10, Datenblatt!$R:$R,">="&I$8,Datenblatt!$R:$R,"<="&EOMONTH(I$8,11)) - SUMIFS(Datenblatt!$P:$P, Datenblatt!$E:$E,$C10, Datenblatt!$R:$R,">="&I$8,Datenblatt!$R:$R,"<="&EOMONTH(I$8,11)), "") -> 128635.1796 | J10: =IF(ISNUMBER($C10), SUMIFS(Datenblatt!$Q:$Q, Datenblatt!$E:$E,$C10, Datenblatt!$R:$R,">="&J$8,Datenblatt!$R:$R,"<="&EOMONTH(J$8,11)) - SUMIFS(Datenblatt!$P:$P, Datenblatt!$E:$E,$C10, Datenblatt!$R:$R,">="&J$8,Datenblatt!$R:$R,"<="&EOMONTH(J$8,11)), "") -> 267242.4092 | K10: =IF(ISNUMBER($C10), SUMIFS(Datenblatt!$Q:$Q, Datenblatt!$E:$E,$C10, Datenblatt!$R:$R,">="&K$8,Datenblatt!$R:$R,"<="&EOMONTH(K$8,11)) - SUMIFS(Datenblatt!$P:$P, Datenblatt!$E:$E,$C10, Datenblatt!$R:$R,">="&K$8,Datenblatt!$R:$R,"<="&EOMONTH(K$8,11)), "") -> 128635.1796 | L10: =IF(ISNUMBER($C10), SUMIFS(Datenblatt!$Q:$Q, Datenblatt!$E:$E,$C10, Datenblatt!$R:$R,">="&L$8,Datenblatt!$R:$R,"<="&EOMONTH(L$8,11)) - SUMIFS(Datenblatt!$P:$P, Datenblatt!$E:$E,$C10, Datenblatt!$R:$R,">="&L$8,Datenblatt!$R:$R,"<="&EOMONTH(L$8,11)), "") -> 331276.1222 | M10: =IF(ISNUMBER($C10), SUMIFS(Datenblatt!$Q:$Q, Datenblatt!$E:$E,$C10, Datenblatt!$R:$R,">="&M$8,Datenblatt!$R:$R,"<="&EOMONTH(M$8,11)) - SUMIFS(Datenblatt!$P:$P, Datenblatt!$E:$E,$C10, Datenblatt!$R:$R,">="&M$8,Datenblatt!$R:$R,"<="&EOMONTH(M$8,11)), "") -> 135027.4181 | N10: =IF(ISNUMBER($C10), SUMIFS(Datenblatt!$Q:$Q, Datenblatt!$E:$E,$C10, Datenblatt!$R:$R,">="&N$8,Datenblatt!$R:$R,"<="&EOMONTH(N$8,11)) - SUMIFS(Datenblatt!$P:$P, Datenblatt!$E:$E,$C10, Datenblatt!$R:$R,">="&N$8,Datenblatt!$R:$R,"<="&EOMONTH(N$8,11)), "") -> 0 | O10: =IF(ISNUMBER($C10), SUMIFS(Datenblatt!$Q:$Q, Datenblatt!$E:$E,$C10, Datenblatt!$R:$R,">="&O$8,Datenblatt!$R:$R,"<="&EOMONTH(O$8,0)) - SUMIFS(Datenblatt!$P:$P, Datenblatt!$E:$E,$C10, Datenblatt!$R:$R,">="&O$8,Datenblatt!$R:$R,"<="&EOMONTH(O$8,0)), "") -> 2745.865576 | P10: =IF(ISNUMBER($C10), SUMIFS(Datenblatt!$Q:$Q, Datenblatt!$E:$E,$C10, Datenblatt!$R:$R,">="&P$8,Datenblatt!$R:$R,"<="&EOMONTH(P$8,0)) - SUMIFS(Datenblatt!$P:$P, Datenblatt!$E:$E,$C10, Datenblatt!$R:$R,">="&P$8,Datenblatt!$R:$R,"<="&EOMONTH(P$8,0)), "") -> 3711.913662 | Q10: =IF(ISNUMBER($C10), SUMIFS(Datenblatt!$Q:$Q, Datenblatt!$E:$E,$C10, Datenblatt!$R:$R,">="&Q$8,Datenblatt!$R:$R,"<="&EOMONTH(Q$8,0)) - SUMIFS(Datenblatt!$P:$P, Datenblatt!$E:$E,$C10, Datenblatt!$R:$R,">="&Q$8,Datenblatt!$R:$R,"<="&EOMONTH(Q$8,0)), "") -> 1027.803517 | R10: =IF(ISNUMBER($C10), SUMIFS(Datenblatt!$Q:$Q, Datenblatt!$E:$E,$C10, Datenblatt!$R:$R,">="&R$8,Datenblatt!$R:$R,"<="&EOMONTH(R$8,0)) - SUMIFS(Datenblatt!$P:$P, Datenblatt!$E:$E,$C10, Datenblatt!$R:$R,">="&R$8,Datenblatt!$R:$R,"<="&EOMONTH(R$8,0)), "") -> 3324.058597 | S10: =IF(ISNUMBER($C10), SUMIFS(Datenblatt!$Q:$Q, Datenblatt!$E:$E,$C10, Datenblatt!$R:$R,">="&S$8,Datenblatt!$R:$R,"<="&EOMONTH(S$8,0)) - SUMIFS(Datenblatt!$P:$P, Datenblatt!$E:$E,$C10, Datenblatt!$R:$R,">="&S$8,Datenblatt!$R:$R,"<="&EOMONTH(S$8,0)), "") -> 8829.266712 | T10: =IF(ISNUMBER($C10), SUMIFS(Datenblatt!$Q:$Q, Datenblatt!$E:$E,$C10, Datenblatt!$R:$R,">="&T$8,Datenblatt!$R:$R,"<="&EOMONTH(T$8,0)) - SUMIFS(Datenblatt!$P:$P, Datenblatt!$E:$E,$C10, Datenblatt!$R:$R,">="&T$8,Datenblatt!$R:$R,"<="&EOMONTH(T$8,0)), "") -> 3067.294131 | U10: =IF(ISNUMBER($C10), SUMIFS(Datenblatt!$Q:$Q, Datenblatt!$E:$E,$C10, Datenblatt!$R:$R,">="&U$8,Datenblatt!$R:$R,"<="&EOMONTH(U$8,0)) - SUMIFS(Datenblatt!$P:$P, Datenblatt!$E:$E,$C10, Datenblatt!$R:$R,">="&U$8,Datenblatt!$R:$R,"<="&EOMONTH(U$8,0)), "") -> 0 | V10: =IF(ISNUMBER($C10), SUMIFS(Datenblatt!$Q:$Q, Datenblatt!$E:$E,$C10, Datenblatt!$R:$R,">="&V$8,Datenblatt!$R:$R,"<="&EOMONTH(V$8,0)) - SUMIFS(Datenblatt!$P:$P, Datenblatt!$E:$E,$C10, Datenblatt!$R:$R,">="&V$8,Datenblatt!$R:$R,"<="&EOMONTH(V$8,0)), "") -> 5233.3049 | W10: =IF(ISNUMBER($C10), SUMIFS(Datenblatt!$Q:$Q, Datenblatt!$E:$E,$C10, Datenblatt!$R:$R,">="&W$8,Datenblatt!$R:$R,"<="&EOMONTH(W$8,0)) - SUMIFS(Datenblatt!$P:$P, Datenblatt!$E:$E,$C10, Datenblatt!$R:$R,">="&W$8,Datenblatt!$R:$R,"<="&EOMONTH(W$8,0)), "") -> 4706.151858 | X10: =IF(ISNUMBER($C10), SUMIFS(Datenblatt!$Q:$Q, Datenblatt!$E:$E,$C10, Datenblatt!$R:$R,">="&X$8,Datenblatt!$R:$R,"<="&EOMONTH(X$8,0)) - SUMIFS(Datenblatt!$P:$P, Datenblatt!$E:$E,$C10, Datenblatt!$R:$R,">="&X$8,Datenblatt!$R:$R,"<="&EOMONTH(X$8,0)), "") -> 8401.396765 | Y10: =IF(ISNUMBER($C10), SUMIFS(Datenblatt!$Q:$Q, Datenblatt!$E:$E,$C10, Datenblatt!$R:$R,">="&Y$8,Datenblatt!$R:$R,"<="&EOMONTH(Y$8,0)) - SUMIFS(Datenblatt!$P:$P, Datenblatt!$E:$E,$C10, Datenblatt!$R:$R,">="&Y$8,Datenblatt!$R:$R,"<="&EOMONTH(Y$8,0)), "") -> 4964.256004 | Z10: =IF(ISNUMBER($C10), SUMIFS(Datenblatt!$Q:$Q, Datenblatt!$E:$E,$C10, Datenblatt!$R:$R,">="&Z$8,Datenblatt!$R:$R,"<="&EOMONTH(Z$8,0)) - SUMIFS(Datenblatt!$P:$P, Datenblatt!$E:$E,$C10, Datenblatt!$R:$R,">="&Z$8,Datenblatt!$R:$R,"<="&EOMONTH(Z$8,0)), "") -> 1538.110881 | AA10: =IF(ISNUMBER($C10), SUMIFS(Datenblatt!$Q:$Q, Datenblatt!$E:$E,$C10, Datenblatt!$R:$R,">="&AA$8,Datenblatt!$R:$R,"<="&EOMONTH(AA$8,0)) - SUMIFS(Datenblatt!$P:$P, Datenblatt!$E:$E,$C10, Datenblatt!$R:$R,">="&AA$8,Datenblatt!$R:$R,"<="&EOMONTH(AA$8,0)), "") -> 5595.570716 | AB10: =IF(ISNUMBER($C10), SUMIFS(Datenblatt!$Q:$Q, Datenblatt!$E:$E,$C10, Datenblatt!$R:$R,">="&AB$8,Datenblatt!$R:$R,"<="&EOMONTH(AB$8,0)) - SUMIFS(Datenblatt!$P:$P, Datenblatt!$E:$E,$C10, Datenblatt!$R:$R,">="&AB$8,Datenblatt!$R:$R,"<="&EOMONTH(AB$8,0)), "") -> 8611.434387 | AC10: =IF(ISNUMBER($C10), SUMIFS(Datenblatt!$Q:$Q, Datenblatt!$E:$E,$C10, Datenblatt!$R:$R,">="&AC$8,Datenblatt!$R:$R,"<="&EOMONTH(AC$8,0)) - SUMIFS(Datenblatt!$P:$P, Datenblatt!$E:$E,$C10, Datenblatt!$R:$R,">="&AC$8,Datenblatt!$R:$R,"<="&EOMONTH(AC$8,0)), "") -> 1063.129535 | AD10: =IF(ISNUMBER($C10), SUMIFS(Datenblatt!$Q:$Q, Datenblatt!$E:$E,$C10, Datenblatt!$R:$R,">="&AD$8,Datenblatt!$R:$R,"<="&EOMONTH(AD$8,0)) - SUMIFS(Datenblatt!$P:$P, Datenblatt!$E:$E,$C10, Datenblatt!$R:$R,">="&AD$8,Datenblatt!$R:$R,"<="&EOMONTH(AD$8,0)), "") -> 2836.551343 | AE10: =IF(ISNUMBER($C10), SUMIFS(Datenblatt!$Q:$Q, Datenblatt!$E:$E,$C10, Datenblatt!$R:$R,">="&AE$8,Datenblatt!$R:$R,"<="&EOMONTH(AE$8,0)) - SUMIFS(Datenblatt!$P:$P, Datenblatt!$E:$E,$C10, Datenblatt!$R:$R,">="&AE$8,Datenblatt!$R:$R,"<="&EOMONTH(AE$8,0)), "") -> 5312.324344 | AF10: =IF(ISNUMBER($C10), SUMIFS(Datenblatt!$Q:$Q, Datenblatt!$E:$E,$C10, Datenblatt!$R:$R,">="&AF$8,Datenblatt!$R:$R,"<="&EOMONTH(AF$8,0)) - SUMIFS(Datenblatt!$P:$P, Datenblatt!$E:$E,$C10, Datenblatt!$R:$R,">="&AF$8,Datenblatt!$R:$R,"<="&EOMONTH(AF$8,0)), "") -> 4967.4699 | AG10: =IF(ISNUMBER($C10), SUMIFS(Datenblatt!$Q:$Q, Datenblatt!$E:$E,$C10, Datenblatt!$R:$R,">="&AG$8,Datenblatt!$R:$R,"<="&EOMONTH(AG$8,0)) - SUMIFS(Datenblatt!$P:$P, Datenblatt!$E:$E,$C10, Datenblatt!$R:$R,">="&AG$8,Datenblatt!$R:$R,"<="&EOMONTH(AG$8,0)), "") -> 3040.666865 | AH10: =IF(ISNUMBER($C10), SUMIFS(Datenblatt!$Q:$Q, Datenblatt!$E:$E,$C10, Datenblatt!$R:$R,">="&AH$8,Datenblatt!$R:$R,"<="&EOMONTH(AH$8,0)) - SUMIFS(Datenblatt!$P:$P, Datenblatt!$E:$E,$C10, Datenblatt!$R:$R,">="&AH$8,Datenblatt!$R:$R,"<="&EOMONTH(AH$8,0)), "") -> 9720.318596 | AI10: =IF(ISNUMBER($C10), SUMIFS(Datenblatt!$Q:$Q, Datenblatt!$E:$E,$C10, Datenblatt!$R:$R,">="&AI$8,Datenblatt!$R:$R,"<="&EOMONTH(AI$8,0)) - SUMIFS(Datenblatt!$P:$P, Datenblatt!$E:$E,$C10, Datenblatt!$R:$R,">="&AI$8,Datenblatt!$R:$R,"<="&EOMONTH(AI$8,0)), "") -> 5121.434339 | AJ10: =IF(ISNUMBER($C10), SUMIFS(Datenblatt!$Q:$Q, Datenblatt!$E:$E,$C10, Datenblatt!$R:$R,">="&AJ$8,Datenblatt!$R:$R,"<="&EOMONTH(AJ$8,0)) - SUMIFS(Datenblatt!$P:$P, Datenblatt!$E:$E,$C10, Datenblatt!$R:$R,">="&AJ$8,Datenblatt!$R:$R,"<="&EOMONTH(AJ$8,0)), "") -> 7076.174103 | AK10: =IF(ISNUMBER($C10), SUMIFS(Datenblatt!$Q:$Q, Datenblatt!$E:$E,$C10, Datenblatt!$R:$R,">="&AK$8,Datenblatt!$R:$R,"<="&EOMONTH(AK$8,0)) - SUMIFS(Datenblatt!$P:$P, Datenblatt!$E:$E,$C10, Datenblatt!$R:$R,">="&AK$8,Datenblatt!$R:$R,"<="&EOMONTH(AK$8,0)), "") -> 8401.281658 | AL10: =IF(ISNUMBER($C10), SUMIFS(Datenblatt!$Q:$Q, Datenblatt!$E:$E,$C10, Datenblatt!$R:$R,">="&AL$8,Datenblatt!$R:$R,"<="&EOMONTH(AL$8,0)) - SUMIFS(Datenblatt!$P:$P, Datenblatt!$E:$E,$C10, Datenblatt!$R:$R,">="&AL$8,Datenblatt!$R:$R,"<="&EOMONTH(AL$8,0)), "") -> 13677.82074 | AM10: =IF(ISNUMBER($C10), SUMIFS(Datenblatt!$Q:$Q, Datenblatt!$E:$E,$C10, Datenblatt!$R:$R,">="&AM$8,Datenblatt!$R:$R,"<="&EOMONTH(AM$8,0)) - SUMIFS(Datenblatt!$P:$P, Datenblatt!$E:$E,$C10, Datenblatt!$R:$R,">="&AM$8,Datenblatt!$R:$R,"<="&EOMONTH(AM$8,0)), "") -> 2903.894187 | AN10: =IF(ISNUMBER($C10), SUMIFS(Datenblatt!$Q:$Q, Datenblatt!$E:$E,$C10, Datenblatt!$R:$R,">="&AN$8,Datenblatt!$R:$R,"<="&EOMONTH(AN$8,0)) - SUMIFS(Datenblatt!$P:$P, Datenblatt!$E:$E,$C10, Datenblatt!$R:$R,">="&AN$8,Datenblatt!$R:$R,"<="&EOMONTH(AN$8,0)), "") -> 15417.91714 | AO10: =IF(ISNUMBER($C10), SUMIFS(Datenblatt!$Q:$Q, Datenblatt!$E:$E,$C10, Datenblatt!$R:$R,">="&AO$8,Datenblatt!$R:$R,"<="&EOMONTH(AO$8,0)) - SUMIFS(Datenblatt!$P:$P, Datenblatt!$E:$E,$C10, Datenblatt!$R:$R,">="&AO$8,Datenblatt!$R:$R,"<="&EOMONTH(AO$8,0)), "") -> 6288.146575 | AP10: =IF(ISNUMBER($C10), SUMIFS(Datenblatt!$Q:$Q, Datenblatt!$E:$E,$C10, Datenblatt!$R:$R,">="&AP$8,Datenblatt!$R:$R,"<="&EOMONTH(AP$8,0)) - SUMIFS(Datenblatt!$P:$P, Datenblatt!$E:$E,$C10, Datenblatt!$R:$R,">="&AP$8,Datenblatt!$R:$R,"<="&EOMONTH(AP$8,0)), "") -> 9320.800049 | AQ10: =IF(ISNUMBER($C10), SUMIFS(Datenblatt!$Q:$Q, Datenblatt!$E:$E,$C10, Datenblatt!$R:$R,">="&AQ$8,Datenblatt!$R:$R,"<="&EOMONTH(AQ$8,0)) - SUMIFS(Datenblatt!$P:$P, Datenblatt!$E:$E,$C10, Datenblatt!$R:$R,">="&AQ$8,Datenblatt!$R:$R,"<="&EOMONTH(AQ$8,0)), "") -> 11674.7431 | AR10: =IF(ISNUMBER($C10), SUMIFS(Datenblatt!$Q:$Q, Datenblatt!$E:$E,$C10, Datenblatt!$R:$R,">="&AR$8,Datenblatt!$R:$R,"<="&EOMONTH(AR$8,0)) - SUMIFS(Datenblatt!$P:$P, Datenblatt!$E:$E,$C10, Datenblatt!$R:$R,">="&AR$8,Datenblatt!$R:$R,"<="&EOMONTH(AR$8,0)), "") -> 15250.69539 | AS10: =IF(ISNUMBER($C10), SUMIFS(Datenblatt!$Q:$Q, Datenblatt!$E:$E,$C10, Datenblatt!$R:$R,">="&AS$8,Datenblatt!$R:$R,"<="&EOMONTH(AS$8,0)) - SUMIFS(Datenblatt!$P:$P, Datenblatt!$E:$E,$C10, Datenblatt!$R:$R,">="&AS$8,Datenblatt!$R:$R,"<="&EOMONTH(AS$8,0)), "") -> 8290.239264 | AT10: =IF(ISNUMBER($C10), SUMIFS(Datenblatt!$Q:$Q, Datenblatt!$E:$E,$C10, Datenblatt!$R:$R,">="&AT$8,Datenblatt!$R:$R,"<="&EOMONTH(AT$8,0)) - SUMIFS(Datenblatt!$P:$P, Datenblatt!$E:$E,$C10, Datenblatt!$R:$R,">="&AT$8,Datenblatt!$R:$R,"<="&EOMONTH(AT$8,0)), "") -> 9158.459917 | AU10: =IF(ISNUMBER($C10), SUMIFS(Datenblatt!$Q:$Q, Datenblatt!$E:$E,$C10, Datenblatt!$R:$R,">="&AU$8,Datenblatt!$R:$R,"<="&EOMONTH(AU$8,0)) - SUMIFS(Datenblatt!$P:$P, Datenblatt!$E:$E,$C10, Datenblatt!$R:$R,">="&AU$8,Datenblatt!$R:$R,"<="&EOMONTH(AU$8,0)), "") -> 13362.7725 | AV10: =IF(ISNUMBER($C10), SUMIFS(Datenblatt!$Q:$Q, Datenblatt!$E:$E,$C10, Datenblatt!$R:$R,">="&AV$8,Datenblatt!$R:$R,"<="&EOMONTH(AV$8,0)) - SUMIFS(Datenblatt!$P:$P, Datenblatt!$E:$E,$C10, Datenblatt!$R:$R,">="&AV$8,Datenblatt!$R:$R,"<="&EOMONTH(AV$8,0)), "") -> 8762.791211 | AW10: =IF(ISNUMBER($C10), SUMIFS(Datenblatt!$Q:$Q, Datenblatt!$E:$E,$C10, Datenblatt!$R:$R,">="&AW$8,Datenblatt!$R:$R,"<="&EOMONTH(AW$8,0)) - SUMIFS(Datenblatt!$P:$P, Datenblatt!$E:$E,$C10, Datenblatt!$R:$R,">="&AW$8,Datenblatt!$R:$R,"<="&EOMONTH(AW$8,0)), "") -> 12649.65248 | AX10: =IF(ISNUMBER($C10), SUMIFS(Datenblatt!$Q:$Q, Datenblatt!$E:$E,$C10, Datenblatt!$R:$R,">="&AX$8,Datenblatt!$R:$R,"<="&EOMONTH(AX$8,0)) - SUMIFS(Datenblatt!$P:$P, Datenblatt!$E:$E,$C10, Datenblatt!$R:$R,">="&AX$8,Datenblatt!$R:$R,"<="&EOMONTH(AX$8,0)), "") -> 15555.06776 | AY10: =IF(ISNUMBER($C10), SUMIFS(Datenblatt!$Q:$Q, Datenblatt!$E:$E,$C10, Datenblatt!$R:$R,">="&AY$8,Datenblatt!$R:$R,"<="&EOMONTH(AY$8,0)) - SUMIFS(Datenblatt!$P:$P, Datenblatt!$E:$E,$C10, Datenblatt!$R:$R,">="&AY$8,Datenblatt!$R:$R,"<="&EOMONTH(AY$8,0)), "") -> 19710.94335 | AZ10: =IF(ISNUMBER($C10), SUMIFS(Datenblatt!$Q:$Q, Datenblatt!$E:$E,$C10, Datenblatt!$R:$R,">="&AZ$8,Datenblatt!$R:$R,"<="&EOMONTH(AZ$8,0)) - SUMIFS(Datenblatt!$P:$P, Datenblatt!$E:$E,$C10, Datenblatt!$R:$R,">="&AZ$8,Datenblatt!$R:$R,"<="&EOMONTH(AZ$8,0)), "") -> 17468.03147 | BA10: =IF(ISNUMBER($C10), SUMIFS(Datenblatt!$Q:$Q, Datenblatt!$E:$E,$C10, Datenblatt!$R:$R,">="&BA$8,Datenblatt!$R:$R,"<="&EOMONTH(BA$8,0)) - SUMIFS(Datenblatt!$P:$P, Datenblatt!$E:$E,$C10, Datenblatt!$R:$R,">="&BA$8,Datenblatt!$R:$R,"<="&EOMONTH(BA$8,0)), "") -> 14805.81371 | BB10: =IF(ISNUMBER($C10), SUMIFS(Datenblatt!$Q:$Q, Datenblatt!$E:$E,$C10, Datenblatt!$R:$R,">="&BB$8,Datenblatt!$R:$R,"<="&EOMONTH(BB$8,0)) - SUMIFS(Datenblatt!$P:$P, Datenblatt!$E:$E,$C10, Datenblatt!$R:$R,">="&BB$8,Datenblatt!$R:$R,"<="&EOMONTH(BB$8,0)), "") -> 23559.78979 | BC10: =IF(ISNUMBER($C10), SUMIFS(Datenblatt!$Q:$Q, Datenblatt!$E:$E,$C10, Datenblatt!$R:$R,">="&BC$8,Datenblatt!$R:$R,"<="&EOMONTH(BC$8,0)) - SUMIFS(Datenblatt!$P:$P, Datenblatt!$E:$E,$C10, Datenblatt!$R:$R,">="&BC$8,Datenblatt!$R:$R,"<="&EOMONTH(BC$8,0)), "") -> 22747.64457 | BD10: =IF(ISNUMBER($C10), SUMIFS(Datenblatt!$Q:$Q, Datenblatt!$E:$E,$C10, Datenblatt!$R:$R,">="&BD$8,Datenblatt!$R:$R,"<="&EOMONTH(BD$8,0)) - SUMIFS(Datenblatt!$P:$P, Datenblatt!$E:$E,$C10, Datenblatt!$R:$R,">="&BD$8,Datenblatt!$R:$R,"<="&EOMONTH(BD$8,0)), "") -> 15819.0033 | BE10: =IF(ISNUMBER($C10), SUMIFS(Datenblatt!$Q:$Q, Datenblatt!$E:$E,$C10, Datenblatt!$R:$R,">="&BE$8,Datenblatt!$R:$R,"<="&EOMONTH(BE$8,0)) - SUMIFS(Datenblatt!$P:$P, Datenblatt!$E:$E,$C10, Datenblatt!$R:$R,">="&BE$8,Datenblatt!$R:$R,"<="&EOMONTH(BE$8,0)), "") -> 25499.89152 | BF10: =IF(ISNUMBER($C10), SUMIFS(Datenblatt!$Q:$Q, Datenblatt!$E:$E,$C10, Datenblatt!$R:$R,">="&BF$8,Datenblatt!$R:$R,"<="&EOMONTH(BF$8,0)) - SUMIFS(Datenblatt!$P:$P, Datenblatt!$E:$E,$C10, Datenblatt!$R:$R,">="&BF$8,Datenblatt!$R:$R,"<="&EOMONTH(BF$8,0)), "") -> 27194.29533 | BG10: =IF(ISNUMBER($C10), SUMIFS(Datenblatt!$Q:$Q, Datenblatt!$E:$E,$C10, Datenblatt!$R:$R,">="&BG$8,Datenblatt!$R:$R,"<="&EOMONTH(BG$8,0)) - SUMIFS(Datenblatt!$P:$P, Datenblatt!$E:$E,$C10, Datenblatt!$R:$R,">="&BG$8,Datenblatt!$R:$R,"<="&EOMONTH(BG$8,0)), "") -> 23241.03592 | BH10: =IF(ISNUMBER($C10), SUMIFS(Datenblatt!$Q:$Q, Datenblatt!$E:$E,$C10, Datenblatt!$R:$R,">="&BH$8,Datenblatt!$R:$R,"<="&EOMONTH(BH$8,0)) - SUMIFS(Datenblatt!$P:$P, Datenblatt!$E:$E,$C10, Datenblatt!$R:$R,">="&BH$8,Datenblatt!$R:$R,"<="&EOMONTH(BH$8,0)), "") -> 33037.75538 | BI10: =IF(ISNUMBER($C10), SUMIFS(Datenblatt!$Q:$Q, Datenblatt!$E:$E,$C10, Datenblatt!$R:$R,">="&BI$8,Datenblatt!$R:$R,"<="&EOMONTH(BI$8,0)) - SUMIFS(Datenblatt!$P:$P, Datenblatt!$E:$E,$C10, Datenblatt!$R:$R,">="&BI$8,Datenblatt!$R:$R,"<="&EOMONTH(BI$8,0)), "") -> 16802.56332 | BJ10: =IF(ISNUMBER($C10), SUMIFS(Datenblatt!$Q:$Q, Datenblatt!$E:$E,$C10, Datenblatt!$R:$R,">="&BJ$8,Datenblatt!$R:$R,"<="&EOMONTH(BJ$8,0)) - SUMIFS(Datenblatt!$P:$P, Datenblatt!$E:$E,$C10, Datenblatt!$R:$R,">="&BJ$8,Datenblatt!$R:$R,"<="&EOMONTH(BJ$8,0)), "") -> 27355.64148 | BK10: =IF(ISNUMBER($C10), SUMIFS(Datenblatt!$Q:$Q, Datenblatt!$E:$E,$C10, Datenblatt!$R:$R,">="&BK$8,Datenblatt!$R:$R,"<="&EOMONTH(BK$8,0)) - SUMIFS(Datenblatt!$P:$P, Datenblatt!$E:$E,$C10, Datenblatt!$R:$R,">="&BK$8,Datenblatt!$R:$R,"<="&EOMONTH(BK$8,0)), "") -> 2903.894187 | BL10: =IF(ISNUMBER($C10), SUMIFS(Datenblatt!$Q:$Q, Datenblatt!$E:$E,$C10, Datenblatt!$R:$R,">="&BL$8,Datenblatt!$R:$R,"<="&EOMONTH(BL$8,0)) - SUMIFS(Datenblatt!$P:$P, Datenblatt!$E:$E,$C10, Datenblatt!$R:$R,">="&BL$8,Datenblatt!$R:$R,"<="&EOMONTH(BL$8,0)), "") -> 15417.91714 | BM10: =IF(ISNUMBER($C10), SUMIFS(Datenblatt!$Q:$Q, Datenblatt!$E:$E,$C10, Datenblatt!$R:$R,">="&BM$8,Datenblatt!$R:$R,"<="&EOMONTH(BM$8,0)) - SUMIFS(Datenblatt!$P:$P, Datenblatt!$E:$E,$C10, Datenblatt!$R:$R,">="&BM$8,Datenblatt!$R:$R,"<="&EOMONTH(BM$8,0)), "") -> 6288.146575 | BN10: =IF(ISNUMBER($C10), SUMIFS(Datenblatt!$Q:$Q, Datenblatt!$E:$E,$C10, Datenblatt!$R:$R,">="&BN$8,Datenblatt!$R:$R,"<="&EOMONTH(BN$8,0)) - SUMIFS(Datenblatt!$P:$P, Datenblatt!$E:$E,$C10, Datenblatt!$R:$R,">="&BN$8,Datenblatt!$R:$R,"<="&EOMONTH(BN$8,0)), "") -> 9320.800049 | BO10: =IF(ISNUMBER($C10), SUMIFS(Datenblatt!$Q:$Q, Datenblatt!$E:$E,$C10, Datenblatt!$R:$R,">="&BO$8,Datenblatt!$R:$R,"<="&EOMONTH(BO$8,0)) - SUMIFS(Datenblatt!$P:$P, Datenblatt!$E:$E,$C10, Datenblatt!$R:$R,">="&BO$8,Datenblatt!$R:$R,"<="&EOMONTH(BO$8,0)), "") -> 11674.7431 | BP10: =IF(ISNUMBER($C10), SUMIFS(Datenblatt!$Q:$Q, Datenblatt!$E:$E,$C10, Datenblatt!$R:$R,">="&BP$8,Datenblatt!$R:$R,"<="&EOMONTH(BP$8,0)) - SUMIFS(Datenblatt!$P:$P, Datenblatt!$E:$E,$C10, Datenblatt!$R:$R,">="&BP$8,Datenblatt!$R:$R,"<="&EOMONTH(BP$8,0)), "") -> 15250.69539 | BQ10: =IF(ISNUMBER($C10), SUMIFS(Datenblatt!$Q:$Q, Datenblatt!$E:$E,$C10, Datenblatt!$R:$R,">="&BQ$8,Datenblatt!$R:$R,"<="&EOMONTH(BQ$8,0)) - SUMIFS(Datenblatt!$P:$P, Datenblatt!$E:$E,$C10, Datenblatt!$R:$R,">="&BQ$8,Datenblatt!$R:$R,"<="&EOMONTH(BQ$8,0)), "") -> 8290.239264 | BR10: =IF(ISNUMBER($C10), SUMIFS(Datenblatt!$Q:$Q, Datenblatt!$E:$E,$C10, Datenblatt!$R:$R,">="&BR$8,Datenblatt!$R:$R,"<="&EOMONTH(BR$8,0)) - SUMIFS(Datenblatt!$P:$P, Datenblatt!$E:$E,$C10, Datenblatt!$R:$R,">="&BR$8,Datenblatt!$R:$R,"<="&EOMONTH(BR$8,0)), "") -> 9158.459917 | BS10: =IF(ISNUMBER($C10), SUMIFS(Datenblatt!$Q:$Q, Datenblatt!$E:$E,$C10, Datenblatt!$R:$R,">="&BS$8,Datenblatt!$R:$R,"<="&EOMONTH(BS$8,0)) - SUMIFS(Datenblatt!$P:$P, Datenblatt!$E:$E,$C10, Datenblatt!$R:$R,">="&BS$8,Datenblatt!$R:$R,"<="&EOMONTH(BS$8,0)), "") -> 13362.7725 | BT10: =IF(ISNUMBER($C10), SUMIFS(Datenblatt!$Q:$Q, Datenblatt!$E:$E,$C10, Datenblatt!$R:$R,">="&BT$8,Datenblatt!$R:$R,"<="&EOMONTH(BT$8,0)) - SUMIFS(Datenblatt!$P:$P, Datenblatt!$E:$E,$C10, Datenblatt!$R:$R,">="&BT$8,Datenblatt!$R:$R,"<="&EOMONTH(BT$8,0)), "") -> 8762.791211 | BU10: =IF(ISNUMBER($C10), SUMIFS(Datenblatt!$Q:$Q, Datenblatt!$E:$E,$C10, Datenblatt!$R:$R,">="&BU$8,Datenblatt!$R:$R,"<="&EOMONTH(BU$8,0)) - SUMIFS(Datenblatt!$P:$P, Datenblatt!$E:$E,$C10, Datenblatt!$R:$R,">="&BU$8,Datenblatt!$R:$R,"<="&EOMONTH(BU$8,0)), "") -> 12649.65248 | BV10: =IF(ISNUMBER($C10), SUMIFS(Datenblatt!$Q:$Q, Datenblatt!$E:$E,$C10, Datenblatt!$R:$R,">="&BV$8,Datenblatt!$R:$R,"<="&EOMONTH(BV$8,0)) - SUMIFS(Datenblatt!$P:$P, Datenblatt!$E:$E,$C10, Datenblatt!$R:$R,">="&BV$8,Datenblatt!$R:$R,"<="&EOMONTH(BV$8,0)), "") -> 15555.06776 | BW10: =IF(ISNUMBER($C10), SUMIFS(Datenblatt!$Q:$Q, Datenblatt!$E:$E,$C10, Datenblatt!$R:$R,">="&BW$8,Datenblatt!$R:$R,"<="&EOMONTH(BW$8,0)) - SUMIFS(Datenblatt!$P:$P, Datenblatt!$E:$E,$C10, Datenblatt!$R:$R,">="&BW$8,Datenblatt!$R:$R,"<="&EOMONTH(BW$8,0)), "") -> 17039.60384 | BX10: =IF(ISNUMBER($C10), SUMIFS(Datenblatt!$Q:$Q, Datenblatt!$E:$E,$C10, Datenblatt!$R:$R,">="&BX$8,Datenblatt!$R:$R,"<="&EOMONTH(BX$8,0)) - SUMIFS(Datenblatt!$P:$P, Datenblatt!$E:$E,$C10, Datenblatt!$R:$R,">="&BX$8,Datenblatt!$R:$R,"<="&EOMONTH(BX$8,0)), "") -> 7080.298547 | BY10: =IF(ISNUMBER($C10), SUMIFS(Datenblatt!$Q:$Q, Datenblatt!$E:$E,$C10, Datenblatt!$R:$R,">="&BY$8,Datenblatt!$R:$R,"<="&EOMONTH(BY$8,0)) - SUMIFS(Datenblatt!$P:$P, Datenblatt!$E:$E,$C10, Datenblatt!$R:$R,">="&BY$8,Datenblatt!$R:$R,"<="&EOMONTH(BY$8,0)), "") -> 25359.10928 | BZ10: =IF(ISNUMBER($C10), SUMIFS(Datenblatt!$Q:$Q, Datenblatt!$E:$E,$C10, Datenblatt!$R:$R,">="&BZ$8,Datenblatt!$R:$R,"<="&EOMONTH(BZ$8,0)) - SUMIFS(Datenblatt!$P:$P, Datenblatt!$E:$E,$C10, Datenblatt!$R:$R,">="&BZ$8,Datenblatt!$R:$R,"<="&EOMONTH(BZ$8,0)), "") -> 35838.54611 | CA10: =IF(ISNUMBER($C10), SUMIFS(Datenblatt!$Q:$Q, Datenblatt!$E:$E,$C10, Datenblatt!$R:$R,">="&CA$8,Datenblatt!$R:$R,"<="&EOMONTH(CA$8,0)) - SUMIFS(Datenblatt!$P:$P, Datenblatt!$E:$E,$C10, Datenblatt!$R:$R,">="&CA$8,Datenblatt!$R:$R,"<="&EOMONTH(CA$8,0)), "") -> 24245.99177 | CB10: =IF(ISNUMBER($C10), SUMIFS(Datenblatt!$Q:$Q, Datenblatt!$E:$E,$C10, Datenblatt!$R:$R,">="&CB$8,Datenblatt!$R:$R,"<="&EOMONTH(CB$8,0)) - SUMIFS(Datenblatt!$P:$P, Datenblatt!$E:$E,$C10, Datenblatt!$R:$R,">="&CB$8,Datenblatt!$R:$R,"<="&EOMONTH(CB$8,0)), "") -> 11768.127 | CC10: =IF(ISNUMBER($C10), SUMIFS(Datenblatt!$Q:$Q, Datenblatt!$E:$E,$C10, Datenblatt!$R:$R,">="&CC$8,Datenblatt!$R:$R,"<="&EOMONTH(CC$8,0)) - SUMIFS(Datenblatt!$P:$P, Datenblatt!$E:$E,$C10, Datenblatt!$R:$R,">="&CC$8,Datenblatt!$R:$R,"<="&EOMONTH(CC$8,0)), "") -> 38858.0777 | CD10: =IF(ISNUMBER($C10), SUMIFS(Datenblatt!$Q:$Q, Datenblatt!$E:$E,$C10, Datenblatt!$R:$R,">="&CD$8,Datenblatt!$R:$R,"<="&EOMONTH(CD$8,0)) - SUMIFS(Datenblatt!$P:$P, Datenblatt!$E:$E,$C10, Datenblatt!$R:$R,">="&CD$8,Datenblatt!$R:$R,"<="&EOMONTH(CD$8,0)), "") -> 15514.64958 | CE10: =IF(ISNUMBER($C10), SUMIFS(Datenblatt!$Q:$Q, Datenblatt!$E:$E,$C10, Datenblatt!$R:$R,">="&CE$8,Datenblatt!$R:$R,"<="&EOMONTH(CE$8,0)) - SUMIFS(Datenblatt!$P:$P, Datenblatt!$E:$E,$C10, Datenblatt!$R:$R,">="&CE$8,Datenblatt!$R:$R,"<="&EOMONTH(CE$8,0)), "") -> 25996.33449 | CF10: =IF(ISNUMBER($C10), SUMIFS(Datenblatt!$Q:$Q, Datenblatt!$E:$E,$C10, Datenblatt!$R:$R,">="&CF$8,Datenblatt!$R:$R,"<="&EOMONTH(CF$8,0)) - SUMIFS(Datenblatt!$P:$P, Datenblatt!$E:$E,$C10, Datenblatt!$R:$R,">="&CF$8,Datenblatt!$R:$R,"<="&EOMONTH(CF$8,0)), "") -> 37770.81436 | CG10: =IF(ISNUMBER($C10), SUMIFS(Datenblatt!$Q:$Q, Datenblatt!$E:$E,$C10, Datenblatt!$R:$R,">="&CG$8,Datenblatt!$R:$R,"<="&EOMONTH(CG$8,0)) - SUMIFS(Datenblatt!$P:$P, Datenblatt!$E:$E,$C10, Datenblatt!$R:$R,">="&CG$8,Datenblatt!$R:$R,"<="&EOMONTH(CG$8,0)), "") -> 38809.92076 | CH10: =IF(ISNUMBER($C10), SUMIFS(Datenblatt!$Q:$Q, Datenblatt!$E:$E,$C10, Datenblatt!$R:$R,">="&CH$8,Datenblatt!$R:$R,"<="&EOMONTH(CH$8,0)) - SUMIFS(Datenblatt!$P:$P, Datenblatt!$E:$E,$C10, Datenblatt!$R:$R,">="&CH$8,Datenblatt!$R:$R,"<="&EOMONTH(CH$8,0)), "") -> 52994.64871 | CI10: =IF(ISNUMBER($C10), SUMIFS(Datenblatt!$Q:$Q, Datenblatt!$E:$E,$C10, Datenblatt!$R:$R,">="&CI$8,Datenblatt!$R:$R,"<="&EOMONTH(CI$8,0)) - SUMIFS(Datenblatt!$P:$P, Datenblatt!$E:$E,$C10, Datenblatt!$R:$R,">="&CI$8,Datenblatt!$R:$R,"<="&EOMONTH(CI$8,0)), "") -> 7884.37734 | CJ10: =IF(ISNUMBER($C10), SUMIFS(Datenblatt!$Q:$Q, Datenblatt!$E:$E,$C10, Datenblatt!$R:$R,">="&CJ$8,Datenblatt!$R:$R,"<="&EOMONTH(CJ$8,0)) - SUMIFS(Datenblatt!$P:$P, Datenblatt!$E:$E,$C10, Datenblatt!$R:$R,">="&CJ$8,Datenblatt!$R:$R,"<="&EOMONTH(CJ$8,0)), "") -> 6987.212587 | CK10: =IF(ISNUMBER($C10), SUMIFS(Datenblatt!$Q:$Q, Datenblatt!$E:$E,$C10, Datenblatt!$R:$R,">="&CK$8,Datenblatt!$R:$R,"<="&EOMONTH(CK$8,0)) - SUMIFS(Datenblatt!$P:$P, Datenblatt!$E:$E,$C10, Datenblatt!$R:$R,">="&CK$8,Datenblatt!$R:$R,"<="&EOMONTH(CK$8,0)), "") -> 5922.325485 | CL10: =IF(ISNUMBER($C10), SUMIFS(Datenblatt!$Q:$Q, Datenblatt!$E:$E,$C10, Datenblatt!$R:$R,">="&CL$8,Datenblatt!$R:$R,"<="&EOMONTH(CL$8,0)) - SUMIFS(Datenblatt!$P:$P, Datenblatt!$E:$E,$C10, Datenblatt!$R:$R,">="&CL$8,Datenblatt!$R:$R,"<="&EOMONTH(CL$8,0)), "") -> 9384.812775 | CM10: =IF(ISNUMBER($C10), SUMIFS(Datenblatt!$Q:$Q, Datenblatt!$E:$E,$C10, Datenblatt!$R:$R,">="&CM$8,Datenblatt!$R:$R,"<="&EOMONTH(CM$8,0)) - SUMIFS(Datenblatt!$P:$P, Datenblatt!$E:$E,$C10, Datenblatt!$R:$R,">="&CM$8,Datenblatt!$R:$R,"<="&EOMONTH(CM$8,0)), "") -> 9099.057829 | CN10: =IF(ISNUMBER($C10), SUMIFS(Datenblatt!$Q:$Q, Datenblatt!$E:$E,$C10, Datenblatt!$R:$R,">="&CN$8,Datenblatt!$R:$R,"<="&EOMONTH(CN$8,0)) - SUMIFS(Datenblatt!$P:$P, Datenblatt!$E:$E,$C10, Datenblatt!$R:$R,">="&CN$8,Datenblatt!$R:$R,"<="&EOMONTH(CN$8,0)), "") -> 6327.601321 | CO10: =IF(ISNUMBER($C10), SUMIFS(Datenblatt!$Q:$Q, Datenblatt!$E:$E,$C10, Datenblatt!$R:$R,">="&CO$8,Datenblatt!$R:$R,"<="&EOMONTH(CO$8,0)) - SUMIFS(Datenblatt!$P:$P, Datenblatt!$E:$E,$C10, Datenblatt!$R:$R,">="&CO$8,Datenblatt!$R:$R,"<="&EOMONTH(CO$8,0)), "") -> 10187.37933 | CP10: =IF(ISNUMBER($C10), SUMIFS(Datenblatt!$Q:$Q, Datenblatt!$E:$E,$C10, Datenblatt!$R:$R,">="&CP$8,Datenblatt!$R:$R,"<="&EOMONTH(CP$8,0)) - SUMIFS(Datenblatt!$P:$P, Datenblatt!$E:$E,$C10, Datenblatt!$R:$R,">="&CP$8,Datenblatt!$R:$R,"<="&EOMONTH(CP$8,0)), "") -> 10873.31815 | CQ10: =IF(ISNUMBER($C10), SUMIFS(Datenblatt!$Q:$Q, Datenblatt!$E:$E,$C10, Datenblatt!$R:$R,">="&CQ$8,Datenblatt!$R:$R,"<="&EOMONTH(CQ$8,0)) - SUMIFS(Datenblatt!$P:$P, Datenblatt!$E:$E,$C10, Datenblatt!$R:$R,">="&CQ$8,Datenblatt!$R:$R,"<="&EOMONTH(CQ$8,0)), "") -> 9296.41437 | CR10: =IF(ISNUMBER($C10), SUMIFS(Datenblatt!$Q:$Q, Datenblatt!$E:$E,$C10, Datenblatt!$R:$R,">="&CR$8,Datenblatt!$R:$R,"<="&EOMONTH(CR$8,0)) - SUMIFS(Datenblatt!$P:$P, Datenblatt!$E:$E,$C10, Datenblatt!$R:$R,">="&CR$8,Datenblatt!$R:$R,"<="&EOMONTH(CR$8,0)), "") -> 13162.63418 | CS10: =IF(ISNUMBER($C10), SUMIFS(Datenblatt!$Q:$Q, Datenblatt!$E:$E,$C10, Datenblatt!$R:$R,">="&CS$8,Datenblatt!$R:$R,"<="&EOMONTH(CS$8,0)) - SUMIFS(Datenblatt!$P:$P, Datenblatt!$E:$E,$C10, Datenblatt!$R:$R,">="&CS$8,Datenblatt!$R:$R,"<="&EOMONTH(CS$8,0)), "") -> 19404.96038 | CT10: =IF(ISNUMBER($C10), SUMIFS(Datenblatt!$Q:$Q, Datenblatt!$E:$E,$C10, Datenblatt!$R:$R,">="&CT$8,Datenblatt!$R:$R,"<="&EOMONTH(CT$8,0)) - SUMIFS(Datenblatt!$P:$P, Datenblatt!$E:$E,$C10, Datenblatt!$R:$R,">="&CT$8,Datenblatt!$R:$R,"<="&EOMONTH(CT$8,0)), "") -> 26497.32435 | CU10: =IF(ISNUMBER($C10), SUMIFS(Datenblatt!$Q:$Q, Datenblatt!$E:$E,$C10, Datenblatt!$R:$R,">="&CU$8,Datenblatt!$R:$R,"<="&EOMONTH(CU$8,0)) - SUMIFS(Datenblatt!$P:$P, Datenblatt!$E:$E,$C10, Datenblatt!$R:$R,">="&CU$8,Datenblatt!$R:$R,"<="&EOMONTH(CU$8,0)), "") -> 0 | CV10: =IF(ISNUMBER($C10), SUMIFS(Datenblatt!$Q:$Q, Datenblatt!$E:$E,$C10, Datenblatt!$R:$R,">="&CV$8,Datenblatt!$R:$R,"<="&EOMONTH(CV$8,0)) - SUMIFS(Datenblatt!$P:$P, Datenblatt!$E:$E,$C10, Datenblatt!$R:$R,">="&CV$8,Datenblatt!$R:$R,"<="&EOMONTH(CV$8,0)), "") -> 0 | CW10: =IF(ISNUMBER($C10), SUMIFS(Datenblatt!$Q:$Q, Datenblatt!$E:$E,$C10, Datenblatt!$R:$R,">="&CW$8,Datenblatt!$R:$R,"<="&EOMONTH(CW$8,0)) - SUMIFS(Datenblatt!$P:$P, Datenblatt!$E:$E,$C10, Datenblatt!$R:$R,">="&CW$8,Datenblatt!$R:$R,"<="&EOMONTH(CW$8,0)), "") -> 0 | CX10: =IF(ISNUMBER($C10), SUMIFS(Datenblatt!$Q:$Q, Datenblatt!$E:$E,$C10, Datenblatt!$R:$R,">="&CX$8,Datenblatt!$R:$R,"<="&EOMONTH(CX$8,0)) - SUMIFS(Datenblatt!$P:$P, Datenblatt!$E:$E,$C10, Datenblatt!$R:$R,">="&CX$8,Datenblatt!$R:$R,"<="&EOMONTH(CX$8,0)), "") -> 0 | CY10: =IF(ISNUMBER($C10), SUMIFS(Datenblatt!$Q:$Q, Datenblatt!$E:$E,$C10, Datenblatt!$R:$R,">="&CY$8,Datenblatt!$R:$R,"<="&EOMONTH(CY$8,0)) - SUMIFS(Datenblatt!$P:$P, Datenblatt!$E:$E,$C10, Datenblatt!$R:$R,">="&CY$8,Datenblatt!$R:$R,"<="&EOMONTH(CY$8,0)), "") -> 0 | CZ10: =IF(ISNUMBER($C10), SUMIFS(Datenblatt!$Q:$Q, Datenblatt!$E:$E,$C10, Datenblatt!$R:$R,">="&CZ$8,Datenblatt!$R:$R,"<="&EOMONTH(CZ$8,0)) - SUMIFS(Datenblatt!$P:$P, Datenblatt!$E:$E,$C10, Datenblatt!$R:$R,">="&CZ$8,Datenblatt!$R:$R,"<="&EOMONTH(CZ$8,0)), "") -> 0 | DA10: =IF(ISNUMBER($C10), SUMIFS(Datenblatt!$Q:$Q, Datenblatt!$E:$E,$C10, Datenblatt!$R:$R,">="&DA$8,Datenblatt!$R:$R,"<="&EOMONTH(DA$8,0)) - SUMIFS(Datenblatt!$P:$P, Datenblatt!$E:$E,$C10, Datenblatt!$R:$R,">="&DA$8,Datenblatt!$R:$R,"<="&EOMONTH(DA$8,0)), "") -> 0 | DB10: =IF(ISNUMBER($C10), SUMIFS(Datenblatt!$Q:$Q, Datenblatt!$E:$E,$C10, Datenblatt!$R:$R,">="&DB$8,Datenblatt!$R:$R,"<="&EOMONTH(DB$8,0)) - SUMIFS(Datenblatt!$P:$P, Datenblatt!$E:$E,$C10, Datenblatt!$R:$R,">="&DB$8,Datenblatt!$R:$R,"<="&EOMONTH(DB$8,0)), "") -> 0 | DC10: =IF(ISNUMBER($C10), SUMIFS(Datenblatt!$Q:$Q, Datenblatt!$E:$E,$C10, Datenblatt!$R:$R,">="&DC$8,Datenblatt!$R:$R,"<="&EOMONTH(DC$8,0)) - SUMIFS(Datenblatt!$P:$P, Datenblatt!$E:$E,$C10, Datenblatt!$R:$R,">="&DC$8,Datenblatt!$R:$R,"<="&EOMONTH(DC$8,0)), "") -> 0 | DD10: =IF(ISNUMBER($C10), SUMIFS(Datenblatt!$Q:$Q, Datenblatt!$E:$E,$C10, Datenblatt!$R:$R,">="&DD$8,Datenblatt!$R:$R,"<="&EOMONTH(DD$8,0)) - SUMIFS(Datenblatt!$P:$P, Datenblatt!$E:$E,$C10, Datenblatt!$R:$R,">="&DD$8,Datenblatt!$R:$R,"<="&EOMONTH(DD$8,0)), "") -> 0 | DE10: =IF(ISNUMBER($C10), SUMIFS(Datenblatt!$Q:$Q, Datenblatt!$E:$E,$C10, Datenblatt!$R:$R,">="&DE$8,Datenblatt!$R:$R,"<="&EOMONTH(DE$8,0)) - SUMIFS(Datenblatt!$P:$P, Datenblatt!$E:$E,$C10, Datenblatt!$R:$R,">="&DE$8,Datenblatt!$R:$R,"<="&EOMONTH(DE$8,0)), "") -> 0 | DF10: =IF(ISNUMBER($C10), SUMIFS(Datenblatt!$Q:$Q, Datenblatt!$E:$E,$C10, Datenblatt!$R:$R,">="&DF$8,Datenblatt!$R:$R,"<="&EOMONTH(DF$8,0)) - SUMIFS(Datenblatt!$P:$P, Datenblatt!$E:$E,$C10, Datenblatt!$R:$R,">="&DF$8,Datenblatt!$R:$R,"<="&EOMONTH(DF$8,0)), "") -> 0
B11: Ertragskonto | C11: 3100 | D11: Ertrag aus Supportverträgen | G11: =IF(ISNUMBER($C11), SUMIFS(Datenblatt!$Q:$Q, Datenblatt!$E:$E,$C11, Datenblatt!$R:$R,">="&G$8,Datenblatt!$R:$R,"<="&EOMONTH(G$8,11)) - SUMIFS(Datenblatt!$P:$P, Datenblatt!$E:$E,$C11, Datenblatt!$R:$R,">="&G$8,Datenblatt!$R:$R,"<="&EOMONTH(G$8,11)), "") -> 0 | H11: =IF(ISNUMBER($C11), SUMIFS(Datenblatt!$Q:$Q, Datenblatt!$E:$E,$C11, Datenblatt!$R:$R,">="&H$8,Datenblatt!$R:$R,"<="&EOMONTH(H$8,11)) - SUMIFS(Datenblatt!$P:$P, Datenblatt!$E:$E,$C11, Datenblatt!$R:$R,">="&H$8,Datenblatt!$R:$R,"<="&EOMONTH(H$8,11)), "") -> 0 | I11: =IF(ISNUMBER($C11), SUMIFS(Datenblatt!$Q:$Q, Datenblatt!$E:$E,$C11, Datenblatt!$R:$R,">="&I$8,Datenblatt!$R:$R,"<="&EOMONTH(I$8,11)) - SUMIFS(Datenblatt!$P:$P, Datenblatt!$E:$E,$C11, Datenblatt!$R:$R,">="&I$8,Datenblatt!$R:$R,"<="&EOMONTH(I$8,11)), "") -> 0 | J11: =IF(ISNUMBER($C11), SUMIFS(Datenblatt!$Q:$Q, Datenblatt!$E:$E,$C11, Datenblatt!$R:$R,">="&J$8,Datenblatt!$R:$R,"<="&EOMONTH(J$8,11)) - SUMIFS(Datenblatt!$P:$P, Datenblatt!$E:$E,$C11, Datenblatt!$R:$R,">="&J$8,Datenblatt!$R:$R,"<="&EOMONTH(J$8,11)), "") -> 130.6304833 | K11: =IF(ISNUMBER($C11), SUMIFS(Datenblatt!$Q:$Q, Datenblatt!$E:$E,$C11, Datenblatt!$R:$R,">="&K$8,Datenblatt!$R:$R,"<="&EOMONTH(K$8,11)) - SUMIFS(Datenblatt!$P:$P, Datenblatt!$E:$E,$C11, Datenblatt!$R:$R,">="&K$8,Datenblatt!$R:$R,"<="&EOMONTH(K$8,11)), "") -> 0 | L11: =IF(ISNUMBER($C11), SUMIFS(Datenblatt!$Q:$Q, Datenblatt!$E:$E,$C11, Datenblatt!$R:$R,">="&L$8,Datenblatt!$R:$R,"<="&EOMONTH(L$8,11)) - SUMIFS(Datenblatt!$P:$P, Datenblatt!$E:$E,$C11, Datenblatt!$R:$R,">="&L$8,Datenblatt!$R:$R,"<="&EOMONTH(L$8,11)), "") -> 130.6304833 | M11: =IF(ISNUMBER($C11), SUMIFS(Datenblatt!$Q:$Q, Datenblatt!$E:$E,$C11, Datenblatt!$R:$R,">="&M$8,Datenblatt!$R:$R,"<="&EOMONTH(M$8,11)) - SUMIFS(Datenblatt!$P:$P, Datenblatt!$E:$E,$C11, Datenblatt!$R:$R,">="&M$8,Datenblatt!$R:$R,"<="&EOMONTH(M$8,11)), "") -> 130.6304833 | N11: =IF(ISNUMBER($C11), SUMIFS(Datenblatt!$Q:$Q, Datenblatt!$E:$E,$C11, Datenblatt!$R:$R,">="&N$8,Datenblatt!$R:$R,"<="&EOMONTH(N$8,11)) - SUMIFS(Datenblatt!$P:$P, Datenblatt!$E:$E,$C11, Datenblatt!$R:$R,">="&N$8,Datenblatt!$R:$R,"<="&EOMONTH(N$8,11)), "") -> 0 | O11: =IF(ISNUMBER($C11), SUMIFS(Datenblatt!$Q:$Q, Datenblatt!$E:$E,$C11, Datenblatt!$R:$R,">="&O$8,Datenblatt!$R:$R,"<="&EOMONTH(O$8,0)) - SUMIFS(Datenblatt!$P:$P, Datenblatt!$E:$E,$C11, Datenblatt!$R:$R,">="&O$8,Datenblatt!$R:$R,"<="&EOMONTH(O$8,0)), "") -> 0 | P11: =IF(ISNUMBER($C11), SUMIFS(Datenblatt!$Q:$Q, Datenblatt!$E:$E,$C11, Datenblatt!$R:$R,">="&P$8,Datenblatt!$R:$R,"<="&EOMONTH(P$8,0)) - SUMIFS(Datenblatt!$P:$P, Datenblatt!$E:$E,$C11, Datenblatt!$R:$R,">="&P$8,Datenblatt!$R:$R,"<="&EOMONTH(P$8,0)), "") -> 0 | Q11: =IF(ISNUMBER($C11), SUMIFS(Datenblatt!$Q:$Q, Datenblatt!$E:$E,$C11, Datenblatt!$R:$R,">="&Q$8,Datenblatt!$R:$R,"<="&EOMONTH(Q$8,0)) - SUMIFS(Datenblatt!$P:$P, Datenblatt!$E:$E,$C11, Datenblatt!$R:$R,">="&Q$8,Datenblatt!$R:$R,"<="&EOMONTH(Q$8,0)), "") -> 0 | R11: =IF(ISNUMBER($C11), SUMIFS(Datenblatt!$Q:$Q, Datenblatt!$E:$E,$C11, Datenblatt!$R:$R,">="&R$8,Datenblatt!$R:$R,"<="&EOMONTH(R$8,0)) - SUMIFS(Datenblatt!$P:$P, Datenblatt!$E:$E,$C11, Datenblatt!$R:$R,">="&R$8,Datenblatt!$R:$R,"<="&EOMONTH(R$8,0)), "") -> 0 | S11: =IF(ISNUMBER($C11), SUMIFS(Datenblatt!$Q:$Q, Datenblatt!$E:$E,$C11, Datenblatt!$R:$R,">="&S$8,Datenblatt!$R:$R,"<="&EOMONTH(S$8,0)) - SUMIFS(Datenblatt!$P:$P, Datenblatt!$E:$E,$C11, Datenblatt!$R:$R,">="&S$8,Datenblatt!$R:$R,"<="&EOMONTH(S$8,0)), "") -> 0 | T11: =IF(ISNUMBER($C11), SUMIFS(Datenblatt!$Q:$Q, Datenblatt!$E:$E,$C11, Datenblatt!$R:$R,">="&T$8,Datenblatt!$R:$R,"<="&EOMONTH(T$8,0)) - SUMIFS(Datenblatt!$P:$P, Datenblatt!$E:$E,$C11, Datenblatt!$R:$R,">="&T$8,Datenblatt!$R:$R,"<="&EOMONTH(T$8,0)), "") -> 0 | U11: =IF(ISNUMBER($C11), SUMIFS(Datenblatt!$Q:$Q, Datenblatt!$E:$E,$C11, Datenblatt!$R:$R,">="&U$8,Datenblatt!$R:$R,"<="&EOMONTH(U$8,0)) - SUMIFS(Datenblatt!$P:$P, Datenblatt!$E:$E,$C11, Datenblatt!$R:$R,">="&U$8,Datenblatt!$R:$R,"<="&EOMONTH(U$8,0)), "") -> 0 | V11: =IF(ISNUMBER($C11), SUMIFS(Datenblatt!$Q:$Q, Datenblatt!$E:$E,$C11, Datenblatt!$R:$R,">="&V$8,Datenblatt!$R:$R,"<="&EOMONTH(V$8,0)) - SUMIFS(Datenblatt!$P:$P, Datenblatt!$E:$E,$C11, Datenblatt!$R:$R,">="&V$8,Datenblatt!$R:$R,"<="&EOMONTH(V$8,0)), "") -> 0 | W11: =IF(ISNUMBER($C11), SUMIFS(Datenblatt!$Q:$Q, Datenblatt!$E:$E,$C11, Datenblatt!$R:$R,">="&W$8,Datenblatt!$R:$R,"<="&EOMONTH(W$8,0)) - SUMIFS(Datenblatt!$P:$P, Datenblatt!$E:$E,$C11, Datenblatt!$R:$R,">="&W$8,Datenblatt!$R:$R,"<="&EOMONTH(W$8,0)), "") -> 0 | X11: =IF(ISNUMBER($C11), SUMIFS(Datenblatt!$Q:$Q, Datenblatt!$E:$E,$C11, Datenblatt!$R:$R,">="&X$8,Datenblatt!$R:$R,"<="&EOMONTH(X$8,0)) - SUMIFS(Datenblatt!$P:$P, Datenblatt!$E:$E,$C11, Datenblatt!$R:$R,">="&X$8,Datenblatt!$R:$R,"<="&EOMONTH(X$8,0)), "") -> 0 | Y11: =IF(ISNUMBER($C11), SUMIFS(Datenblatt!$Q:$Q, Datenblatt!$E:$E,$C11, Datenblatt!$R:$R,">="&Y$8,Datenblatt!$R:$R,"<="&EOMONTH(Y$8,0)) - SUMIFS(Datenblatt!$P:$P, Datenblatt!$E:$E,$C11, Datenblatt!$R:$R,">="&Y$8,Datenblatt!$R:$R,"<="&EOMONTH(Y$8,0)), "") -> 0 | Z11: =IF(ISNUMBER($C11), SUMIFS(Datenblatt!$Q:$Q, Datenblatt!$E:$E,$C11, Datenblatt!$R:$R,">="&Z$8,Datenblatt!$R:$R,"<="&EOMONTH(Z$8,0)) - SUMIFS(Datenblatt!$P:$P, Datenblatt!$E:$E,$C11, Datenblatt!$R:$R,">="&Z$8,Datenblatt!$R:$R,"<="&EOMONTH(Z$8,0)), "") -> 0 | AA11: =IF(ISNUMBER($C11), SUMIFS(Datenblatt!$Q:$Q, Datenblatt!$E:$E,$C11, Datenblatt!$R:$R,">="&AA$8,Datenblatt!$R:$R,"<="&EOMONTH(AA$8,0)) - SUMIFS(Datenblatt!$P:$P, Datenblatt!$E:$E,$C11, Datenblatt!$R:$R,">="&AA$8,Datenblatt!$R:$R,"<="&EOMONTH(AA$8,0)), "") -> 0 | AB11: =IF(ISNUMBER($C11), SUMIFS(Datenblatt!$Q:$Q, Datenblatt!$E:$E,$C11, Datenblatt!$R:$R,">="&AB$8,Datenblatt!$R:$R,"<="&EOMONTH(AB$8,0)) - SUMIFS(Datenblatt!$P:$P, Datenblatt!$E:$E,$C11, Datenblatt!$R:$R,">="&AB$8,Datenblatt!$R:$R,"<="&EOMONTH(AB$8,0)), "") -> 0 | AC11: =IF(ISNUMBER($C11), SUMIFS(Datenblatt!$Q:$Q, Datenblatt!$E:$E,$C11, Datenblatt!$R:$R,">="&AC$8,Datenblatt!$R:$R,"<="&EOMONTH(AC$8,0)) - SUMIFS(Datenblatt!$P:$P, Datenblatt!$E:$E,$C11, Datenblatt!$R:$R,">="&AC$8,Datenblatt!$R:$R,"<="&EOMONTH(AC$8,0)), "") -> 0 | AD11: =IF(ISNUMBER($C11), SUMIFS(Datenblatt!$Q:$Q, Datenblatt!$E:$E,$C11, Datenblatt!$R:$R,">="&AD$8,Datenblatt!$R:$R,"<="&EOMONTH(AD$8,0)) - SUMIFS(Datenblatt!$P:$P, Datenblatt!$E:$E,$C11, Datenblatt!$R:$R,">="&AD$8,Datenblatt!$R:$R,"<="&EOMONTH(AD$8,0)), "") -> 0 | AE11: =IF(ISNUMBER($C11), SUMIFS(Datenblatt!$Q:$Q, Datenblatt!$E:$E,$C11, Datenblatt!$R:$R,">="&AE$8,Datenblatt!$R:$R,"<="&EOMONTH(AE$8,0)) - SUMIFS(Datenblatt!$P:$P, Datenblatt!$E:$E,$C11, Datenblatt!$R:$R,">="&AE$8,Datenblatt!$R:$R,"<="&EOMONTH(AE$8,0)), "") -> 0 | AF11: =IF(ISNUMBER($C11), SUMIFS(Datenblatt!$Q:$Q, Datenblatt!$E:$E,$C11, Datenblatt!$R:$R,">="&AF$8,Datenblatt!$R:$R,"<="&EOMONTH(AF$8,0)) - SUMIFS(Datenblatt!$P:$P, Datenblatt!$E:$E,$C11, Datenblatt!$R:$R,">="&AF$8,Datenblatt!$R:$R,"<="&EOMONTH(AF$8,0)), "") -> 0 | AG11: =IF(ISNUMBER($C11), SUMIFS(Datenblatt!$Q:$Q, Datenblatt!$E:$E,$C11, Datenblatt!$R:$R,">="&AG$8,Datenblatt!$R:$R,"<="&EOMONTH(AG$8,0)) - SUMIFS(Datenblatt!$P:$P, Datenblatt!$E:$E,$C11, Datenblatt!$R:$R,">="&AG$8,Datenblatt!$R:$R,"<="&EOMONTH(AG$8,0)), "") -> 0 | AH11: =IF(ISNUMBER($C11), SUMIFS(Datenblatt!$Q:$Q, Datenblatt!$E:$E,$C11, Datenblatt!$R:$R,">="&AH$8,Datenblatt!$R:$R,"<="&EOMONTH(AH$8,0)) - SUMIFS(Datenblatt!$P:$P, Datenblatt!$E:$E,$C11, Datenblatt!$R:$R,">="&AH$8,Datenblatt!$R:$R,"<="&EOMONTH(AH$8,0)), "") -> 0 | AI11: =IF(ISNUMBER($C11), SUMIFS(Datenblatt!$Q:$Q, Datenblatt!$E:$E,$C11, Datenblatt!$R:$R,">="&AI$8,Datenblatt!$R:$R,"<="&EOMONTH(AI$8,0)) - SUMIFS(Datenblatt!$P:$P, Datenblatt!$E:$E,$C11, Datenblatt!$R:$R,">="&AI$8,Datenblatt!$R:$R,"<="&EOMONTH(AI$8,0)), "") -> 0 | AJ11: =IF(ISNUMBER($C11), SUMIFS(Datenblatt!$Q:$Q, Datenblatt!$E:$E,$C11, Datenblatt!$R:$R,">="&AJ$8,Datenblatt!$R:$R,"<="&EOMONTH(AJ$8,0)) - SUMIFS(Datenblatt!$P:$P, Datenblatt!$E:$E,$C11, Datenblatt!$R:$R,">="&AJ$8,Datenblatt!$R:$R,"<="&EOMONTH(AJ$8,0)), "") -> 0 | AK11: =IF(ISNUMBER($C11), SUMIFS(Datenblatt!$Q:$Q, Datenblatt!$E:$E,$C11, Datenblatt!$R:$R,">="&AK$8,Datenblatt!$R:$R,"<="&EOMONTH(AK$8,0)) - SUMIFS(Datenblatt!$P:$P, Datenblatt!$E:$E,$C11, Datenblatt!$R:$R,">="&AK$8,Datenblatt!$R:$R,"<="&EOMONTH(AK$8,0)), "") -> 0 | AL11: =IF(ISNUMBER($C11), SUMIFS(Datenblatt!$Q:$Q, Datenblatt!$E:$E,$C11, Datenblatt!$R:$R,">="&AL$8,Datenblatt!$R:$R,"<="&EOMONTH(AL$8,0)) - SUMIFS(Datenblatt!$P:$P, Datenblatt!$E:$E,$C11, Datenblatt!$R:$R,">="&AL$8,Datenblatt!$R:$R,"<="&EOMONTH(AL$8,0)), "") -> 0 | AM11: =IF(ISNUMBER($C11), SUMIFS(Datenblatt!$Q:$Q, Datenblatt!$E:$E,$C11, Datenblatt!$R:$R,">="&AM$8,Datenblatt!$R:$R,"<="&EOMONTH(AM$8,0)) - SUMIFS(Datenblatt!$P:$P, Datenblatt!$E:$E,$C11, Datenblatt!$R:$R,">="&AM$8,Datenblatt!$R:$R,"<="&EOMONTH(AM$8,0)), "") -> 0 | AN11: =IF(ISNUMBER($C11), SUMIFS(Datenblatt!$Q:$Q, Datenblatt!$E:$E,$C11, Datenblatt!$R:$R,">="&AN$8,Datenblatt!$R:$R,"<="&EOMONTH(AN$8,0)) - SUMIFS(Datenblatt!$P:$P, Datenblatt!$E:$E,$C11, Datenblatt!$R:$R,">="&AN$8,Datenblatt!$R:$R,"<="&EOMONTH(AN$8,0)), "") -> 0 | AO11: =IF(ISNUMBER($C11), SUMIFS(Datenblatt!$Q:$Q, Datenblatt!$E:$E,$C11, Datenblatt!$R:$R,">="&AO$8,Datenblatt!$R:$R,"<="&EOMONTH(AO$8,0)) - SUMIFS(Datenblatt!$P:$P, Datenblatt!$E:$E,$C11, Datenblatt!$R:$R,">="&AO$8,Datenblatt!$R:$R,"<="&EOMONTH(AO$8,0)), "") -> 0 | AP11: =IF(ISNUMBER($C11), SUMIFS(Datenblatt!$Q:$Q, Datenblatt!$E:$E,$C11, Datenblatt!$R:$R,">="&AP$8,Datenblatt!$R:$R,"<="&EOMONTH(AP$8,0)) - SUMIFS(Datenblatt!$P:$P, Datenblatt!$E:$E,$C11, Datenblatt!$R:$R,">="&AP$8,Datenblatt!$R:$R,"<="&EOMONTH(AP$8,0)), "") -> 0 | AQ11: =IF(ISNUMBER($C11), SUMIFS(Datenblatt!$Q:$Q, Datenblatt!$E:$E,$C11, Datenblatt!$R:$R,">="&AQ$8,Datenblatt!$R:$R,"<="&EOMONTH(AQ$8,0)) - SUMIFS(Datenblatt!$P:$P, Datenblatt!$E:$E,$C11, Datenblatt!$R:$R,">="&AQ$8,Datenblatt!$R:$R,"<="&EOMONTH(AQ$8,0)), "") -> 0 | AR11: =IF(ISNUMBER($C11), SUMIFS(Datenblatt!$Q:$Q, Datenblatt!$E:$E,$C11, Datenblatt!$R:$R,">="&AR$8,Datenblatt!$R:$R,"<="&EOMONTH(AR$8,0)) - SUMIFS(Datenblatt!$P:$P, Datenblatt!$E:$E,$C11, Datenblatt!$R:$R,">="&AR$8,Datenblatt!$R:$R,"<="&EOMONTH(AR$8,0)), "") -> 0 | AS11: =IF(ISNUMBER($C11), SUMIFS(Datenblatt!$Q:$Q, Datenblatt!$E:$E,$C11, Datenblatt!$R:$R,">="&AS$8,Datenblatt!$R:$R,"<="&EOMONTH(AS$8,0)) - SUMIFS(Datenblatt!$P:$P, Datenblatt!$E:$E,$C11, Datenblatt!$R:$R,">="&AS$8,Datenblatt!$R:$R,"<="&EOMONTH(AS$8,0)), "") -> 0 | AT11: =IF(ISNUMBER($C11), SUMIFS(Datenblatt!$Q:$Q, Datenblatt!$E:$E,$C11, Datenblatt!$R:$R,">="&AT$8,Datenblatt!$R:$R,"<="&EOMONTH(AT$8,0)) - SUMIFS(Datenblatt!$P:$P, Datenblatt!$E:$E,$C11, Datenblatt!$R:$R,">="&AT$8,Datenblatt!$R:$R,"<="&EOMONTH(AT$8,0)), "") -> 0 | AU11: =IF(ISNUMBER($C11), SUMIFS(Datenblatt!$Q:$Q, Datenblatt!$E:$E,$C11, Datenblatt!$R:$R,">="&AU$8,Datenblatt!$R:$R,"<="&EOMONTH(AU$8,0)) - SUMIFS(Datenblatt!$P:$P, Datenblatt!$E:$E,$C11, Datenblatt!$R:$R,">="&AU$8,Datenblatt!$R:$R,"<="&EOMONTH(AU$8,0)), "") -> 0 | AV11: =IF(ISNUMBER($C11), SUMIFS(Datenblatt!$Q:$Q, Datenblatt!$E:$E,$C11, Datenblatt!$R:$R,">="&AV$8,Datenblatt!$R:$R,"<="&EOMONTH(AV$8,0)) - SUMIFS(Datenblatt!$P:$P, Datenblatt!$E:$E,$C11, Datenblatt!$R:$R,">="&AV$8,Datenblatt!$R:$R,"<="&EOMONTH(AV$8,0)), "") -> 0 | AW11: =IF(ISNUMBER($C11), SUMIFS(Datenblatt!$Q:$Q, Datenblatt!$E:$E,$C11, Datenblatt!$R:$R,">="&AW$8,Datenblatt!$R:$R,"<="&EOMONTH(AW$8,0)) - SUMIFS(Datenblatt!$P:$P, Datenblatt!$E:$E,$C11, Datenblatt!$R:$R,">="&AW$8,Datenblatt!$R:$R,"<="&EOMONTH(AW$8,0)), "") -> 0 | AX11: =IF(ISNUMBER($C11), SUMIFS(Datenblatt!$Q:$Q, Datenblatt!$E:$E,$C11, Datenblatt!$R:$R,">="&AX$8,Datenblatt!$R:$R,"<="&EOMONTH(AX$8,0)) - SUMIFS(Datenblatt!$P:$P, Datenblatt!$E:$E,$C11, Datenblatt!$R:$R,">="&AX$8,Datenblatt!$R:$R,"<="&EOMONTH(AX$8,0)), "") -> 0 | AY11: =IF(ISNUMBER($C11), SUMIFS(Datenblatt!$Q:$Q, Datenblatt!$E:$E,$C11, Datenblatt!$R:$R,">="&AY$8,Datenblatt!$R:$R,"<="&EOMONTH(AY$8,0)) - SUMIFS(Datenblatt!$P:$P, Datenblatt!$E:$E,$C11, Datenblatt!$R:$R,">="&AY$8,Datenblatt!$R:$R,"<="&EOMONTH(AY$8,0)), "") -> 0 | AZ11: =IF(ISNUMBER($C11), SUMIFS(Datenblatt!$Q:$Q, Datenblatt!$E:$E,$C11, Datenblatt!$R:$R,">="&AZ$8,Datenblatt!$R:$R,"<="&EOMONTH(AZ$8,0)) - SUMIFS(Datenblatt!$P:$P, Datenblatt!$E:$E,$C11, Datenblatt!$R:$R,">="&AZ$8,Datenblatt!$R:$R,"<="&EOMONTH(AZ$8,0)), "") -> 0 | BA11: =IF(ISNUMBER($C11), SUMIFS(Datenblatt!$Q:$Q, Datenblatt!$E:$E,$C11, Datenblatt!$R:$R,">="&BA$8,Datenblatt!$R:$R,"<="&EOMONTH(BA$8,0)) - SUMIFS(Datenblatt!$P:$P, Datenblatt!$E:$E,$C11, Datenblatt!$R:$R,">="&BA$8,Datenblatt!$R:$R,"<="&EOMONTH(BA$8,0)), "") -> 0 | BB11: =IF(ISNUMBER($C11), SUMIFS(Datenblatt!$Q:$Q, Datenblatt!$E:$E,$C11, Datenblatt!$R:$R,">="&BB$8,Datenblatt!$R:$R,"<="&EOMONTH(BB$8,0)) - SUMIFS(Datenblatt!$P:$P, Datenblatt!$E:$E,$C11, Datenblatt!$R:$R,">="&BB$8,Datenblatt!$R:$R,"<="&EOMONTH(BB$8,0)), "") -> 0 | BC11: =IF(ISNUMBER($C11), SUMIFS(Datenblatt!$Q:$Q, Datenblatt!$E:$E,$C11, Datenblatt!$R:$R,">="&BC$8,Datenblatt!$R:$R,"<="&EOMONTH(BC$8,0)) - SUMIFS(Datenblatt!$P:$P, Datenblatt!$E:$E,$C11, Datenblatt!$R:$R,">="&BC$8,Datenblatt!$R:$R,"<="&EOMONTH(BC$8,0)), "") -> 0 | BD11: =IF(ISNUMBER($C11), SUMIFS(Datenblatt!$Q:$Q, Datenblatt!$E:$E,$C11, Datenblatt!$R:$R,">="&BD$8,Datenblatt!$R:$R,"<="&EOMONTH(BD$8,0)) - SUMIFS(Datenblatt!$P:$P, Datenblatt!$E:$E,$C11, Datenblatt!$R:$R,">="&BD$8,Datenblatt!$R:$R,"<="&EOMONTH(BD$8,0)), "") -> 0 | BE11: =IF(ISNUMBER($C11), SUMIFS(Datenblatt!$Q:$Q, Datenblatt!$E:$E,$C11, Datenblatt!$R:$R,">="&BE$8,Datenblatt!$R:$R,"<="&EOMONTH(BE$8,0)) - SUMIFS(Datenblatt!$P:$P, Datenblatt!$E:$E,$C11, Datenblatt!$R:$R,">="&BE$8,Datenblatt!$R:$R,"<="&EOMONTH(BE$8,0)), "") -> 0 | BF11: =IF(ISNUMBER($C11), SUMIFS(Datenblatt!$Q:$Q, Datenblatt!$E:$E,$C11, Datenblatt!$R:$R,">="&BF$8,Datenblatt!$R:$R,"<="&EOMONTH(BF$8,0)) - SUMIFS(Datenblatt!$P:$P, Datenblatt!$E:$E,$C11, Datenblatt!$R:$R,">="&BF$8,Datenblatt!$R:$R,"<="&EOMONTH(BF$8,0)), "") -> 71.23767883 | BG11: =IF(ISNUMBER($C11), SUMIFS(Datenblatt!$Q:$Q, Datenblatt!$E:$E,$C11, Datenblatt!$R:$R,">="&BG$8,Datenblatt!$R:$R,"<="&EOMONTH(BG$8,0)) - SUMIFS(Datenblatt!$P:$P, Datenblatt!$E:$E,$C11, Datenblatt!$R:$R,">="&BG$8,Datenblatt!$R:$R,"<="&EOMONTH(BG$8,0)), "") -> 0 | BH11: =IF(ISNUMBER($C11), SUMIFS(Datenblatt!$Q:$Q, Datenblatt!$E:$E,$C11, Datenblatt!$R:$R,">="&BH$8,Datenblatt!$R:$R,"<="&EOMONTH(BH$8,0)) - SUMIFS(Datenblatt!$P:$P, Datenblatt!$E:$E,$C11, Datenblatt!$R:$R,">="&BH$8,Datenblatt!$R:$R,"<="&EOMONTH(BH$8,0)), "") -> 59.39280445 | BI11: =IF(ISNUMBER($C11), SUMIFS(Datenblatt!$Q:$Q, Datenblatt!$E:$E,$C11, Datenblatt!$R:$R,">="&BI$8,Datenblatt!$R:$R,"<="&EOMONTH(BI$8,0)) - SUMIFS(Datenblatt!$P:$P, Datenblatt!$E:$E,$C11, Datenblatt!$R:$R,">="&BI$8,Datenblatt!$R:$R,"<="&EOMONTH(BI$8,0)), "") -> 0 | BJ11: =IF(ISNUMBER($C11), SUMIFS(Datenblatt!$Q:$Q, Datenblatt!$E:$E,$C11, Datenblatt!$R:$R,">="&BJ$8,Datenblatt!$R:$R,"<="&EOMONTH(BJ$8,0)) - SUMIFS(Datenblatt!$P:$P, Datenblatt!$E:$E,$C11, Datenblatt!$R:$R,">="&BJ$8,Datenblatt!$R:$R,"<="&EOMONTH(BJ$8,0)), "") -> 0 | BK11: =IF(ISNUMBER($C11), SUMIFS(Datenblatt!$Q:$Q, Datenblatt!$E:$E,$C11, Datenblatt!$R:$R,">="&BK$8,Datenblatt!$R:$R,"<="&EOMONTH(BK$8,0)) - SUMIFS(Datenblatt!$P:$P, Datenblatt!$E:$E,$C11, Datenblatt!$R:$R,">="&BK$8,Datenblatt!$R:$R,"<="&EOMONTH(BK$8,0)), "") -> 0 | BL11: =IF(ISNUMBER($C11), SUMIFS(Datenblatt!$Q:$Q, Datenblatt!$E:$E,$C11, Datenblatt!$R:$R,">="&BL$8,Datenblatt!$R:$R,"<="&EOMONTH(BL$8,0)) - SUMIFS(Datenblatt!$P:$P, Datenblatt!$E:$E,$C11, Datenblatt!$R:$R,">="&BL$8,Datenblatt!$R:$R,"<="&EOMONTH(BL$8,0)), "") -> 0 | BM11: =IF(ISNUMBER($C11), SUMIFS(Datenblatt!$Q:$Q, Datenblatt!$E:$E,$C11, Datenblatt!$R:$R,">="&BM$8,Datenblatt!$R:$R,"<="&EOMONTH(BM$8,0)) - SUMIFS(Datenblatt!$P:$P, Datenblatt!$E:$E,$C11, Datenblatt!$R:$R,">="&BM$8,Datenblatt!$R:$R,"<="&EOMONTH(BM$8,0)), "") -> 0 | BN11: =IF(ISNUMBER($C11), SUMIFS(Datenblatt!$Q:$Q, Datenblatt!$E:$E,$C11, Datenblatt!$R:$R,">="&BN$8,Datenblatt!$R:$R,"<="&EOMONTH(BN$8,0)) - SUMIFS(Datenblatt!$P:$P, Datenblatt!$E:$E,$C11, Datenblatt!$R:$R,">="&BN$8,Datenblatt!$R:$R,"<="&EOMONTH(BN$8,0)), "") -> 0 | BO11: =IF(ISNUMBER($C11), SUMIFS(Datenblatt!$Q:$Q, Datenblatt!$E:$E,$C11, Datenblatt!$R:$R,">="&BO$8,Datenblatt!$R:$R,"<="&EOMONTH(BO$8,0)) - SUMIFS(Datenblatt!$P:$P, Datenblatt!$E:$E,$C11, Datenblatt!$R:$R,">="&BO$8,Datenblatt!$R:$R,"<="&EOMONTH(BO$8,0)), "") -> 0 | BP11: =IF(ISNUMBER($C11), SUMIFS(Datenblatt!$Q:$Q, Datenblatt!$E:$E,$C11, Datenblatt!$R:$R,">="&BP$8,Datenblatt!$R:$R,"<="&EOMONTH(BP$8,0)) - SUMIFS(Datenblatt!$P:$P, Datenblatt!$E:$E,$C11, Datenblatt!$R:$R,">="&BP$8,Datenblatt!$R:$R,"<="&EOMONTH(BP$8,0)), "") -> 0 | BQ11: =IF(ISNUMBER($C11), SUMIFS(Datenblatt!$Q:$Q, Datenblatt!$E:$E,$C11, Datenblatt!$R:$R,">="&BQ$8,Datenblatt!$R:$R,"<="&EOMONTH(BQ$8,0)) - SUMIFS(Datenblatt!$P:$P, Datenblatt!$E:$E,$C11, Datenblatt!$R:$R,">="&BQ$8,Datenblatt!$R:$R,"<="&EOMONTH(BQ$8,0)), "") -> 0 | BR11: =IF(ISNUMBER($C11), SUMIFS(Datenblatt!$Q:$Q, Datenblatt!$E:$E,$C11, Datenblatt!$R:$R,">="&BR$8,Datenblatt!$R:$R,"<="&EOMONTH(BR$8,0)) - SUMIFS(Datenblatt!$P:$P, Datenblatt!$E:$E,$C11, Datenblatt!$R:$R,">="&BR$8,Datenblatt!$R:$R,"<="&EOMONTH(BR$8,0)), "") -> 0 | BS11: =IF(ISNUMBER($C11), SUMIFS(Datenblatt!$Q:$Q, Datenblatt!$E:$E,$C11, Datenblatt!$R:$R,">="&BS$8,Datenblatt!$R:$R,"<="&EOMONTH(BS$8,0)) - SUMIFS(Datenblatt!$P:$P, Datenblatt!$E:$E,$C11, Datenblatt!$R:$R,">="&BS$8,Datenblatt!$R:$R,"<="&EOMONTH(BS$8,0)), "") -> 0 | BT11: =IF(ISNUMBER($C11), SUMIFS(Datenblatt!$Q:$Q, Datenblatt!$E:$E,$C11, Datenblatt!$R:$R,">="&BT$8,Datenblatt!$R:$R,"<="&EOMONTH(BT$8,0)) - SUMIFS(Datenblatt!$P:$P, Datenblatt!$E:$E,$C11, Datenblatt!$R:$R,">="&BT$8,Datenblatt!$R:$R,"<="&EOMONTH(BT$8,0)), "") -> 0 | BU11: =IF(ISNUMBER($C11), SUMIFS(Datenblatt!$Q:$Q, Datenblatt!$E:$E,$C11, Datenblatt!$R:$R,">="&BU$8,Datenblatt!$R:$R,"<="&EOMONTH(BU$8,0)) - SUMIFS(Datenblatt!$P:$P, Datenblatt!$E:$E,$C11, Datenblatt!$R:$R,">="&BU$8,Datenblatt!$R:$R,"<="&EOMONTH(BU$8,0)), "") -> 0 | BV11: =IF(ISNUMBER($C11), SUMIFS(Datenblatt!$Q:$Q, Datenblatt!$E:$E,$C11, Datenblatt!$R:$R,">="&BV$8,Datenblatt!$R:$R,"<="&EOMONTH(BV$8,0)) - SUMIFS(Datenblatt!$P:$P, Datenblatt!$E:$E,$C11, Datenblatt!$R:$R,">="&BV$8,Datenblatt!$R:$R,"<="&EOMONTH(BV$8,0)), "") -> 0 | BW11: =IF(ISNUMBER($C11), SUMIFS(Datenblatt!$Q:$Q, Datenblatt!$E:$E,$C11, Datenblatt!$R:$R,">="&BW$8,Datenblatt!$R:$R,"<="&EOMONTH(BW$8,0)) - SUMIFS(Datenblatt!$P:$P, Datenblatt!$E:$E,$C11, Datenblatt!$R:$R,">="&BW$8,Datenblatt!$R:$R,"<="&EOMONTH(BW$8,0)), "") -> 0 | BX11: =IF(ISNUMBER($C11), SUMIFS(Datenblatt!$Q:$Q, Datenblatt!$E:$E,$C11, Datenblatt!$R:$R,">="&BX$8,Datenblatt!$R:$R,"<="&EOMONTH(BX$8,0)) - SUMIFS(Datenblatt!$P:$P, Datenblatt!$E:$E,$C11, Datenblatt!$R:$R,">="&BX$8,Datenblatt!$R:$R,"<="&EOMONTH(BX$8,0)), "") -> 0 | BY11: =IF(ISNUMBER($C11), SUMIFS(Datenblatt!$Q:$Q, Datenblatt!$E:$E,$C11, Datenblatt!$R:$R,">="&BY$8,Datenblatt!$R:$R,"<="&EOMONTH(BY$8,0)) - SUMIFS(Datenblatt!$P:$P, Datenblatt!$E:$E,$C11, Datenblatt!$R:$R,">="&BY$8,Datenblatt!$R:$R,"<="&EOMONTH(BY$8,0)), "") -> 0 | BZ11: =IF(ISNUMBER($C11), SUMIFS(Datenblatt!$Q:$Q, Datenblatt!$E:$E,$C11, Datenblatt!$R:$R,">="&BZ$8,Datenblatt!$R:$R,"<="&EOMONTH(BZ$8,0)) - SUMIFS(Datenblatt!$P:$P, Datenblatt!$E:$E,$C11, Datenblatt!$R:$R,">="&BZ$8,Datenblatt!$R:$R,"<="&EOMONTH(BZ$8,0)), "") -> 0 | CA11: =IF(ISNUMBER($C11), SUMIFS(Datenblatt!$Q:$Q, Datenblatt!$E:$E,$C11, Datenblatt!$R:$R,">="&CA$8,Datenblatt!$R:$R,"<="&EOMONTH(CA$8,0)) - SUMIFS(Datenblatt!$P:$P, Datenblatt!$E:$E,$C11, Datenblatt!$R:$R,">="&CA$8,Datenblatt!$R:$R,"<="&EOMONTH(CA$8,0)), "") -> 0 | CB11: =IF(ISNUMBER($C11), SUMIFS(Datenblatt!$Q:$Q, Datenblatt!$E:$E,$C11, Datenblatt!$R:$R,">="&CB$8,Datenblatt!$R:$R,"<="&EOMONTH(CB$8,0)) - SUMIFS(Datenblatt!$P:$P, Datenblatt!$E:$E,$C11, Datenblatt!$R:$R,">="&CB$8,Datenblatt!$R:$R,"<="&EOMONTH(CB$8,0)), "") -> 0 | CC11: =IF(ISNUMBER($C11), SUMIFS(Datenblatt!$Q:$Q, Datenblatt!$E:$E,$C11, Datenblatt!$R:$R,">="&CC$8,Datenblatt!$R:$R,"<="&EOMONTH(CC$8,0)) - SUMIFS(Datenblatt!$P:$P, Datenblatt!$E:$E,$C11, Datenblatt!$R:$R,">="&CC$8,Datenblatt!$R:$R,"<="&EOMONTH(CC$8,0)), "") -> 0 | CD11: =IF(ISNUMBER($C11), SUMIFS(Datenblatt!$Q:$Q, Datenblatt!$E:$E,$C11, Datenblatt!$R:$R,">="&CD$8,Datenblatt!$R:$R,"<="&EOMONTH(CD$8,0)) - SUMIFS(Datenblatt!$P:$P, Datenblatt!$E:$E,$C11, Datenblatt!$R:$R,">="&CD$8,Datenblatt!$R:$R,"<="&EOMONTH(CD$8,0)), "") -> 71.23767883 | CE11: =IF(ISNUMBER($C11), SUMIFS(Datenblatt!$Q:$Q, Datenblatt!$E:$E,$C11, Datenblatt!$R:$R,">="&CE$8,Datenblatt!$R:$R,"<="&EOMONTH(CE$8,0)) - SUMIFS(Datenblatt!$P:$P, Datenblatt!$E:$E,$C11, Datenblatt!$R:$R,">="&CE$8,Datenblatt!$R:$R,"<="&EOMONTH(CE$8,0)), "") -> 0 | CF11: =IF(ISNUMBER($C11), SUMIFS(Datenblatt!$Q:$Q, Datenblatt!$E:$E,$C11, Datenblatt!$R:$R,">="&CF$8,Datenblatt!$R:$R,"<="&EOMONTH(CF$8,0)) - SUMIFS(Datenblatt!$P:$P, Datenblatt!$E:$E,$C11, Datenblatt!$R:$R,">="&CF$8,Datenblatt!$R:$R,"<="&EOMONTH(CF$8,0)), "") -> 59.39280445 | CG11: =IF(ISNUMBER($C11), SUMIFS(Datenblatt!$Q:$Q, Datenblatt!$E:$E,$C11, Datenblatt!$R:$R,">="&CG$8,Datenblatt!$R:$R,"<="&EOMONTH(CG$8,0)) - SUMIFS(Datenblatt!$P:$P, Datenblatt!$E:$E,$C11, Datenblatt!$R:$R,">="&CG$8,Datenblatt!$R:$R,"<="&EOMONTH(CG$8,0)), "") -> 0 | CH11: =IF(ISNUMBER($C11), SUMIFS(Datenblatt!$Q:$Q, Datenblatt!$E:$E,$C11, Datenblatt!$R:$R,">="&CH$8,Datenblatt!$R:$R,"<="&EOMONTH(CH$8,0)) - SUMIFS(Datenblatt!$P:$P, Datenblatt!$E:$E,$C11, Datenblatt!$R:$R,">="&CH$8,Datenblatt!$R:$R,"<="&EOMONTH(CH$8,0)), "") -> 0 | CI11: =IF(ISNUMBER($C11), SUMIFS(Datenblatt!$Q:$Q, Datenblatt!$E:$E,$C11, Datenblatt!$R:$R,">="&CI$8,Datenblatt!$R:$R,"<="&EOMONTH(CI$8,0)) - SUMIFS(Datenblatt!$P:$P, Datenblatt!$E:$E,$C11, Datenblatt!$R:$R,">="&CI$8,Datenblatt!$R:$R,"<="&EOMONTH(CI$8,0)), "") -> 0 | CJ11: =IF(ISNUMBER($C11), SUMIFS(Datenblatt!$Q:$Q, Datenblatt!$E:$E,$C11, Datenblatt!$R:$R,">="&CJ$8,Datenblatt!$R:$R,"<="&EOMONTH(CJ$8,0)) - SUMIFS(Datenblatt!$P:$P, Datenblatt!$E:$E,$C11, Datenblatt!$R:$R,">="&CJ$8,Datenblatt!$R:$R,"<="&EOMONTH(CJ$8,0)), "") -> 0 | CK11: =IF(ISNUMBER($C11), SUMIFS(Datenblatt!$Q:$Q, Datenblatt!$E:$E,$C11, Datenblatt!$R:$R,">="&CK$8,Datenblatt!$R:$R,"<="&EOMONTH(CK$8,0)) - SUMIFS(Datenblatt!$P:$P, Datenblatt!$E:$E,$C11, Datenblatt!$R:$R,">="&CK$8,Datenblatt!$R:$R,"<="&EOMONTH(CK$8,0)), "") -> 0 | CL11: =IF(ISNUMBER($C11), SUMIFS(Datenblatt!$Q:$Q, Datenblatt!$E:$E,$C11, Datenblatt!$R:$R,">="&CL$8,Datenblatt!$R:$R,"<="&EOMONTH(CL$8,0)) - SUMIFS(Datenblatt!$P:$P, Datenblatt!$E:$E,$C11, Datenblatt!$R:$R,">="&CL$8,Datenblatt!$R:$R,"<="&EOMONTH(CL$8,0)), "") -> 0 | CM11: =IF(ISNUMBER($C11), SUMIFS(Datenblatt!$Q:$Q, Datenblatt!$E:$E,$C11, Datenblatt!$R:$R,">="&CM$8,Datenblatt!$R:$R,"<="&EOMONTH(CM$8,0)) - SUMIFS(Datenblatt!$P:$P, Datenblatt!$E:$E,$C11, Datenblatt!$R:$R,">="&CM$8,Datenblatt!$R:$R,"<="&EOMONTH(CM$8,0)), "") -> 0 | CN11: =IF(ISNUMBER($C11), SUMIFS(Datenblatt!$Q:$Q, Datenblatt!$E:$E,$C11, Datenblatt!$R:$R,">="&CN$8,Datenblatt!$R:$R,"<="&EOMONTH(CN$8,0)) - SUMIFS(Datenblatt!$P:$P, Datenblatt!$E:$E,$C11, Datenblatt!$R:$R,">="&CN$8,Datenblatt!$R:$R,"<="&EOMONTH(CN$8,0)), "") -> 0 | CO11: =IF(ISNUMBER($C11), SUMIFS(Datenblatt!$Q:$Q, Datenblatt!$E:$E,$C11, Datenblatt!$R:$R,">="&CO$8,Datenblatt!$R:$R,"<="&EOMONTH(CO$8,0)) - SUMIFS(Datenblatt!$P:$P, Datenblatt!$E:$E,$C11, Datenblatt!$R:$R,">="&CO$8,Datenblatt!$R:$R,"<="&EOMONTH(CO$8,0)), "") -> 0 | CP11: =IF(ISNUMBER($C11), SUMIFS(Datenblatt!$Q:$Q, Datenblatt!$E:$E,$C11, Datenblatt!$R:$R,">="&CP$8,Datenblatt!$R:$R,"<="&EOMONTH(CP$8,0)) - SUMIFS(Datenblatt!$P:$P, Datenblatt!$E:$E,$C11, Datenblatt!$R:$R,">="&CP$8,Datenblatt!$R:$R,"<="&EOMONTH(CP$8,0)), "") -> 71.23767883 | CQ11: =IF(ISNUMBER($C11), SUMIFS(Datenblatt!$Q:$Q, Datenblatt!$E:$E,$C11, Datenblatt!$R:$R,">="&CQ$8,Datenblatt!$R:$R,"<="&EOMONTH(CQ$8,0)) - SUMIFS(Datenblatt!$P:$P, Datenblatt!$E:$E,$C11, Datenblatt!$R:$R,">="&CQ$8,Datenblatt!$R:$R,"<="&EOMONTH(CQ$8,0)), "") -> 0 | CR11: =IF(ISNUMBER($C11), SUMIFS(Datenblatt!$Q:$Q, Datenblatt!$E:$E,$C11, Datenblatt!$R:$R,">="&CR$8,Datenblatt!$R:$R,"<="&EOMONTH(CR$8,0)) - SUMIFS(Datenblatt!$P:$P, Datenblatt!$E:$E,$C11, Datenblatt!$R:$R,">="&CR$8,Datenblatt!$R:$R,"<="&EOMONTH(CR$8,0)), "") -> 59.39280445 | CS11: =IF(ISNUMBER($C11), SUMIFS(Datenblatt!$Q:$Q, Datenblatt!$E:$E,$C11, Datenblatt!$R:$R,">="&CS$8,Datenblatt!$R:$R,"<="&EOMONTH(CS$8,0)) - SUMIFS(Datenblatt!$P:$P, Datenblatt!$E:$E,$C11, Datenblatt!$R:$R,">="&CS$8,Datenblatt!$R:$R,"<="&EOMONTH(CS$8,0)), "") -> 0 | CT11: =IF(ISNUMBER($C11), SUMIFS(Datenblatt!$Q:$Q, Datenblatt!$E:$E,$C11, Datenblatt!$R:$R,">="&CT$8,Datenblatt!$R:$R,"<="&EOMONTH(CT$8,0)) - SUMIFS(Datenblatt!$P:$P, Datenblatt!$E:$E,$C11, Datenblatt!$R:$R,">="&CT$8,Datenblatt!$R:$R,"<="&EOMONTH(CT$8,0)), "") -> 0 | CU11: =IF(ISNUMBER($C11), SUMIFS(Datenblatt!$Q:$Q, Datenblatt!$E:$E,$C11, Datenblatt!$R:$R,">="&CU$8,Datenblatt!$R:$R,"<="&EOMONTH(CU$8,0)) - SUMIFS(Datenblatt!$P:$P, Datenblatt!$E:$E,$C11, Datenblatt!$R:$R,">="&CU$8,Datenblatt!$R:$R,"<="&EOMONTH(CU$8,0)), "") -> 0 | CV11: =IF(ISNUMBER($C11), SUMIFS(Datenblatt!$Q:$Q, Datenblatt!$E:$E,$C11, Datenblatt!$R:$R,">="&CV$8,Datenblatt!$R:$R,"<="&EOMONTH(CV$8,0)) - SUMIFS(Datenblatt!$P:$P, Datenblatt!$E:$E,$C11, Datenblatt!$R:$R,">="&CV$8,Datenblatt!$R:$R,"<="&EOMONTH(CV$8,0)), "") -> 0 | CW11: =IF(ISNUMBER($C11), SUMIFS(Datenblatt!$Q:$Q, Datenblatt!$E:$E,$C11, Datenblatt!$R:$R,">="&CW$8,Datenblatt!$R:$R,"<="&EOMONTH(CW$8,0)) - SUMIFS(Datenblatt!$P:$P, Datenblatt!$E:$E,$C11, Datenblatt!$R:$R,">="&CW$8,Datenblatt!$R:$R,"<="&EOMONTH(CW$8,0)), "") -> 0 | CX11: =IF(ISNUMBER($C11), SUMIFS(Datenblatt!$Q:$Q, Datenblatt!$E:$E,$C11, Datenblatt!$R:$R,">="&CX$8,Datenblatt!$R:$R,"<="&EOMONTH(CX$8,0)) - SUMIFS(Datenblatt!$P:$P, Datenblatt!$E:$E,$C11, Datenblatt!$R:$R,">="&CX$8,Datenblatt!$R:$R,"<="&EOMONTH(CX$8,0)), "") -> 0 | CY11: =IF(ISNUMBER($C11), SUMIFS(Datenblatt!$Q:$Q, Datenblatt!$E:$E,$C11, Datenblatt!$R:$R,">="&CY$8,Datenblatt!$R:$R,"<="&EOMONTH(CY$8,0)) - SUMIFS(Datenblatt!$P:$P, Datenblatt!$E:$E,$C11, Datenblatt!$R:$R,">="&CY$8,Datenblatt!$R:$R,"<="&EOMONTH(CY$8,0)), "") -> 0 | CZ11: =IF(ISNUMBER($C11), SUMIFS(Datenblatt!$Q:$Q, Datenblatt!$E:$E,$C11, Datenblatt!$R:$R,">="&CZ$8,Datenblatt!$R:$R,"<="&EOMONTH(CZ$8,0)) - SUMIFS(Datenblatt!$P:$P, Datenblatt!$E:$E,$C11, Datenblatt!$R:$R,">="&CZ$8,Datenblatt!$R:$R,"<="&EOMONTH(CZ$8,0)), "") -> 0 | DA11: =IF(ISNUMBER($C11), SUMIFS(Datenblatt!$Q:$Q, Datenblatt!$E:$E,$C11, Datenblatt!$R:$R,">="&DA$8,Datenblatt!$R:$R,"<="&EOMONTH(DA$8,0)) - SUMIFS(Datenblatt!$P:$P, Datenblatt!$E:$E,$C11, Datenblatt!$R:$R,">="&DA$8,Datenblatt!$R:$R,"<="&EOMONTH(DA$8,0)), "") -> 0 | DB11: =IF(ISNUMBER($C11), SUMIFS(Datenblatt!$Q:$Q, Datenblatt!$E:$E,$C11, Datenblatt!$R:$R,">="&DB$8,Datenblatt!$R:$R,"<="&EOMONTH(DB$8,0)) - SUMIFS(Datenblatt!$P:$P, Datenblatt!$E:$E,$C11, Datenblatt!$R:$R,">="&DB$8,Datenblatt!$R:$R,"<="&EOMONTH(DB$8,0)), "") -> 0 | DC11: =IF(ISNUMBER($C11), SUMIFS(Datenblatt!$Q:$Q, Datenblatt!$E:$E,$C11, Datenblatt!$R:$R,">="&DC$8,Datenblatt!$R:$R,"<="&EOMONTH(DC$8,0)) - SUMIFS(Datenblatt!$P:$P, Datenblatt!$E:$E,$C11, Datenblatt!$R:$R,">="&DC$8,Datenblatt!$R:$R,"<="&EOMONTH(DC$8,0)), "") -> 0 | DD11: =IF(ISNUMBER($C11), SUMIFS(Datenblatt!$Q:$Q, Datenblatt!$E:$E,$C11, Datenblatt!$R:$R,">="&DD$8,Datenblatt!$R:$R,"<="&EOMONTH(DD$8,0)) - SUMIFS(Datenblatt!$P:$P, Datenblatt!$E:$E,$C11, Datenblatt!$R:$R,">="&DD$8,Datenblatt!$R:$R,"<="&EOMONTH(DD$8,0)), "") -> 0 | DE11: =IF(ISNUMBER($C11), SUMIFS(Datenblatt!$Q:$Q, Datenblatt!$E:$E,$C11, Datenblatt!$R:$R,">="&DE$8,Datenblatt!$R:$R,"<="&EOMONTH(DE$8,0)) - SUMIFS(Datenblatt!$P:$P, Datenblatt!$E:$E,$C11, Datenblatt!$R:$R,">="&DE$8,Datenblatt!$R:$R,"<="&EOMONTH(DE$8,0)), "") -> 0 | DF11: =IF(ISNUMBER($C11), SUMIFS(Datenblatt!$Q:$Q, Datenblatt!$E:$E,$C11, Datenblatt!$R:$R,">="&DF$8,Datenblatt!$R:$R,"<="&EOMONTH(DF$8,0)) - SUMIFS(Datenblatt!$P:$P, Datenblatt!$E:$E,$C11, Datenblatt!$R:$R,">="&DF$8,Datenblatt!$R:$R,"<="&EOMONTH(DF$8,0)), "") -> 0
